Workbook

Sheet Introduction
B3: KSU-Custom Rates
B5: An Excel spreadsheet program to estimate custom rates for various farming operations given a user-entered projection for diesel fuel price.
L8: Version- 2.17.2016
B28: DISCLAIMER
B29: This tool uses the current diesel fuel price and an index of input prices that farmers pay to estimate the custom operation rates for machinery in Kansas. The last survey of custom rates was completed in 2013, so there is some risk that the current estimates might not reflect actual rates. However, the model has, historicaly, provided estimates that are a close fit to actual values over a wide range of diesel fuel prices.
B33: INSTRUCTIONS FOR THE USER:
B34: Be sure to "Enable Content" and "Enable Macros" for the spreadsheet to function correctly.
B35: In the various tabs all values are calculated except fuel prices, PPI, and adjustment factor which are blue numbers to be entered by the user.
B38: FOR MORE INFORMATION:
B39: The companion publication can be found by clicking | H39: HERE
B41: Updated by: | H41: Originally developed by:
B43: Gregg Ibendahl, Ph.D. | H43: Kevin C. Dhuyvetter, Ph.D.
B44: Associate Professor | H44: Former Extension Agricultural Economist
B45: Dept. of Agricultural Economics | H45: Department of Agricultural Economics
B46: Kansas State University | H46: Kansas State University
B47: ibendahl@ksu.edu
B48: (785) 477-2071
B51: Copyright 2016 AgManager.info, K-State Department of Agricultural Economics

Sheet Prices
C2: PPI | D2: 126 | G2: 2016 | H2: 2015 | I2: 2014 | J2: 2013 | K2: 2012
C3: Adj factor | D3: 1.02 | F3: PPI | G3: 126 | H3: 122.3 | I3: 119.1 | J3: 114.9 | K3: 111.7
C4: Diesel | D4: 2.1 | F4: Diesel | G4: 2.1 | H4: 2.71 | I4: 3.82 | J4: 3.92 | K4: 3.96
C5: Use the highway diesel price
E7: Crop Reporting Districts - - - - - - - - - - - - - - - - - - - - - - - - - - - - - - - - - - - - - - - - - - - - - - - - - | N7: Budget Regions - - - - - - - - - - - - - - - - - - - - - - - - - - - - - - - - - - - - - - - - - - - - - - - - - | DP7: CRD - Northeast | DQ7: RMSE
C8: OPERATION | D8: State | E8: CRD - Northwest | F8: CRD - West central | G8: CRD - Southwest | H8: CRD - North central | I8: CRD - Central | J8: CRD - South central | K8: CRD - Northeast | L8: CRD - East central | M8: CRD - Southeast | N8: Northwest | O8: Southwest | P8: West | Q8: North central | R8: South central | S8: Central | T8: Northeast | U8: Southeast | V8: East | AI8: CRD - Central | AJ8: CRD - Central | AK8: CRD - Central | AL8: CRD - Central | BB8: CRD - East central | BC8: CRD - East central | BD8: CRD - East central | BE8: CRD - East central | BG8: CRD - Southeast | BH8: CRD - Southeast | BI8: CRD - Southeast | BJ8: CRD - Southeast | BK8: CRD - Southeast | CO8: South central | CT8: Central | CU8: Central | CY8: Northeast | CZ8: Northeast | DA8: Northeast | DD8: Southeast | DE8: Southeast | DF8: Southeast | DG8: Southeast | DI8: East | DJ8: East | DK8: East | DL8: East | DM8: East
B9: Tillage | C9: Disk | D9: =Raw_data!D77 * $D$3 -> 11.97441882 | E9: =Raw_data!E77 * $D$3 -> 10.49429618 | F9: =Raw_data!F77 * $D$3 -> 10.33499398 | G9: =Raw_data!G77 * $D$3 -> 11.67735991 | H9: =Raw_data!H77 * $D$3 -> 12.52000146 | I9: =Raw_data!I77 * $D$3 -> 11.70773275 | J9: =Raw_data!J77 * $D$3 -> 12.48200298 | K9: =Raw_data!K77 * $D$3 -> 14.49111618 | L9: =Raw_data!L77 * $D$3 -> 13.17970561 | M9: =Raw_data!M77 * $D$3 -> 12.98314591 | N9: =Raw_data!N77 * $D$3 -> 10.41434049 | O9: =Raw_data!O77 * $D$3 -> 10.98569271 | P9: =Raw_data!P77 * $D$3 -> 10.81938903 | Q9: =Raw_data!Q77 * $D$3 -> 12.52000146 | R9: =Raw_data!R77 * $D$3 -> 12.48200298 | S9: =Raw_data!S77 * $D$3 -> 12.50098778 | T9: =Raw_data!T77 * $D$3 -> 13.81986416 | U9: =Raw_data!U77 * $D$3 -> 13.08105657 | V9: =Raw_data!V77 * $D$3 -> 13.535132 | DP9: CRD - East central | DQ9: Intercept
C10: Offset disk | D10: =Raw_data!D78 * $D$3 -> 11.58801519 | E10: =Raw_data!E78 * $D$3 -> 10.61811856 | F10: =Raw_data!F78 * $D$3 -> 10.4620479 | G10: =Raw_data!G78 * $D$3 -> 11.19220563 | H10: =Raw_data!H78 * $D$3 -> 12.39952611 | I10: =Raw_data!I78 * $D$3 -> 11.24786819 | J10: =Raw_data!J78 * $D$3 -> 12.06119077 | K10: =Raw_data!K78 * $D$3 -> 14.46422752 | L10: =Raw_data!L78 * $D$3 -> 13.6337853 | M10: =Raw_data!M78 * $D$3 -> 14.34751845 | N10: =Raw_data!N78 * $D$3 -> 10.53979435 | O10: =Raw_data!O78 * $D$3 -> 10.82096999 | P10: =Raw_data!P78 * $D$3 -> 10.75292587 | Q10: =Raw_data!Q78 * $D$3 -> 12.39952611 | R10: =Raw_data!R78 * $D$3 -> 12.06119077 | S10: =Raw_data!S78 * $D$3 -> 12.22918844 | T10: =Raw_data!T78 * $D$3 -> 14.0428691 | U10: =Raw_data!U78 * $D$3 -> 13.98609975 | V10: =Raw_data!V78 * $D$3 -> 14.14369326 | DP10: CRD - East central | DQ10: PPI
C11: Chisel 4-12 in | D11: =Raw_data!D79 * $D$3 -> 12.59134566 | E11: =Raw_data!E79 * $D$3 -> 11.00185496 | F11: =Raw_data!F79 * $D$3 -> 10.30128448 | G11: =Raw_data!G79 * $D$3 -> 10.97736139 | H11: =Raw_data!H79 * $D$3 -> 12.84737913 | I11: =Raw_data!I79 * $D$3 -> 12.61920203 | J11: =Raw_data!J79 * $D$3 -> 12.83955328 | K11: =Raw_data!K79 * $D$3 -> 15.79045233 | L11: =Raw_data!L79 * $D$3 -> 15.09287837 | M11: =Raw_data!M79 * $D$3 -> 14.50428598 | N11: =Raw_data!N79 * $D$3 -> 10.64580846 | O11: =Raw_data!O79 * $D$3 -> 10.6339514 | P11: =Raw_data!P79 * $D$3 -> 10.75519823 | Q11: =Raw_data!Q79 * $D$3 -> 12.84737913 | R11: =Raw_data!R79 * $D$3 -> 12.83955328 | S11: =Raw_data!S79 * $D$3 -> 12.84346561 | T11: =Raw_data!T79 * $D$3 -> 15.43772575 | U11: =Raw_data!U79 * $D$3 -> 14.79565558 | V11: =Raw_data!V79 * $D$3 -> 15.12008848 | DP11: CRD - East central | DQ11: fuel
C12: Springtooth harrow | D12: =Raw_data!D80 * $D$3 -> 9.702639224 | E12: =Raw_data!E80 * $D$3 -> 8.804123573 | F12: =Raw_data!F80 * $D$3 -> 8.625370448 | G12: =Raw_data!G80 * $D$3 -> 8.476730639 | H12: =Raw_data!H80 * $D$3 -> 9.091040734 | I12: =Raw_data!I80 * $D$3 -> 8.830566561 | J12: =Raw_data!J80 * $D$3 -> 9.038043737 | K12: =Raw_data!K80 * $D$3 -> 10.40724332 | L12: =Raw_data!L80 * $D$3 -> 10.49963695 | M12: =Raw_data!M80 * $D$3 -> 10.49686111 | N12: =Raw_data!N80 * $D$3 -> 8.714288685 | O12: =Raw_data!O80 * $D$3 -> 8.550727569 | P12: =Raw_data!P80 * $D$3 -> 8.634372014 | Q12: =Raw_data!Q80 * $D$3 -> 9.091040734 | R12: =Raw_data!R80 * $D$3 -> 9.038043737 | S12: =Raw_data!S80 * $D$3 -> 9.064503504 | T12: =Raw_data!T80 * $D$3 -> 10.45333806 | U12: =Raw_data!U80 * $D$3 -> 10.49824894 | V12: =Raw_data!V80 * $D$3 -> 10.46782565 | DP12: CRD - East central | DQ12: Adjustment factor
C13: Field cultivate | D13: =Raw_data!D81 * $D$3 -> 11.10765067 | E13: =Raw_data!E81 * $D$3 -> 10.73625123 | F13: =Raw_data!F81 * $D$3 -> 10.4499578 | G13: =Raw_data!G81 * $D$3 -> 11.33458346 | H13: =Raw_data!H81 * $D$3 -> 11.82433395 | I13: =Raw_data!I81 * $D$3 -> 10.50874074 | J13: =Raw_data!J81 * $D$3 -> 11.23350937 | K13: =Raw_data!K81 * $D$3 -> 13.67250981 | L13: =Raw_data!L81 * $D$3 -> 12.6760543 | M13: =Raw_data!M81 * $D$3 -> 11.92710104 | N13: =Raw_data!N81 * $D$3 -> 10.59213729 | O13: =Raw_data!O81 * $D$3 -> 10.88328622 | P13: =Raw_data!P81 * $D$3 -> 10.83405216 | Q13: =Raw_data!Q81 * $D$3 -> 11.82433395 | R13: =Raw_data!R81 * $D$3 -> 11.23350937 | S13: =Raw_data!S81 * $D$3 -> 11.52513628 | T13: =Raw_data!T81 * $D$3 -> 13.16485764 | U13: =Raw_data!U81 * $D$3 -> 12.29587656 | V13: =Raw_data!V81 * $D$3 -> 12.73862083 | DP13: CRD - East central | DQ13: RMSE
C14: V-blade | D14: =Raw_data!D82 * $D$3 -> 8.927314641 | E14: =Raw_data!E82 * $D$3 -> 8.69097995 | F14: =Raw_data!F82 * $D$3 -> 8.086916146 | G14: =Raw_data!G82 * $D$3 -> 9.029189054 | H14: =Raw_data!H82 * $D$3 -> 10.32949324 | I14: =Raw_data!I82 * $D$3 -> 9.601952491 | J14: =Raw_data!J82 * $D$3 -> 10.08949619 | K14: =Raw_data!K82 * $D$3 -> 8.76319993 | L14: =Raw_data!L82 * $D$3 -> 8.76319993 | M14: =Raw_data!M82 * $D$3 -> 8.76777204 | N14: =Raw_data!N82 * $D$3 -> 8.383509175 | O14: =Raw_data!O82 * $D$3 -> 8.545074297 | P14: =Raw_data!P82 * $D$3 -> 8.593435299 | Q14: =Raw_data!Q82 * $D$3 -> 10.32949324 | R14: =Raw_data!R82 * $D$3 -> 10.08949619 | S14: =Raw_data!S82 * $D$3 -> 10.20878948 | T14: =Raw_data!T82 * $D$3 -> 8.76319993 | U14: =Raw_data!U82 * $D$3 -> 8.765485687 | V14: =Raw_data!V82 * $D$3 -> 8.764723702 | DP14: CRD - East central | DQ14: LN adjustment
B15: Fertillizer application | C15: Row crop cultivation with fertilizer | D15: =Raw_data!D83 * $D$3 -> 10.85907063 | E15: =Raw_data!E83 * $D$3 -> 12.46432182 | F15: =Raw_data!F83 * $D$3 -> 12.46432182 | G15: =Raw_data!G83 * $D$3 -> 12.46432182 | H15: =Raw_data!H83 * $D$3 -> 11.14661489 | I15: =Raw_data!I83 * $D$3 -> 11.14661489 | J15: =Raw_data!J83 * $D$3 -> 11.14661489 | K15: =Raw_data!K83 * $D$3 -> 11.57947575 | L15: =Raw_data!L83 * $D$3 -> 11.57947575 | M15: =Raw_data!M83 * $D$3 -> 11.57947575 | N15: =Raw_data!N83 * $D$3 -> 12.46432182 | O15: =Raw_data!O83 * $D$3 -> 12.46432182 | P15: =Raw_data!P83 * $D$3 -> 12.46432182 | Q15: =Raw_data!Q83 * $D$3 -> 11.14661489 | R15: =Raw_data!R83 * $D$3 -> 11.14661489 | S15: =Raw_data!S83 * $D$3 -> 11.14661489 | T15: =Raw_data!T83 * $D$3 -> 11.57947575 | U15: =Raw_data!U83 * $D$3 -> 11.57947575 | V15: =Raw_data!V83 * $D$3 -> 11.57947575 | DP15: CRD - Southeast | DQ15: Intercept
C16: Dry fertilizer | D16: =Raw_data!D84 * $D$3 -> 6.19476141 | E16: =Raw_data!E84 * $D$3 -> 6.134212148 | F16: =Raw_data!F84 * $D$3 -> 6.391260447 | G16: =Raw_data!G84 * $D$3 -> 6.219324153 | H16: =Raw_data!H84 * $D$3 -> 6.224696705 | I16: =Raw_data!I84 * $D$3 -> 5.737614864 | J16: =Raw_data!J84 * $D$3 -> 5.60733395 | K16: =Raw_data!K84 * $D$3 -> 6.673639165 | L16: =Raw_data!L84 * $D$3 -> 6.312298068 | M16: =Raw_data!M84 * $D$3 -> 5.620919866 | N16: =Raw_data!N84 * $D$3 -> 6.261417369 | O16: =Raw_data!O84 * $D$3 -> 6.304706216 | P16: =Raw_data!P84 * $D$3 -> 6.247354737 | Q16: =Raw_data!Q84 * $D$3 -> 6.224696705 | R16: =Raw_data!R84 * $D$3 -> 5.60733395 | S16: =Raw_data!S84 * $D$3 -> 5.907956768 | T16: =Raw_data!T84 * $D$3 -> 6.490454499 | U16: =Raw_data!U84 * $D$3 -> 5.956586406 | V16: =Raw_data!V84 * $D$3 -> 6.18660713 | DP16: CRD - Southeast | DQ16: PPI
C17: Liquid fertilizer | D17: =Raw_data!D85 * $D$3 -> 6.333841195 | E17: =Raw_data!E85 * $D$3 -> 6.664314676 | F17: =Raw_data!F85 * $D$3 -> 6.376585267 | G17: =Raw_data!G85 * $D$3 -> 6.824891693 | H17: =Raw_data!H85 * $D$3 -> 6.293706666 | I17: =Raw_data!I85 * $D$3 -> 5.806550227 | J17: =Raw_data!J85 * $D$3 -> 5.775246187 | K17: =Raw_data!K85 * $D$3 -> 6.981570168 | L17: =Raw_data!L85 * $D$3 -> 6.844610132 | M17: =Raw_data!M85 * $D$3 -> 6.10308179 | N17: =Raw_data!N85 * $D$3 -> 6.518862691 | O17: =Raw_data!O85 * $D$3 -> 6.596931394 | P17: =Raw_data!P85 * $D$3 -> 6.619316444 | Q17: =Raw_data!Q85 * $D$3 -> 6.293706666 | R17: =Raw_data!R85 * $D$3 -> 5.775246187 | S17: =Raw_data!S85 * $D$3 -> 6.028905823 | T17: =Raw_data!T85 * $D$3 -> 6.912750966 | U17: =Raw_data!U85 * $D$3 -> 6.463220208 | V17: =Raw_data!V85 * $D$3 -> 6.631579867 | DP17: CRD - Southeast | DQ17: fuel
C18: NH3 application | D18: =Raw_data!D86 * $D$3 -> 14.51699021 | E18: =Raw_data!E86 * $D$3 -> 13.04666856 | F18: =Raw_data!F86 * $D$3 -> 11.70795831 | G18: =Raw_data!G86 * $D$3 -> 13.5239561 | H18: =Raw_data!H86 * $D$3 -> 12.97646583 | I18: =Raw_data!I86 * $D$3 -> 12.06576557 | J18: =Raw_data!J86 * $D$3 -> 10.5108622 | K18: =Raw_data!K86 * $D$3 -> 16.30184259 | L18: =Raw_data!L86 * $D$3 -> 14.17205863 | M18: =Raw_data!M86 * $D$3 -> 12.37167867 | N18: =Raw_data!N86 * $D$3 -> 12.35920109 | O18: =Raw_data!O86 * $D$3 -> 12.58323942 | P18: =Raw_data!P86 * $D$3 -> 12.73585726 | Q18: =Raw_data!Q86 * $D$3 -> 12.97646583 | R18: =Raw_data!R86 * $D$3 -> 10.5108622 | S18: =Raw_data!S86 * $D$3 -> 11.67877751 | T18: =Raw_data!T86 * $D$3 -> 15.19969306 | U18: =Raw_data!U86 * $D$3 -> 13.2413049 | V18: =Raw_data!V86 * $D$3 -> 14.19164555 | DP18: CRD - Southeast | DQ18: Adjustment factor
C19: Ground herbicide | D19: =Raw_data!D87 * $D$3 -> 6.256001383 | E19: =Raw_data!E87 * $D$3 -> 6.108030261 | F19: =Raw_data!F87 * $D$3 -> 5.946602022 | G19: =Raw_data!G87 * $D$3 -> 6.268082957 | H19: =Raw_data!H87 * $D$3 -> 6.080722254 | I19: =Raw_data!I87 * $D$3 -> 5.721793076 | J19: =Raw_data!J87 * $D$3 -> 5.779803996 | K19: =Raw_data!K87 * $D$3 -> 6.921803154 | L19: =Raw_data!L87 * $D$3 -> 6.822164519 | M19: =Raw_data!M87 * $D$3 -> 6.155019444 | N19: =Raw_data!N87 * $D$3 -> 6.02677568 | O19: =Raw_data!O87 * $D$3 -> 6.105226842 | P19: =Raw_data!P87 * $D$3 -> 6.106161172 | Q19: =Raw_data!Q87 * $D$3 -> 6.080722254 | R19: =Raw_data!R87 * $D$3 -> 5.779803996 | S19: =Raw_data!S87 * $D$3 -> 5.928354138 | T19: =Raw_data!T87 * $D$3 -> 6.871803248 | U19: =Raw_data!U87 * $D$3 -> 6.48001198 | V19: =Raw_data!V87 * $D$3 -> 6.624050285 | DP19: CRD - Southeast | DQ19: RMSE
C20: Aerial herbicide | D20: =Raw_data!D88 * $D$3 -> 7.593112338 | E20: =Raw_data!E88 * $D$3 -> 6.743564909 | F20: =Raw_data!F88 * $D$3 -> 6.380812679 | G20: =Raw_data!G88 * $D$3 -> 6.417523988 | H20: =Raw_data!H88 * $D$3 -> 6.674624438 | I20: =Raw_data!I88 * $D$3 -> 6.33779574 | J20: =Raw_data!J88 * $D$3 -> 6.875497999 | K20: =Raw_data!K88 * $D$3 -> 7.806221967 | L20: =Raw_data!L88 * $D$3 -> 8.00192802 | M20: =Raw_data!M88 * $D$3 -> 8.192746808 | N20: =Raw_data!N88 * $D$3 -> 6.559681735 | O20: =Raw_data!O88 * $D$3 -> 6.399142007 | P20: =Raw_data!P88 * $D$3 -> 6.511949331 | Q20: =Raw_data!Q88 * $D$3 -> 6.674624438 | R20: =Raw_data!R88 * $D$3 -> 6.875497999 | S20: =Raw_data!S88 * $D$3 -> 6.774316716 | T20: =Raw_data!T88 * $D$3 -> 7.903469256 | U20: =Raw_data!U88 * $D$3 -> 8.096775299 | V20: =Raw_data!V88 * $D$3 -> 7.998742022 | DP20: CRD - Southeast | DQ20: LN adjustment
C21: Ground insecticide | D21: =Raw_data!D89 * $D$3 -> 6.293143627 | E21: =Raw_data!E89 * $D$3 -> 6.258381206 | F21: =Raw_data!F89 * $D$3 -> 5.998387612 | G21: =Raw_data!G89 * $D$3 -> 6.269802838 | H21: =Raw_data!H89 * $D$3 -> 6.170387786 | I21: =Raw_data!I89 * $D$3 -> 5.804533889 | J21: =Raw_data!J89 * $D$3 -> 5.834467695 | K21: =Raw_data!K89 * $D$3 -> 6.960981393 | L21: =Raw_data!L89 * $D$3 -> 7.106528101 | M21: =Raw_data!M89 * $D$3 -> 6.17009182 | N21: =Raw_data!N89 * $D$3 -> 6.127005492 | O21: =Raw_data!O89 * $D$3 -> 6.132593878 | P21: =Raw_data!P89 * $D$3 -> 6.174239537 | Q21: =Raw_data!Q89 * $D$3 -> 6.170387786 | R21: =Raw_data!R89 * $D$3 -> 5.834467695 | S21: =Raw_data!S89 * $D$3 -> 6.00007735 | T21: =Raw_data!T89 * $D$3 -> 7.033378269 | U21: =Raw_data!U89 * $D$3 -> 6.62177702 | V21: =Raw_data!V89 * $D$3 -> 6.73296762 | DP21: Northwest | DQ21: Intercept
C22: Aerial insecticide | D22: =Raw_data!D90 * $D$3 -> 7.81686107 | E22: =Raw_data!E90 * $D$3 -> 7.621624259 | F22: =Raw_data!F90 * $D$3 -> 7.001003705 | G22: =Raw_data!G90 * $D$3 -> 7.014568219 | H22: =Raw_data!H90 * $D$3 -> 7.406086608 | I22: =Raw_data!I90 * $D$3 -> 7.212984061 | J22: =Raw_data!J90 * $D$3 -> 7.599395455 | K22: =Raw_data!K90 * $D$3 -> 8.683094611 | L22: =Raw_data!L90 * $D$3 -> 8.876916806 | M22: =Raw_data!M90 * $D$3 -> 9.144707502 | N22: =Raw_data!N90 * $D$3 -> 7.304725845 | O22: =Raw_data!O90 * $D$3 -> 7.00778268 | P22: =Raw_data!P90 * $D$3 -> 7.206696981 | Q22: =Raw_data!Q90 * $D$3 -> 7.406086608 | R22: =Raw_data!R90 * $D$3 -> 7.599395455 | S22: =Raw_data!S90 * $D$3 -> 7.502118428 | T22: =Raw_data!T90 * $D$3 -> 8.779470855 | U22: =Raw_data!U90 * $D$3 -> 9.009817297 | V22: =Raw_data!V90 * $D$3 -> 8.899566118 | DP22: Northwest | DQ22: PPI
B23: Planting | C23: Wheat, reg-till planting | D23: =Raw_data!D91 * $D$3 -> 15.8636189 | E23: =Raw_data!E91 * $D$3 -> 14.99336371 | F23: =Raw_data!F91 * $D$3 -> 14.06106619 | G23: =Raw_data!G91 * $D$3 -> 15.2719533 | H23: =Raw_data!H91 * $D$3 -> 17.68685856 | I23: =Raw_data!I91 * $D$3 -> 15.99900383 | J23: =Raw_data!J91 * $D$3 -> 16.26451854 | K23: =Raw_data!K91 * $D$3 -> 18.80187388 | L23: =Raw_data!L91 * $D$3 -> 18.10229876 | M23: =Raw_data!M91 * $D$3 -> 16.08399923 | N23: =Raw_data!N91 * $D$3 -> 14.51973414 | O23: =Raw_data!O91 * $D$3 -> 14.65400785 | P23: =Raw_data!P91 * $D$3 -> 14.76626434 | Q23: =Raw_data!Q91 * $D$3 -> 17.68685856 | R23: =Raw_data!R91 * $D$3 -> 16.26451854 | S23: =Raw_data!S91 * $D$3 -> 16.96078533 | T23: =Raw_data!T91 * $D$3 -> 18.44877065 | U23: =Raw_data!U91 * $D$3 -> 17.06333377 | V23: =Raw_data!V91 * $D$3 -> 17.62420906 | DP23: Northwest | DQ23: fuel
C24: Milo, reg-till planting | D24: =Raw_data!D92 * $D$3 -> 18.24545262 | E24: =Raw_data!E92 * $D$3 -> 18.34821926 | F24: =Raw_data!F92 * $D$3 -> 17.60995714 | G24: =Raw_data!G92 * $D$3 -> 17.65287439 | H24: =Raw_data!H92 * $D$3 -> 18.75377054 | I24: =Raw_data!I92 * $D$3 -> 18.9252351 | J24: =Raw_data!J92 * $D$3 -> 19.65666542 | K24: =Raw_data!K92 * $D$3 -> 19.7704724 | L24: =Raw_data!L92 * $D$3 -> 18.57607267 | M24: =Raw_data!M92 * $D$3 -> 16.83928474 | N24: =Raw_data!N92 * $D$3 -> 17.97529846 | O24: =Raw_data!O92 * $D$3 -> 17.63140271 | P24: =Raw_data!P92 * $D$3 -> 17.8671747 | Q24: =Raw_data!Q92 * $D$3 -> 18.75377054 | R24: =Raw_data!R92 * $D$3 -> 19.65666542 | S24: =Raw_data!S92 * $D$3 -> 19.19991127 | T24: =Raw_data!T92 * $D$3 -> 19.16396963 | U24: =Raw_data!U92 * $D$3 -> 17.68637264 | V24: =Raw_data!V92 * $D$3 -> 18.35544268 | DP24: Northwest | DQ24: Adjustment factor
C25: Corn, reg-till planting | D25: =Raw_data!D93 * $D$3 -> 18.32271549 | E25: =Raw_data!E93 * $D$3 -> 17.8246836 | F25: =Raw_data!F93 * $D$3 -> 17.64772317 | G25: =Raw_data!G93 * $D$3 -> 18.24043156 | H25: =Raw_data!H93 * $D$3 -> 18.58923436 | I25: =Raw_data!I93 * $D$3 -> 19.59903854 | J25: =Raw_data!J93 * $D$3 -> 19.56133777 | K25: =Raw_data!K93 * $D$3 -> 19.51799258 | L25: =Raw_data!L93 * $D$3 -> 17.56601657 | M25: =Raw_data!M93 * $D$3 -> 16.75591383 | N25: =Raw_data!N93 * $D$3 -> 17.73598268 | O25: =Raw_data!O93 * $D$3 -> 17.94162999 | P25: =Raw_data!P93 * $D$3 -> 17.90256285 | Q25: =Raw_data!Q93 * $D$3 -> 18.58923436 | R25: =Raw_data!R93 * $D$3 -> 19.56133777 | S25: =Raw_data!S93 * $D$3 -> 19.06909259 | T25: =Raw_data!T93 * $D$3 -> 18.51630042 | U25: =Raw_data!U93 * $D$3 -> 17.15618431 | V25: =Raw_data!V93 * $D$3 -> 17.90985975 | DP25: Northwest | DQ25: RMSE
C26: Soybeans, reg-till planting | D26: =Raw_data!D94 * $D$3 -> 18.38317722 | E26: =Raw_data!E94 * $D$3 -> 18.07441001 | F26: =Raw_data!F94 * $D$3 -> 17.55702623 | G26: =Raw_data!G94 * $D$3 -> 17.75813552 | H26: =Raw_data!H94 * $D$3 -> 18.40821452 | I26: =Raw_data!I94 * $D$3 -> 18.54762858 | J26: =Raw_data!J94 * $D$3 -> 18.87990536 | K26: =Raw_data!K94 * $D$3 -> 19.31768689 | L26: =Raw_data!L94 * $D$3 -> 17.66085682 | M26: =Raw_data!M94 * $D$3 -> 16.32515582 | N26: =Raw_data!N94 * $D$3 -> 17.81383987 | O26: =Raw_data!O94 * $D$3 -> 17.65729456 | P26: =Raw_data!P94 * $D$3 -> 17.79525236 | Q26: =Raw_data!Q94 * $D$3 -> 18.40821452 | R26: =Raw_data!R94 * $D$3 -> 18.87990536 | S26: =Raw_data!S94 * $D$3 -> 18.64256817 | T26: =Raw_data!T94 * $D$3 -> 18.47070389 | U26: =Raw_data!U94 * $D$3 -> 16.97987749 | V26: =Raw_data!V94 * $D$3 -> 17.72589105 | DP26: Northwest | DQ26: LN adjustment
C27: Grass seeding, reg-till | D27: =Raw_data!D95 * $D$3 -> 18.5568371 | E27: =Raw_data!E95 * $D$3 -> 18.21100868 | F27: =Raw_data!F95 * $D$3 -> 17.35276944 | G27: =Raw_data!G95 * $D$3 -> 18.3550216 | H27: =Raw_data!H95 * $D$3 -> 18.85237949 | I27: =Raw_data!I95 * $D$3 -> 19.30741004 | J27: =Raw_data!J95 * $D$3 -> 17.75865004 | K27: =Raw_data!K95 * $D$3 -> 20.91051334 | L27: =Raw_data!L95 * $D$3 -> 22.06604943 | M27: =Raw_data!M95 * $D$3 -> 19.82158233 | N27: =Raw_data!N95 * $D$3 -> 17.77671046 | O27: =Raw_data!O95 * $D$3 -> 17.84686129 | P27: =Raw_data!P95 * $D$3 -> 17.96742742 | Q27: =Raw_data!Q95 * $D$3 -> 18.85237949 | R27: =Raw_data!R95 * $D$3 -> 17.75865004 | S27: =Raw_data!S95 * $D$3 -> 18.29734434 | T27: =Raw_data!T95 * $D$3 -> 21.48051259 | U27: =Raw_data!U95 * $D$3 -> 20.91372792 | V27: =Raw_data!V95 * $D$3 -> 20.91265634 | DP27: Southwest | DQ27: Intercept
C28: Alfalfa seeding, reg-till | D28: =Raw_data!D96 * $D$3 -> 18.72350929 | E28: =Raw_data!E96 * $D$3 -> 19.85133614 | F28: =Raw_data!F96 * $D$3 -> 19.0759645 | G28: =Raw_data!G96 * $D$3 -> 18.6914486 | H28: =Raw_data!H96 * $D$3 -> 19.84896882 | I28: =Raw_data!I96 * $D$3 -> 18.80021794 | J28: =Raw_data!J96 * $D$3 -> 17.87642535 | K28: =Raw_data!K96 * $D$3 -> 20.75435088 | L28: =Raw_data!L96 * $D$3 -> 22.42735629 | M28: =Raw_data!M96 * $D$3 -> 19.06854509 | N28: =Raw_data!N96 * $D$3 -> 19.45978889 | O28: =Raw_data!O96 * $D$3 -> 18.88272782 | P28: =Raw_data!P96 * $D$3 -> 19.20022877 | Q28: =Raw_data!Q96 * $D$3 -> 19.84896882 | R28: =Raw_data!R96 * $D$3 -> 17.87642535 | S28: =Raw_data!S96 * $D$3 -> 18.83689489 | T28: =Raw_data!T96 * $D$3 -> 21.57464303 | U28: =Raw_data!U96 * $D$3 -> 20.67987076 | V28: =Raw_data!V96 * $D$3 -> 20.70466772 | DP28: Southwest | DQ28: PPI
C29: Sunflowers, reg-till planting | D29: =Raw_data!D97 * $D$3 -> 18.31702881 | E29: =Raw_data!E97 * $D$3 -> 18.08117441 | F29: =Raw_data!F97 * $D$3 -> 17.60486321 | G29: =Raw_data!G97 * $D$3 -> 17.88199534 | H29: =Raw_data!H97 * $D$3 -> 18.58320414 | I29: =Raw_data!I97 * $D$3 -> 19.01902089 | J29: =Raw_data!J97 * $D$3 -> 19.36285584 | K29: =Raw_data!K97 * $D$3 -> 19.53450666 | L29: =Raw_data!L97 * $D$3 -> 17.92859795 | M29: =Raw_data!M97 * $D$3 -> 16.63858437 | N29: =Raw_data!N97 * $D$3 -> 17.84142938 | O29: =Raw_data!O97 * $D$3 -> 17.74288821 | P29: =Raw_data!P97 * $D$3 -> 17.85494113 | Q29: =Raw_data!Q97 * $D$3 -> 18.79984967 | R29: =Raw_data!R97 * $D$3 -> 19.19016831 | S29: =Raw_data!S97 * $D$3 -> 18.98567556 | T29: =Raw_data!T97 * $D$3 -> 18.71433451 | U29: =Raw_data!U97 * $D$3 -> 17.27155145 | V29: =Raw_data!V97 * $D$3 -> 17.99513254 | DP29: Southwest | DQ29: fuel
C30: Wheat, min-till planting | D30: =Raw_data!D98 * $D$3 -> 19.76613337 | E30: =Raw_data!E98 * $D$3 -> 19.97576815 | F30: =Raw_data!F98 * $D$3 -> 19.17891212 | G30: =Raw_data!G98 * $D$3 -> 19.59233239 | H30: =Raw_data!H98 * $D$3 -> 22.32873738 | I30: =Raw_data!I98 * $D$3 -> 22.66323688 | J30: =Raw_data!J98 * $D$3 -> 20.73219759 | K30: =Raw_data!K98 * $D$3 -> 24.89920794 | L30: =Raw_data!L98 * $D$3 -> 23.88055076 | M30: =Raw_data!M98 * $D$3 -> 22.7613761 | N30: =Raw_data!N98 * $D$3 -> 19.57328541 | O30: =Raw_data!O98 * $D$3 -> 19.38452014 | P30: =Raw_data!P98 * $D$3 -> 19.57963234 | Q30: =Raw_data!Q98 * $D$3 -> 22.32873738 | R30: =Raw_data!R98 * $D$3 -> 20.73219759 | S30: =Raw_data!S98 * $D$3 -> 21.51566395 | T30: =Raw_data!T98 * $D$3 -> 24.38456067 | U30: =Raw_data!U98 * $D$3 -> 23.31424881 | V30: =Raw_data!V98 * $D$3 -> 23.83102901 | DP30: Southwest | DQ30: Adjustment factor
C31: Milo, minimum till | D31: =Raw_data!D99 * $D$3 -> 20.67057334 | E31: =Raw_data!E99 * $D$3 -> 19.6243271 | F31: =Raw_data!F99 * $D$3 -> 18.83956515 | G31: =Raw_data!G99 * $D$3 -> 18.95270006 | H31: =Raw_data!H99 * $D$3 -> 20.74829857 | I31: =Raw_data!I99 * $D$3 -> 21.64540511 | J31: =Raw_data!J99 * $D$3 -> 21.64190625 | K31: =Raw_data!K99 * $D$3 -> 23.89694882 | L31: =Raw_data!L99 * $D$3 -> 22.56835561 | M31: =Raw_data!M99 * $D$3 -> 21.83732577 | N31: =Raw_data!N99 * $D$3 -> 19.22794292 | O31: =Raw_data!O99 * $D$3 -> 18.89604793 | P31: =Raw_data!P99 * $D$3 -> 19.135754 | Q31: =Raw_data!Q99 * $D$3 -> 20.74829857 | R31: =Raw_data!R99 * $D$3 -> 21.64190625 | S31: =Raw_data!S99 * $D$3 -> 21.19039246 | T31: =Raw_data!T99 * $D$3 -> 23.22315308 | U31: =Raw_data!U99 * $D$3 -> 22.19983184 | V31: =Raw_data!V99 * $D$3 -> 22.75170463 | DP31: Southwest | DQ31: RMSE
C32: Corn, minimum till | D32: =Raw_data!D100 * $D$3 -> 20.58203229 | E32: =Raw_data!E100 * $D$3 -> 20.07612107 | F32: =Raw_data!F100 * $D$3 -> 19.37358278 | G32: =Raw_data!G100 * $D$3 -> 20.52222925 | H32: =Raw_data!H100 * $D$3 -> 21.00126809 | I32: =Raw_data!I100 * $D$3 -> 22.16372779 | J32: =Raw_data!J100 * $D$3 -> 21.93244114 | K32: =Raw_data!K100 * $D$3 -> 23.33319849 | L32: =Raw_data!L100 * $D$3 -> 22.18039466 | M32: =Raw_data!M100 * $D$3 -> 21.03506021 | N32: =Raw_data!N100 * $D$3 -> 19.7217239 | O32: =Raw_data!O100 * $D$3 -> 19.93963659 | P32: =Raw_data!P100 * $D$3 -> 19.98502801 | Q32: =Raw_data!Q100 * $D$3 -> 21.00126809 | R32: =Raw_data!R100 * $D$3 -> 21.93244114 | S32: =Raw_data!S100 * $D$3 -> 21.46180505 | T32: =Raw_data!T100 * $D$3 -> 22.74949562 | U32: =Raw_data!U100 * $D$3 -> 21.60013743 | V32: =Raw_data!V100 * $D$3 -> 22.16302832 | DP32: Southwest | DQ32: LN adjustment
C33: Soybeans, minimum till | D33: =Raw_data!D101 * $D$3 -> 20.87795471 | E33: =Raw_data!E101 * $D$3 -> 20.96823737 | F33: =Raw_data!F101 * $D$3 -> 20.25986359 | G33: =Raw_data!G101 * $D$3 -> 21.47009467 | H33: =Raw_data!H101 * $D$3 -> 21.50010125 | I33: =Raw_data!I101 * $D$3 -> 22.90849029 | J33: =Raw_data!J101 * $D$3 -> 22.23974831 | K33: =Raw_data!K101 * $D$3 -> 24.52411001 | L33: =Raw_data!L101 * $D$3 -> 22.43380573 | M33: =Raw_data!M101 * $D$3 -> 22.34706313 | N33: =Raw_data!N101 * $D$3 -> 20.61100747 | O33: =Raw_data!O101 * $D$3 -> 20.85620266 | P33: =Raw_data!P101 * $D$3 -> 20.89348089 | Q33: =Raw_data!Q101 * $D$3 -> 21.50010125 | R33: =Raw_data!R101 * $D$3 -> 22.23974831 | S33: =Raw_data!S101 * $D$3 -> 21.86679768 | T33: =Raw_data!T101 * $D$3 -> 23.45568416 | U33: =Raw_data!U101 * $D$3 -> 22.39039242 | V33: =Raw_data!V101 * $D$3 -> 23.08016391 | DP33: West | DQ33: Intercept
C34: Sunflowers, minimum till | D34: =Raw_data!D102 * $D$3 -> 20.70981712 | E34: =Raw_data!E102 * $D$3 -> 20.21524241 | F34: =Raw_data!F102 * $D$3 -> 19.4822553 | G34: =Raw_data!G102 * $D$3 -> 20.28819046 | H34: =Raw_data!H102 * $D$3 -> 21.08092305 | I34: =Raw_data!I102 * $D$3 -> 22.23319023 | J34: =Raw_data!J102 * $D$3 -> 21.93668013 | K34: =Raw_data!K102 * $D$3 -> 23.91314957 | L34: =Raw_data!L102 * $D$3 -> 22.39361284 | M34: =Raw_data!M102 * $D$3 -> 21.73308315 | N34: =Raw_data!N102 * $D$3 -> 19.84536504 | O34: =Raw_data!O102 * $D$3 -> 19.88113946 | P34: =Raw_data!P102 * $D$3 -> 19.99188902 | Q34: =Raw_data!Q102 * $D$3 -> 21.64939197 | R34: =Raw_data!R102 * $D$3 -> 22.08443756 | S34: =Raw_data!S102 * $D$3 -> 21.74473419 | T34: =Raw_data!T102 * $D$3 -> 23.14091211 | U34: =Raw_data!U102 * $D$3 -> 22.060876 | V34: =Raw_data!V102 * $D$3 -> 22.661784 | DP34: West | DQ34: PPI
B35: Harvesting | C35: Wheat (base) | D35: =Raw_data!D103 * $D$3 -> 22.28087985 | E35: =Raw_data!E103 * $D$3 -> 21.37859971 | F35: =Raw_data!F103 * $D$3 -> 21.16038386 | G35: =Raw_data!G103 * $D$3 -> 20.91898959 | H35: =Raw_data!H103 * $D$3 -> 21.48878211 | I35: =Raw_data!I103 * $D$3 -> 21.43319615 | J35: =Raw_data!J103 * $D$3 -> 21.46750785 | K35: =Raw_data!K103 * $D$3 -> 26.07519725 | L35: =Raw_data!L103 * $D$3 -> 27.07910257 | M35: =Raw_data!M103 * $D$3 -> 24.49097013 | N35: =Raw_data!N103 * $D$3 -> 21.26921194 | O35: =Raw_data!O103 * $D$3 -> 21.03934053 | P35: =Raw_data!P103 * $D$3 -> 21.15182447 | Q35: =Raw_data!Q103 * $D$3 -> 21.48878211 | R35: =Raw_data!R103 * $D$3 -> 21.46750785 | S35: =Raw_data!S103 * $D$3 -> 21.47814235 | T35: =Raw_data!T103 * $D$3 -> 26.57240939 | U35: =Raw_data!U103 * $D$3 -> 25.75254341 | V35: =Raw_data!V103 * $D$3 -> 25.85964862 | DP35: West | DQ35: fuel
C36: Wheat (extra charge for high yield) - $/bu | D36: =Raw_data!D104 * $D$3 /100 -> 0.2162084281 | E36: =Raw_data!E104 * $D$3 /100 -> 0.2188924643 | F36: =Raw_data!F104 * $D$3 /100 -> 0.2104963816 | G36: =Raw_data!G104 * $D$3 /100 -> 0.2091250851 | H36: =Raw_data!H104 * $D$3 /100 -> 0.2115390749 | I36: =Raw_data!I104 * $D$3 /100 -> 0.2110447728 | J36: =Raw_data!J104 * $D$3 /100 -> 0.2128670003 | K36: =Raw_data!K104 * $D$3 /100 -> 0.2152380709 | L36: =Raw_data!L104 * $D$3 /100 -> 0.2081740089 | M36: =Raw_data!M104 * $D$3 /100 -> 0.2072812631 | N36: =Raw_data!N104 * $D$3 /100 -> 0.2146533757 | O36: =Raw_data!O104 * $D$3 /100 -> 0.209809613 | P36: =Raw_data!P104 * $D$3 /100 -> 0.212794562 | Q36: =Raw_data!Q104 * $D$3 /100 -> 0.2115390749 | R36: =Raw_data!R104 * $D$3 /100 -> 0.2128670003 | S36: =Raw_data!S104 * $D$3 /100 -> 0.2122019988 | T36: =Raw_data!T104 * $D$3 /100 -> 0.2116765743 | U36: =Raw_data!U104 * $D$3 /100 -> 0.2077271564 | V36: =Raw_data!V104 * $D$3 /100 -> 0.2102012113 | DP36: West | DQ36: Adjustment factor
C37: Milo (base) | D37: =Raw_data!D105 * $D$3 -> 22.68359052 | E37: =Raw_data!E105 * $D$3 -> 22.50588764 | F37: =Raw_data!F105 * $D$3 -> 22.09824341 | G37: =Raw_data!G105 * $D$3 -> 21.97888839 | H37: =Raw_data!H105 * $D$3 -> 22.75729942 | I37: =Raw_data!I105 * $D$3 -> 22.23320726 | J37: =Raw_data!J105 * $D$3 -> 22.815993 | K37: =Raw_data!K105 * $D$3 -> 28.41241491 | L37: =Raw_data!L105 * $D$3 -> 28.72815223 | M37: =Raw_data!M105 * $D$3 -> 25.76959685 | N37: =Raw_data!N105 * $D$3 -> 22.30113413 | O37: =Raw_data!O105 * $D$3 -> 22.0384851 | P37: =Raw_data!P105 * $D$3 -> 22.19319731 | Q37: =Raw_data!Q105 * $D$3 -> 22.75729942 | R37: =Raw_data!R105 * $D$3 -> 22.815993 | S37: =Raw_data!S105 * $D$3 -> 22.78662731 | T37: =Raw_data!T105 * $D$3 -> 28.56984741 | U37: =Raw_data!U105 * $D$3 -> 27.20869165 | V37: =Raw_data!V105 * $D$3 -> 27.60415699 | DP37: West | DQ37: RMSE
C38: Milo (extra charge for high yield) - $/bu | D38: =Raw_data!D106 * $D$3 /100 -> 0.220504814 | E38: =Raw_data!E106 * $D$3 /100 -> 0.226534881 | F38: =Raw_data!F106 * $D$3 /100 -> 0.2238531868 | G38: =Raw_data!G106 * $D$3 /100 -> 0.2243579331 | H38: =Raw_data!H106 * $D$3 /100 -> 0.2245358669 | I38: =Raw_data!I106 * $D$3 /100 -> 0.2228852362 | J38: =Raw_data!J106 * $D$3 /100 -> 0.2226715766 | K38: =Raw_data!K106 * $D$3 /100 -> 0.2153732902 | L38: =Raw_data!L106 * $D$3 /100 -> 0.2147829696 | M38: =Raw_data!M106 * $D$3 /100 -> 0.2146005218 | N38: =Raw_data!N106 * $D$3 /100 -> 0.2251900421 | O38: =Raw_data!O106 * $D$3 /100 -> 0.2241054178 | P38: =Raw_data!P106 * $D$3 /100 -> 0.2249123301 | Q38: =Raw_data!Q106 * $D$3 /100 -> 0.2245358669 | R38: =Raw_data!R106 * $D$3 /100 -> 0.2226715766 | S38: =Raw_data!S106 * $D$3 /100 -> 0.2236017788 | T38: =Raw_data!T106 * $D$3 /100 -> 0.2150779274 | U38: =Raw_data!U106 * $D$3 /100 -> 0.2146917263 | V38: =Raw_data!V106 * $D$3 /100 -> 0.2149186743 | DP38: West | DQ38: LN adjustment
C39: Corn (base) | D39: =Raw_data!D107 * $D$3 -> 28.92340363 | E39: =Raw_data!E107 * $D$3 -> 27.66945925 | F39: =Raw_data!F107 * $D$3 -> 27.59541924 | G39: =Raw_data!G107 * $D$3 -> 27.591516 | H39: =Raw_data!H107 * $D$3 -> 29.13995883 | I39: =Raw_data!I107 * $D$3 -> 27.98777485 | J39: =Raw_data!J107 * $D$3 -> 29.77690816 | K39: =Raw_data!K107 * $D$3 -> 30.90241422 | L39: =Raw_data!L107 * $D$3 -> 29.61552678 | M39: =Raw_data!M107 * $D$3 -> 28.36660481 | N39: =Raw_data!N107 * $D$3 -> 27.63241445 | O39: =Raw_data!O107 * $D$3 -> 27.59346755 | P39: =Raw_data!P107 * $D$3 -> 27.6187749 | Q39: =Raw_data!Q107 * $D$3 -> 29.13995883 | R39: =Raw_data!R107 * $D$3 -> 29.77690816 | S39: =Raw_data!S107 * $D$3 -> 29.45671193 | T39: =Raw_data!T107 * $D$3 -> 30.25212845 | U39: =Raw_data!U107 * $D$3 -> 28.98433964 | V39: =Raw_data!V107 * $D$3 -> 29.61009108 | DP39: North central | DQ39: Intercept
C40: Corn (extra charge for high yield) - $/bu | D40: =Raw_data!D108 * $D$3 /100 -> 0.2486430107 | E40: =Raw_data!E108 * $D$3 /100 -> 0.2417668892 | F40: =Raw_data!F108 * $D$3 /100 -> 0.2420406231 | G40: =Raw_data!G108 * $D$3 /100 -> 0.2387893437 | H40: =Raw_data!H108 * $D$3 /100 -> 0.2370650703 | I40: =Raw_data!I108 * $D$3 /100 -> 0.2271709666 | J40: =Raw_data!J108 * $D$3 /100 -> 0.2403714553 | K40: =Raw_data!K108 * $D$3 /100 -> 0.1980055983 | L40: =Raw_data!L108 * $D$3 /100 -> 0.1700651083 | M40: =Raw_data!M108 * $D$3 /100 -> 0.1969203474 | N40: =Raw_data!N108 * $D$3 /100 -> 0.2419037174 | O40: =Raw_data!O108 * $D$3 /100 -> 0.2404094872 | P40: =Raw_data!P108 * $D$3 /100 -> 0.2408611056 | Q40: =Raw_data!Q108 * $D$3 /100 -> 0.2370650703 | R40: =Raw_data!R108 * $D$3 /100 -> 0.2403714553 | S40: =Raw_data!S108 * $D$3 /100 -> 0.2387125383 | T40: =Raw_data!T108 * $D$3 /100 -> 0.183504342 | U40: =Raw_data!U108 * $D$3 /100 -> 0.1830007656 | V40: =Raw_data!V108 * $D$3 /100 -> 0.1878715828 | DP40: North central | DQ40: PPI
C41: Soybeans (base) | D41: =Raw_data!D109 * $D$3 -> 27.67242037 | E41: =Raw_data!E109 * $D$3 -> 27.8075434 | F41: =Raw_data!F109 * $D$3 -> 27.97854296 | G41: =Raw_data!G109 * $D$3 -> 29.58112283 | H41: =Raw_data!H109 * $D$3 -> 28.25088093 | I41: =Raw_data!I109 * $D$3 -> 26.54085071 | J41: =Raw_data!J109 * $D$3 -> 28.10027232 | K41: =Raw_data!K109 * $D$3 -> 28.73493735 | L41: =Raw_data!L109 * $D$3 -> 26.8106923 | M41: =Raw_data!M109 * $D$3 -> 24.599021 | N41: =Raw_data!N109 * $D$3 -> 27.89291214 | O41: =Raw_data!O109 * $D$3 -> 28.76867595 | P41: =Raw_data!P109 * $D$3 -> 28.44466287 | Q41: =Raw_data!Q109 * $D$3 -> 28.25088093 | R41: =Raw_data!R109 * $D$3 -> 28.10027232 | S41: =Raw_data!S109 * $D$3 -> 28.17547599 | T41: =Raw_data!T109 * $D$3 -> 27.75614461 | U41: =Raw_data!U109 * $D$3 -> 25.68105884 | V41: =Raw_data!V109 * $D$3 -> 26.66113918 | DP41: North central | DQ41: fuel
C42: Soybeans (extra charge for high yield) - $/bu | D42: =Raw_data!D110 * $D$3 /100 -> 0.2046494984 | E42: =Raw_data!E110 * $D$3 /100 -> 0.2080591646 | F42: =Raw_data!F110 * $D$3 /100 -> 0.2092843246 | G42: =Raw_data!G110 * $D$3 /100 -> 0.2103615855 | H42: =Raw_data!H110 * $D$3 /100 -> 0.217255237 | I42: =Raw_data!I110 * $D$3 /100 -> 0.2063769553 | J42: =Raw_data!J110 * $D$3 /100 -> 0.2117806147 | K42: =Raw_data!K110 * $D$3 /100 -> 0.2161868088 | L42: =Raw_data!L110 * $D$3 /100 -> 0.2070166193 | M42: =Raw_data!M110 * $D$3 /100 -> 0.219118879 | N42: =Raw_data!N110 * $D$3 /100 -> 0.2086708454 | O42: =Raw_data!O110 * $D$3 /100 -> 0.2098222637 | P42: =Raw_data!P110 * $D$3 /100 -> 0.2092329102 | Q42: =Raw_data!Q110 * $D$3 /100 -> 0.217255237 | R42: =Raw_data!R110 * $D$3 /100 -> 0.2117806147 | S42: =Raw_data!S110 * $D$3 /100 -> 0.2145004607 | T42: =Raw_data!T110 * $D$3 /100 -> 0.2115520321 | U42: =Raw_data!U110 * $D$3 /100 -> 0.2129818057 | V42: =Raw_data!V110 * $D$3 /100 -> 0.2140448256 | DP42: North central | DQ42: Adjustment factor
C43: Sunflower (base) | D43: =Raw_data!D111 * $D$3 -> 31.86699157 | E43: =Raw_data!E111 * $D$3 -> 31.38131807 | F43: =Raw_data!F111 * $D$3 -> 31.22893007 | G43: =Raw_data!G111 * $D$3 -> 31.15736698 | H43: =Raw_data!H111 * $D$3 -> 32.02045339 | I43: =Raw_data!I111 * $D$3 -> 31.85748857 | J43: =Raw_data!J111 * $D$3 -> 32.55789117 | K43: =Raw_data!K111 * $D$3 -> 32.29951489 | L43: =Raw_data!L111 * $D$3 -> 32.4203129 | M43: =Raw_data!M111 * $D$3 -> 31.80471876 | N43: =Raw_data!N111 * $D$3 -> 31.30503135 | O43: =Raw_data!O111 * $D$3 -> 31.19312801 | P43: =Raw_data!P111 * $D$3 -> 31.2557323 | Q43: =Raw_data!Q111 * $D$3 -> 32.02045339 | R43: =Raw_data!R111 * $D$3 -> 32.55789117 | S43: =Raw_data!S111 * $D$3 -> 32.28805408 | T43: =Raw_data!T111 * $D$3 -> 32.35985753 | U43: =Raw_data!U111 * $D$3 -> 32.11104069 | V43: =Raw_data!V111 * $D$3 -> 32.1737429 | DP43: North central | DQ43: RMSE
C44: Sunflower (extra charge for high yield)-$/cwt | D44: =Raw_data!D112 * $D$3 /100 -> 0.2826667298 | E44: =Raw_data!E112 * $D$3 /100 -> 0.2880632523 | F44: =Raw_data!F112 * $D$3 /100 -> 0.2886596852 | G44: =Raw_data!G112 * $D$3 /100 -> 0.2886596852 | H44: =Raw_data!H112 * $D$3 /100 -> 0.2890411528 | I44: =Raw_data!I112 * $D$3 /100 -> 0.2890411528 | J44: =Raw_data!J112 * $D$3 /100 -> 0.2890411528 | K44: =Raw_data!K112 * $D$3 /100 -> 0.2890411528 | L44: =Raw_data!L112 * $D$3 /100 -> 0.2890411528 | M44: =Raw_data!M112 * $D$3 /100 -> 0.2890411528 | N44: =Raw_data!N112 * $D$3 /100 -> 0.2883613145 | O44: =Raw_data!O112 * $D$3 /100 -> 0.2886596852 | P44: =Raw_data!P112 * $D$3 /100 -> 0.2884607371 | Q44: =Raw_data!Q112 * $D$3 /100 -> 0.2890411528 | R44: =Raw_data!R112 * $D$3 /100 -> 0.2890411528 | S44: =Raw_data!S112 * $D$3 /100 -> 0.2890411528 | T44: =Raw_data!T112 * $D$3 /100 -> 0.2890411528 | U44: =Raw_data!U112 * $D$3 /100 -> 0.2890411528 | V44: =Raw_data!V112 * $D$3 /100 -> 0.2890411528 | DP44: North central | DQ44: LN adjustment
C45: Silage (base) | D45: =Raw_data!D113 * $D$3 -> 7.80475855 | E45: =Raw_data!E113 * $D$3 -> 7.92495607 | F45: =Raw_data!F113 * $D$3 -> 8.079182716 | G45: =Raw_data!G113 * $D$3 -> 8.08683428 | H45: =Raw_data!H113 * $D$3 -> 7.838602332 | I45: =Raw_data!I113 * $D$3 -> 8.095472074 | J45: =Raw_data!J113 * $D$3 -> 8.502226255 | K45: =Raw_data!K113 * $D$3 -> 8.295330566 | L45: =Raw_data!L113 * $D$3 -> 7.885937134 | M45: =Raw_data!M113 * $D$3 -> 8.217718713 | N45: =Raw_data!N113 * $D$3 -> 8.001697826 | O45: =Raw_data!O113 * $D$3 -> 8.083007593 | P45: =Raw_data!P113 * $D$3 -> 8.029976587 | Q45: =Raw_data!Q113 * $D$3 -> 7.838602332 | R45: =Raw_data!R113 * $D$3 -> 8.502226255 | S45: =Raw_data!S113 * $D$3 -> 8.163673839 | T45: =Raw_data!T113 * $D$3 -> 8.088043976 | U45: =Raw_data!U113 * $D$3 -> 8.050118829 | V45: =Raw_data!V113 * $D$3 -> 8.131039917 | DP45: South central | DQ45: Intercept
B46: Hauling | C46: Wheat - hauling - $/bu | D46: =Raw_data!D114/100*$D$3 -> 0.2051048321 | E46: =Raw_data!E114/100*$D$3 -> 0.2089211466 | F46: =Raw_data!F114/100*$D$3 -> 0.2095814116 | G46: =Raw_data!G114/100*$D$3 -> 0.2066381786 | H46: =Raw_data!H114/100*$D$3 -> 0.2069959986 | I46: =Raw_data!I114/100*$D$3 -> 0.2060087085 | J46: =Raw_data!J114/100*$D$3 -> 0.2068379773 | K46: =Raw_data!K114/100*$D$3 -> 0.2089517187 | L46: =Raw_data!L114/100*$D$3 -> 0.1857058877 | M46: =Raw_data!M114/100*$D$3 -> 0.2015821967 | N46: =Raw_data!N114/100*$D$3 -> 0.2092510186 | O46: =Raw_data!O114/100*$D$3 -> 0.2081045918 | P46: =Raw_data!P114/100*$D$3 -> 0.2083764215 | Q46: =Raw_data!Q114/100*$D$3 -> 0.2069959986 | R46: =Raw_data!R114/100*$D$3 -> 0.2068379773 | S46: =Raw_data!S114/100*$D$3 -> 0.2069169729 | T46: =Raw_data!T114/100*$D$3 -> 0.1969862036 | U46: =Raw_data!U114/100*$D$3 -> 0.1934812673 | V46: =Raw_data!V114/100*$D$3 -> 0.1985064387 | DP46: South central | DQ46: PPI
C47: Milo - hauling - $/bu | D47: =Raw_data!D115/100*$D$3 -> 0.2030766457 | E47: =Raw_data!E115/100*$D$3 -> 0.2077665552 | F47: =Raw_data!F115/100*$D$3 -> 0.2102303222 | G47: =Raw_data!G115/100*$D$3 -> 0.2018584397 | H47: =Raw_data!H115/100*$D$3 -> 0.2049495427 | I47: =Raw_data!I115/100*$D$3 -> 0.204236161 | J47: =Raw_data!J115/100*$D$3 -> 0.208228185 | K47: =Raw_data!K115/100*$D$3 -> 0.2031547694 | L47: =Raw_data!L115/100*$D$3 -> 0.1856470632 | M47: =Raw_data!M115/100*$D$3 -> 0.1972239737 | N47: =Raw_data!N115/100*$D$3 -> 0.2089948082 | O47: =Raw_data!O115/100*$D$3 -> 0.2060018563 | P47: =Raw_data!P115/100*$D$3 -> 0.2065884176 | Q47: =Raw_data!Q115/100*$D$3 -> 0.2049495427 | R47: =Raw_data!R115/100*$D$3 -> 0.208228185 | S47: =Raw_data!S115/100*$D$3 -> 0.2065823596 | T47: =Raw_data!T115/100*$D$3 -> 0.1942037237 | U47: =Raw_data!U115/100*$D$3 -> 0.1913479854 | V47: =Raw_data!V115/100*$D$3 -> 0.1952052994 | DP47: South central | DQ47: fuel
C48: Corn - hauling - $/bu | D48: =Raw_data!D116/100*$D$3 -> 0.1734213914 | E48: =Raw_data!E116/100*$D$3 -> 0.1684448021 | F48: =Raw_data!F116/100*$D$3 -> 0.1787734748 | G48: =Raw_data!G116/100*$D$3 -> 0.162947149 | H48: =Raw_data!H116/100*$D$3 -> 0.1747745559 | I48: =Raw_data!I116/100*$D$3 -> 0.172085462 | J48: =Raw_data!J116/100*$D$3 -> 0.1580013772 | K48: =Raw_data!K116/100*$D$3 -> 0.1777464543 | L48: =Raw_data!L116/100*$D$3 -> 0.1648091754 | M48: =Raw_data!M116/100*$D$3 -> 0.1667484481 | N48: =Raw_data!N116/100*$D$3 -> 0.1735323099 | O48: =Raw_data!O116/100*$D$3 -> 0.1706769698 | P48: =Raw_data!P116/100*$D$3 -> 0.1699296465 | Q48: =Raw_data!Q116/100*$D$3 -> 0.1747745559 | R48: =Raw_data!R116/100*$D$3 -> 0.1580013772 | S48: =Raw_data!S116/100*$D$3 -> 0.166176474 | T48: =Raw_data!T116/100*$D$3 -> 0.1711556209 | U48: =Raw_data!U116/100*$D$3 -> 0.165775976 | V48: =Raw_data!V116/100*$D$3 -> 0.1696737706 | DP48: South central | DQ48: Adjustment factor
C49: Soybeans - hauling - $/bu | D49: =Raw_data!D117/100*$D$3 -> 0.1844232229 | E49: =Raw_data!E117/100*$D$3 -> 0.1865075234 | F49: =Raw_data!F117/100*$D$3 -> 0.1887594685 | G49: =Raw_data!G117/100*$D$3 -> 0.1843265049 | H49: =Raw_data!H117/100*$D$3 -> 0.1894575575 | I49: =Raw_data!I117/100*$D$3 -> 0.189500004 | J49: =Raw_data!J117/100*$D$3 -> 0.1919858191 | K49: =Raw_data!K117/100*$D$3 -> 0.189473707 | L49: =Raw_data!L117/100*$D$3 -> 0.1766326355 | M49: =Raw_data!M117/100*$D$3 -> 0.1893219595 | N49: =Raw_data!N117/100*$D$3 -> 0.1876301175 | O49: =Raw_data!O117/100*$D$3 -> 0.1865298183 | P49: =Raw_data!P117/100*$D$3 -> 0.1865223864 | Q49: =Raw_data!Q117/100*$D$3 -> 0.1894575575 | R49: =Raw_data!R117/100*$D$3 -> 0.1919858191 | S49: =Raw_data!S117/100*$D$3 -> 0.1907174989 | T49: =Raw_data!T117/100*$D$3 -> 0.1829405374 | U49: =Raw_data!U117/100*$D$3 -> 0.1828672652 | V49: =Raw_data!V117/100*$D$3 -> 0.1850434132 | DP49: South central | DQ49: RMSE
C50: Sunflower - hauling - $/cwt | D50: =Raw_data!D118/100*$D$3 -> 0.2986682715 | E50: =Raw_data!E118/100*$D$3 -> 0.4521627082 | F50: =Raw_data!F118/100*$D$3 -> 0.4521627082 | G50: =Raw_data!G118/100*$D$3 -> 0.4556956875 | H50: =Raw_data!H118/100*$D$3 -> 0.4175023551 | I50: =Raw_data!I118/100*$D$3 -> 0.4175023551 | J50: =Raw_data!J118/100*$D$3 -> 0.4175023551 | K50: =Raw_data!K118/100*$D$3 -> 0.3149748252 | L50: =Raw_data!L118/100*$D$3 -> 0.3149748252 | M50: =Raw_data!M118/100*$D$3 -> 0.3149748252 | N50: =Raw_data!N118/100*$D$3 -> 0.4521627082 | O50: =Raw_data!O118/100*$D$3 -> 0.4539257606 | P50: =Raw_data!P118/100*$D$3 -> 0.453337314 | Q50: =Raw_data!Q118/100*$D$3 -> 0.4175023551 | R50: =Raw_data!R118/100*$D$3 -> 0.4175023551 | S50: =Raw_data!S118/100*$D$3 -> 0.4175023551 | T50: =Raw_data!T118/100*$D$3 -> 0.3149748252 | U50: =Raw_data!U118/100*$D$3 -> 0.3149748252 | V50: =Raw_data!V118/100*$D$3 -> 0.3149748252 | DP50: South central | DQ50: LN adjustment
B51: Hay | C51: Rotary mow, $/acre | D51: =Raw_data!D119*$D$3 -> 14.67406421 | E51: =Raw_data!E119*$D$3 -> 14.16130218 | F51: =Raw_data!F119*$D$3 -> 13.99200741 | G51: =Raw_data!G119*$D$3 -> 14.64767338 | H51: =Raw_data!H119*$D$3 -> 13.79490751 | I51: =Raw_data!I119*$D$3 -> 13.629087 | J51: =Raw_data!J119*$D$3 -> 13.66548534 | K51: =Raw_data!K119*$D$3 -> 14.29111697 | L51: =Raw_data!L119*$D$3 -> 15.88835648 | M51: =Raw_data!M119*$D$3 -> 13.97552909 | N51: =Raw_data!N119*$D$3 -> 14.07640029 | O51: =Raw_data!O119*$D$3 -> 14.31608726 | P51: =Raw_data!P119*$D$3 -> 14.26430516 | Q51: =Raw_data!Q119*$D$3 -> 13.79490751 | R51: =Raw_data!R119*$D$3 -> 13.66548534 | S51: =Raw_data!S119*$D$3 -> 13.73004393 | T51: =Raw_data!T119*$D$3 -> 15.06858855 | U51: =Raw_data!U119*$D$3 -> 14.90128143 | V51: =Raw_data!V119*$D$3 -> 14.69505229 | DP51: Central | DQ51: Intercept
C52: Rotary mow, $/hour | D52: =D51*7.5 -> 110.0554816 | E52: =E51*7.5 -> 106.2097664 | F52: 104.9400555 | G52: 109.8575503 | H52: 103.4618063 | I52: 102.2181525 | J52: 102.4911401 | K52: 107.1833772 | L52: 119.1626736 | M52: 104.8164682 | N52: 105.5730021 | O52: 107.3706544 | P52: 106.9822887 | Q52: 103.4618063 | R52: 102.4911401 | S52: 102.9753295 | T52: 113.0144141 | U52: 111.7596107 | V52: 110.2128922
C53: Hay-mow/swath, $/acre | D53: =Raw_data!D121*$D$3 -> 14.12084776 | E53: =Raw_data!E121*$D$3 -> 16.62260974 | F53: =Raw_data!F121*$D$3 -> 16.59114489 | G53: =Raw_data!G121*$D$3 -> 16.02252053 | H53: =Raw_data!H121*$D$3 -> 14.89832271 | I53: =Raw_data!I121*$D$3 -> 15.30084721 | J53: =Raw_data!J121*$D$3 -> 15.67506253 | K53: =Raw_data!K121*$D$3 -> 15.7432136 | L53: =Raw_data!L121*$D$3 -> 14.48231836 | M53: =Raw_data!M121*$D$3 -> 14.83678917 | N53: =Raw_data!N121*$D$3 -> 16.60686986 | O53: =Raw_data!O121*$D$3 -> 16.30435401 | P53: =Raw_data!P121*$D$3 -> 16.40975639 | Q53: =Raw_data!Q121*$D$3 -> 14.89832271 | R53: =Raw_data!R121*$D$3 -> 15.67506253 | S53: =Raw_data!S121*$D$3 -> 15.28175841 | T53: =Raw_data!T121*$D$3 -> 15.09961031 | U53: =Raw_data!U121*$D$3 -> 14.65848233 | V53: =Raw_data!V121*$D$3 -> 15.01149
C54: Forage-mow/swath, $/acre | D54: =Raw_data!D122*$D$3 -> 19.08518137 | E54: =Raw_data!E122*$D$3 -> 14.64795699 | F54: =Raw_data!F122*$D$3 -> 13.99921894 | G54: =Raw_data!G122*$D$3 -> 14.09205825 | H54: =Raw_data!H122*$D$3 -> 13.56688562 | I54: =Raw_data!I122*$D$3 -> 13.41129728 | J54: =Raw_data!J122*$D$3 -> 13.49582409 | K54: =Raw_data!K122*$D$3 -> 12.15689214 | L54: =Raw_data!L122*$D$3 -> 11.9866563 | M54: =Raw_data!M122*$D$3 -> 11.92950307 | N54: =Raw_data!N122*$D$3 -> 14.3199147 | O54: =Raw_data!O122*$D$3 -> 14.04556189 | P54: =Raw_data!P122*$D$3 -> 14.2435561 | Q54: =Raw_data!Q122*$D$3 -> 13.56688562 | R54: =Raw_data!R122*$D$3 -> 13.49582409 | S54: =Raw_data!S122*$D$3 -> 13.53130821 | T54: =Raw_data!T122*$D$3 -> 12.07147413 | U54: =Raw_data!U122*$D$3 -> 11.95804554 | V54: =Raw_data!V122*$D$3 -> 12.0239637
C55: Swathing and condition, $/acre | D55: =Raw_data!D123*$D$3 -> 17.46135062 | E55: =Raw_data!E123*$D$3 -> 17.5567612 | F55: =Raw_data!F123*$D$3 -> 17.53297436 | G55: =Raw_data!G123*$D$3 -> 16.82322481 | H55: =Raw_data!H123*$D$3 -> 15.63859625 | I55: =Raw_data!I123*$D$3 -> 16.00322527 | J55: =Raw_data!J123*$D$3 -> 16.45338131 | K55: =Raw_data!K123*$D$3 -> 16.74488894 | L55: =Raw_data!L123*$D$3 -> 15.6006295 | M55: =Raw_data!M123*$D$3 -> 16.60400976 | N55: =Raw_data!N123*$D$3 -> 17.54486375 | O55: =Raw_data!O123*$D$3 -> 17.17443359 | P55: =Raw_data!P123*$D$3 -> 17.30094197 | Q55: =Raw_data!Q123*$D$3 -> 15.63859625 | R55: =Raw_data!R123*$D$3 -> 16.45338131 | S55: =Raw_data!S123*$D$3 -> 16.04081629 | T55: =Raw_data!T123*$D$3 -> 16.16263618 | U55: =Raw_data!U123*$D$3 -> 16.09450231 | V55: =Raw_data!V123*$D$3 -> 16.30844143
C56: Sideraking hay, $/acre | D56: =Raw_data!D124*$D$3 -> 4.200900578 | E56: =Raw_data!E124*$D$3 -> 5.249910471 | F56: =Raw_data!F124*$D$3 -> 4.595807166 | G56: =Raw_data!G124*$D$3 -> 4.655798827 | H56: =Raw_data!H124*$D$3 -> 4.087193842 | I56: =Raw_data!I124*$D$3 -> 4.25483471 | J56: =Raw_data!J124*$D$3 -> 4.244659308 | K56: =Raw_data!K124*$D$3 -> 4.512055525 | L56: =Raw_data!L124*$D$3 -> 4.445030134 | M56: =Raw_data!M124*$D$3 -> 4.622311498 | N56: =Raw_data!N124*$D$3 -> 4.911982916 | O56: =Raw_data!O124*$D$3 -> 4.625705742 | P56: =Raw_data!P124*$D$3 -> 4.825059064 | Q56: =Raw_data!Q124*$D$3 -> 4.087193842 | R56: =Raw_data!R124*$D$3 -> 4.244659308 | S56: =Raw_data!S124*$D$3 -> 4.165182515 | T56: =Raw_data!T124*$D$3 -> 4.478417441 | U56: =Raw_data!U124*$D$3 -> 4.532804198 | V56: =Raw_data!V124*$D$3 -> 4.525877394
C57: Small square with twine, $/bale | D57: =Raw_data!D125*$D$3 -> 1.575248569 | E57: =Raw_data!E125*$D$3 -> 1.338685022 | F57: =Raw_data!F125*$D$3 -> 1.403726497 | G57: =Raw_data!G125*$D$3 -> 1.465122177 | H57: =Raw_data!H125*$D$3 -> 1.216108969 | I57: =Raw_data!I125*$D$3 -> 1.439159532 | J57: =Raw_data!J125*$D$3 -> 1.209532064 | K57: =Raw_data!K125*$D$3 -> 1.250007557 | L57: =Raw_data!L125*$D$3 -> 1.397103869 | M57: =Raw_data!M125*$D$3 -> 1.361299895 | N57: =Raw_data!N125*$D$3 -> 1.37082006 | O57: =Raw_data!O125*$D$3 -> 1.43409582 | P57: =Raw_data!P125*$D$3 -> 1.401559635 | Q57: =Raw_data!Q125*$D$3 -> 1.216108969 | R57: =Raw_data!R125*$D$3 -> 1.209532064 | S57: =Raw_data!S125*$D$3 -> 1.212816058 | T57: =Raw_data!T125*$D$3 -> 1.321510649 | U57: =Raw_data!U125*$D$3 -> 1.379085693 | V57: =Raw_data!V125*$D$3 -> 1.334642801
C58: Small square with wire, $/bale | D58: =Raw_data!D126*$D$3 -> 1.355906208 | E58: =Raw_data!E126*$D$3 -> 1.323635453 | F58: =Raw_data!F126*$D$3 -> 1.420049012 | G58: =Raw_data!G126*$D$3 -> 1.406344843 | H58: =Raw_data!H126*$D$3 -> 1.525714562 | I58: =Raw_data!I126*$D$3 -> 1.310076289 | J58: =Raw_data!J126*$D$3 -> 1.239394685 | K58: =Raw_data!K126*$D$3 -> 1.256483234 | L58: =Raw_data!L126*$D$3 -> 1.288696144 | M58: =Raw_data!M126*$D$3 -> 1.268823038 | N58: =Raw_data!N126*$D$3 -> 1.370994973 | O58: =Raw_data!O126*$D$3 -> 1.413180315 | P58: =Raw_data!P126*$D$3 -> 1.382678416 | Q58: =Raw_data!Q126*$D$3 -> 1.525714562 | R58: =Raw_data!R126*$D$3 -> 1.239394685 | S58: =Raw_data!S126*$D$3 -> 1.375122729 | T58: =Raw_data!T126*$D$3 -> 1.27248776 | U58: =Raw_data!U126*$D$3 -> 1.278720985 | V58: =Raw_data!V126*$D$3 -> 1.271265011
C59: Round (< 1500 lbs) w/o net, $/bale | D59: =Raw_data!D127*$D$3 -> 13.4438882 | E59: =Raw_data!E127*$D$3 -> 12.18741141 | F59: =Raw_data!F127*$D$3 -> 12.59625233 | G59: =Raw_data!G127*$D$3 -> 15.77304778 | H59: =Raw_data!H127*$D$3 -> 12.30675404 | I59: =Raw_data!I127*$D$3 -> 13.01158898 | J59: =Raw_data!J127*$D$3 -> 13.36284114 | K59: =Raw_data!K127*$D$3 -> 12.89793544 | L59: =Raw_data!L127*$D$3 -> 13.37507952 | M59: =Raw_data!M127*$D$3 -> 14.06041592 | N59: =Raw_data!N127*$D$3 -> 12.39014566 | O59: =Raw_data!O127*$D$3 -> 14.09543507 | P59: =Raw_data!P127*$D$3 -> 13.42835501 | Q59: =Raw_data!Q127*$D$3 -> 12.30675404 | R59: =Raw_data!R127*$D$3 -> 13.36284114 | S59: =Raw_data!S127*$D$3 -> 12.82393072 | T59: =Raw_data!T127*$D$3 -> 13.13434095 | U59: =Raw_data!U127*$D$3 -> 13.71346714 | V59: =Raw_data!V127*$D$3 -> 13.43604903
C60: Round (< 1500 lbs) w/ net, $/bale | D60: =Raw_data!D128*$D$3 -> 13.15644126 | E60: =Raw_data!E128*$D$3 -> 10.66620565 | F60: =Raw_data!F128*$D$3 -> 11.1038778 | G60: =Raw_data!G128*$D$3 -> 11.71840385 | H60: =Raw_data!H128*$D$3 -> 11.13088481 | I60: =Raw_data!I128*$D$3 -> 11.30542487 | J60: =Raw_data!J128*$D$3 -> 11.56111451 | K60: =Raw_data!K128*$D$3 -> 11.55395005 | L60: =Raw_data!L128*$D$3 -> 12.4455797 | M60: =Raw_data!M128*$D$3 -> 12.3789131 | N60: =Raw_data!N128*$D$3 -> 10.88284173 | O60: =Raw_data!O128*$D$3 -> 11.40700331 | P60: =Raw_data!P128*$D$3 -> 11.15452367 | Q60: =Raw_data!Q128*$D$3 -> 11.13088481 | R60: =Raw_data!R128*$D$3 -> 11.56111451 | S60: =Raw_data!S128*$D$3 -> 11.34396024 | T60: =Raw_data!T128*$D$3 -> 11.99148057 | U60: =Raw_data!U128*$D$3 -> 12.41220164 | V60: =Raw_data!V128*$D$3 -> 12.11925835
C61: Round (> 1500 lbs) w/o net, $/bale | D61: =Raw_data!D129*$D$3 -> 11.69245642 | E61: =Raw_data!E129*$D$3 -> 11.05280438 | F61: =Raw_data!F129*$D$3 -> 11.19151015 | G61: =Raw_data!G129*$D$3 -> 14.13029604 | H61: =Raw_data!H129*$D$3 -> 11.53368084 | I61: =Raw_data!I129*$D$3 -> 11.36780939 | J61: =Raw_data!J129*$D$3 -> 12.04974441 | K61: =Raw_data!K129*$D$3 -> 11.79634464 | L61: =Raw_data!L129*$D$3 -> 12.79520983 | M61: =Raw_data!M129*$D$3 -> 13.35558312 | N61: =Raw_data!N129*$D$3 -> 11.12194104 | O61: =Raw_data!O129*$D$3 -> 12.57534698 | P61: =Raw_data!P129*$D$3 -> 12.04585078 | Q61: =Raw_data!Q129*$D$3 -> 11.53368084 | R61: =Raw_data!R129*$D$3 -> 12.04974441 | S61: =Raw_data!S129*$D$3 -> 11.7888891 | T61: =Raw_data!T129*$D$3 -> 12.28563002 | U61: =Raw_data!U129*$D$3 -> 13.07239413 | V61: =Raw_data!V129*$D$3 -> 12.63240109
C62: Round (> 1500 lbs) w/ net, $/bale | D62: =Raw_data!D130*$D$3 -> 13.08447043 | E62: =Raw_data!E130*$D$3 -> 10.38493352 | F62: =Raw_data!F130*$D$3 -> 10.93419589 | G62: =Raw_data!G130*$D$3 -> 11.32357115 | H62: =Raw_data!H130*$D$3 -> 10.2080832 | I62: =Raw_data!I130*$D$3 -> 10.33977366 | J62: =Raw_data!J130*$D$3 -> 10.53815034 | K62: =Raw_data!K130*$D$3 -> 11.62207016 | L62: =Raw_data!L130*$D$3 -> 12.59818595 | M62: =Raw_data!M130*$D$3 -> 12.97120507 | N62: =Raw_data!N130*$D$3 -> 10.65602634 | O62: =Raw_data!O130*$D$3 -> 11.12718047 | P62: =Raw_data!P130*$D$3 -> 10.87405006 | Q62: =Raw_data!Q130*$D$3 -> 10.2080832 | R62: =Raw_data!R130*$D$3 -> 10.53815034 | S62: =Raw_data!S130*$D$3 -> 10.37180387 | T62: =Raw_data!T130*$D$3 -> 12.10028929 | U62: =Raw_data!U130*$D$3 -> 12.78333499 | V62: =Raw_data!V130*$D$3 -> 12.38389547
C63: Square (approx 1 ton), $/bale | D63: =Raw_data!D131*$D$3 -> 12.25134552 | E63: =Raw_data!E131*$D$3 -> 12.55202226 | F63: =Raw_data!F131*$D$3 -> 12.6041227 | G63: =Raw_data!G131*$D$3 -> 12.96759641 | H63: =Raw_data!H131*$D$3 -> 11.05484889 | I63: =Raw_data!I131*$D$3 -> 12.18173241 | J63: =Raw_data!J131*$D$3 -> 11.93818861 | K63: =Raw_data!K131*$D$3 -> 10.51234748 | L63: =Raw_data!L131*$D$3 -> 10.82648047 | M63: =Raw_data!M131*$D$3 -> 11.08840283 | N63: =Raw_data!N131*$D$3 -> 12.57804551 | O63: =Raw_data!O131*$D$3 -> 12.7845679 | P63: =Raw_data!P131*$D$3 -> 12.70657789 | Q63: =Raw_data!Q131*$D$3 -> 11.05484889 | R63: =Raw_data!R131*$D$3 -> 11.93818861 | S63: =Raw_data!S131*$D$3 -> 11.48803165 | T63: =Raw_data!T131*$D$3 -> 10.66825781 | U63: =Raw_data!U131*$D$3 -> 10.95665901 | V63: =Raw_data!V131*$D$3 -> 10.80650685
C64: Stacking hay (4-6 tons), $ | D64: =Raw_data!D132*$D$3 -> 70.08844654 | E64: =Raw_data!E132*$D$3 -> 70.07698904 | F64: =Raw_data!F132*$D$3 -> 70.07698904 | G64: =Raw_data!G132*$D$3 -> 70.07698904 | H64: =Raw_data!H132*$D$3 -> 70.07698904 | I64: =Raw_data!I132*$D$3 -> 70.07698904 | J64: =Raw_data!J132*$D$3 -> 70.07698904 | K64: =Raw_data!K132*$D$3 -> 70.07698904 | L64: =Raw_data!L132*$D$3 -> 70.07698904 | M64: =Raw_data!M132*$D$3 -> 70.07698904 | N64: =Raw_data!N132*$D$3 -> 70.07698904 | O64: =Raw_data!O132*$D$3 -> 70.07698904 | P64: =Raw_data!P132*$D$3 -> 70.07698904 | Q64: =Raw_data!Q132*$D$3 -> 70.07698904 | R64: =Raw_data!R132*$D$3 -> 70.07698904 | S64: =Raw_data!S132*$D$3 -> 70.07698904 | T64: =Raw_data!T132*$D$3 -> 70.07698904 | U64: =Raw_data!U132*$D$3 -> 70.07698904 | V64: =Raw_data!V132*$D$3 -> 70.07698904
C65: Hauling small squares, $/bale | D65: =Raw_data!D133*$D$3 -> 1.272232925 | E65: =Raw_data!E133*$D$3 -> 1.568431623 | F65: =Raw_data!F133*$D$3 -> 1.620019846 | G65: =Raw_data!G133*$D$3 -> 1.525845177 | H65: =Raw_data!H133*$D$3 -> 1.680098313 | I65: =Raw_data!I133*$D$3 -> 1.611964706 | J65: =Raw_data!J133*$D$3 -> 1.83096597 | K65: =Raw_data!K133*$D$3 -> 1.681292104 | L65: =Raw_data!L133*$D$3 -> 1.709012551 | M65: =Raw_data!M133*$D$3 -> 1.769926632 | N65: =Raw_data!N133*$D$3 -> 1.594017051 | O65: =Raw_data!O133*$D$3 -> 1.57222755 | P65: =Raw_data!P133*$D$3 -> 1.570961222 | Q65: =Raw_data!Q133*$D$3 -> 1.680098313 | R65: =Raw_data!R133*$D$3 -> 1.83096597 | S65: =Raw_data!S133*$D$3 -> 1.753910727 | T65: =Raw_data!T133*$D$3 -> 1.695095663 | U65: =Raw_data!U133*$D$3 -> 1.739202929 | V65: =Raw_data!V133*$D$3 -> 1.719681014
C66: Hauling large round, $/bale | D66: =Raw_data!D134*$D$3 -> 5.34277294 | E66: =Raw_data!E134*$D$3 -> 5.430121666 | F66: =Raw_data!F134*$D$3 -> 5.752584914 | G66: =Raw_data!G134*$D$3 -> 5.186400084 | H66: =Raw_data!H134*$D$3 -> 4.511838283 | I66: =Raw_data!I134*$D$3 -> 5.348963972 | J66: =Raw_data!J134*$D$3 -> 5.135547151 | K66: =Raw_data!K134*$D$3 -> 5.680250064 | L66: =Raw_data!L134*$D$3 -> 5.283674143 | M66: =Raw_data!M134*$D$3 -> 6.027023515 | N66: =Raw_data!N134*$D$3 -> 5.589028178 | O66: =Raw_data!O134*$D$3 -> 5.462161374 | P66: =Raw_data!P134*$D$3 -> 5.451460522 | Q66: =Raw_data!Q134*$D$3 -> 4.511838283 | R66: =Raw_data!R134*$D$3 -> 5.135547151 | S66: =Raw_data!S134*$D$3 -> 4.81360138 | T66: =Raw_data!T134*$D$3 -> 5.478374794 | U66: =Raw_data!U134*$D$3 -> 5.643122212 | V66: =Raw_data!V134*$D$3 -> 5.65547112
C67: Hauling large round, $/ton | D67: =Raw_data!D135*$D$3 -> 7.712375334 | E67: =Raw_data!E135*$D$3 -> 3.047925735 | F67: =Raw_data!F135*$D$3 -> 3.016043878 | G67: =Raw_data!G135*$D$3 -> 2.999718718 | H67: =Raw_data!H135*$D$3 -> 3.815140077 | I67: =Raw_data!I135*$D$3 -> 4.030082904 | J67: =Raw_data!J135*$D$3 -> 3.667319976 | K67: =Raw_data!K135*$D$3 -> 5.973769036 | L67: =Raw_data!L135*$D$3 -> 5.950722308 | M67: =Raw_data!M135*$D$3 -> 5.876967923 | N67: =Raw_data!N135*$D$3 -> 3.031942901 | O67: =Raw_data!O135*$D$3 -> 3.007870222 | P67: =Raw_data!P135*$D$3 -> 3.021163226 | Q67: =Raw_data!Q135*$D$3 -> 3.815140077 | R67: =Raw_data!R135*$D$3 -> 3.667319976 | S67: =Raw_data!S135*$D$3 -> 3.740499888 | T67: =Raw_data!T135*$D$3 -> 5.962234536 | U67: =Raw_data!U135*$D$3 -> 5.913730136 | V67: =Raw_data!V135*$D$3 -> 5.933675755
C68: Entire operation (small square), $/bale | D68: =Raw_data!D136*$D$3 -> 2.822484294 | E68: =Raw_data!E136*$D$3 -> 1.649192153 | F68: =Raw_data!F136*$D$3 -> 1.649192153 | G68: =Raw_data!G136*$D$3 -> 1.639634131 | H68: =Raw_data!H136*$D$3 -> 1.507684732 | I68: =Raw_data!I136*$D$3 -> 1.508578606 | J68: =Raw_data!J136*$D$3 -> 1.505580649 | K68: =Raw_data!K136*$D$3 -> 1.913363349 | L68: =Raw_data!L136*$D$3 -> 1.963522455 | M68: =Raw_data!M136*$D$3 -> 1.942561347 | N68: =Raw_data!N136*$D$3 -> 1.649192153 | O68: =Raw_data!O136*$D$3 -> 1.644406198 | P68: =Raw_data!P136*$D$3 -> 1.645999971 | Q68: =Raw_data!Q136*$D$3 -> 1.507684732 | R68: =Raw_data!R136*$D$3 -> 1.505580649 | S68: =Raw_data!S136*$D$3 -> 1.506632323 | T68: =Raw_data!T136*$D$3 -> 1.938280655 | U68: =Raw_data!U136*$D$3 -> 1.95301378 | V68: =Raw_data!V136*$D$3 -> 1.939706503
C69: Entire operation (large round), $/bale | D69: =Raw_data!D137*$D$3 -> 20.60432114 | E69: =Raw_data!E137*$D$3 -> 26.4633539 | F69: =Raw_data!F137*$D$3 -> 26.5791861 | G69: =Raw_data!G137*$D$3 -> 26.21904215 | H69: =Raw_data!H137*$D$3 -> 24.59856766 | I69: =Raw_data!I137*$D$3 -> 24.64485534 | J69: =Raw_data!J137*$D$3 -> 24.38215266 | K69: =Raw_data!K137*$D$3 -> 20.93064762 | L69: =Raw_data!L137*$D$3 -> 20.03527833 | M69: =Raw_data!M137*$D$3 -> 21.43125238 | N69: =Raw_data!N137*$D$3 -> 26.52120676 | O69: =Raw_data!O137*$D$3 -> 26.39849997 | P69: =Raw_data!P137*$D$3 -> 26.42010027 | Q69: =Raw_data!Q137*$D$3 -> 24.59856766 | R69: =Raw_data!R137*$D$3 -> 24.38215266 | S69: =Raw_data!S137*$D$3 -> 24.49012111 | T69: =Raw_data!T137*$D$3 -> 20.47807 | U69: =Raw_data!U137*$D$3 -> 20.72151313 | V69: =Raw_data!V137*$D$3 -> 20.79099141
C70: Entire operation, $/ton | D70: =Raw_data!D138*$D$3 -> 39.32466192 | E70: =Raw_data!E138*$D$3 -> 39.31673676 | F70: =Raw_data!F138*$D$3 -> 39.31673676 | G70: =Raw_data!G138*$D$3 -> 39.31673676 | H70: =Raw_data!H138*$D$3 -> 39.31673676 | I70: =Raw_data!I138*$D$3 -> 39.31673676 | J70: =Raw_data!J138*$D$3 -> 39.31673676 | K70: =Raw_data!K138*$D$3 -> 39.31673676 | L70: =Raw_data!L138*$D$3 -> 39.31673676 | M70: =Raw_data!M138*$D$3 -> 39.31673676 | N70: =Raw_data!N138*$D$3 -> 39.31673676 | O70: =Raw_data!O138*$D$3 -> 39.31673676 | P70: =Raw_data!P138*$D$3 -> 39.31673676 | Q70: =Raw_data!Q138*$D$3 -> 39.31673676 | R70: =Raw_data!R138*$D$3 -> 39.31673676 | S70: =Raw_data!S138*$D$3 -> 39.31673676 | T70: =Raw_data!T138*$D$3 -> 39.31673676 | U70: =Raw_data!U138*$D$3 -> 39.31673676 | V70: =Raw_data!V138*$D$3 -> 39.31673676

Sheet Raw_data (hidden)
D5: State | E5: State | F5: State | G5: State | H5: State | I5: State | J5: CRD - Northwest | K5: CRD - Northwest | L5: CRD - Northwest | M5: CRD - Northwest | N5: CRD - Northwest | O5: CRD - Northwest | P5: CRD - West central | Q5: CRD - West central | R5: CRD - West central | S5: CRD - West central | T5: CRD - West central | U5: CRD - West central | V5: CRD - Southwest | W5: CRD - Southwest | X5: CRD - Southwest | Y5: CRD - Southwest | Z5: CRD - Southwest | AA5: CRD - Southwest | AB5: CRD - North central | AC5: CRD - North central | AD5: CRD - North central | AE5: CRD - North central | AF5: CRD - North central | AG5: CRD - North central | AH5: CRD - Central | AI5: CRD - Central | AJ5: CRD - Central | AK5: CRD - Central | AL5: CRD - Central | AN5: CRD - South central | AO5: CRD - South central | AP5: CRD - South central | AQ5: CRD - South central | AR5: CRD - South central | AT5: CRD - Northeast | AU5: CRD - Northeast | AV5: CRD - Northeast | AW5: CRD - Northeast | AX5: CRD - Northeast | AY5: CRD - Northeast | AZ5: CRD - East central | BA5: CRD - East central | BB5: CRD - East central | BC5: CRD - East central | BD5: CRD - East central | BE5: CRD - East central | BF5: CRD - Southeast | BG5: CRD - Southeast | BH5: CRD - Southeast | BI5: CRD - Southeast | BJ5: CRD - Southeast | BK5: CRD - Southeast | BL5: Northwest | BM5: Northwest | BN5: Northwest | BO5: Northwest | BP5: Northwest | BQ5: Northwest | BR5: Southwest | BS5: Southwest | BT5: Southwest | BU5: Southwest | BV5: Southwest | BW5: Southwest | BX5: West | BY5: West | BZ5: West | CA5: West | CB5: West | CC5: West | CD5: North central | CE5: North central | CF5: North central | CG5: North central | CH5: North central | CI5: North central | CJ5: South central | CK5: South central | CL5: South central | CM5: South central | CN5: South central | CO5: South central | CP5: Central | CQ5: Central | CR5: Central | CS5: Central | CT5: Central | CU5: Central | CV5: Northeast | CW5: Northeast | CX5: Northeast | CY5: Northeast | CZ5: Northeast | DA5: Northeast | DB5: Southeast | DC5: Southeast | DD5: Southeast | DE5: Southeast | DF5: Southeast | DG5: Southeast | DH5: East | DI5: East | DJ5: East | DK5: East | DL5: East | DM5: East
D6: Intercept | E6: PPI | F6: fuel | G6: Adjustment factor | H6: RMSE | I6: LN adjustment | J6: Intercept | K6: PPI | L6: fuel | M6: Adjustment factor | N6: RMSE | O6: LN adjustment | P6: Intercept | Q6: PPI | R6: fuel | S6: Adjustment factor | T6: RMSE | U6: LN adjustment | V6: Intercept | W6: PPI | X6: fuel | Y6: Adjustment factor | Z6: RMSE | AA6: LN adjustment | AB6: Intercept | AC6: PPI | AD6: fuel | AE6: Adjustment factor | AF6: RMSE | AG6: LN adjustment | AH6: Intercept | AI6: PPI | AJ6: fuel | AK6: Adjustment factor | AL6: RMSE | AM6: LN adjustment | AN6: Intercept | AO6: PPI | AP6: fuel | AQ6: Adjustment factor | AR6: RMSE | AS6: LN adjustment | AT6: Intercept | AU6: PPI | AV6: fuel | AW6: Adjustment factor | AX6: RMSE | AY6: LN adjustment | AZ6: Intercept | BA6: PPI | BB6: fuel | BC6: Adjustment factor | BD6: RMSE | BE6: LN adjustment | BF6: Intercept | BG6: PPI | BH6: fuel | BI6: Adjustment factor | BJ6: RMSE | BK6: LN adjustment | BL6: Intercept | BM6: PPI | BN6: fuel | BO6: Adjustment factor | BP6: RMSE | BQ6: LN adjustment | BR6: Intercept | BS6: PPI | BT6: fuel | BU6: Adjustment factor | BV6: RMSE | BW6: LN adjustment | BX6: Intercept | BY6: PPI | BZ6: fuel | CA6: Adjustment factor | CB6: RMSE | CC6: LN adjustment | CD6: Intercept | CE6: PPI | CF6: fuel | CG6: Adjustment factor | CH6: RMSE | CI6: LN adjustment | CJ6: Intercept | CK6: PPI | CL6: fuel | CM6: Adjustment factor | CN6: RMSE | CO6: LN adjustment | CP6: Intercept | CQ6: PPI | CR6: fuel | CS6: Adjustment factor | CT6: RMSE | CU6: LN adjustment | CV6: Intercept | CW6: PPI | CX6: fuel | CY6: Adjustment factor | CZ6: RMSE | DA6: LN adjustment | DB6: Intercept | DC6: PPI | DD6: fuel | DE6: Adjustment factor | DF6: RMSE | DG6: LN adjustment | DH6: Intercept | DI6: PPI | DJ6: fuel | DK6: Adjustment factor | DL6: RMSE | DM6: LN adjustment
B7: Operation | D7: State:Intercept | E7: State:PPI | F7: State:fuel | G7: State:Adjustment factor | H7: State:RMSE | I7: State:LN adjustment | J7: CRD - Northwest:Intercept | K7: CRD - Northwest:PPI | L7: CRD - Northwest:fuel | M7: CRD - Northwest:Adjustment factor | N7: CRD - Northwest:RMSE | O7: CRD - Northwest:LN adjustment | P7: CRD - West central:Intercept | Q7: CRD - West central:PPI | R7: CRD - West central:fuel | S7: CRD - West central:Adjustment factor | T7: CRD - West central:RMSE | U7: CRD - West central:LN adjustment | V7: CRD - Southwest:Intercept | W7: CRD - Southwest:PPI | X7: CRD - Southwest:fuel | Y7: CRD - Southwest:Adjustment factor | Z7: CRD - Southwest:RMSE | AA7: CRD - Southwest:LN adjustment | AB7: CRD - North central:Intercept | AC7: CRD - North central:PPI | AD7: CRD - North central:fuel | AE7: CRD - North central:Adjustment factor | AF7: CRD - North central:RMSE | AG7: CRD - North central:LN adjustment | AH7: CRD - Central:Intercept | AI7: CRD - Central:PPI | AJ7: CRD - Central:fuel | AK7: CRD - Central:Adjustment factor | AL7: CRD - Central:RMSE | AM7: CRD - Central:LN adjustment | AN7: CRD - South central:Intercept | AO7: CRD - South central:PPI | AP7: CRD - South central:fuel | AQ7: CRD - South central:Adjustment factor | AR7: CRD - South central:RMSE | AS7: CRD - South central:LN adjustment | AT7: CRD - Northeast:Intercept | AU7: CRD - Northeast:PPI | AV7: CRD - Northeast:fuel | AW7: CRD - Northeast:Adjustment factor | AX7: CRD - Northeast:RMSE | AY7: CRD - Northeast:LN adjustment | AZ7: CRD - East central:Intercept | BA7: CRD - East central:PPI | BB7: CRD - East central:fuel | BC7: CRD - East central:Adjustment factor | BD7: CRD - East central:RMSE | BE7: CRD - East central:LN adjustment | BF7: CRD - Southeast:Intercept | BG7: CRD - Southeast:PPI | BH7: CRD - Southeast:fuel | BI7: CRD - Southeast:Adjustment factor | BJ7: CRD - Southeast:RMSE | BK7: CRD - Southeast:LN adjustment | BL7: Northwest:Intercept | BM7: Northwest:PPI | BN7: Northwest:fuel | BO7: Northwest:Adjustment factor | BP7: Northwest:RMSE | BQ7: Northwest:LN adjustment | BR7: Southwest:Intercept | BS7: Southwest:PPI | BT7: Southwest:fuel | BU7: Southwest:Adjustment factor | BV7: Southwest:RMSE | BW7: Southwest:LN adjustment | BX7: West:Intercept | BY7: West:PPI | BZ7: West:fuel | CA7: West:Adjustment factor | CB7: West:RMSE | CC7: West:LN adjustment | CD7: North central:Intercept | CE7: North central:PPI | CF7: North central:fuel | CG7: North central:Adjustment factor | CH7: North central:RMSE | CI7: North central:LN adjustment | CJ7: South central:Intercept | CK7: South central:PPI | CL7: South central:fuel | CM7: South central:Adjustment factor | CN7: South central:RMSE | CO7: South central:LN adjustment | CP7: Central:Intercept | CQ7: Central:PPI | CR7: Central:fuel | CS7: Central:Adjustment factor | CT7: Central:RMSE | CU7: Central:LN adjustment | CV7: Northeast:Intercept | CW7: Northeast:PPI | CX7: Northeast:fuel | CY7: Northeast:Adjustment factor | CZ7: Northeast:RMSE | DA7: Northeast:LN adjustment | DB7: Southeast:Intercept | DC7: Southeast:PPI | DD7: Southeast:fuel | DE7: Southeast:Adjustment factor | DF7: Southeast:RMSE | DG7: Southeast:LN adjustment | DH7: East:Intercept | DI7: East:PPI | DJ7: East:fuel | DK7: East:Adjustment factor | DL7: East:RMSE | DM7: East:LN adjustment
B8: Tillage | C8: Disk | D8: 1.1637411 | E8: 0.009626027228 | F8: 0.04098175821 | H8: 0.0239899517 | I8: 1.0002878 | J8: 1.094757714 | K8: 0.01003557871 | L8: 0.03744698861 | M8: -0.1094176529 | N8: 0.07166041322 | O8: 1.002570907 | P8: 1.094757714 | Q8: 0.01003557871 | R8: 0.03744698861 | S8: -0.1247139314 | T8: 0.07166041322 | U8: 1.002570907 | V8: 1.094757714 | W8: 0.01003557871 | X8: 0.03744698861 | Y8: -0.002597625461 | Z8: 0.07166041322 | AA8: 1.002570907 | AB8: 1.094757714 | AC8: 0.01003557871 | AD8: 0.03744698861 | AE8: 0.06707794047 | AF8: 0.07166041322 | AG8: 1.002570907 | AH8: 1.094757714 | AI8: 0.01003557871 | AJ8: 0.03744698861 | AL8: 0.07166041322 | AM8: 1.002570907 | AN8: 1.094757714 | AO8: 0.01003557871 | AP8: 0.03744698861 | AQ8: 0.06403830308 | AR8: 0.07166041322 | AS8: 1.002570907 | AT8: 1.094757714 | AU8: 0.01003557871 | AV8: 0.03744698861 | AW8: 0.2132862428 | AX8: 0.07166041322 | AY8: 1.002570907 | AZ8: 1.094757714 | BA8: 0.01003557871 | BB8: 0.03744698861 | BC8: 0.1184286512 | BD8: 0.07166041322 | BE8: 1.002570907 | BF8: 1.094757714 | BG8: 0.01003557871 | BH8: 0.03744698861 | BI8: 0.1034025062 | BJ8: 0.07166041322 | BK8: 1.002570907 | BL8: 1.094757714 | BM8: 0.01003557871 | BN8: 0.03744698861 | BO8: -0.1170657922 | BP8: 0.07166041322 | BQ8: 1.002570907 | BR8: 1.094757714 | BS8: 0.01003557871 | BT8: 0.03744698861 | BU8: -0.06365577842 | BV8: 0.07166041322 | BW8: 1.002570907 | BX8: 1.094757714 | BY8: 0.01003557871 | BZ8: 0.03744698861 | CA8: -0.07890973659 | CB8: 0.07166041322 | CC8: 1.002570907 | CD8: 1.094757714 | CE8: 0.01003557871 | CF8: 0.03744698861 | CG8: 0.06707794047 | CH8: 0.07166041322 | CI8: 1.002570907 | CJ8: 1.094757714 | CK8: 0.01003557871 | CL8: 0.03744698861 | CM8: 0.06403830308 | CN8: 0.07166041322 | CO8: 1.002570907 | CP8: 1.094757714 | CQ8: 0.01003557871 | CR8: 0.03744698861 | CS8: 0.06555812177 | CT8: 0.07166041322 | CU8: 1.002570907 | CV8: 1.094757714 | CW8: 0.01003557871 | CX8: 0.03744698861 | CY8: 0.165857447 | CZ8: 0.07166041322 | DA8: 1.002570907 | DB8: 1.094757714 | DC8: 0.01003557871 | DD8: 0.03744698861 | DE8: 0.1109155787 | DF8: 0.07166041322 | DG8: 1.002570907 | DH8: 1.094757714 | DI8: 0.01003557871 | DJ8: 0.03744698861 | DK8: 0.1450391334 | DL8: 0.07166041322 | DM8: 1.002570907
B9: Tillage | C9: Offset disk | D9: 1.320824962 | E9: 0.007943397623 | F9: 0.05148946082 | H9: 0.02637550262 | I9: 1.000347894 | J9: 1.252363122 | K9: 0.008669326657 | L9: 0.02415036414 | M9: -0.05761677683 | N9: 0.09961871023 | O9: 1.004974275 | P9: 1.252363122 | Q9: 0.008669326657 | R9: 0.02415036414 | S9: -0.07242439267 | T9: 0.09961871023 | U9: 1.004974275 | V9: 1.252363122 | W9: 0.008669326657 | X9: 0.02415036414 | Y9: -0.004961005944 | Z9: 0.09961871023 | AA9: 1.004974275 | AB9: 1.252363122 | AC9: 0.008669326657 | AD9: 0.02415036414 | AE9: 0.09747963839 | AF9: 0.09961871023 | AG9: 1.004974275 | AH9: 1.252363122 | AI9: 0.008669326657 | AJ9: 0.02415036414 | AL9: 0.09961871023 | AM9: 1.004974275 | AN9: 1.252363122 | AO9: 0.008669326657 | AP9: 0.02415036414 | AQ9: 0.06981430668 | AR9: 0.09961871023 | AS9: 1.004974275 | AT9: 1.252363122 | AU9: 0.008669326657 | AV9: 0.02415036414 | AW9: 0.2514999169 | AX9: 0.09961871023 | AY9: 1.004974275 | AZ9: 1.252363122 | BA9: 0.008669326657 | BB9: 0.02415036414 | BC9: 0.1923723091 | BD9: 0.09961871023 | BE9: 1.004974275 | BF9: 1.252363122 | BG9: 0.008669326657 | BH9: 0.02415036414 | BI9: 0.2433983806 | BJ9: 0.09961871023 | BK9: 1.004974275 | BL9: 1.252363122 | BM9: 0.008669326657 | BN9: 0.02415036414 | BO9: -0.06502058475 | BP9: 0.09961871023 | BQ9: 1.004974275 | BR9: 1.252363122 | BS9: 0.008669326657 | BT9: 0.02415036414 | BU9: -0.03869269931 | BV9: 0.09961871023 | BW9: 1.004974275 | BX9: 1.252363122 | BY9: 0.008669326657 | BZ9: 0.02415036414 | CA9: -0.04500072515 | CB9: 0.09961871023 | CC9: 1.004974275 | CD9: 1.252363122 | CE9: 0.008669326657 | CF9: 0.02415036414 | CG9: 0.09747963839 | CH9: 0.09961871023 | CI9: 1.004974275 | CJ9: 1.252363122 | CK9: 0.008669326657 | CL9: 0.02415036414 | CM9: 0.06981430668 | CN9: 0.09961871023 | CO9: 1.004974275 | CP9: 1.252363122 | CQ9: 0.008669326657 | CR9: 0.02415036414 | CS9: 0.08364697254 | CT9: 0.09961871023 | CU9: 1.004974275 | CV9: 1.252363122 | CW9: 0.008669326657 | CX9: 0.02415036414 | CY9: 0.221936113 | CZ9: 0.09961871023 | DA9: 1.004974275 | DB9: 1.252363122 | DC9: 0.008669326657 | DD9: 0.02415036414 | DE9: 0.2178853449 | DF9: 0.09961871023 | DG9: 1.004974275 | DH9: 1.252363122 | DI9: 0.008669326657 | DJ9: 0.02415036414 | DK9: 0.2290902022 | DL9: 0.09961871023 | DM9: 1.004974275
B10: Tillage | C10: Chisel 4-12 in | D10: 1.459046588 | E10: 0.007267239456 | F10: 0.06576935004 | H10: 0.02730216376 | I10: 1.000372774 | J10: 1.397384348 | K10: 0.007879646735 | L10: 0.05764506563 | M10: -0.1371557334 | N10: 0.09102222502 | O10: 1.004151115 | P10: 1.397384348 | Q10: 0.007879646735 | R10: 0.05764506563 | S10: -0.2029510305 | T10: 0.09102222502 | U10: 1.004151115 | V10: 1.397384348 | W10: 0.007879646735 | X10: 0.05764506563 | Y10: -0.139384528 | Z10: 0.09102222502 | AA10: 1.004151115 | AB10: 1.397384348 | AC10: 0.007879646735 | AD10: 0.05764506563 | AE10: 0.01792020721 | AF10: 0.09102222502 | AG10: 1.004151115 | AH10: 1.397384348 | AI10: 0.007879646735 | AJ10: 0.05764506563 | AL10: 0.09102222502 | AM10: 1.004151115 | AN10: 1.397384348 | AO10: 0.007879646735 | AP10: 0.05764506563 | AQ10: 0.01731088155 | AR10: 0.09102222502 | AS10: 1.004151115 | AT10: 1.397384348 | AU10: 0.007879646735 | AV10: 0.05764506563 | AW10: 0.2241858502 | AX10: 0.09102222502 | AY10: 1.004151115 | AZ10: 1.397384348 | BA10: 0.007879646735 | BB10: 0.05764506563 | BC10: 0.179003377 | BD10: 0.09102222502 | BE10: 1.004151115 | BF10: 1.397384348 | BG10: 0.007879646735 | BH10: 0.05764506563 | BI10: 0.1392245663 | BJ10: 0.09102222502 | BK10: 1.004151115 | BL10: 1.397384348 | BM10: 0.007879646735 | BN10: 0.05764506563 | BO10: -0.170053382 | BP10: 0.09102222502 | BQ10: 1.004151115 | BR10: 1.397384348 | BS10: 0.007879646735 | BT10: 0.05764506563 | BU10: -0.1711677793 | BV10: 0.09102222502 | BW10: 1.004151115 | BX10: 1.397384348 | BY10: 0.007879646735 | BZ10: 0.05764506563 | CA10: -0.1598304306 | CB10: 0.09102222502 | CC10: 1.004151115 | CD10: 1.397384348 | CE10: 0.007879646735 | CF10: 0.05764506563 | CG10: 0.01792020721 | CH10: 0.09102222502 | CI10: 1.004151115 | CJ10: 1.397384348 | CK10: 0.007879646735 | CL10: 0.05764506563 | CM10: 0.01731088155 | CN10: 0.09102222502 | CO10: 1.004151115 | CP10: 1.397384348 | CQ10: 0.007879646735 | CR10: 0.05764506563 | CS10: 0.01761554438 | CT10: 0.09102222502 | CU10: 1.004151115 | CV10: 1.397384348 | CW10: 0.007879646735 | CX10: 0.05764506563 | CY10: 0.2015946136 | CZ10: 0.09102222502 | DA10: 1.004151115 | DB10: 1.397384348 | DC10: 0.007879646735 | DD10: 0.05764506563 | DE10: 0.1591139716 | DF10: 0.09102222502 | DG10: 1.004151115 | DH10: 1.397384348 | DI10: 0.007879646735 | DJ10: 0.05764506563 | DK10: 0.1808045978 | DL10: 0.09102222502 | DM10: 1.004151115
B11: Tillage | C11: Springtooth harrow | D11: 0.9059870952 | E11: 0.01065434413 | F11: 3.803856142e-05 | H11: 0.09034344898 | I11: 1.004089308 | J11: 0.9579901524 | K11: 0.009482562729 | L11: 0.0006491040488 | M11: -0.002998976231 | N11: 0.09230789542 | O11: 1.004269462 | P11: 0.9579901524 | Q11: 0.009482562729 | R11: 0.0006491040488 | S11: -0.02351126327 | T11: 0.09230789542 | U11: 1.004269462 | V11: 0.9579901524 | W11: 0.009482562729 | X11: 0.0006491040488 | Y11: -0.04089433815 | Z11: 0.09230789542 | AA11: 1.004269462 | AB11: 0.9579901524 | AC11: 0.009482562729 | AD11: 0.0006491040488 | AE11: 0.02907021805 | AF11: 0.09230789542 | AG11: 1.004269462 | AH11: 0.9579901524 | AI11: 0.009482562729 | AJ11: 0.0006491040488 | AL11: 0.09230789542 | AM11: 1.004269462 | AN11: 0.9579901524 | AO11: 0.009482562729 | AP11: 0.0006491040488 | AQ11: 0.02322357445 | AR11: 0.09230789542 | AS11: 1.004269462 | AT11: 0.9579901524 | AU11: 0.009482562729 | AV11: 0.0006491040488 | AW11: 0.1642828613 | AX11: 0.09230789542 | AY11: 1.004269462 | AZ11: 0.9579901524 | BA11: 0.009482562729 | BB11: 0.0006491040488 | BC11: 0.1731215045 | BD11: 0.09230789542 | BE11: 1.004269462 | BF11: 0.9579901524 | BG11: 0.009482562729 | BH11: 0.0006491040488 | BI11: 0.1728570946 | BJ11: 0.09230789542 | BK11: 1.004269462 | BL11: 0.9579901524 | BM11: 0.009482562729 | BN11: 0.0006491040488 | BO11: -0.01325511975 | BP11: 0.09230789542 | BQ11: 1.004269462 | BR11: 0.9579901524 | BS11: 0.009482562729 | BT11: 0.0006491040488 | BU11: -0.03220280071 | BV11: 0.09230789542 | BW11: 1.004269462 | BX11: 0.9579901524 | BY11: 0.009482562729 | BZ11: 0.0006491040488 | CA11: -0.02246819255 | CB11: 0.09230789542 | CC11: 1.004269462 | CD11: 0.9579901524 | CE11: 0.009482562729 | CF11: 0.0006491040488 | CG11: 0.02907021805 | CH11: 0.09230789542 | CI11: 1.004269462 | CJ11: 0.9579901524 | CK11: 0.009482562729 | CL11: 0.0006491040488 | CM11: 0.02322357445 | CN11: 0.09230789542 | CO11: 1.004269462 | CP11: 0.9579901524 | CQ11: 0.009482562729 | CR11: 0.0006491040488 | CS11: 0.02614689625 | CT11: 0.09230789542 | CU11: 1.004269462 | CV11: 0.9579901524 | CW11: 0.009482562729 | CX11: 0.0006491040488 | CY11: 0.1687021829 | CZ11: 0.09230789542 | DA11: 1.004269462 | DB11: 0.9579901524 | DC11: 0.009482562729 | DD11: 0.0006491040488 | DE11: 0.1729892996 | DF11: 0.09230789542 | DG11: 1.004269462 | DH11: 0.9579901524 | DI11: 0.009482562729 | DJ11: 0.0006491040488 | DK11: 0.1700871535 | DL11: 0.09230789542 | DM11: 1.004269462 | DP11: State | DQ11: Intercept
B12: Tillage | C12: Field cultivate | D12: 1.125308224 | E12: 0.009217544268 | F12: 0.04799400756 | H12: 0.02550590985 | I12: 1.000325329 | J12: 1.000843264 | K12: 0.01011415649 | L12: 0.02555393803 | M12: 0.0214186189 | N12: 0.08383892296 | O12: 1.003520666 | P12: 1.000843264 | Q12: 0.01011415649 | R12: 0.02555393803 | S12: -0.005609422209 | T12: 0.08383892296 | U12: 1.003520666 | V12: 1.000843264 | W12: 0.01011415649 | X12: 0.02555393803 | Y12: 0.07565117347 | Z12: 0.08383892296 | AA12: 1.003520666 | AB12: 1.000843264 | AC12: 0.01011415649 | AD12: 0.02555393803 | AE12: 0.1179522455 | AF12: 0.08383892296 | AG12: 1.003520666 | AH12: 1.000843264 | AI12: 0.01011415649 | AJ12: 0.02555393803 | AL12: 0.08383892296 | AM12: 1.003520666 | AN12: 1.000843264 | AO12: 0.01011415649 | AP12: 0.02555393803 | AQ12: 0.06669385725 | AR12: 0.08383892296 | AS12: 1.003520666 | AT12: 1.000843264 | AU12: 0.01011415649 | AV12: 0.02555393803 | AW12: 0.2631798714 | AX12: 0.08383892296 | AY12: 1.003520666 | AZ12: 1.000843264 | BA12: 0.01011415649 | BB12: 0.02555393803 | BC12: 0.1875073636 | BD12: 0.08383892296 | BE12: 1.003520666 | BF12: 1.000843264 | BG12: 0.01011415649 | BH12: 0.02555393803 | BI12: 0.1266058467 | BJ12: 0.08383892296 | BK12: 1.003520666 | BL12: 1.000843264 | BM12: 0.01011415649 | BN12: 0.02555393803 | BO12: 0.007904598344 | BP12: 0.08383892296 | BQ12: 1.003520666 | BR12: 1.000843264 | BS12: 0.01011415649 | BT12: 0.02555393803 | BU12: 0.03502087563 | BV12: 0.08383892296 | BW12: 1.003520666 | BX12: 1.000843264 | BY12: 0.01011415649 | BZ12: 0.02555393803 | CA12: 0.03048679005 | CB12: 0.08383892296 | CC12: 1.003520666 | CD12: 1.000843264 | CE12: 0.01011415649 | CF12: 0.02555393803 | CG12: 0.1179522455 | CH12: 0.08383892296 | CI12: 1.003520666 | CJ12: 1.000843264 | CK12: 0.01011415649 | CL12: 0.02555393803 | CM12: 0.06669385725 | CN12: 0.08383892296 | CO12: 1.003520666 | CP12: 1.000843264 | CQ12: 0.01011415649 | CR12: 0.02555393803 | CS12: 0.09232305138 | CT12: 0.08383892296 | CU12: 1.003520666 | CV12: 1.000843264 | CW12: 0.01011415649 | CX12: 0.02555393803 | CY12: 0.2253436175 | CZ12: 0.08383892296 | DA12: 1.003520666 | DB12: 1.000843264 | DC12: 0.01011415649 | DD12: 0.02555393803 | DE12: 0.1570566052 | DF12: 0.08383892296 | DG12: 1.003520666 | DH12: 1.000843264 | DI12: 0.01011415649 | DJ12: 0.02555393803 | DK12: 0.1924310273 | DL12: 0.08383892296 | DM12: 1.003520666 | DP12: State | DQ12: PPI
B13: Tillage | C13: V-blade | D13: 1.164062598 | E13: 0.007028886518 | F13: 0.05681234414 | H13: 0.02468959478 | I13: 1.000304834 | J13: 1.274290441 | K13: 0.007477485949 | L13: 0.01027896319 | M13: -0.0996807618 | N13: 0.09082226516 | O13: 1.004132859 | P13: 1.274290441 | Q13: 0.007477485949 | R13: 0.01027896319 | S13: -0.1717189972 | T13: 0.09082226516 | U13: 1.004132859 | V13: 1.274290441 | W13: 0.007477485949 | X13: 0.01027896319 | Y13: -0.0615039047 | Z13: 0.09082226516 | AA13: 1.004132859 | AB13: 1.274290441 | AC13: 0.007477485949 | AD13: 0.01027896319 | AE13: 0.07303676252 | AF13: 0.09082226516 | AG13: 1.004132859 | AH13: 1.274290441 | AI13: 0.007477485949 | AJ13: 0.01027896319 | AL13: 0.09082226516 | AM13: 1.004132859 | AN13: 1.274290441 | AO13: 0.007477485949 | AP13: 0.01027896319 | AQ13: 0.04952843926 | AR13: 0.09082226516 | AS13: 1.004132859 | AT13: 1.274290441 | AU13: 0.007477485949 | AV13: 0.01027896319 | AW13: -0.09140533521 | AX13: 0.09082226516 | AY13: 1.004132859 | AZ13: 1.274290441 | BA13: 0.007477485949 | BB13: 0.01027896319 | BC13: -0.09140533521 | BD13: 0.09082226516 | BE13: 1.004132859 | BF13: 1.274290441 | BG13: 0.007477485949 | BH13: 0.01027896319 | BI13: -0.09088373147 | BJ13: 0.09082226516 | BK13: 1.004132859 | BL13: 1.274290441 | BM13: 0.007477485949 | BN13: 0.01027896319 | BO13: -0.1356998795 | BP13: 0.09082226516 | BQ13: 1.004132859 | BR13: 1.274290441 | BS13: 0.007477485949 | BT13: 0.01027896319 | BU13: -0.116611451 | BV13: 0.09082226516 | BW13: 1.004132859 | BX13: 1.274290441 | BY13: 0.007477485949 | BZ13: 0.01027896319 | CA13: -0.1109678879 | CB13: 0.09082226516 | CC13: 1.004132859 | CD13: 1.274290441 | CE13: 0.007477485949 | CF13: 0.01027896319 | CG13: 0.07303676252 | CH13: 0.09082226516 | CI13: 1.004132859 | CJ13: 1.274290441 | CK13: 0.007477485949 | CL13: 0.01027896319 | CM13: 0.04952843926 | CN13: 0.09082226516 | CO13: 1.004132859 | CP13: 1.274290441 | CQ13: 0.007477485949 | CR13: 0.01027896319 | CS13: 0.06128260089 | CT13: 0.09082226516 | CU13: 1.004132859 | CV13: 1.274290441 | CW13: 0.007477485949 | CX13: 0.01027896319 | CY13: -0.09140533521 | CZ13: 0.09082226516 | DA13: 1.004132859 | DB13: 1.274290441 | DC13: 0.007477485949 | DD13: 0.01027896319 | DE13: -0.09114453334 | DF13: 0.09082226516 | DG13: 1.004132859 | DH13: 1.274290441 | DI13: 0.007477485949 | DJ13: 0.01027896319 | DK13: -0.0912314673 | DL13: 0.09082226516 | DM13: 1.004132859 | DP13: State | DQ13: fuel
B14: Fertillizer application | C14: Row crop cultivation with fertilizer | D14: 1.315649378 | E14: 0.008006742698 | F14: 0.01824484228 | H14: 0.06906488318 | I14: 1.002387825 | J14: 1.154549024 | K14: 0.008760475413 | L14: 0.05617955811 | M14: 0.1117344546 | N14: 0.1731313339 | O14: 1.015100101 | P14: 1.154549024 | Q14: 0.008760475413 | R14: 0.05617955811 | S14: 0.1117344546 | T14: 0.1731313339 | U14: 1.015100101 | V14: 1.154549024 | W14: 0.008760475413 | X14: 0.05617955811 | Y14: 0.1117344546 | Z14: 0.1731313339 | AA14: 1.015100101 | AB14: 1.154549024 | AC14: 0.008760475413 | AD14: 0.05617955811 | AE14: 5.348894477e-16 | AF14: 0.1731313339 | AG14: 1.015100101 | AH14: 1.154549024 | AI14: 0.008760475413 | AJ14: 0.05617955811 | AL14: 0.1731313339 | AM14: 1.015100101 | AN14: 1.154549024 | AO14: 0.008760475413 | AP14: 0.05617955811 | AQ14: 5.383588947e-16 | AR14: 0.1731313339 | AS14: 1.015100101 | AT14: 1.154549024 | AU14: 0.008760475413 | AV14: 0.05617955811 | AW14: 0.03809834451 | AX14: 0.1731313339 | AY14: 1.015100101 | AZ14: 1.154549024 | BA14: 0.008760475413 | BB14: 0.05617955811 | BC14: 0.03809834451 | BD14: 0.1731313339 | BE14: 1.015100101 | BF14: 1.154549024 | BG14: 0.008760475413 | BH14: 0.05617955811 | BI14: 0.03809834451 | BJ14: 0.1731313339 | BK14: 1.015100101 | BL14: 1.154549024 | BM14: 0.008760475413 | BN14: 0.05617955811 | BO14: 0.1117344546 | BP14: 0.1731313339 | BQ14: 1.015100101 | BR14: 1.154549024 | BS14: 0.008760475413 | BT14: 0.05617955811 | BU14: 0.1117344546 | BV14: 0.1731313339 | BW14: 1.015100101 | BX14: 1.154549024 | BY14: 0.008760475413 | BZ14: 0.05617955811 | CA14: 0.1117344546 | CB14: 0.1731313339 | CC14: 1.015100101 | CD14: 1.154549024 | CE14: 0.008760475413 | CF14: 0.05617955811 | CG14: 5.348894477e-16 | CH14: 0.1731313339 | CI14: 1.015100101 | CJ14: 1.154549024 | CK14: 0.008760475413 | CL14: 0.05617955811 | CM14: 5.383588947e-16 | CN14: 0.1731313339 | CO14: 1.015100101 | CP14: 1.154549024 | CQ14: 0.008760475413 | CR14: 0.05617955811 | CS14: 5.366241712e-16 | CT14: 0.1731313339 | CU14: 1.015100101 | CV14: 1.154549024 | CW14: 0.008760475413 | CX14: 0.05617955811 | CY14: 0.03809834451 | CZ14: 0.1731313339 | DA14: 1.015100101 | DB14: 1.154549024 | DC14: 0.008760475413 | DD14: 0.05617955811 | DE14: 0.03809834451 | DF14: 0.1731313339 | DG14: 1.015100101 | DH14: 1.154549024 | DI14: 0.008760475413 | DJ14: 0.05617955811 | DK14: 0.03809834451 | DL14: 0.1731313339 | DM14: 1.015100101 | DP14: State | DQ14: Adjustment factor
B15: Fertillizer application | C15: Dry fertilizer | D15: 0.5999543609 | E15: 0.008994469769 | F15: 0.03324577236 | H15: 0.04068660759 | I15: 1.000828043 | J15: 0.5714233988 | K15: 0.008529801917 | L15: 0.03777475981 | M15: 0.06683805551 | N15: 0.05891573408 | O15: 1.001737039 | P15: 0.5714233988 | Q15: 0.008529801917 | R15: 0.03777475981 | S15: 0.1078879069 | T15: 0.05891573408 | U15: 1.001737039 | V15: 0.5714233988 | W15: 0.008529801917 | X15: 0.03777475981 | Y15: 0.08061764867 | Z15: 0.05891573408 | AA15: 1.001737039 | AB15: 0.5714233988 | AC15: 0.008529801917 | AD15: 0.03777475981 | AE15: 0.08148112401 | AF15: 0.05891573408 | AG15: 1.001737039 | AH15: 0.5714233988 | AI15: 0.008529801917 | AJ15: 0.03777475981 | AL15: 0.05891573408 | AM15: 1.001737039 | AN15: 0.5714233988 | AO15: 0.008529801917 | AP15: 0.03777475981 | AQ15: -0.02296822019 | AR15: 0.05891573408 | AS15: 1.001737039 | AT15: 0.5714233988 | AU15: 0.008529801917 | AV15: 0.03777475981 | AW15: 0.151121718 | AX15: 0.05891573408 | AY15: 1.001737039 | AZ15: 0.5714233988 | BA15: 0.008529801917 | BB15: 0.03777475981 | BC15: 0.09545620982 | BD15: 0.05891573408 | BE15: 1.001737039 | BF15: 0.5714233988 | BG15: 0.008529801917 | BH15: 0.03777475981 | BI15: -0.02054826745 | BJ15: 0.05891573408 | BK15: 1.001737039 | BL15: 0.5714233988 | BM15: 0.008529801917 | BN15: 0.03777475981 | BO15: 0.08736298121 | BP15: 0.05891573408 | BQ15: 1.001737039 | BR15: 0.5714233988 | BS15: 0.008529801917 | BT15: 0.03777475981 | BU15: 0.09425277779 | BV15: 0.05891573408 | BW15: 1.001737039 | BX15: 0.5714233988 | BY15: 0.008529801917 | BZ15: 0.03777475981 | CA15: 0.08511453703 | CB15: 0.05891573408 | CC15: 1.001737039 | CD15: 0.5714233988 | CE15: 0.008529801917 | CF15: 0.03777475981 | CG15: 0.08148112401 | CH15: 0.05891573408 | CI15: 1.001737039 | CJ15: 0.5714233988 | CK15: 0.008529801917 | CL15: 0.03777475981 | CM15: -0.02296822019 | CN15: 0.05891573408 | CO15: 1.001737039 | CP15: 0.5714233988 | CQ15: 0.008529801917 | CR15: 0.03777475981 | CS15: 0.02925645191 | CT15: 0.05891573408 | CU15: 1.001737039 | CV15: 0.5714233988 | CW15: 0.008529801917 | CX15: 0.03777475981 | CY15: 0.1232889639 | CZ15: 0.05891573408 | DA15: 1.001737039 | DB15: 0.5714233988 | DC15: 0.008529801917 | DD15: 0.03777475981 | DE15: 0.03745397119 | DF15: 0.05891573408 | DG15: 1.001737039 | DH15: 0.5714233988 | DI15: 0.008529801917 | DJ15: 0.03777475981 | DK15: 0.07534322011 | DL15: 0.05891573408 | DM15: 1.001737039 | DP15: State | DQ15: RMSE
B16: Fertillizer application | C16: Liquid fertilizer | D16: 0.6635458363 | E16: 0.008640575892 | F16: 0.03498328221 | H16: 0.0276028007 | I16: 1.00038103 | J16: 0.5804101513 | K16: 0.008578718627 | L16: 0.03640042711 | M16: 0.1377804943 | N16: 0.05318659916 | O16: 1.001415408 | P16: 0.5804101513 | Q16: 0.008578718627 | R16: 0.03640042711 | S16: 0.09364609976 | T16: 0.05318659916 | U16: 1.001415408 | V16: 0.5804101513 | W16: 0.008578718627 | X16: 0.03640042711 | Y16: 0.1615898421 | Z16: 0.05318659916 | AA16: 1.001415408 | AB16: 0.5804101513 | AC16: 0.008578718627 | AD16: 0.03640042711 | AE16: 0.0805635625 | AF16: 0.05318659916 | AG16: 1.001415408 | AH16: 0.5804101513 | AI16: 0.008578718627 | AJ16: 0.03640042711 | AL16: 0.05318659916 | AM16: 1.001415408 | AN16: 0.5804101513 | AO16: 0.008578718627 | AP16: 0.03640042711 | AQ16: -0.005405744532 | AR16: 0.05318659916 | AS16: 1.001415408 | AT16: 0.5804101513 | AU16: 0.008578718627 | AV16: 0.03640042711 | AW16: 0.1842872142 | AX16: 0.05318659916 | AY16: 1.001415408 | AZ16: 0.5804101513 | BA16: 0.008578718627 | BB16: 0.03640042711 | BC16: 0.1644748708 | BD16: 0.05318659916 | BE16: 1.001415408 | BF16: 0.5804101513 | BG16: 0.008578718627 | BH16: 0.03640042711 | BI16: 0.0498072253 | BJ16: 0.05318659916 | BK16: 1.001415408 | BL16: 0.5804101513 | BM16: 0.008578718627 | BN16: 0.03640042711 | BO16: 0.115713297 | BP16: 0.05318659916 | BQ16: 1.001415408 | BR16: 0.5804101513 | BS16: 0.008578718627 | BT16: 0.03640042711 | BU16: 0.1276179709 | BV16: 0.05318659916 | BW16: 1.001415408 | BX16: 0.5804101513 | BY16: 0.008578718627 | BZ16: 0.03640042711 | CA16: 0.1310054787 | CB16: 0.05318659916 | CC16: 1.001415408 | CD16: 0.5804101513 | CE16: 0.008578718627 | CF16: 0.03640042711 | CG16: 0.0805635625 | CH16: 0.05318659916 | CI16: 1.001415408 | CJ16: 0.5804101513 | CK16: 0.008578718627 | CL16: 0.03640042711 | CM16: -0.005405744532 | CN16: 0.05318659916 | CO16: 1.001415408 | CP16: 0.5804101513 | CQ16: 0.008578718627 | CR16: 0.03640042711 | CS16: 0.03757890898 | CT16: 0.05318659916 | CU16: 1.001415408 | CV16: 0.5804101513 | CW16: 0.008578718627 | CX16: 0.03640042711 | CY16: 0.1743810425 | CZ16: 0.05318659916 | DA16: 1.001415408 | DB16: 0.5804101513 | DC16: 0.008578718627 | DD16: 0.03640042711 | DE16: 0.107141048 | DF16: 0.05318659916 | DG16: 1.001415408 | DH16: 0.5804101513 | DI16: 0.008578718627 | DJ16: 0.03640042711 | DK16: 0.1328564368 | DL16: 0.05318659916 | DM16: 1.001415408 | DP16: State | DQ16: LN adjustment
B17: Fertillizer application | C17: NH3 application | D17: 0.8811650088 | E17: 0.01347160983 | F17: 0.03602996426 | H17: 0.05032499954 | I17: 1.001267105 | J17: 0.843897899 | K17: 0.01188358991 | L17: 0.05767581349 | M17: 0.07816066797 | N17: 0.1282192402 | O17: 1.008253964 | P17: 0.843897899 | Q17: 0.01188358991 | R17: 0.05767581349 | S17: -0.03010334275 | T17: 0.1282192402 | U17: 1.008253964 | V17: 0.843897899 | W17: 0.01188358991 | X17: 0.05767581349 | Y17: 0.1140904884 | Z17: 0.1282192402 | AA17: 1.008253964 | AB17: 0.843897899 | AC17: 0.01188358991 | AD17: 0.05767581349 | AE17: 0.07276524592 | AF17: 0.1282192402 | AG17: 1.008253964 | AH17: 0.843897899 | AI17: 0.01188358991 | AJ17: 0.05767581349 | AL17: 0.1282192402 | AM17: 1.008253964 | AN17: 0.843897899 | AO17: 0.01188358991 | AP17: 0.05767581349 | AQ17: -0.1379629327 | AR17: 0.1282192402 | AS17: 1.008253964 | AT17: 0.843897899 | AU17: 0.01188358991 | AV17: 0.05767581349 | AW17: 0.3009059932 | AX17: 0.1282192402 | AY17: 1.008253964 | AZ17: 0.843897899 | BA17: 0.01188358991 | BB17: 0.05767581349 | BC17: 0.1609001737 | BD17: 0.1282192402 | BE17: 1.008253964 | BF17: 0.843897899 | BG17: 0.01188358991 | BH17: 0.05767581349 | BI17: 0.02503773205 | BJ17: 0.1282192402 | BK17: 1.008253964 | BL17: 0.843897899 | BM17: 0.01188358991 | BN17: 0.05767581349 | BO17: 0.02402866261 | BP17: 0.1282192402 | BQ17: 1.008253964 | BR17: 0.843897899 | BS17: 0.01188358991 | BT17: 0.05767581349 | BU17: 0.04199357281 | BV17: 0.1282192402 | BW17: 1.008253964 | BX17: 0.843897899 | BY17: 0.01188358991 | BZ17: 0.05767581349 | CA17: 0.0540492712 | CB17: 0.1282192402 | CC17: 1.008253964 | CD17: 0.843897899 | CE17: 0.01188358991 | CF17: 0.05767581349 | CG17: 0.07276524592 | CH17: 0.1282192402 | CI17: 1.008253964 | CJ17: 0.843897899 | CK17: 0.01188358991 | CL17: 0.05767581349 | CM17: -0.1379629327 | CN17: 0.1282192402 | CO17: 1.008253964 | CP17: 0.843897899 | CQ17: 0.01188358991 | CR17: 0.05767581349 | CS17: -0.03259884337 | CT17: 0.1282192402 | CU17: 1.008253964 | CV17: 0.843897899 | CW17: 0.01188358991 | CX17: 0.05767581349 | CY17: 0.2309030834 | CZ17: 0.1282192402 | DA17: 1.008253964 | DB17: 0.843897899 | DC17: 0.01188358991 | DD17: 0.05767581349 | DE17: 0.09296895286 | DF17: 0.1282192402 | DG17: 1.008253964 | DH17: 0.843897899 | DI17: 0.01188358991 | DJ17: 0.05767581349 | DK17: 0.1622812996 | DL17: 0.1282192402 | DM17: 1.008253964 | DP17: CRD - Northwest | DQ17: Intercept
B18: Fertillizer application | C18: Ground herbicide | D18: 0.7469573114 | E18: 0.007992862104 | F18: 0.02820059417 | H18: 0.03031213468 | I18: 1.000459518 | J18: 0.6805365002 | K18: 0.007825389232 | L18: 0.0271130463 | M18: 0.06532211056 | N18: 0.04487010213 | O18: 1.00100717 | P18: 0.6805365002 | Q18: 0.007825389232 | R18: 0.0271130463 | S18: 0.03853773663 | T18: 0.04487010213 | U18: 1.00100717 | V18: 0.6805365002 | W18: 0.007825389232 | X18: 0.0271130463 | Y18: 0.09118832832 | Z18: 0.04487010213 | AA18: 1.00100717 | AB18: 0.6805365002 | AC18: 0.007825389232 | AD18: 0.0271130463 | AE18: 0.06084124967 | AF18: 0.04487010213 | AG18: 1.00100717 | AH18: 0.6805365002 | AI18: 0.007825389232 | AJ18: 0.0271130463 | AL18: 0.04487010213 | AM18: 1.00100717 | AN18: 0.6805365002 | AO18: 0.007825389232 | AP18: 0.0271130463 | AQ18: 0.01008754032 | AR18: 0.04487010213 | AS18: 1.00100717 | AT18: 0.6805365002 | AU18: 0.007825389232 | AV18: 0.0271130463 | AW18: 0.190394076 | AX18: 0.04487010213 | AY18: 1.00100717 | AZ18: 0.6805365002 | BA18: 0.007825389232 | BB18: 0.0271130463 | BC18: 0.1758945686 | BD18: 0.04487010213 | BE18: 1.00100717 | BF18: 0.6805365002 | BG18: 0.007825389232 | BH18: 0.0271130463 | BI18: 0.07298568755 | BJ18: 0.04487010213 | BK18: 1.00100717 | BL18: 0.6805365002 | BM18: 0.007825389232 | BN18: 0.0271130463 | BO18: 0.05192992359 | BP18: 0.04487010213 | BQ18: 1.00100717 | BR18: 0.6805365002 | BS18: 0.007825389232 | BT18: 0.0271130463 | BU18: 0.06486303247 | BV18: 0.04487010213 | BW18: 1.00100717 | BX18: 0.6805365002 | BY18: 0.007825389232 | BZ18: 0.0271130463 | CA18: 0.0650160585 | CB18: 0.04487010213 | CC18: 1.00100717 | CD18: 0.6805365002 | CE18: 0.007825389232 | CF18: 0.0271130463 | CG18: 0.06084124967 | CH18: 0.04487010213 | CI18: 1.00100717 | CJ18: 0.6805365002 | CK18: 0.007825389232 | CL18: 0.0271130463 | CM18: 0.01008754032 | CN18: 0.04487010213 | CO18: 1.00100717 | CP18: 0.6805365002 | CQ18: 0.007825389232 | CR18: 0.0271130463 | CS18: 0.03546439499 | CT18: 0.04487010213 | CU18: 1.00100717 | CV18: 0.6805365002 | CW18: 0.007825389232 | CX18: 0.0271130463 | CY18: 0.1831443223 | CZ18: 0.04487010213 | DA18: 1.00100717 | DB18: 0.6805365002 | DC18: 0.007825389232 | DD18: 0.0271130463 | DE18: 0.1244401281 | DF18: 0.04487010213 | DG18: 1.00100717 | DH18: 0.6805365002 | DI18: 0.007825389232 | DJ18: 0.0271130463 | DK18: 0.1464247774 | DL18: 0.04487010213 | DM18: 1.00100717 | DP18: CRD - Northwest | DQ18: PPI
B19: Fertillizer application | C19: Aerial herbicide | D19: 0.9359717923 | E19: 0.00792335351 | F19: 0.03287173766 | H19: 0.09048706274 | I19: 1.004102346 | J19: 0.9906823449 | K19: 0.005859354619 | L19: 0.04254416088 | M19: 0.06205767047 | N19: 0.1298047835 | O19: 1.008460228 | P19: 0.9906823449 | Q19: 0.005859354619 | R19: 0.04254416088 | S19: 0.006764435449 | T19: 0.1298047835 | U19: 1.008460228 | V19: 0.9906823449 | W19: 0.005859354619 | X19: 0.04254416088 | Y19: 0.01250133885 | Z19: 0.1298047835 | AA19: 1.008460228 | AB19: 0.9906823449 | AC19: 0.005859354619 | AD19: 0.04254416088 | AE19: 0.05178190592 | AF19: 0.1298047835 | AG19: 1.008460228 | AH19: 0.9906823449 | AI19: 0.005859354619 | AJ19: 0.04254416088 | AL19: 0.1298047835 | AM19: 1.008460228 | AN19: 0.9906823449 | AO19: 0.005859354619 | AP19: 0.04254416088 | AQ19: 0.08143304433 | AR19: 0.1298047835 | AS19: 1.008460228 | AT19: 0.9906823449 | AU19: 0.005859354619 | AV19: 0.04254416088 | AW19: 0.2083900709 | AX19: 0.1298047835 | AY19: 1.008460228 | AZ19: 0.9906823449 | BA19: 0.005859354619 | BB19: 0.04254416088 | BC19: 0.2331514822 | BD19: 0.1298047835 | BE19: 1.008460228 | BF19: 0.9906823449 | BG19: 0.005859354619 | BH19: 0.04254416088 | BI19: 0.2567181943 | BJ19: 0.1298047835 | BK19: 1.008460228 | BL19: 0.9906823449 | BM19: 0.005859354619 | BN19: 0.04254416088 | BO19: 0.03441105296 | BP19: 0.1298047835 | BQ19: 1.008460228 | BR19: 0.9906823449 | BS19: 0.005859354619 | BT19: 0.04254416088 | BU19: 0.009632887148 | BV19: 0.1298047835 | BW19: 1.008460228 | BX19: 0.9906823449 | BY19: 0.005859354619 | BZ19: 0.04254416088 | CA19: 0.02710781492 | CB19: 0.1298047835 | CC19: 1.008460228 | CD19: 0.9906823449 | CE19: 0.005859354619 | CF19: 0.04254416088 | CG19: 0.05178190592 | CH19: 0.1298047835 | CI19: 1.008460228 | CJ19: 0.9906823449 | CK19: 0.005859354619 | CL19: 0.04254416088 | CM19: 0.08143304433 | CN19: 0.1298047835 | CO19: 1.008460228 | CP19: 0.9906823449 | CQ19: 0.005859354619 | CR19: 0.04254416088 | CS19: 0.06660747513 | CT19: 0.1298047835 | CU19: 1.008460228 | CV19: 0.9906823449 | CW19: 0.005859354619 | CX19: 0.04254416088 | CY19: 0.2207707766 | CZ19: 0.1298047835 | DA19: 1.008460228 | DB19: 0.9906823449 | DC19: 0.005859354619 | DD19: 0.04254416088 | DE19: 0.2449348383 | DF19: 0.1298047835 | DG19: 1.008460228 | DH19: 0.9906823449 | DI19: 0.005859354619 | DJ19: 0.04254416088 | DK19: 0.2327532491 | DL19: 0.1298047835 | DM19: 1.008460228 | DP19: CRD - Northwest | DQ19: fuel
B20: Fertillizer application | C20: Ground insecticide | D20: 0.7544093795 | E20: 0.007958334632 | F20: 0.02945396982 | H20: 0.03592271257 | I20: 1.000645429 | J20: 0.6880253742 | K20: 0.007889120807 | L20: 0.02643426306 | M20: 0.07528224127 | N20: 0.05040122034 | O20: 1.001270948 | P20: 0.6880253742 | Q20: 0.007889120807 | R20: 0.02643426306 | S20: 0.03285138454 | T20: 0.05040122034 | U20: 1.001270948 | V20: 0.6880253742 | W20: 0.007889120807 | X20: 0.02643426306 | Y20: 0.07710559166 | Z20: 0.05040122034 | AA20: 1.001270948 | AB20: 0.6880253742 | AC20: 0.007889120807 | AD20: 0.02643426306 | AE20: 0.06112236906 | AF20: 0.05040122034 | AG20: 1.001270948 | AH20: 0.6880253742 | AI20: 0.007889120807 | AJ20: 0.02643426306 | AL20: 0.05040122034 | AM20: 1.001270948 | AN20: 0.6880253742 | AO20: 0.007889120807 | AP20: 0.02643426306 | AQ20: 0.005143718235 | AR20: 0.05040122034 | AS20: 1.001270948 | AT20: 0.6880253742 | AU20: 0.007889120807 | AV20: 0.02643426306 | AW20: 0.181681152 | AX20: 0.05040122034 | AY20: 1.001270948 | AZ20: 0.6880253742 | BA20: 0.007889120807 | BB20: 0.02643426306 | BC20: 0.2023744952 | BD20: 0.05040122034 | BE20: 1.001270948 | BF20: 0.6880253742 | BG20: 0.007889120807 | BH20: 0.02643426306 | BI20: 0.06107440226 | BJ20: 0.05040122034 | BK20: 1.001270948 | BL20: 0.6880253742 | BM20: 0.007889120807 | BN20: 0.02643426306 | BO20: 0.0540668129 | BP20: 0.05040122034 | BQ20: 1.001270948 | BR20: 0.6880253742 | BS20: 0.007889120807 | BT20: 0.02643426306 | BU20: 0.0549784881 | BV20: 0.05040122034 | BW20: 1.001270948 | BX20: 0.6880253742 | BY20: 0.007889120807 | BZ20: 0.02643426306 | CA20: 0.06174640582 | CB20: 0.05040122034 | CC20: 1.001270948 | CD20: 0.6880253742 | CE20: 0.007889120807 | CF20: 0.02643426306 | CG20: 0.06112236906 | CH20: 0.05040122034 | CI20: 1.001270948 | CJ20: 0.6880253742 | CK20: 0.007889120807 | CL20: 0.02643426306 | CM20: 0.005143718235 | CN20: 0.05040122034 | CO20: 1.001270948 | CP20: 0.6880253742 | CQ20: 0.007889120807 | CR20: 0.02643426306 | CS20: 0.03313304365 | CT20: 0.05040122034 | CU20: 1.001270948 | CV20: 0.6880253742 | CW20: 0.007889120807 | CX20: 0.02643426306 | CY20: 0.1920278236 | CZ20: 0.05040122034 | DA20: 1.001270948 | DB20: 0.6880253742 | DC20: 0.007889120807 | DD20: 0.02643426306 | DE20: 0.1317244487 | DF20: 0.05040122034 | DG20: 1.001270948 | DH20: 0.6880253742 | DI20: 0.007889120807 | DJ20: 0.02643426306 | DK20: 0.1483766832 | DL20: 0.05040122034 | DM20: 1.001270948 | DP20: CRD - Northwest | DQ20: Adjustment factor
B21: Fertillizer application | C21: Aerial insecticide | D21: 0.9361318895 | E21: 0.00816921598 | F21: 0.03288707956 | H21: 0.06268140003 | I21: 1.00196641 | J21: 0.9003732215 | K21: 0.007605719821 | L21: 0.0431248788 | M21: 0.05510676065 | N21: 0.1168242442 | O21: 1.006847288 | P21: 0.9003732215 | Q21: 0.007605719821 | R21: 0.0431248788 | S21: -0.02982921854 | T21: 0.1168242442 | U21: 1.006847288 | V21: 0.9003732215 | W21: 0.007605719821 | X21: 0.0431248788 | Y21: -0.02789358324 | Z21: 0.1168242442 | AA21: 1.006847288 | AB21: 0.9003732215 | AC21: 0.007605719821 | AD21: 0.0431248788 | AE21: 0.02641943295 | AF21: 0.1168242442 | AG21: 1.006847288 | AH21: 0.9003732215 | AI21: 0.007605719821 | AJ21: 0.0431248788 | AL21: 0.1168242442 | AM21: 1.006847288 | AN21: 0.9003732215 | AO21: 0.007605719821 | AP21: 0.0431248788 | AQ21: 0.05218595507 | AR21: 0.1168242442 | AS21: 1.006847288 | AT21: 0.9003732215 | AU21: 0.007605719821 | AV21: 0.0431248788 | AW21: 0.1854952434 | AX21: 0.1168242442 | AY21: 1.006847288 | AZ21: 0.9003732215 | BA21: 0.007605719821 | BB21: 0.0431248788 | BC21: 0.2075715465 | BD21: 0.1168242442 | BE21: 1.006847288 | BF21: 0.9003732215 | BG21: 0.007605719821 | BH21: 0.0431248788 | BI21: 0.2372925532 | BJ21: 0.1168242442 | BK21: 1.006847288 | BL21: 0.9003732215 | BM21: 0.007605719821 | BN21: 0.0431248788 | BO21: 0.01263877105 | BP21: 0.1168242442 | BQ21: 1.006847288 | BR21: 0.9003732215 | BS21: 0.007605719821 | BT21: 0.0431248788 | BU21: -0.02886140089 | BV21: 0.1168242442 | BW21: 1.006847288 | BX21: 0.9003732215 | BY21: 0.007605719821 | BZ21: 0.0431248788 | CA21: -0.0008720137119 | CB21: 0.1168242442 | CC21: 1.006847288 | CD21: 0.9003732215 | CE21: 0.007605719821 | CF21: 0.0431248788 | CG21: 0.02641943295 | CH21: 0.1168242442 | CI21: 1.006847288 | CJ21: 0.9003732215 | CK21: 0.007605719821 | CL21: 0.0431248788 | CM21: 0.05218595507 | CN21: 0.1168242442 | CO21: 1.006847288 | CP21: 0.9003732215 | CQ21: 0.007605719821 | CR21: 0.0431248788 | CS21: 0.03930269401 | CT21: 0.1168242442 | CU21: 1.006847288 | CV21: 0.9003732215 | CW21: 0.007605719821 | CX21: 0.0431248788 | CY21: 0.196533395 | CZ21: 0.1168242442 | DA21: 1.006847288 | DB21: 0.9003732215 | DC21: 0.007605719821 | DD21: 0.0431248788 | DE21: 0.2224320498 | DF21: 0.1168242442 | DG21: 1.006847288 | DH21: 0.9003732215 | DI21: 0.007605719821 | DJ21: 0.0431248788 | DK21: 0.210119781 | DL21: 0.1168242442 | DM21: 1.006847288 | DP21: CRD - Northwest | DQ21: RMSE
B22: Planting | C22: Wheat, reg-till planting | D22: 1.013089424 | E22: 0.01304615151 | F22: 0.04128882149 | H22: 0.03506283988 | I22: 1.00061489 | J22: 1.00911661 | K22: 0.01324955771 | L22: 0.03413319059 | M22: -0.06491877598 | N22: 0.07047339907 | O22: 1.002486336 | P22: 1.00911661 | Q22: 0.01324955771 | R22: 0.03413319059 | S22: -0.1291167451 | T22: 0.07047339907 | U22: 1.002486336 | V22: 1.00911661 | W22: 0.01324955771 | X22: 0.03413319059 | Y22: -0.04650843139 | Z22: 0.07047339907 | AA22: 1.002486336 | AB22: 1.00911661 | AC22: 0.01324955771 | AD22: 0.03413319059 | AE22: 0.1002954499 | AF22: 0.07047339907 | AG22: 1.002486336 | AH22: 1.00911661 | AI22: 0.01324955771 | AJ22: 0.03413319059 | AL22: 0.07047339907 | AM22: 1.002486336 | AN22: 1.00911661 | AO22: 0.01324955771 | AP22: 0.03413319059 | AQ22: 0.01645949844 | AR22: 0.07047339907 | AS22: 1.002486336 | AT22: 1.00911661 | AU22: 0.01324955771 | AV22: 0.03413319059 | AW22: 0.1614300796 | AX22: 0.07047339907 | AY22: 1.002486336 | AZ22: 1.00911661 | BA22: 0.01324955771 | BB22: 0.03413319059 | BC22: 0.123512474 | BD22: 0.07047339907 | BE22: 1.002486336 | BF22: 1.00911661 | BG22: 0.01324955771 | BH22: 0.03413319059 | BI22: 0.00529848167 | BJ22: 0.07047339907 | BK22: 1.002486336 | BL22: 1.00911661 | BM22: 0.01324955771 | BN22: 0.03413319059 | BO22: -0.09701776055 | BP22: 0.07047339907 | BQ22: 1.002486336 | BR22: 1.00911661 | BS22: 0.01324955771 | BT22: 0.03413319059 | BU22: -0.08781258825 | BV22: 0.07047339907 | BW22: 1.002486336 | BX22: 1.00911661 | BY22: 0.01324955771 | BZ22: 0.03413319059 | CA22: -0.0801813175 | CB22: 0.07047339907 | CC22: 1.002486336 | CD22: 1.00911661 | CE22: 0.01324955771 | CF22: 0.03413319059 | CG22: 0.1002954499 | CH22: 0.07047339907 | CI22: 1.002486336 | CJ22: 1.00911661 | CK22: 0.01324955771 | CL22: 0.03413319059 | CM22: 0.01645949844 | CN22: 0.07047339907 | CO22: 1.002486336 | CP22: 1.00911661 | CQ22: 0.01324955771 | CR22: 0.03413319059 | CS22: 0.05837747415 | CT22: 0.07047339907 | CU22: 1.002486336 | CV22: 1.00911661 | CW22: 0.01324955771 | CX22: 0.03413319059 | CY22: 0.1424712768 | CZ22: 0.07047339907 | DA22: 1.002486336 | DB22: 1.00911661 | DC22: 0.01324955771 | DD22: 0.03413319059 | DE22: 0.06440547784 | DF22: 0.07047339907 | DG22: 1.002486336 | DH22: 1.00911661 | DI22: 0.01324955771 | DJ22: 0.03413319059 | DK22: 0.09674701175 | DL22: 0.07047339907 | DM22: 1.002486336 | DP22: CRD - Northwest | DQ22: LN adjustment
B23: Planting | C23: Milo, reg-till planting | D23: 1.16608401 | E23: 0.01325549206 | F23: 0.02244500722 | H23: 0.03748934115 | I23: 1.000702972 | J23: 1.177611044 | K23: 0.01368488701 | L23: 0.007702021456 | M23: -0.03096369509 | N23: 0.07228473874 | O23: 1.002615957 | P23: 1.177611044 | Q23: 0.01368488701 | R23: 0.007702021456 | S23: -0.0720317333 | T23: 0.07228473874 | U23: 1.002615957 | V23: 1.177611044 | W23: 0.01368488701 | X23: 0.007702021456 | Y23: -0.06959759669 | Z23: 0.07228473874 | AA23: 1.002615957 | AB23: 1.177611044 | AC23: 0.01368488701 | AD23: 0.007702021456 | AE23: -0.009101394602 | AF23: 0.07228473874 | AG23: 1.002615957 | AH23: 1.177611044 | AI23: 0.01368488701 | AJ23: 0.007702021456 | AL23: 0.07228473874 | AM23: 1.002615957 | AN23: 1.177611044 | AO23: 0.01368488701 | AP23: 0.007702021456 | AQ23: 0.03792026571 | AR23: 0.07228473874 | AS23: 1.002615957 | AT23: 1.177611044 | AU23: 0.01368488701 | AV23: 0.007702021456 | AW23: 0.04369330968 | AX23: 0.07228473874 | AY23: 1.002615957 | AZ23: 1.177611044 | BA23: 0.01368488701 | BB23: 0.007702021456 | BC23: -0.01862188486 | BD23: 0.07228473874 | BE23: 1.002615957 | BF23: 1.177611044 | BG23: 0.01368488701 | BH23: 0.007702021456 | BI23: -0.1167816882 | BJ23: 0.07228473874 | BK23: 1.002615957 | BL23: 1.177611044 | BM23: 0.01368488701 | BN23: 0.007702021456 | BO23: -0.0514977142 | BP23: 0.07228473874 | BQ23: 1.002615957 | BR23: 1.177611044 | BS23: 0.01368488701 | BT23: 0.007702021456 | BU23: -0.070814665 | BV23: 0.07228473874 | BW23: 1.002615957 | BX23: 1.177611044 | BY23: 0.01368488701 | BZ23: 0.007702021456 | CA23: -0.05753100836 | CB23: 0.07228473874 | CC23: 1.002615957 | CD23: 1.177611044 | CE23: 0.01368488701 | CF23: 0.007702021456 | CG23: -0.009101394602 | CH23: 0.07228473874 | CI23: 1.002615957 | CJ23: 1.177611044 | CK23: 0.01368488701 | CL23: 0.007702021456 | CM23: 0.03792026571 | CN23: 0.07228473874 | CO23: 1.002615957 | CP23: 1.177611044 | CQ23: 0.01368488701 | CR23: 0.007702021456 | CS23: 0.01440943555 | CT23: 0.07228473874 | CU23: 1.002615957 | CV23: 1.177611044 | CW23: 0.01368488701 | CX23: 0.007702021456 | CY23: 0.01253571241 | CZ23: 0.07228473874 | DA23: 1.002615957 | DB23: 1.177611044 | DC23: 0.01368488701 | DD23: 0.007702021456 | DE23: -0.06770178654 | DF23: 0.07228473874 | DG23: 1.002615957 | DH23: 1.177611044 | DI23: 0.01368488701 | DJ23: 0.007702021456 | DK23: -0.0305700878 | DL23: 0.07228473874 | DM23: 1.002615957 | DP23: CRD - West central | DQ23: Intercept
B24: Planting | C24: Corn, reg-till planting | D24: 1.260164409 | E24: 0.01256049999 | F24: 0.02133987277 | H24: 0.03841368445 | I24: 1.000738078 | J24: 1.310955946 | K24: 0.01279200152 | L24: 0.01428594798 | M24: -0.09489629529 | N24: 0.07654090857 | O24: 1.00293355 | P24: 1.310955946 | Q24: 0.01279200152 | R24: 0.01428594798 | S24: -0.1048737351 | T24: 0.07654090857 | U24: 1.00293355 | V24: 1.310955946 | W24: 0.01279200152 | X24: 0.01428594798 | Y24: -0.07183986694 | Z24: 0.07654090857 | AA24: 1.00293355 | AB24: 1.310955946 | AC24: 0.01279200152 | AD24: 0.01428594798 | AE24: -0.0528978956 | AF24: 0.07654090857 | AG24: 1.00293355 | AH24: 1.310955946 | AI24: 0.01279200152 | AJ24: 0.01428594798 | AL24: 0.07654090857 | AM24: 1.00293355 | AN24: 1.310955946 | AO24: 0.01279200152 | AP24: 0.01428594798 | AQ24: -0.001925455812 | AR24: 0.07654090857 | AS24: 1.00293355 | AT24: 1.310955946 | AU24: 0.01279200152 | AV24: 0.01428594798 | AW24: -0.004143774641 | AX24: 0.07654090857 | AY24: 1.00293355 | AZ24: 1.310955946 | BA24: 0.01279200152 | BB24: 0.01428594798 | BC24: -0.1095143522 | BD24: 0.07654090857 | BE24: 1.00293355 | BF24: 1.310955946 | BG24: 0.01279200152 | BH24: 0.01428594798 | BI24: -0.1567292508 | BJ24: 0.07654090857 | BK24: 1.00293355 | BL24: 1.310955946 | BM24: 0.01279200152 | BN24: 0.01428594798 | BO24: -0.0998850152 | BP24: 0.07654090857 | BQ24: 1.00293355 | BR24: 1.310955946 | BS24: 0.01279200152 | BT24: 0.01428594798 | BU24: -0.08835680103 | BV24: 0.07654090857 | BW24: 1.00293355 | BX24: 1.310955946 | BY24: 0.01279200152 | BZ24: 0.01428594798 | CA24: -0.09053663245 | CB24: 0.07654090857 | CC24: 1.00293355 | CD24: 1.310955946 | CE24: 0.01279200152 | CF24: 0.01428594798 | CG24: -0.0528978956 | CH24: 0.07654090857 | CI24: 1.00293355 | CJ24: 1.310955946 | CK24: 0.01279200152 | CL24: 0.01428594798 | CM24: -0.001925455812 | CN24: 0.07654090857 | CO24: 1.00293355 | CP24: 1.310955946 | CQ24: 0.01279200152 | CR24: 0.01428594798 | CS24: -0.0274116757 | CT24: 0.07654090857 | CU24: 1.00293355 | CV24: 1.310955946 | CW24: 0.01279200152 | CX24: 0.01428594798 | CY24: -0.05682906342 | CZ24: 0.07654090857 | DA24: 1.00293355 | DB24: 1.310955946 | DC24: 0.01279200152 | DD24: 0.01428594798 | DE24: -0.1331218015 | DF24: 0.07654090857 | DG24: 1.00293355 | DH24: 1.310955946 | DI24: 0.01279200152 | DJ24: 0.01428594798 | DK24: -0.09012912589 | DL24: 0.07654090857 | DM24: 1.00293355 | DP24: CRD - West central | DQ24: PPI
B25: Planting | C25: Soybeans, reg-till planting | D25: 1.234453589 | E25: 0.01267348419 | F25: 0.02815723591 | H25: 0.04879640358 | I25: 1.001191253 | J25: 1.266161864 | K25: 0.0125199548 | L25: 0.02560638822 | M25: -0.02584481521 | N25: 0.07860953542 | O25: 1.003094508 | P25: 1.266161864 | Q25: 0.0125199548 | R25: 0.02560638822 | S25: -0.05488771677 | T25: 0.07860953542 | U25: 1.003094508 | V25: 1.266161864 | W25: 0.0125199548 | X25: 0.02560638822 | Y25: -0.04349819176 | Z25: 0.07860953542 | AA25: 1.003094508 | AB25: 1.266161864 | AC25: 0.0125199548 | AD25: 0.02560638822 | AE25: -0.007544935271 | AF25: 0.07860953542 | AG25: 1.003094508 | AH25: 1.266161864 | AI25: 0.0125199548 | AJ25: 0.02560638822 | AL25: 0.07860953542 | AM25: 1.003094508 | AN25: 1.266161864 | AO25: 0.0125199548 | AP25: 0.02560638822 | AQ25: 0.01775620603 | AR25: 0.07860953542 | AS25: 1.003094508 | AT25: 1.266161864 | AU25: 0.0125199548 | AV25: 0.02560638822 | AW25: 0.0406791535 | AX25: 0.07860953542 | AY25: 1.003094508 | AZ25: 1.266161864 | BA25: 0.0125199548 | BB25: 0.02560638822 | BC25: -0.04899123005 | BD25: 0.07860953542 | BE25: 1.003094508 | BF25: 1.266161864 | BG25: 0.0125199548 | BH25: 0.02560638822 | BI25: -0.127634722 | BJ25: 0.07860953542 | BK25: 1.003094508 | BL25: 1.266161864 | BM25: 0.0125199548 | BN25: 0.02560638822 | BO25: -0.04036626599 | BP25: 0.07860953542 | BQ25: 1.003094508 | BR25: 1.266161864 | BS25: 0.0125199548 | BT25: 0.02560638822 | BU25: -0.04919295426 | BV25: 0.07860953542 | BW25: 1.003094508 | BX25: 1.266161864 | BY25: 0.0125199548 | BZ25: 0.02560638822 | CA25: -0.04141024125 | CB25: 0.07860953542 | CC25: 1.003094508 | CD25: 1.266161864 | CE25: 0.0125199548 | CF25: 0.02560638822 | CG25: -0.007544935271 | CH25: 0.07860953542 | CI25: 1.003094508 | CJ25: 1.266161864 | CK25: 0.0125199548 | CL25: 0.02560638822 | CM25: 0.01775620603 | CN25: 0.07860953542 | CO25: 1.003094508 | CP25: 1.266161864 | CQ25: 0.0125199548 | CR25: 0.02560638822 | CS25: 0.005105635377 | CT25: 0.07860953542 | CU25: 1.003094508 | CV25: 1.266161864 | CW25: 0.0125199548 | CX25: 0.02560638822 | CY25: -0.004156038272 | CZ25: 0.07860953542 | DA25: 1.003094508 | DB25: 1.266161864 | DC25: 0.0125199548 | DD25: 0.02560638822 | DE25: -0.08831297602 | DF25: 0.07860953542 | DG25: 1.003094508 | DH25: 1.266161864 | DI25: 0.0125199548 | DJ25: 0.02560638822 | DK25: -0.04531559951 | DL25: 0.07860953542 | DM25: 1.003094508 | DP25: CRD - West central | DQ25: fuel
B26: Planting | C26: Grass seeding, reg-till | D26: 1.478166633 | E26: 0.01043912794 | F26: 0.05031882783 | H26: 0.06114538881 | I26: 1.001871128 | J26: 1.479077447 | K26: 0.01100084909 | L26: 0.03362949033 | M26: -0.05846267825 | N26: 0.09879243177 | O26: 1.004891899 | P26: 1.479077447 | Q26: 0.01100084909 | R26: 0.03362949033 | S26: -0.1067368466 | T26: 0.09879243177 | U26: 1.004891899 | V26: 1.479077447 | W26: 0.01100084909 | X26: 0.03362949033 | Y26: -0.05058576846 | Z26: 0.09879243177 | AA26: 1.004891899 | AB26: 1.479077447 | AC26: 0.01100084909 | AD26: 0.03362949033 | AE26: -0.02384982313 | AF26: 0.09879243177 | AG26: 1.004891899 | AH26: 1.479077447 | AI26: 0.01100084909 | AJ26: 0.03362949033 | AL26: 0.09879243177 | AM26: 1.004891899 | AN26: 1.479077447 | AO26: 0.01100084909 | AP26: 0.03362949033 | AQ26: -0.0836162384 | AR26: 0.09879243177 | AS26: 1.004891899 | AT26: 1.479077447 | AU26: 0.01100084909 | AV26: 0.03362949033 | AW26: 0.07976310111 | AX26: 0.09879243177 | AY26: 1.004891899 | AZ26: 1.479077447 | BA26: 0.01100084909 | BB26: 0.03362949033 | BC26: 0.1335512405 | BD26: 0.09879243177 | BE26: 1.004891899 | BF26: 1.479077447 | BG26: 0.01100084909 | BH26: 0.03362949033 | BI26: 0.02628239894 | BJ26: 0.09879243177 | BK26: 1.004891899 | BL26: 1.479077447 | BM26: 0.01100084909 | BN26: 0.03362949033 | BO26: -0.08259976245 | BP26: 0.09879243177 | BQ26: 1.004891899 | BR26: 1.479077447 | BS26: 0.01100084909 | BT26: 0.03362949033 | BU26: -0.07866130756 | BV26: 0.09879243177 | BW26: 1.004891899 | BX26: 1.479077447 | BY26: 0.01100084909 | BZ26: 0.03362949033 | CA26: -0.07192843112 | CB26: 0.09879243177 | CC26: 1.004891899 | CD26: 1.479077447 | CE26: 0.01100084909 | CF26: 0.03362949033 | CG26: -0.02384982313 | CH26: 0.09879243177 | CI26: 1.004891899 | CJ26: 1.479077447 | CK26: 0.01100084909 | CL26: 0.03362949033 | CM26: -0.0836162384 | CN26: 0.09879243177 | CO26: 1.004891899 | CP26: 1.479077447 | CQ26: 0.01100084909 | CR26: 0.03362949033 | CS26: -0.05373303077 | CT26: 0.09879243177 | CU26: 1.004891899 | CV26: 1.479077447 | CW26: 0.01100084909 | CX26: 0.03362949033 | CY26: 0.1066571708 | CZ26: 0.09879243177 | DA26: 1.004891899 | DB26: 1.479077447 | DC26: 0.01100084909 | DD26: 0.03362949033 | DE26: 0.07991681972 | DF26: 0.09879243177 | DG26: 1.004891899 | DH26: 1.479077447 | DI26: 0.01100084909 | DJ26: 0.03362949033 | DK26: 0.07986558018 | DL26: 0.09879243177 | DM26: 1.004891899 | DP26: CRD - West central | DQ26: Adjustment factor
B27: Planting | C27: Alfalfa seeding, reg-till | D27: 1.309658414 | E27: 0.01207367606 | F27: 0.03626228462 | H27: 0.07595910344 | I27: 1.002889058 | J27: 1.273687674 | K27: 0.01286875392 | L27: 0.004535754556 | M27: 0.0544028543 | N27: 0.1370407461 | O27: 1.009434308 | P27: 1.273687674 | Q27: 0.01286875392 | R27: 0.004535754556 | S27: 0.01456067696 | T27: 0.1370407461 | U27: 1.009434308 | V27: 1.273687674 | W27: 0.01286875392 | X27: 0.004535754556 | Y27: -0.005802337248 | Z27: 0.1370407461 | AA27: 1.009434308 | AB27: 1.273687674 | AC27: 0.01286875392 | AD27: 0.004535754556 | AE27: 0.0542835945 | AF27: 0.1370407461 | AG27: 1.009434308 | AH27: 1.273687674 | AI27: 0.01286875392 | AJ27: 0.004535754556 | AL27: 0.1370407461 | AM27: 1.009434308 | AN27: 1.273687674 | AO27: 0.01286875392 | AP27: 0.004535754556 | AQ27: -0.05038563745 | AR27: 0.1370407461 | AS27: 1.009434308 | AT27: 1.273687674 | AU27: 0.01286875392 | AV27: 0.004535754556 | AW27: 0.09888744321 | AX27: 0.1370407461 | AY27: 1.009434308 | AZ27: 1.273687674 | BA27: 0.01286875392 | BB27: 0.004535754556 | BC27: 0.1764130142 | BD27: 0.1370407461 | BE27: 1.009434308 | BF27: 1.273687674 | BG27: 0.01286875392 | BH27: 0.004535754556 | BI27: 0.01417166104 | BJ27: 0.1370407461 | BK27: 1.009434308 | BL27: 1.273687674 | BM27: 0.01286875392 | BN27: 0.004535754556 | BO27: 0.03448176563 | BP27: 0.1370407461 | BQ27: 1.009434308 | BR27: 1.273687674 | BS27: 0.01286875392 | BT27: 0.004535754556 | BU27: 0.004379169856 | BV27: 0.1370407461 | BW27: 1.009434308 | BX27: 1.273687674 | BY27: 0.01286875392 | BZ27: 0.004535754556 | CA27: 0.02105373134 | CB27: 0.1370407461 | CC27: 1.009434308 | CD27: 1.273687674 | CE27: 0.01286875392 | CF27: 0.004535754556 | CG27: 0.0542835945 | CH27: 0.1370407461 | CI27: 1.009434308 | CJ27: 1.273687674 | CK27: 0.01286875392 | CL27: 0.004535754556 | CM27: -0.05038563745 | CN27: 0.1370407461 | CO27: 1.009434308 | CP27: 1.273687674 | CQ27: 0.01286875392 | CR27: 0.004535754556 | CS27: 0.001948978525 | CT27: 0.1370407461 | CU27: 1.009434308 | CV27: 1.273687674 | CW27: 0.01286875392 | CX27: 0.004535754556 | CY27: 0.1376502287 | CZ27: 0.1370407461 | DA27: 1.009434308 | DB27: 1.273687674 | DC27: 0.01286875392 | DD27: 0.004535754556 | DE27: 0.09529233762 | DF27: 0.1370407461 | DG27: 1.009434308 | DH27: 1.273687674 | DI27: 0.01286875392 | DJ27: 0.004535754556 | DK27: 0.09649070615 | DL27: 0.1370407461 | DM27: 1.009434308 | DP27: CRD - West central | DQ27: RMSE
B28: Planting | C28: Sunflowers, reg-till planting | D28: 1.220234003 | E28: 0.01282982542 | F28: 0.0239807053 | G28: 0 | H28: 0.04156647639 | I28: 1.000877435 | J28: 1.251576285 | K28: 0.01299894778 | L28: 0.01586478589 | M28: -0.05056826853 | N28: 0.07581172758 | O28: 1.002881338 | P28: 1.251576285 | Q28: 0.01299894778 | R28: 0.01586478589 | S28: -0.07726439506 | T28: 0.07581172758 | U28: 1.002881338 | V28: 1.251576285 | W28: 0.01299894778 | X28: 0.01586478589 | Y28: -0.06164521847 | Z28: 0.07581172758 | AA28: 1.002881338 | AB28: 1.251576285 | AC28: 0.01299894778 | AD28: 0.01586478589 | AE28: -0.02318140849 | AF28: 0.07581172758 | AG28: 1.002881338 | AH28: 1.251576285 | AI28: 0.01299894778 | AJ28: 0.01586478589 | AK28: 0 | AL28: 0.07581172758 | AM28: 1.002881338 | AN28: 1.251576285 | AO28: 0.01299894778 | AP28: 0.01586478589 | AQ28: 0.01791700531 | AR28: 0.07581172758 | AS28: 1.002881338 | AT28: 1.251576285 | AU28: 0.01299894778 | AV28: 0.01586478589 | AW28: 0.02674289618 | AX28: 0.07581172758 | AY28: 1.002881338 | AZ28: 1.251576285 | BA28: 0.01299894778 | BB28: 0.01586478589 | BC28: -0.05904248904 | BD28: 0.07581172758 | BE28: 1.002881338 | BF28: 1.251576285 | BG28: 0.01299894778 | BH28: 0.01586478589 | BI28: -0.1337152203 | BJ28: 0.07581172758 | BK28: 1.002881338 | BL28: 1.251576285 | BM28: 0.01299894778 | BN28: 0.01586478589 | BO28: -0.0639163318 | BP28: 0.07581172758 | BQ28: 1.002881338 | BR28: 1.251576285 | BS28: 0.01299894778 | BT28: 0.01586478589 | BU28: -0.06945480676 | BV28: 0.07581172758 | BW28: 1.002881338 | BX28: 1.251576285 | BY28: 0.01299894778 | BZ28: 0.01586478589 | CA28: -0.06315929402 | CB28: 0.07581172758 | CC28: 1.002881338 | CD28: 1.251576285 | CE28: 0.01299894778 | CF28: 0.01586478589 | CG28: -0.01159070424 | CH28: 0.07581172758 | CI28: 1.002881338 | CJ28: 1.251576285 | CK28: 0.01299894778 | CL28: 0.01586478589 | CM28: 0.008958502654 | CN28: 0.07581172758 | CO28: 1.002881338 | CP28: 1.251576285 | CQ28: 0.01299894778 | CR28: 0.01586478589 | CS28: -0.001754801061 | CT28: 0.07581172758 | CU28: 1.002881338 | CV28: 1.251576285 | CW28: 0.01299894778 | CX28: 0.01586478589 | CY28: -0.01614979643 | CZ28: 0.07581172758 | DA28: 1.002881338 | DB28: 1.251576285 | DC28: 0.01299894778 | DD28: 0.01586478589 | DE28: -0.09637885469 | DF28: 0.07581172758 | DG28: 1.002881338 | DH28: 1.251576285 | DI28: 0.01299894778 | DJ28: 0.01586478589 | DK28: -0.05533827107 | DL28: 0.07581172758 | DM28: 1.002881338 | DP28: CRD - West central | DQ28: LN adjustment
B29: Planting | C29: Wheat, min-till planting | D29: 1.547613492 | E29: 0.01117700966 | F29: 0.003141593926 | H29: 0.05750396971 | I29: 1.001654721 | J29: 1.439035169 | K29: 0.01333325047 | L29: -0.01264710211 | M29: -0.1262241449 | N29: 0.1301971512 | O29: 1.008511669 | P29: 1.439035169 | Q29: 0.01333325047 | R29: -0.01264710211 | S29: -0.1669327427 | T29: 0.1301971512 | U29: 1.008511669 | V29: 1.439035169 | W29: 0.01333325047 | X29: -0.01264710211 | Y29: -0.1456058063 | Z29: 0.1301971512 | AA29: 1.008511669 | AB29: 1.439035169 | AC29: 0.01333325047 | AD29: -0.01264710211 | AE29: -0.0148695706 | AF29: 0.1301971512 | AG29: 1.008511669 | AH29: 1.439035169 | AI29: 0.01333325047 | AJ29: -0.01264710211 | AL29: 0.1301971512 | AM29: 1.008511669 | AN29: 1.439035169 | AO29: 0.01333325047 | AP29: -0.01264710211 | AQ29: -0.08905616019 | AR29: 0.1301971512 | AS29: 1.008511669 | AT29: 1.439035169 | AU29: 0.01333325047 | AV29: -0.01264710211 | AW29: 0.09409190236 | AX29: 0.1301971512 | AY29: 1.008511669 | AZ29: 1.439035169 | BA29: 0.01333325047 | BB29: -0.01264710211 | BC29: 0.05232026075 | BD29: 0.1301971512 | BE29: 1.008511669 | BF29: 1.439035169 | BG29: 0.01333325047 | BH29: -0.01264710211 | BI29: 0.004320977841 | BJ29: 0.1301971512 | BK29: 1.008511669 | BL29: 1.439035169 | BM29: 0.01333325047 | BN29: -0.01264710211 | BO29: -0.1465784438 | BP29: 0.1301971512 | BQ29: 1.008511669 | BR29: 1.439035169 | BS29: 0.01333325047 | BT29: -0.01264710211 | BU29: -0.1562692745 | BV29: 0.1301971512 | BW29: 1.008511669 | BX29: 1.439035169 | BY29: 0.01333325047 | BZ29: -0.01264710211 | CA29: -0.1462542313 | CB29: 0.1301971512 | CC29: 1.008511669 | CD29: 1.439035169 | CE29: 0.01333325047 | CF29: -0.01264710211 | CG29: -0.0148695706 | CH29: 0.1301971512 | CI29: 1.008511669 | CJ29: 1.439035169 | CK29: 0.01333325047 | CL29: -0.01264710211 | CM29: -0.08905616019 | CN29: 0.1301971512 | CO29: 1.008511669 | CP29: 1.439035169 | CQ29: 0.01333325047 | CR29: -0.01264710211 | CS29: -0.0519628654 | CT29: 0.1301971512 | CU29: 1.008511669 | CV29: 1.439035169 | CW29: 0.01333325047 | CX29: -0.01264710211 | CY29: 0.07320608156 | CZ29: 0.1301971512 | DA29: 1.008511669 | DB29: 1.439035169 | DC29: 0.01333325047 | DD29: -0.01264710211 | DE29: 0.02832061929 | DF29: 0.1301971512 | DG29: 1.008511669 | DH29: 1.439035169 | DI29: 0.01333325047 | DJ29: -0.01264710211 | DK29: 0.05024438032 | DL29: 0.1301971512 | DM29: 1.008511669 | DP29: CRD - Southwest | DQ29: Intercept
B30: Planting | C30: Milo, minimum till | D30: 1.411368462 | E30: 0.01272740882 | F30: -0.00361574759 | H30: 0.05439816804 | I30: 1.001480675 | J30: 1.415589929 | K30: 0.01305352828 | L30: -0.004636469773 | M30: -0.09802322166 | N30: 0.09373008439 | O30: 1.004402326 | P30: 1.415589929 | Q30: 0.01305352828 | R30: -0.004636469773 | S30: -0.1388340092 | T30: 0.09373008439 | U30: 1.004402326 | V30: 1.415589929 | W30: 0.01305352828 | X30: -0.004636469773 | Y30: -0.132846792 | Z30: 0.09373008439 | AA30: 1.004402326 | AB30: 1.415589929 | AC30: 0.01305352828 | AD30: -0.004636469773 | AE30: -0.04232894997 | AF30: 0.09373008439 | AG30: 1.004402326 | AH30: 1.415589929 | AI30: 0.01305352828 | AJ30: -0.004636469773 | AL30: 0.09373008439 | AM30: 1.004402326 | AN30: 1.415589929 | AO30: 0.01305352828 | AP30: -0.004636469773 | AQ30: -0.0001616577014 | AR30: 0.09373008439 | AS30: 1.004402326 | AT30: 1.415589929 | AU30: 0.01305352828 | AV30: -0.004636469773 | AW30: 0.09895758974 | AX30: 0.09373008439 | AY30: 1.004402326 | AZ30: 1.415589929 | BA30: 0.01305352828 | BB30: -0.004636469773 | BC30: 0.04175553428 | BD30: 0.09373008439 | BE30: 1.004402326 | BF30: 1.415589929 | BG30: 0.01305352828 | BH30: -0.004636469773 | BI30: 0.008827500128 | BJ30: 0.09373008439 | BK30: 1.004402326 | BL30: 1.415589929 | BM30: 0.01305352828 | BN30: -0.004636469773 | BO30: -0.1184286154 | BP30: 0.09373008439 | BQ30: 1.004402326 | BR30: 1.415589929 | BS30: 0.01305352828 | BT30: -0.004636469773 | BU30: -0.1358404006 | BV30: 0.09373008439 | BW30: 1.004402326 | BX30: 1.415589929 | BY30: 0.01305352828 | BZ30: -0.004636469773 | CA30: -0.1232346743 | CB30: 0.09373008439 | CC30: 1.004402326 | CD30: 1.415589929 | CE30: 0.01305352828 | CF30: -0.004636469773 | CG30: -0.04232894997 | CH30: 0.09373008439 | CI30: 1.004402326 | CJ30: 1.415589929 | CK30: 0.01305352828 | CL30: -0.004636469773 | CM30: -0.0001616577014 | CN30: 0.09373008439 | CO30: 1.004402326 | CP30: 1.415589929 | CQ30: 0.01305352828 | CR30: -0.004636469773 | CS30: -0.02124530384 | CT30: 0.09373008439 | CU30: 1.004402326 | CV30: 1.415589929 | CW30: 0.01305352828 | CX30: -0.004636469773 | CY30: 0.07035656201 | CZ30: 0.09373008439 | DA30: 1.004402326 | DB30: 1.415589929 | DC30: 0.01305352828 | DD30: -0.004636469773 | DE30: 0.0252915172 | DF30: 0.09373008439 | DG30: 1.004402326 | DH30: 1.415589929 | DI30: 0.01305352828 | DJ30: -0.004636469773 | DK30: 0.04984687471 | DL30: 0.09373008439 | DM30: 1.004402326 | DP30: CRD - Southwest | DQ30: PPI
B31: Planting | C31: Corn, minimum till | D31: 1.470988862 | E31: 0.0122080718 | F31: -0.00269353828 | H31: 0.04618160902 | I31: 1.001066939 | J31: 1.46419875 | K31: 0.01295051564 | L31: -0.01027154946 | M31: -0.09892596654 | N31: 0.09231440561 | O31: 1.004270066 | P31: 1.46419875 | Q31: 0.01295051564 | R31: -0.01027154946 | S31: -0.1345466436 | T31: 0.09231440561 | U31: 1.004270066 | V31: 1.46419875 | W31: 0.01295051564 | X31: -0.01027154946 | Y31: -0.07694841659 | Z31: 0.09231440561 | AA31: 1.004270066 | AB31: 1.46419875 | AC31: 0.01295051564 | AD31: -0.01027154946 | AE31: -0.05387424812 | AF31: 0.09231440561 | AG31: 1.004270066 | AH31: 1.46419875 | AI31: 0.01295051564 | AJ31: -0.01027154946 | AL31: 0.09231440561 | AM31: 1.004270066 | AN31: 1.46419875 | AO31: 0.01295051564 | AP31: -0.01027154946 | AQ31: -0.01049019771 | AR31: 0.09231440561 | AS31: 1.004270066 | AT31: 1.46419875 | AU31: 0.01295051564 | AV31: -0.01027154946 | AW31: 0.05142010531 | AX31: 0.09231440561 | AY31: 1.004270066 | AZ31: 1.46419875 | BA31: 0.01295051564 | BB31: -0.01027154946 | BC31: 0.0007517060609 | BD31: 0.09231440561 | BE31: 1.004270066 | BF31: 1.46419875 | BG31: 0.01295051564 | BH31: -0.01027154946 | BI31: -0.05226648958 | BJ31: 0.09231440561 | BK31: 1.004270066 | BL31: 1.46419875 | BM31: 0.01295051564 | BN31: -0.01027154946 | BO31: -0.1167363051 | BP31: 0.09231440561 | BQ31: 1.004270066 | BR31: 1.46419875 | BS31: 0.01295051564 | BT31: -0.01027154946 | BU31: -0.1057475301 | BV31: 0.09231440561 | BW31: 1.004270066 | BX31: 1.46419875 | BY31: 0.01295051564 | BZ31: -0.01027154946 | CA31: -0.1034736756 | CB31: 0.09231440561 | CC31: 1.004270066 | CD31: 1.46419875 | CE31: 0.01295051564 | CF31: -0.01027154946 | CG31: -0.05387424812 | CH31: 0.09231440561 | CI31: 1.004270066 | CJ31: 1.46419875 | CK31: 0.01295051564 | CL31: -0.01027154946 | CM31: -0.01049019771 | CN31: 0.09231440561 | CO31: 1.004270066 | CP31: 1.46419875 | CQ31: 0.01295051564 | CR31: -0.01027154946 | CS31: -0.03218222291 | CT31: 0.09231440561 | CU31: 1.004270066 | CV31: 1.46419875 | CW31: 0.01295051564 | CX31: -0.01027154946 | CY31: 0.02608590568 | CZ31: 0.09231440561 | DA31: 1.004270066 | DB31: 1.46419875 | DC31: 0.01295051564 | DD31: -0.01027154946 | DE31: -0.02575739176 | DF31: 0.09231440561 | DG31: 1.004270066 | DH31: 1.46419875 | DI31: 0.01295051564 | DJ31: -0.01027154946 | DK31: -3.15594026e-05 | DL31: 0.09231440561 | DM31: 1.004270066 | DP31: CRD - Southwest | DQ31: fuel
B32: Planting | C32: Soybeans, minimum till | D32: 1.535842427 | E32: 0.01183485904 | F32: -0.004745771974 | H32: 0.06037602051 | I32: 1.001824294 | J32: 1.458410033 | K32: 0.01323678264 | L32: -0.009729017553 | M32: -0.08849881057 | N32: 0.1085473309 | O32: 1.005908649 | P32: 1.458410033 | Q32: 0.01323678264 | R32: -0.009729017553 | S32: -0.1228658311 | T32: 0.1085473309 | U32: 1.005908649 | V32: 1.458410033 | W32: 0.01323678264 | X32: -0.009729017553 | Y32: -0.06484657588 | Z32: 0.1085473309 | AA32: 1.005908649 | AB32: 1.458410033 | AC32: 0.01323678264 | AD32: -0.009729017553 | AE32: -0.06344995248 | AF32: 0.1085473309 | AG32: 1.005908649 | AH32: 1.458410033 | AI32: 0.01323678264 | AJ32: -0.009729017553 | AL32: 0.1085473309 | AM32: 1.005908649 | AN32: 1.458410033 | AO32: 0.01323678264 | AP32: -0.009729017553 | AQ32: -0.02962644452 | AR32: 0.1085473309 | AS32: 1.005908649 | AT32: 1.458410033 | AU32: 0.01323678264 | AV32: -0.009729017553 | AW32: 0.06814911871 | AX32: 0.1085473309 | AY32: 1.005908649 | AZ32: 1.458410033 | BA32: 0.01323678264 | BB32: -0.009729017553 | BC32: -0.02093859166 | BD32: 0.1085473309 | BE32: 1.005908649 | BF32: 1.458410033 | BG32: 0.01323678264 | BH32: -0.009729017553 | BI32: -0.02481268835 | BJ32: 0.1085473309 | BK32: 1.005908649 | BL32: 1.458410033 | BM32: 0.01323678264 | BN32: -0.009729017553 | BO32: -0.1056823208 | BP32: 0.1085473309 | BQ32: 1.005908649 | BR32: 1.458410033 | BS32: 0.01323678264 | BT32: -0.009729017553 | BU32: -0.09385620351 | BV32: 0.1085473309 | BW32: 1.005908649 | BX32: 1.458410033 | BY32: 0.01323678264 | BZ32: -0.009729017553 | CA32: -0.09207040586 | CB32: 0.1085473309 | CC32: 1.005908649 | CD32: 1.458410033 | CE32: 0.01323678264 | CF32: -0.009729017553 | CG32: -0.06344995248 | CH32: 0.1085473309 | CI32: 1.005908649 | CJ32: 1.458410033 | CK32: 0.01323678264 | CL32: -0.009729017553 | CM32: -0.02962644452 | CN32: 0.1085473309 | CO32: 1.005908649 | CP32: 1.458410033 | CQ32: 0.01323678264 | CR32: -0.009729017553 | CS32: -0.0465381985 | CT32: 0.1085473309 | CU32: 1.005908649 | CV32: 1.458410033 | CW32: 0.01323678264 | CX32: -0.009729017553 | CY32: 0.02360526352 | CZ32: 0.1085473309 | DA32: 1.005908649 | DB32: 1.458410033 | DC32: 0.01323678264 | DD32: -0.009729017553 | DE32: -0.02287564001 | DF32: 0.1085473309 | DG32: 1.005908649 | DH32: 1.458410033 | DI32: 0.01323678264 | DJ32: -0.009729017553 | DK32: 0.007465946233 | DL32: 0.1085473309 | DM32: 1.005908649 | DP32: CRD - Southwest | DQ32: Adjustment factor
B33: Planting | C33: Sunflowers, minimum till | D33: 1.47273325 | E33: 0.01225677989 | F33: -0.003685019282 | G33: 0 | H33: 0.05365193252 | I33: 1.001457303 | J33: 1.446066237 | K33: 0.01308027552 | L33: -0.008212345596 | M33: -0.09514933292 | N33: 0.09819727363 | O33: 1.004860347 | P33: 1.446066237 | Q33: 0.01308027552 | R33: -0.008212345596 | S33: -0.1320821613 | T33: 0.09819727363 | U33: 1.004860347 | V33: 1.446066237 | W33: 0.01308027552 | X33: -0.008212345596 | Y33: -0.0915472615 | Z33: 0.09819727363 | AA33: 1.004860347 | AB33: 1.446066237 | AC33: 0.01308027552 | AD33: -0.008212345596 | AE33: -0.05321771686 | AF33: 0.09819727363 | AG33: 1.004860347 | AH33: 1.446066237 | AI33: 0.01308027552 | AJ33: -0.008212345596 | AK33: 0 | AL33: 0.09819727363 | AM33: 1.004860347 | AN33: 1.446066237 | AO33: 0.01308027552 | AP33: -0.008212345596 | AQ33: -0.01342609998 | AR33: 0.09819727363 | AS33: 1.004860347 | AT33: 1.446066237 | AU33: 0.01308027552 | AV33: -0.008212345596 | AW33: 0.07284227125 | AX33: 0.09819727363 | AY33: 1.004860347 | AZ33: 1.446066237 | BA33: 0.01308027552 | BB33: -0.008212345596 | BC33: 0.007189549559 | BD33: 0.09819727363 | BE33: 1.004860347 | BF33: 1.446066237 | BG33: 0.01308027552 | BH33: -0.008212345596 | BI33: -0.02275055927 | BJ33: 0.09819727363 | BK33: 1.004860347 | BL33: 1.446066237 | BM33: 0.01308027552 | BN33: -0.008212345596 | BO33: -0.1136157471 | BP33: 0.09819727363 | BQ33: 1.004860347 | BR33: 1.446066237 | BS33: 0.01308027552 | BT33: -0.008212345596 | BU33: -0.1118147114 | BV33: 0.09819727363 | BW33: 1.004860347 | BX33: 1.446066237 | BY33: 0.01308027552 | BZ33: -0.008212345596 | CA33: -0.1062595852 | CB33: 0.09819727363 | CC33: 1.004860347 | CD33: 1.446066237 | CE33: 0.01308027552 | CF33: -0.008212345596 | CG33: -0.02660885843 | CH33: 0.09819727363 | CI33: 1.004860347 | CJ33: 1.446066237 | CK33: 0.01308027552 | CL33: -0.008212345596 | CM33: -0.006713049988 | CN33: 0.09819727363 | CO33: 1.004860347 | CP33: 1.446066237 | CQ33: 0.01308027552 | CR33: -0.008212345596 | CS33: -0.02221460561 | CT33: 0.09819727363 | CU33: 1.004860347 | CV33: 1.446066237 | CW33: 0.01308027552 | CX33: -0.008212345596 | CY33: 0.04001591041 | CZ33: 0.09819727363 | DA33: 1.004860347 | DB33: 1.446066237 | DC33: 0.01308027552 | DD33: -0.008212345596 | DE33: -0.007780504854 | DF33: 0.09819727363 | DG33: 1.004860347 | DH33: 1.446066237 | DI33: 0.01308027552 | DJ33: -0.008212345596 | DK33: 0.01909375385 | DL33: 0.09819727363 | DM33: 1.004860347 | DP33: CRD - Southwest | DQ33: RMSE
B34: Harvesting | C34: Wheat (base) | D34: 2.165065916 | E34: 0.006117328125 | F34: 0.0699425952 | H34: 0.04894011251 | I34: 1.001198285 | J34: 2.129054196 | K34: 0.006163580098 | L34: 0.06581221955 | M34: -0.002550534089 | N34: 0.05034612029 | O34: 1.001268169 | P34: 2.129054196 | Q34: 0.006163580098 | R34: 0.06581221955 | S34: -0.01281019443 | T34: 0.05034612029 | U34: 1.001268169 | V34: 2.129054196 | W34: 0.006163580098 | X34: 0.06581221955 | Y34: -0.02428360301 | Z34: 0.05034612029 | AA34: 1.001268169 | AB34: 2.129054196 | AC34: 0.006163580098 | AD34: 0.06581221955 | AE34: 0.002590094422 | AF34: 0.05034612029 | AG34: 1.001268169 | AH34: 2.129054196 | AI34: 0.006163580098 | AJ34: 0.06581221955 | AL34: 0.05034612029 | AM34: 1.001268169 | AN34: 2.129054196 | AO34: 0.006163580098 | AP34: 0.06581221955 | AQ34: 0.001599587108 | AR34: 0.05034612029 | AS34: 1.001268169 | AT34: 2.129054196 | AU34: 0.006163580098 | AV34: 0.06581221955 | AW34: 0.1960436232 | AX34: 0.05034612029 | AY34: 1.001268169 | AZ34: 2.129054196 | BA34: 0.006163580098 | BB34: 0.06581221955 | BC34: 0.2338213654 | BD34: 0.05034612029 | BE34: 1.001268169 | BF34: 2.129054196 | BG34: 0.006163580098 | BH34: 0.06581221955 | BI34: 0.1333635414 | BJ34: 0.05034612029 | BK34: 1.001268169 | BL34: 2.129054196 | BM34: 0.006163580098 | BN34: 0.06581221955 | BO34: -0.00768036426 | BP34: 0.05034612029 | BQ34: 1.001268169 | BR34: 2.129054196 | BS34: 0.006163580098 | BT34: 0.06581221955 | BU34: -0.01854689872 | BV34: 0.05034612029 | BW34: 1.001268169 | BX34: 2.129054196 | BY34: 0.006163580098 | BZ34: 0.06581221955 | CA34: -0.01321477718 | CB34: 0.05034612029 | CC34: 1.001268169 | CD34: 2.129054196 | CE34: 0.006163580098 | CF34: 0.06581221955 | CG34: 0.002590094422 | CH34: 0.05034612029 | CI34: 1.001268169 | CJ34: 2.129054196 | CK34: 0.006163580098 | CL34: 0.06581221955 | CM34: 0.001599587108 | CN34: 0.05034612029 | CO34: 1.001268169 | CP34: 2.129054196 | CQ34: 0.006163580098 | CR34: 0.06581221955 | CS34: 0.002094840765 | CT34: 0.05034612029 | CU34: 1.001268169 | CV34: 2.129054196 | CW34: 0.006163580098 | CX34: 0.06581221955 | CY34: 0.2149324943 | CZ34: 0.05034612029 | DA34: 1.001268169 | DB34: 2.129054196 | DC34: 0.006163580098 | DD34: 0.06581221955 | DE34: 0.1835924534 | DF34: 0.05034612029 | DG34: 1.001268169 | DH34: 2.129054196 | DI34: 0.006163580098 | DJ34: 0.06581221955 | DK34: 0.1877428433 | DL34: 0.05034612029 | DM34: 1.001268169 | DP34: CRD - Southwest | DQ34: LN adjustment
B35: Harvesting | C35: Wheat (extra charge for high yield) - $/bu | D35: 2.076429031 | E35: 0.006574048383 | F35: 0.07041645406 | H35: 0.04942644563 | I35: 1.001222233 | J35: 2.087514108 | K35: 0.00617576938 | L35: 0.0770758585 | M35: 0.03651027451 | N35: 0.06576064702 | O35: 1.002164571 | P35: 2.087514108 | Q35: 0.00617576938 | R35: 0.0770758585 | S35: -0.002601840708 | T35: 0.06576064702 | U35: 1.002164571 | V35: 2.087514108 | W35: 0.00617576938 | X35: 0.0770758585 | Y35: -0.0091377378 | Z35: 0.06576064702 | AA35: 1.002164571 | AB35: 2.087514108 | AC35: 0.00617576938 | AD35: 0.0770758585 | AE35: 0.002339428536 | AF35: 0.06576064702 | AG35: 1.002164571 | AH35: 2.087514108 | AI35: 0.00617576938 | AJ35: 0.0770758585 | AL35: 0.06576064702 | AM35: 1.002164571 | AN35: 2.087514108 | AO35: 0.00617576938 | AP35: 0.0770758585 | AQ35: 0.00859725465 | AR35: 0.06576064702 | AS35: 1.002164571 | AT35: 2.087514108 | AU35: 0.00617576938 | AV35: 0.0770758585 | AW35: 0.0196744179 | AX35: 0.06576064702 | AY35: 1.002164571 | AZ35: 2.087514108 | BA35: 0.00617576938 | BB35: 0.0770758585 | BC35: -0.01369599272 | BD35: 0.06576064702 | BE35: 1.002164571 | BF35: 2.087514108 | BG35: 0.00617576938 | BH35: 0.0770758585 | BI35: -0.01799367426 | BJ35: 0.06576064702 | BK35: 1.002164571 | BL35: 2.087514108 | BM35: 0.00617576938 | BN35: 0.0770758585 | BO35: 0.0169542169 | BP35: 0.06576064702 | BQ35: 1.002164571 | BR35: 2.087514108 | BS35: 0.00617576938 | BT35: 0.0770758585 | BU35: -0.005869789254 | BV35: 0.06576064702 | BW35: 1.002164571 | BX35: 2.087514108 | BY35: 0.00617576938 | BZ35: 0.0770758585 | CA35: 0.008256898668 | CB35: 0.06576064702 | CC35: 1.002164571 | CD35: 2.087514108 | CE35: 0.00617576938 | CF35: 0.0770758585 | CG35: 0.002339428536 | CH35: 0.06576064702 | CI35: 1.002164571 | CJ35: 2.087514108 | CK35: 0.00617576938 | CL35: 0.0770758585 | CM35: 0.00859725465 | CN35: 0.06576064702 | CO35: 1.002164571 | CP35: 2.087514108 | CQ35: 0.00617576938 | CR35: 0.0770758585 | CS35: 0.005468341593 | CT35: 0.06576064702 | CU35: 1.002164571 | CV35: 2.087514108 | CW35: 0.00617576938 | CX35: 0.0770758585 | CY35: 0.002989212594 | CZ35: 0.06576064702 | DA35: 1.002164571 | DB35: 2.087514108 | DC35: 0.00617576938 | DD35: 0.0770758585 | DE35: -0.01584483349 | DF35: 0.06576064702 | DG35: 1.002164571 | DH35: 2.087514108 | DI35: 0.00617576938 | DJ35: 0.0770758585 | DK35: -0.004005083023 | DL35: 0.06576064702 | DM35: 1.002164571 | DP35: CRD - North central | DQ35: Intercept
B36: Harvesting | C36: Milo (base) | D36: 2.292730195 | E36: 0.005238699578 | F36: 0.07019216844 | H36: 0.05708336408 | I36: 1.001630583 | J36: 2.173252109 | K36: 0.006152653083 | L36: 0.06250330808 | M36: 0.0121899544 | N36: 0.06389087628 | O36: 1.002043106 | P36: 2.173252109 | Q36: 0.006152653083 | R36: 0.06250330808 | S36: -0.006088871701 | T36: 0.06389087628 | U36: 1.002043106 | V36: 2.173252109 | W36: 0.006152653083 | X36: 0.06250330808 | Y36: -0.01150461951 | Z36: 0.06389087628 | AA36: 1.002043106 | AB36: 2.173252109 | AC36: 0.006152653083 | AD36: 0.06250330808 | AE36: 0.02329895398 | AF36: 0.06389087628 | AG36: 1.002043106 | AH36: 2.173252109 | AI36: 0.006152653083 | AJ36: 0.06250330808 | AL36: 0.06389087628 | AM36: 1.002043106 | AN36: 2.173252109 | AO36: 0.006152653083 | AP36: 0.06250330808 | AQ36: 0.02587474389 | AR36: 0.06389087628 | AS36: 1.002043106 | AT36: 2.173252109 | AU36: 0.006152653083 | AV36: 0.06250330808 | AW36: 0.2452392009 | AX36: 0.06389087628 | AY36: 1.002043106 | AZ36: 2.173252109 | BA36: 0.006152653083 | BB36: 0.06250330808 | BC36: 0.2562905625 | BD36: 0.06389087628 | BE36: 1.002043106 | BF36: 2.173252109 | BG36: 0.006152653083 | BH36: 0.06250330808 | BI36: 0.1476083869 | BJ36: 0.06389087628 | BK36: 1.002043106 | BL36: 2.173252109 | BM36: 0.006152653083 | BN36: 0.06250330808 | BO36: 0.003050541348 | BP36: 0.06389087628 | BQ36: 1.002043106 | BR36: 2.173252109 | BS36: 0.006152653083 | BT36: 0.06250330808 | BU36: -0.008796745606 | BV36: 0.06389087628 | BW36: 1.002043106 | BX36: 2.173252109 | BY36: 0.006152653083 | BZ36: 0.06250330808 | CA36: -0.001801178938 | CB36: 0.06389087628 | CC36: 1.002043106 | CD36: 2.173252109 | CE36: 0.006152653083 | CF36: 0.06250330808 | CG36: 0.02329895398 | CH36: 0.06389087628 | CI36: 1.002043106 | CJ36: 2.173252109 | CK36: 0.006152653083 | CL36: 0.06250330808 | CM36: 0.02587474389 | CN36: 0.06389087628 | CO36: 1.002043106 | CP36: 2.173252109 | CQ36: 0.006152653083 | CR36: 0.06250330808 | CS36: 0.02458684893 | CT36: 0.06389087628 | CU36: 1.002043106 | CV36: 2.173252109 | CW36: 0.006152653083 | CX36: 0.06250330808 | CY36: 0.2507648817 | CZ36: 0.06389087628 | DA36: 1.002043106 | DB36: 2.173252109 | DC36: 0.006152653083 | DD36: 0.06250330808 | DE36: 0.2019494747 | DF36: 0.06389087628 | DG36: 1.002043106 | DH36: 2.173252109 | DI36: 0.006152653083 | DJ36: 0.06250330808 | DK36: 0.2163793834 | DL36: 0.06389087628 | DM36: 1.002043106 | DP36: CRD - North central | DQ36: PPI
B37: Harvesting | C37: Milo (extra charge for high yield) - $/bu | D37: 2.041329399 | E37: 0.006955849935 | F37: 0.07349286157 | H37: 0.05348469252 | I37: 1.00143133 | J37: 2.032223554 | K37: 0.007137175634 | L37: 0.07120589856 | M37: 0.01624193008 | N37: 0.08036431635 | O37: 1.003234431 | P37: 2.032223554 | Q37: 0.007137175634 | R37: 0.07120589856 | S37: 0.004333417922 | T37: 0.08036431635 | U37: 1.003234431 | V37: 2.032223554 | W37: 0.007137175634 | X37: 0.07120589856 | Y37: 0.006585688953 | Z37: 0.08036431635 | AA37: 1.003234431 | AB37: 2.032223554 | AC37: 0.007137175634 | AD37: 0.07120589856 | AE37: 0.00737845494 | AF37: 0.08036431635 | AG37: 1.003234431 | AH37: 2.032223554 | AI37: 0.007137175634 | AJ37: 0.07120589856 | AL37: 0.08036431635 | AM37: 1.003234431 | AN37: 2.032223554 | AO37: 0.007137175634 | AP37: 0.07120589856 | AQ37: -0.0009590679233 | AR37: 0.08036431635 | AS37: 1.003234431 | AT37: 2.032223554 | AU37: 0.007137175634 | AV37: 0.07120589856 | AW37: -0.03428424699 | AX37: 0.08036431635 | AY37: 1.003234431 | AZ37: 2.032223554 | BA37: 0.007137175634 | BB37: 0.07120589856 | BC37: -0.03702892861 | BD37: 0.08036431635 | BE37: 1.003234431 | BF37: 2.032223554 | BG37: 0.007137175634 | BH37: 0.07120589856 | BI37: -0.03787874132 | BJ37: 0.08036431635 | BK37: 1.003234431 | BL37: 2.032223554 | BM37: 0.007137175634 | BN37: 0.07120589856 | BO37: 0.010287674 | BP37: 0.08036431635 | BQ37: 1.003234431 | BR37: 2.032223554 | BS37: 0.007137175634 | BT37: 0.07120589856 | BU37: 0.005459553438 | BV37: 0.08036431635 | BW37: 1.003234431 | BX37: 2.032223554 | BY37: 0.007137175634 | BZ37: 0.07120589856 | CA37: 0.009053678984 | CB37: 0.08036431635 | CC37: 1.003234431 | CD37: 2.032223554 | CE37: 0.007137175634 | CF37: 0.07120589856 | CG37: 0.00737845494 | CH37: 0.08036431635 | CI37: 1.003234431 | CJ37: 2.032223554 | CK37: 0.007137175634 | CL37: 0.07120589856 | CM37: -0.0009590679233 | CN37: 0.08036431635 | CO37: 1.003234431 | CP37: 2.032223554 | CQ37: 0.007137175634 | CR37: 0.07120589856 | CS37: 0.003209693508 | CT37: 0.08036431635 | CU37: 1.003234431 | CV37: 2.032223554 | CW37: 0.007137175634 | CX37: 0.07120589856 | CY37: -0.0356565878 | CZ37: 0.08036431635 | DA37: 1.003234431 | DB37: 2.032223554 | DC37: 0.007137175634 | DD37: 0.07120589856 | DE37: -0.03745383497 | DF37: 0.08036431635 | DG37: 1.003234431 | DH37: 2.032223554 | DI37: 0.007137175634 | DJ37: 0.07120589856 | DK37: -0.03639730564 | DL37: 0.08036431635 | DM37: 1.003234431 | DP37: CRD - North central | DQ37: fuel
B38: Harvesting | C38: Corn (base) | D38: 2.587122638 | E38: 0.005275561745 | F38: 0.04400270862 | H38: 0.03462219782 | I38: 1.000599528 | J38: 2.511778816 | K38: 0.005521860559 | L38: 0.04807830331 | M38: -0.01143855165 | N38: 0.08327654788 | O38: 1.00347351 | P38: 2.511778816 | Q38: 0.005521860559 | R38: 0.04807830331 | S38: -0.01411801279 | T38: 0.08327654788 | U38: 1.00347351 | V38: 2.511778816 | W38: 0.005521860559 | X38: 0.04807830331 | Y38: -0.014259468 | Z38: 0.08327654788 | AA38: 1.00347351 | AB38: 2.511778816 | AC38: 0.005521860559 | AD38: 0.04807830331 | AE38: 0.04034258573 | AF38: 0.08327654788 | AG38: 1.00347351 | AH38: 2.511778816 | AI38: 0.005521860559 | AJ38: 0.04807830331 | AL38: 0.08327654788 | AM38: 1.00347351 | AN38: 2.511778816 | AO38: 0.005521860559 | AP38: 0.04807830331 | AQ38: 0.06196539688 | AR38: 0.08327654788 | AS38: 1.00347351 | AT38: 2.511778816 | AU38: 0.005521860559 | AV38: 0.04807830331 | AW38: 0.09906650856 | AX38: 0.08327654788 | AY38: 1.00347351 | AZ38: 2.511778816 | BA38: 0.005521860559 | BB38: 0.04807830331 | BC38: 0.0565309748 | BD38: 0.08327654788 | BE38: 1.00347351 | BF38: 2.511778816 | BG38: 0.005521860559 | BH38: 0.04807830331 | BI38: 0.01344476415 | BJ38: 0.08327654788 | BK38: 1.00347351 | BL38: 2.511778816 | BM38: 0.005521860559 | BN38: 0.04807830331 | BO38: -0.01277828222 | BP38: 0.08327654788 | BQ38: 1.00347351 | BR38: 2.511778816 | BS38: 0.005521860559 | BT38: 0.04807830331 | BU38: -0.01418874039 | BV38: 0.08327654788 | BW38: 1.00347351 | BX38: 2.511778816 | BY38: 0.005521860559 | BZ38: 0.04807830331 | CA38: -0.01327201081 | CB38: 0.08327654788 | CC38: 1.00347351 | CD38: 2.511778816 | CE38: 0.005521860559 | CF38: 0.04807830331 | CG38: 0.04034258573 | CH38: 0.08327654788 | CI38: 1.00347351 | CJ38: 2.511778816 | CK38: 0.005521860559 | CL38: 0.04807830331 | CM38: 0.06196539688 | CN38: 0.08327654788 | CO38: 1.00347351 | CP38: 2.511778816 | CQ38: 0.005521860559 | CR38: 0.04807830331 | CS38: 0.05115399131 | CT38: 0.08327654788 | CU38: 1.00347351 | CV38: 2.511778816 | CW38: 0.005521860559 | CX38: 0.04807830331 | CY38: 0.07779874168 | CZ38: 0.08327654788 | DA38: 1.00347351 | DB38: 2.511778816 | DC38: 0.005521860559 | DD38: 0.04807830331 | DE38: 0.03498786947 | DF38: 0.08327654788 | DG38: 1.00347351 | DH38: 2.511778816 | DI38: 0.005521860559 | DJ38: 0.04807830331 | DK38: 0.05634741583 | DL38: 0.08327654788 | DM38: 1.00347351 | DP38: CRD - North central | DQ38: Adjustment factor
B39: Harvesting | C39: Corn (extra charge for high yield) - $/bu | D39: 1.950592634 | E39: 0.009381087883 | F39: 0.02746484701 | H39: 0.08178716058 | I39: 1.003350169 | J39: 2.113294155 | K39: 0.007128793933 | L39: 0.03784510296 | M39: 0.06227110333 | N39: 0.156960273 | O39: 1.012394446 | P39: 2.113294155 | Q39: 0.007128793933 | R39: 0.03784510296 | S39: 0.06340268511 | T39: 0.156960273 | U39: 1.012394446 | V39: 2.113294155 | W39: 0.007128793933 | X39: 0.03784510296 | Y39: 0.04987886512 | Z39: 0.156960273 | AA39: 1.012394446 | AB39: 2.113294155 | AC39: 0.007128793933 | AD39: 0.03784510296 | AE39: 0.04263177076 | AF39: 0.156960273 | AG39: 1.012394446 | AH39: 2.113294155 | AI39: 0.007128793933 | AJ39: 0.03784510296 | AL39: 0.156960273 | AM39: 1.012394446 | AN39: 2.113294155 | AO39: 0.007128793933 | AP39: 0.03784510296 | AQ39: 0.05648256651 | AR39: 0.156960273 | AS39: 1.012394446 | AT39: 2.113294155 | AU39: 0.007128793933 | AV39: 0.03784510296 | AW39: -0.1374075862 | AX39: 0.156960273 | AY39: 1.012394446 | AZ39: 2.113294155 | BA39: 0.007128793933 | BB39: 0.03784510296 | BC39: -0.2895215373 | BD39: 0.156960273 | BE39: 1.012394446 | BF39: 2.113294155 | BG39: 0.007128793933 | BH39: 0.03784510296 | BI39: -0.1429035717 | BJ39: 0.156960273 | BK39: 1.012394446 | BL39: 2.113294155 | BM39: 0.007128793933 | BN39: 0.03784510296 | BO39: 0.06283689422 | BP39: 0.156960273 | BQ39: 1.012394446 | BR39: 2.113294155 | BS39: 0.007128793933 | BT39: 0.03784510296 | BU39: 0.05664077511 | BV39: 0.156960273 | BW39: 1.012394446 | BX39: 2.113294155 | BY39: 0.007128793933 | BZ39: 0.03784510296 | CA39: 0.05851755119 | CB39: 0.156960273 | CC39: 1.012394446 | CD39: 2.113294155 | CE39: 0.007128793933 | CF39: 0.03784510296 | CG39: 0.04263177076 | CH39: 0.156960273 | CI39: 1.012394446 | CJ39: 2.113294155 | CK39: 0.007128793933 | CL39: 0.03784510296 | CM39: 0.05648256651 | CN39: 0.156960273 | CO39: 1.012394446 | CP39: 2.113294155 | CQ39: 0.007128793933 | CR39: 0.03784510296 | CS39: 0.04955716864 | CT39: 0.156960273 | CU39: 1.012394446 | CV39: 2.113294155 | CW39: 0.007128793933 | CX39: 0.03784510296 | CY39: -0.2134645618 | CZ39: 0.156960273 | DA39: 1.012394446 | DB39: 2.113294155 | DC39: 0.007128793933 | DD39: 0.03784510296 | DE39: -0.2162125545 | DF39: 0.156960273 | DG39: 1.012394446 | DH39: 2.113294155 | DI39: 0.007128793933 | DJ39: 0.03784510296 | DK39: -0.1899442317 | DL39: 0.156960273 | DM39: 1.012394446 | DP39: CRD - North central | DQ39: RMSE
B40: Harvesting | C40: Soybeans (base) | D40: 2.605142569 | E40: 0.004617146793 | F40: 0.05397893142 | H40: 0.02737936233 | I40: 1.000374885 | J40: 2.561837016 | K40: 0.00451841191 | L40: 0.05996600782 | M40: 0.04662224683 | N40: 0.05994867513 | O40: 1.001798537 | P40: 2.561837016 | Q40: 0.00451841191 | R40: 0.05996600782 | S40: 0.05275281128 | T40: 0.05994867513 | U40: 1.001798537 | V40: 2.561837016 | W40: 0.00451841191 | X40: 0.05996600782 | Y40: 0.1084513332 | Z40: 0.05994867513 | AA40: 1.001798537 | AB40: 2.561837016 | AC40: 0.00451841191 | AD40: 0.05996600782 | AE40: 0.0624395582 | AF40: 0.05994867513 | AG40: 1.001798537 | AH40: 2.561837016 | AI40: 0.00451841191 | AJ40: 0.05996600782 | AL40: 0.05994867513 | AM40: 1.001798537 | AN40: 2.561837016 | AO40: 0.00451841191 | AP40: 0.05996600782 | AQ40: 0.05709418499 | AR40: 0.05994867513 | AS40: 1.001798537 | AT40: 2.561837016 | AU40: 0.00451841191 | AV40: 0.05996600782 | AW40: 0.07942862923 | AX40: 0.05994867513 | AY40: 1.001798537 | AZ40: 2.561837016 | BA40: 0.00451841191 | BB40: 0.05996600782 | BC40: 0.01011569183 | BD40: 0.05994867513 | BE40: 1.001798537 | BF40: 2.561837016 | BG40: 0.00451841191 | BH40: 0.05996600782 | BI40: -0.07597843688 | BJ40: 0.05994867513 | BK40: 1.001798537 | BL40: 2.561837016 | BM40: 0.00451841191 | BN40: 0.05996600782 | BO40: 0.04968752906 | BP40: 0.05994867513 | BQ40: 1.001798537 | BR40: 2.561837016 | BS40: 0.00451841191 | BT40: 0.05996600782 | BU40: 0.08060207224 | BV40: 0.05994867513 | BW40: 1.001798537 | BX40: 2.561837016 | BY40: 0.00451841191 | BZ40: 0.05996600782 | CA40: 0.06927546377 | CB40: 0.05994867513 | CC40: 1.001798537 | CD40: 2.561837016 | CE40: 0.00451841191 | CF40: 0.05996600782 | CG40: 0.0624395582 | CH40: 0.05994867513 | CI40: 1.001798537 | CJ40: 2.561837016 | CK40: 0.00451841191 | CL40: 0.05996600782 | CM40: 0.05709418499 | CN40: 0.05994867513 | CO40: 1.001798537 | CP40: 2.561837016 | CQ40: 0.00451841191 | CR40: 0.05996600782 | CS40: 0.0597668716 | CT40: 0.05994867513 | CU40: 1.001798537 | CV40: 2.561837016 | CW40: 0.00451841191 | CX40: 0.05996600782 | CY40: 0.04477216053 | CZ40: 0.05994867513 | DA40: 1.001798537 | DB40: 2.561837016 | DC40: 0.00451841191 | DD40: 0.05996600782 | DE40: -0.03293137252 | DF40: 0.05994867513 | DG40: 1.001798537 | DH40: 2.561837016 | DI40: 0.00451841191 | DJ40: 0.05996600782 | DK40: 0.004521961395 | DL40: 0.05994867513 | DM40: 1.001798537 | DP40: CRD - North central | DQ40: LN adjustment
B41: Harvesting | C41: Soybeans (extra charge for high yield) - $/bu | D41: 2.136584444 | E41: 0.005331929271 | F41: 0.08993638033 | H41: 0.05722063343 | I41: 1.001638441 | J41: 2.088354809 | K41: 0.005791733547 | L41: 0.08735382736 | M41: 0.008118108002 | N41: 0.1073348282 | O41: 1.005777006 | P41: 2.088354809 | Q41: 0.005791733547 | R41: 0.08735382736 | S41: 0.01398935564 | T41: 0.1073348282 | U41: 1.005777006 | V41: 2.088354809 | W41: 0.005791733547 | X41: 0.08735382736 | Y41: 0.01912350929 | Z41: 0.1073348282 | AA41: 1.005777006 | AB41: 2.088354809 | AC41: 0.005791733547 | AD41: 0.08735382736 | AE41: 0.05136849319 | AF41: 0.1073348282 | AG41: 1.005777006 | AH41: 2.088354809 | AI41: 0.005791733547 | AJ41: 0.08735382736 | AL41: 0.1073348282 | AM41: 1.005777006 | AN41: 2.088354809 | AO41: 0.005791733547 | AP41: 0.08735382736 | AQ41: 0.02584652598 | AR41: 0.1073348282 | AS41: 1.005777006 | AT41: 2.088354809 | AU41: 0.005791733547 | AV41: 0.08735382736 | AW41: 0.04643851301 | AX41: 0.1073348282 | AY41: 1.005777006 | AZ41: 2.088354809 | BA41: 0.005791733547 | BB41: 0.08735382736 | BC41: 0.00309469989 | BD41: 0.1073348282 | BE41: 1.005777006 | BF41: 2.088354809 | BG41: 0.005791733547 | BH41: 0.08735382736 | BI41: 0.05991003263 | BJ41: 0.1073348282 | BK41: 1.005777006 | BL41: 2.088354809 | BM41: 0.005791733547 | BN41: 0.08735382736 | BO41: 0.01105373182 | BP41: 0.1073348282 | BQ41: 1.005777006 | BR41: 2.088354809 | BS41: 0.005791733547 | BT41: 0.08735382736 | BU41: 0.01655643247 | BV41: 0.1073348282 | BW41: 1.005777006 | BX41: 2.088354809 | BY41: 0.005791733547 | BZ41: 0.08735382736 | CA41: 0.01374365765 | CB41: 0.1073348282 | CC41: 1.005777006 | CD41: 2.088354809 | CE41: 0.005791733547 | CF41: 0.08735382736 | CG41: 0.05136849319 | CH41: 0.1073348282 | CI41: 1.005777006 | CJ41: 2.088354809 | CK41: 0.005791733547 | CL41: 0.08735382736 | CM41: 0.02584652598 | CN41: 0.1073348282 | CO41: 1.005777006 | CP41: 2.088354809 | CQ41: 0.005791733547 | CR41: 0.08735382736 | CS41: 0.03860750958 | CT41: 0.1073348282 | CU41: 1.005777006 | CV41: 2.088354809 | CW41: 0.005791733547 | CX41: 0.08735382736 | CY41: 0.02476660645 | CZ41: 0.1073348282 | DA41: 1.005777006 | DB41: 2.088354809 | DC41: 0.005791733547 | DD41: 0.08735382736 | DE41: 0.03150236626 | DF41: 0.1073348282 | DG41: 1.005777006 | DH41: 2.088354809 | DI41: 0.005791733547 | DJ41: 0.08735382736 | DK41: 0.03648108184 | DL41: 0.1073348282 | DM41: 1.005777006 | DP41: CRD - Central | DQ41: Intercept
B42: Harvesting | C42: Sunflower (base) | D42: 2.351934019 | E42: 0.008238252 | F42: 0.02409649274 | H42: 0.04922791099 | I42: 1.001212428 | J42: 2.393804322 | K42: 0.008367501782 | L42: -0.004903718289 | M42: -0.01505972418 | N42: 0.08553488869 | O42: 1.003664808 | P42: 2.393804322 | Q42: 0.008367501782 | R42: -0.004903718289 | S42: -0.01992756304 | T42: 0.08553488869 | U42: 1.003664808 | V42: 2.393804322 | W42: 0.008367501782 | X42: -0.004903718289 | Y42: -0.02222175672 | Z42: 0.08553488869 | AA42: 1.003664808 | AB42: 2.393804322 | AC42: 0.008367501782 | AD42: -0.004903718289 | AE42: 0.005102392873 | AF42: 0.08553488869 | AG42: 1.003664808 | AH42: 2.393804322 | AI42: 0.008367501782 | AJ42: -0.004903718289 | AL42: 0.08553488869 | AM42: 1.003664808 | AN42: 2.393804322 | AO42: 0.008367501782 | AP42: -0.004903718289 | AQ42: 0.02174729723 | AR42: 0.08553488869 | AS42: 1.003664808 | AT42: 2.393804322 | AU42: 0.008367501782 | AV42: -0.004903718289 | AW42: 0.01377973707 | AX42: 0.08553488869 | AY42: 1.003664808 | AZ42: 2.393804322 | BA42: 0.008367501782 | BB42: -0.004903718289 | BC42: 0.01751269356 | BD42: 0.08553488869 | BE42: 1.003664808 | BF42: 2.393804322 | BG42: 0.008367501782 | BH42: -0.004903718289 | BI42: -0.001657806721 | BJ42: 0.08553488869 | BK42: 1.003664808 | BL42: 2.393804322 | BM42: 0.008367501782 | BN42: -0.004903718289 | BO42: -0.01749364361 | BP42: 0.08553488869 | BQ42: 1.003664808 | BR42: 2.393804322 | BS42: 0.008367501782 | BT42: -0.004903718289 | BU42: -0.02107465988 | BV42: 0.08553488869 | BW42: 1.003664808 | BX42: 2.393804322 | BY42: 0.008367501782 | BZ42: -0.004903718289 | CA42: -0.01906968131 | CB42: 0.08553488869 | CC42: 1.003664808 | CD42: 2.393804322 | CE42: 0.008367501782 | CF42: -0.004903718289 | CG42: 0.005102392873 | CH42: 0.08553488869 | CI42: 1.003664808 | CJ42: 2.393804322 | CK42: 0.008367501782 | CL42: -0.004903718289 | CM42: 0.02174729723 | CN42: 0.08553488869 | CO42: 1.003664808 | CP42: 2.393804322 | CQ42: 0.008367501782 | CR42: -0.004903718289 | CS42: 0.01342484505 | CT42: 0.08553488869 | CU42: 1.003664808 | CV42: 2.393804322 | CW42: 0.008367501782 | CX42: -0.004903718289 | CY42: 0.01564621531 | CZ42: 0.08553488869 | DA42: 1.003664808 | DB42: 2.393804322 | DC42: 0.008367501782 | DD42: -0.004903718289 | DE42: 0.007927443418 | DF42: 0.08553488869 | DG42: 1.003664808 | DH42: 2.393804322 | DI42: 0.008367501782 | DJ42: -0.004903718289 | DK42: 0.009878207967 | DL42: 0.08553488869 | DM42: 1.003664808 | DP42: CRD - Central | DQ42: PPI
B43: Harvesting | C43: Sunflower (extra charge for high yield) - $/bu | D43: 1.843904446 | E43: 0.00950536246 | F43: 0.1301591689 | H43: 0.1180379608 | I43: 1.006990802 | J43: 1.821387323 | K43: 0.009954025361 | L43: 0.1249186604 | M43: -0.003388993188 | N43: 0.1118717927 | O43: 1.006277269 | P43: 1.821387323 | Q43: 0.009954025361 | R43: 0.1249186604 | S43: -0.001320640853 | T43: 0.1118717927 | U43: 1.006277269 | V43: 1.821387323 | W43: 0.009954025361 | X43: 0.1249186604 | Y43: -0.001320640853 | Z43: 0.1118717927 | AA43: 1.006277269 | AB43: 1.821387323 | AC43: 0.009954025361 | AD43: 0.1249186604 | AE43: 6.071765766e-14 | AF43: 0.1118717927 | AG43: 1.006277269 | AH43: 1.821387323 | AI43: 0.009954025361 | AJ43: 0.1249186604 | AL43: 0.1118717927 | AM43: 1.006277269 | AN43: 1.821387323 | AO43: 0.009954025361 | AP43: 0.1249186604 | AQ43: 6.071765766e-14 | AR43: 0.1118717927 | AS43: 1.006277269 | AT43: 1.821387323 | AU43: 0.009954025361 | AV43: 0.1249186604 | AW43: 6.071765766e-14 | AX43: 0.1118717927 | AY43: 1.006277269 | AZ43: 1.821387323 | BA43: 0.009954025361 | BB43: 0.1249186604 | BC43: 6.071765766e-14 | BD43: 0.1118717927 | BE43: 1.006277269 | BF43: 1.821387323 | BG43: 0.009954025361 | BH43: 0.1249186604 | BI43: 6.071765766e-14 | BJ43: 0.1118717927 | BK43: 1.006277269 | BL43: 1.821387323 | BM43: 0.009954025361 | BN43: 0.1249186604 | BO43: -0.002354817021 | BP43: 0.1118717927 | BQ43: 1.006277269 | BR43: 1.821387323 | BS43: 0.009954025361 | BT43: 0.1249186604 | BU43: -0.001320640853 | BV43: 0.1118717927 | BW43: 1.006277269 | BX43: 1.821387323 | BY43: 0.009954025361 | BZ43: 0.1249186604 | CA43: -0.002010091632 | CB43: 0.1118717927 | CC43: 1.006277269 | CD43: 1.821387323 | CE43: 0.009954025361 | CF43: 0.1249186604 | CG43: 6.071765766e-14 | CH43: 0.1118717927 | CI43: 1.006277269 | CJ43: 1.821387323 | CK43: 0.009954025361 | CL43: 0.1249186604 | CM43: 6.071765766e-14 | CN43: 0.1118717927 | CO43: 1.006277269 | CP43: 1.821387323 | CQ43: 0.009954025361 | CR43: 0.1249186604 | CS43: 6.071765766e-14 | CT43: 0.1118717927 | CU43: 1.006277269 | CV43: 1.821387323 | CW43: 0.009954025361 | CX43: 0.1249186604 | CY43: 6.071765766e-14 | CZ43: 0.1118717927 | DA43: 1.006277269 | DB43: 1.821387323 | DC43: 0.009954025361 | DD43: 0.1249186604 | DE43: 6.071765766e-14 | DF43: 0.1118717927 | DG43: 1.006277269 | DH43: 1.821387323 | DI43: 0.009954025361 | DJ43: 0.1249186604 | DK43: 6.071765766e-14 | DL43: 0.1118717927 | DM43: 1.006277269 | DP43: CRD - Central | DQ43: fuel
B44: Harvesting | C44: Silage (base) | D44: 1.301996577 | E44: 0.004203565793 | F44: 0.09618146075 | H44: 0.05106968566 | I44: 1.001304907 | J44: 1.288178558 | K44: 0.00518928208 | L44: 0.05977113028 | M44: -0.02128812565 | N44: 0.08893594615 | O44: 1.003962632 | P44: 1.288178558 | Q44: 0.00518928208 | R44: 0.05977113028 | S44: -0.002014183725 | T44: 0.08893594615 | U44: 1.003962632 | V44: 1.288178558 | W44: 0.00518928208 | X44: 0.05977113028 | Y44: -0.001067560384 | Z44: 0.08893594615 | AA44: 1.003962632 | AB44: 1.288178558 | AC44: 0.00518928208 | AD44: 0.05977113028 | AE44: -0.0322443577 | AF44: 0.08893594615 | AG44: 1.003962632 | AH44: 1.288178558 | AI44: 0.00518928208 | AJ44: 0.05977113028 | AL44: 0.08893594615 | AM44: 1.003962632 | AN44: 1.288178558 | AO44: 0.00518928208 | AP44: 0.05977113028 | AQ44: 0.04902313938 | AR44: 0.08893594615 | AS44: 1.003962632 | AT44: 1.288178558 | AU44: 0.00518928208 | AV44: 0.05977113028 | AW44: 0.02438787195 | AX44: 0.08893594615 | AY44: 1.003962632 | AZ44: 1.288178558 | BA44: 0.00518928208 | BB44: 0.05977113028 | BC44: -0.02622383852 | BD44: 0.08893594615 | BE44: 1.003962632 | BF44: 1.288178558 | BG44: 0.00518928208 | BH44: 0.05977113028 | BI44: 0.01498773963 | BJ44: 0.08893594615 | BK44: 1.003962632 | BL44: 1.288178558 | BM44: 0.00518928208 | BN44: 0.05977113028 | BO44: -0.01165115469 | BP44: 0.08893594615 | BQ44: 1.003962632 | BR44: 1.288178558 | BS44: 0.00518928208 | BT44: 0.05977113028 | BU44: -0.001540872054 | BV44: 0.08893594615 | BW44: 1.003962632 | BX44: 1.288178558 | BY44: 0.00518928208 | BZ44: 0.05977113028 | CA44: -0.008123289918 | CB44: 0.08893594615 | CC44: 1.003962632 | CD44: 1.288178558 | CE44: 0.00518928208 | CF44: 0.05977113028 | CG44: -0.0322443577 | CH44: 0.08893594615 | CI44: 1.003962632 | CJ44: 1.288178558 | CK44: 0.00518928208 | CL44: 0.05977113028 | CM44: 0.04902313938 | CN44: 0.08893594615 | CO44: 1.003962632 | CP44: 1.288178558 | CQ44: 0.00518928208 | CR44: 0.05977113028 | CS44: 0.008389390839 | CT44: 0.08893594615 | CU44: 1.003962632 | CV44: 1.288178558 | CW44: 0.00518928208 | CX44: 0.05977113028 | CY44: -0.0009179832891 | CZ44: 0.08893594615 | DA44: 1.003962632 | DB44: 1.288178558 | DC44: 0.00518928208 | DD44: 0.05977113028 | DE44: -0.005618049447 | DF44: 0.08893594615 | DG44: 1.003962632 | DH44: 1.288178558 | DI44: 0.00518928208 | DJ44: 0.05977113028 | DK44: 0.004383924351 | DL44: 0.08893594615 | DM44: 1.003962632 | DP44: CRD - Central | DQ44: Adjustment factor
B45: Hauling | C45: Wheat - hauling - $/bu | D45: 2.099181427 | E45: 0.006197768235 | F45: 0.05714210217 | H45: 0.04549428606 | I45: 1.001035401 | J45: 2.100279256 | K45: 0.006243590819 | L45: 0.05528889314 | M45: 0.01403844942 | N45: 0.07003352804 | O45: 1.002455357 | P45: 2.100279256 | Q45: 0.006243590819 | R45: 0.05528889314 | S45: 0.01719382102 | T45: 0.07003352804 | U45: 1.002455357 | V45: 2.100279256 | W45: 0.006243590819 | X45: 0.05528889314 | Y45: 0.003050892128 | Z45: 0.07003352804 | AA45: 1.002455357 | AB45: 2.100279256 | AC45: 0.006243590819 | AD45: 0.05528889314 | AE45: 0.004781020468 | AF45: 0.07003352804 | AG45: 1.002455357 | AH45: 2.100279256 | AI45: 0.006243590819 | AJ45: 0.05528889314 | AL45: 0.07003352804 | AM45: 1.002455357 | AN45: 2.100279256 | AO45: 0.006243590819 | AP45: 0.05528889314 | AQ45: 0.004017326329 | AR45: 0.07003352804 | AS45: 1.002455357 | AT45: 2.100279256 | AU45: 0.006243590819 | AV45: 0.05528889314 | AW45: 0.01418477216 | AX45: 0.07003352804 | AY45: 1.002455357 | AZ45: 2.100279256 | BA45: 0.006243590819 | BB45: 0.05528889314 | BC45: -0.1037542689 | BD45: 0.07003352804 | BE45: 1.002455357 | BF45: 2.100279256 | BG45: 0.006243590819 | BH45: 0.05528889314 | BI45: -0.02172121996 | BJ45: 0.07003352804 | BK45: 1.002455357 | BL45: 2.100279256 | BM45: 0.006243590819 | BN45: 0.05528889314 | BO45: 0.01561613522 | BP45: 0.07003352804 | BQ45: 1.002455357 | BR45: 2.100279256 | BS45: 0.006243590819 | BT45: 0.05528889314 | BU45: 0.01012235658 | BV45: 0.07003352804 | BW45: 1.002455357 | BX45: 2.100279256 | BY45: 0.006243590819 | BZ45: 0.05528889314 | CA45: 0.01142772086 | CB45: 0.07003352804 | CC45: 1.002455357 | CD45: 2.100279256 | CE45: 0.006243590819 | CF45: 0.05528889314 | CG45: 0.004781020468 | CH45: 0.07003352804 | CI45: 1.002455357 | CJ45: 2.100279256 | CK45: 0.006243590819 | CL45: 0.05528889314 | CM45: 0.004017326329 | CN45: 0.07003352804 | CO45: 1.002455357 | CP45: 2.100279256 | CQ45: 0.006243590819 | CR45: 0.05528889314 | CS45: 0.004399173398 | CT45: 0.07003352804 | CU45: 1.002455357 | CV45: 2.100279256 | CW45: 0.006243590819 | CX45: 0.05528889314 | CY45: -0.04478474835 | CZ45: 0.07003352804 | DA45: 1.002455357 | DB45: 2.100279256 | DC45: 0.006243590819 | DD45: 0.05528889314 | DE45: -0.06273774442 | DF45: 0.07003352804 | DG45: 1.002455357 | DH45: 2.100279256 | DI45: 0.006243590819 | DJ45: 0.05528889314 | DK45: -0.03709690556 | DL45: 0.07003352804 | DM45: 1.002455357 | DP45: CRD - Central | DQ45: LN adjustment
B46: Hauling | C46: Milo - hauling - $/bu | D46: 2.056821655 | E46: 0.006315064152 | F46: 0.0655173718 | H46: 0.04668047436 | I46: 1.001090127 | J46: 2.062494884 | K46: 0.006343756633 | L46: 0.06320288152 | M46: 0.01713814271 | N46: 0.06862922544 | O46: 1.00235776 | P46: 2.062494884 | Q46: 0.006343756633 | R46: 0.06320288152 | S46: 0.02892672591 | T46: 0.06862922544 | U46: 1.00235776 | V46: 2.062494884 | W46: 0.006343756633 | X46: 0.06320288152 | Y46: -0.01171031801 | Z46: 0.06862922544 | AA46: 1.00235776 | AB46: 2.062494884 | AC46: 0.006343756633 | AD46: 0.06320288152 | AE46: 0.003486839605 | AF46: 0.06862922544 | AG46: 1.00235776 | AH46: 2.062494884 | AI46: 0.006343756633 | AJ46: 0.06320288152 | AL46: 0.06862922544 | AM46: 1.00235776 | AN46: 2.062494884 | AO46: 0.006343756633 | AP46: 0.06320288152 | AQ46: 0.01935754558 | AR46: 0.06862922544 | AS46: 1.00235776 | AT46: 2.062494884 | AU46: 0.006343756633 | AV46: 0.06320288152 | AW46: -0.00530887692 | AX46: 0.06862922544 | AY46: 1.00235776 | AZ46: 2.062494884 | BA46: 0.006343756633 | BB46: 0.06320288152 | BC46: -0.09542961473 | BD46: 0.06862922544 | BE46: 1.00235776 | BF46: 2.062494884 | BG46: 0.006343756633 | BH46: 0.06320288152 | BI46: -0.03493697059 | BJ46: 0.06862922544 | BK46: 1.00235776 | BL46: 2.062494884 | BM46: 0.006343756633 | BN46: 0.06320288152 | BO46: 0.02303243431 | BP46: 0.06862922544 | BQ46: 1.00235776 | BR46: 2.062494884 | BS46: 0.006343756633 | BT46: 0.06320288152 | BU46: 0.008608203954 | BV46: 0.06862922544 | BW46: 1.00235776 | BX46: 2.062494884 | BY46: 0.006343756633 | BZ46: 0.06320288152 | CA46: 0.01145151687 | CB46: 0.06862922544 | CC46: 1.00235776 | CD46: 2.062494884 | CE46: 0.006343756633 | CF46: 0.06320288152 | CG46: 0.003486839605 | CH46: 0.06862922544 | CI46: 1.00235776 | CJ46: 2.062494884 | CK46: 0.006343756633 | CL46: 0.06320288152 | CM46: 0.01935754558 | CN46: 0.06862922544 | CO46: 1.00235776 | CP46: 2.062494884 | CQ46: 0.006343756633 | CR46: 0.06320288152 | CS46: 0.01142219259 | CT46: 0.06862922544 | CU46: 1.00235776 | CV46: 2.062494884 | CW46: 0.006343756633 | CX46: 0.06320288152 | CY46: -0.05036924582 | CZ46: 0.06862922544 | DA46: 1.00235776 | DB46: 2.062494884 | DC46: 0.006343756633 | DD46: 0.06320288152 | DE46: -0.06518329266 | DF46: 0.06862922544 | DG46: 1.00235776 | DH46: 2.062494884 | DI46: 0.006343756633 | DJ46: 0.06320288152 | DK46: -0.04522515408 | DL46: 0.06862922544 | DM46: 1.00235776 | DP46: CRD - South central | DQ46: Intercept
B47: Hauling | C47: Corn - hauling - $/bu | D47: 2.034599107 | E47: 0.004856406188 | F47: 0.08834515334 | H47: 0.05109974918 | I47: 1.001306445 | J47: 2.040988165 | K47: 0.004485103436 | L47: 0.1025578997 | M47: -0.02138311345 | N47: 0.09078235674 | O47: 1.00412922 | P47: 2.040988165 | Q47: 0.004485103436 | R47: 0.1025578997 | S47: 0.03812827468 | T47: 0.09078235674 | U47: 1.00412922 | V47: 2.040988165 | W47: 0.004485103436 | X47: 0.1025578997 | Y47: -0.05456531681 | Z47: 0.09078235674 | AA47: 1.00412922 | AB47: 2.040988165 | AC47: 0.004485103436 | AD47: 0.1025578997 | AE47: 0.01550566566 | AF47: 0.09078235674 | AG47: 1.00412922 | AH47: 2.040988165 | AI47: 0.004485103436 | AJ47: 0.1025578997 | AL47: 0.09078235674 | AM47: 1.00412922 | AN47: 2.040988165 | AO47: 0.004485103436 | AP47: 0.1025578997 | AQ47: -0.08538747622 | AR47: 0.09078235674 | AS47: 1.00412922 | AT47: 2.040988165 | AU47: 0.004485103436 | AV47: 0.1025578997 | AW47: 0.03236689547 | AX47: 0.09078235674 | AY47: 1.00412922 | AZ47: 2.040988165 | BA47: 0.004485103436 | BB47: 0.1025578997 | BC47: -0.04320293376 | BD47: 0.09078235674 | BE47: 1.00412922 | BF47: 2.040988165 | BG47: 0.004485103436 | BH47: 0.1025578997 | BI47: -0.03150484733 | BJ47: 0.09078235674 | BK47: 1.00412922 | BL47: 2.040988165 | BM47: 0.004485103436 | BN47: 0.1025578997 | BO47: 0.008372580614 | BP47: 0.09078235674 | BQ47: 1.00412922 | BR47: 2.040988165 | BS47: 0.004485103436 | BT47: 0.1025578997 | BU47: -0.008218521066 | BV47: 0.09078235674 | BW47: 1.00412922 | BX47: 2.040988165 | BY47: 0.004485103436 | BZ47: 0.1025578997 | CA47: -0.01260671853 | CB47: 0.09078235674 | CC47: 1.00412922 | CD47: 2.040988165 | CE47: 0.004485103436 | CF47: 0.1025578997 | CG47: 0.01550566566 | CH47: 0.09078235674 | CI47: 1.00412922 | CJ47: 2.040988165 | CK47: 0.004485103436 | CL47: 0.1025578997 | CM47: -0.08538747622 | CN47: 0.09078235674 | CO47: 1.00412922 | CP47: 2.040988165 | CQ47: 0.004485103436 | CR47: 0.1025578997 | CS47: -0.03494090528 | CT47: 0.09078235674 | CU47: 1.00412922 | CV47: 2.040988165 | CW47: 0.004485103436 | CX47: 0.1025578997 | CY47: -0.005418019141 | CZ47: 0.09078235674 | DA47: 1.00412922 | DB47: 2.040988165 | DC47: 0.004485103436 | DD47: 0.1025578997 | DE47: -0.03735389054 | DF47: 0.09078235674 | DG47: 1.00412922 | DH47: 2.040988165 | DI47: 0.004485103436 | DJ47: 0.1025578997 | DK47: -0.01411362854 | DL47: 0.09078235674 | DM47: 1.00412922 | DP47: CRD - South central | DQ47: PPI
B48: Hauling | C48: Soybeans - hauling - $/bu | D48: 2.09181572 | E48: 0.005234004028 | F48: 0.06781411893 | H48: 0.04765801108 | I48: 1.001136288 | J48: 2.088974267 | K48: 0.005497472339 | L48: 0.06557776073 | M48: -0.01591746738 | N48: 0.07255681993 | O48: 1.002635713 | P48: 2.088974267 | Q48: 0.005497472339 | R48: 0.06557776073 | S48: -0.003915494316 | T48: 0.07255681993 | U48: 1.002635713 | V48: 2.088974267 | W48: 0.005497472339 | X48: 0.06557776073 | Y48: -0.02768037745 | Z48: 0.07255681993 | AA48: 1.002635713 | AB48: 2.088974267 | AC48: 0.005497472339 | AD48: 0.06557776073 | AE48: -0.0002240170672 | AF48: 0.07255681993 | AG48: 1.002635713 | AH48: 2.088974267 | AI48: 0.005497472339 | AJ48: 0.06557776073 | AL48: 0.07255681993 | AM48: 1.002635713 | AN48: 2.088974267 | AO48: 0.005497472339 | AP48: 0.06557776073 | AQ48: 0.01303246483 | AR48: 0.07255681993 | AS48: 1.002635713 | AT48: 2.088974267 | AU48: 0.005497472339 | AV48: 0.06557776073 | AW48: -0.000138779993 | AX48: 0.07255681993 | AY48: 1.002635713 | AZ48: 2.088974267 | BA48: 0.005497472339 | BB48: 0.06557776073 | BC48: -0.07031697555 | BD48: 0.07255681993 | BE48: 1.002635713 | BF48: 2.088974267 | BG48: 0.005497472339 | BH48: 0.06557776073 | BI48: -0.0009399905373 | BJ48: 0.07255681993 | BK48: 1.002635713 | BL48: 2.088974267 | BM48: 0.005497472339 | BN48: 0.06557776073 | BO48: -0.00991648085 | BP48: 0.07255681993 | BQ48: 1.002635713 | BR48: 2.088974267 | BS48: 0.005497472339 | BT48: 0.06557776073 | BU48: -0.01579793588 | BV48: 0.07255681993 | BW48: 1.002635713 | BX48: 2.088974267 | BY48: 0.005497472339 | BZ48: 0.06557776073 | CA48: -0.01583777972 | CB48: 0.07255681993 | CC48: 1.002635713 | CD48: 2.088974267 | CE48: 0.005497472339 | CF48: 0.06557776073 | CG48: -0.0002240170672 | CH48: 0.07255681993 | CI48: 1.002635713 | CJ48: 2.088974267 | CK48: 0.005497472339 | CL48: 0.06557776073 | CM48: 0.01303246483 | CN48: 0.07255681993 | CO48: 1.002635713 | CP48: 2.088974267 | CQ48: 0.005497472339 | CR48: 0.06557776073 | CS48: 0.006404223881 | CT48: 0.07255681993 | CU48: 1.002635713 | CV48: 2.088974267 | CW48: 0.005497472339 | CX48: 0.06557776073 | CY48: -0.03522787777 | CZ48: 0.07255681993 | DA48: 1.002635713 | DB48: 2.088974267 | DC48: 0.005497472339 | DD48: 0.06557776073 | DE48: -0.03562848305 | DF48: 0.07255681993 | DG48: 1.002635713 | DH48: 2.088974267 | DI48: 0.005497472339 | DJ48: 0.06557776073 | DK48: -0.02379858203 | DL48: 0.07255681993 | DM48: 1.002635713 | DP48: CRD - South central | DQ48: fuel
B49: Hauling | C49: Sunflower - hauling - $/bu | D49: 2.585007749 | E49: 0.004426053722 | F49: 0.1094328064 | H49: 0.09430127883 | I49: 1.004456265 | J49: 1.815621948 | K49: 0.01389551634 | L49: 0.06023734583 | M49: 0.07975190366 | N49: 0.1946639785 | O49: 1.019127666 | P49: 1.815621948 | Q49: 0.01389551634 | R49: 0.06023734583 | S49: 0.07975190366 | T49: 0.1946639785 | U49: 1.019127666 | V49: 1.815621948 | W49: 0.01389551634 | X49: 0.06023734583 | Y49: 0.08753504945 | Z49: 0.1946639785 | AA49: 1.019127666 | AB49: 1.815621948 | AC49: 0.01389551634 | AD49: 0.06023734583 | AE49: -2.28453595e-15 | AF49: 0.1946639785 | AG49: 1.019127666 | AH49: 1.815621948 | AI49: 0.01389551634 | AJ49: 0.06023734583 | AL49: 0.1946639785 | AM49: 1.019127666 | AN49: 1.815621948 | AO49: 0.01389551634 | AP49: 0.06023734583 | AQ49: -2.28453595e-15 | AR49: 0.1946639785 | AS49: 1.019127666 | AT49: 1.815621948 | AU49: 0.01389551634 | AV49: 0.06023734583 | AW49: -0.2817974697 | AX49: 0.1946639785 | AY49: 1.019127666 | AZ49: 1.815621948 | BA49: 0.01389551634 | BB49: 0.06023734583 | BC49: -0.2817974697 | BD49: 0.1946639785 | BE49: 1.019127666 | BF49: 1.815621948 | BG49: 0.01389551634 | BH49: 0.06023734583 | BI49: -0.2817974697 | BJ49: 0.1946639785 | BK49: 1.019127666 | BL49: 1.815621948 | BM49: 0.01389551634 | BN49: 0.06023734583 | BO49: 0.07975190366 | BP49: 0.1946639785 | BQ49: 1.019127666 | BR49: 1.815621948 | BS49: 0.01389551634 | BT49: 0.06023734583 | BU49: 0.08364347656 | BV49: 0.1946639785 | BW49: 1.019127666 | BX49: 1.815621948 | BY49: 0.01389551634 | BZ49: 0.06023734583 | CA49: 0.08234628559 | CB49: 0.1946639785 | CC49: 1.019127666 | CD49: 1.815621948 | CE49: 0.01389551634 | CF49: 0.06023734583 | CG49: -2.28453595e-15 | CH49: 0.1946639785 | CI49: 1.019127666 | CJ49: 1.815621948 | CK49: 0.01389551634 | CL49: 0.06023734583 | CM49: -2.28453595e-15 | CN49: 0.1946639785 | CO49: 1.019127666 | CP49: 1.815621948 | CQ49: 0.01389551634 | CR49: 0.06023734583 | CS49: -2.28453595e-15 | CT49: 0.1946639785 | CU49: 1.019127666 | CV49: 1.815621948 | CW49: 0.01389551634 | CX49: 0.06023734583 | CY49: -0.2817974697 | CZ49: 0.1946639785 | DA49: 1.019127666 | DB49: 1.815621948 | DC49: 0.01389551634 | DD49: 0.06023734583 | DE49: -0.2817974697 | DF49: 0.1946639785 | DG49: 1.019127666 | DH49: 1.815621948 | DI49: 0.01389551634 | DJ49: 0.06023734583 | DK49: -0.2817974697 | DL49: 0.1946639785 | DM49: 1.019127666 | DP49: CRD - South central | DQ49: Adjustment factor
B50: Hay | C50: Rotary mow, $/acre | D50: 1.393208459 | E50: 0.008686133 | F50: 0.084685468 | H50: 0.039452982 | I50: 1.000778572 | J50: 1.377598576 | K50: 0.008732158 | L50: 0.051904178 | M50: 0.038306787 | N50: 0.105398045 | O50: 1.005569828 | P50: 1.377598576 | Q50: 0.008732158 | R50: 0.051904178 | S50: 0.026280008 | T50: 0.105398045 | U50: 1.005569828 | V50: 1.377598576 | W50: 0.008732158 | X50: 0.051904178 | Y50: 0.07207525 | Z50: 0.105398045 | AA50: 1.005569828 | AB50: 1.377598576 | AC50: 0.008732158 | AD50: 0.051904178 | AE50: 0.012093244 | AF50: 0.105398045 | AG50: 1.005569828 | AH50: 1.377598576 | AI50: 0.008732158 | AJ50: 0.051904178 | AL50: 0.105398045 | AM50: 1.005569828 | AN50: 1.377598576 | AO50: 0.008732158 | AP50: 0.051904178 | AQ50: 0.002667077 | AR50: 0.105398045 | AS50: 1.005569828 | AT50: 1.377598576 | AU50: 0.008732158 | AV50: 0.051904178 | AW50: 0.047431894 | AX50: 0.105398045 | AY50: 1.005569828 | AZ50: 1.377598576 | BA50: 0.008732158 | BB50: 0.051904178 | BC50: 0.153380285 | BD50: 0.105398045 | BE50: 1.005569828 | BF50: 1.377598576 | BG50: 0.008732158 | BH50: 0.051904178 | BI50: 0.025101619 | BJ50: 0.105398045 | BK50: 1.005569828 | BL50: 1.377598576 | BM50: 0.008732158 | BN50: 0.051904178 | BO50: 0.0322933975 | BP50: 0.105398045 | BQ50: 1.005569828 | BR50: 1.377598576 | BS50: 0.008732158 | BT50: 0.051904178 | BU50: 0.049177629 | BV50: 0.105398045 | BW50: 1.005569828 | BX50: 1.377598576 | BY50: 0.008732158 | BZ50: 0.051904178 | CA50: 0.045554015 | CB50: 0.105398045 | CC50: 1.005569828 | CD50: 1.377598576 | CE50: 0.008732158 | CF50: 0.051904178 | CG50: 0.012093244 | CH50: 0.105398045 | CI50: 1.005569828 | CJ50: 1.377598576 | CK50: 0.008732158 | CL50: 0.051904178 | CM50: 0.002667077 | CN50: 0.105398045 | CO50: 1.005569828 | CP50: 1.377598576 | CQ50: 0.008732158 | CR50: 0.051904178 | CS50: 0.0073801605 | CT50: 0.105398045 | CU50: 1.005569828 | CV50: 1.377598576 | CW50: 0.008732158 | CX50: 0.051904178 | CY50: 0.1004060895 | CZ50: 0.105398045 | DA50: 1.005569828 | DB50: 1.377598576 | DC50: 0.008732158 | DD50: 0.051904178 | DE50: 0.089240952 | DF50: 0.105398045 | DG50: 1.005569828 | DH50: 1.377598576 | DI50: 0.008732158 | DJ50: 0.051904178 | DK50: 0.07530459933 | DL50: 0.105398045 | DM50: 1.005569828 | DP50: CRD - South central | DQ50: LN adjustment
B51: Hay | C51: Rotary mow, $/hour | D51: 2.590806754 | E51: 0.019026731 | F51: -0.016064663 | H51: 0.098764395 | I51: 1.004889116 | J51: 2.705696982 | K51: 0.018319753 | L51: -0.070163457 | M51: 0.184978324 | N51: 0.169832045 | O51: 1.014525953 | P51: 2.705696982 | Q51: 0.018319753 | R51: -0.070163457 | S51: 0.184187545 | T51: 0.169832045 | U51: 1.014525953 | V51: 2.705696982 | W51: 0.018319753 | X51: -0.070163457 | Y51: 0.175546971 | Z51: 0.169832045 | AA51: 1.014525953 | AB51: 2.705696982 | AC51: 0.018319753 | AD51: -0.070163457 | AE51: 0.053073434 | AF51: 0.169832045 | AG51: 1.014525953 | AH51: 2.705696982 | AI51: 0.018319753 | AJ51: -0.070163457 | AL51: 0.169832045 | AM51: 1.014525953 | AN51: 2.705696982 | AO51: 0.018319753 | AP51: -0.070163457 | AQ51: 0.067630329 | AR51: 0.169832045 | AS51: 1.014525953 | AT51: 2.705696982 | AU51: 0.018319753 | AV51: -0.070163457 | AW51: 0.04479864 | AX51: 0.169832045 | AY51: 1.014525953 | AZ51: 2.705696982 | BA51: 0.018319753 | BB51: -0.070163457 | BC51: 0.053686185 | BD51: 0.169832045 | BE51: 1.014525953 | BF51: 2.705696982 | BG51: 0.018319753 | BH51: -0.070163457 | BI51: -0.027075048 | BJ51: 0.169832045 | BK51: 1.014525953 | BL51: 2.705696982 | BM51: 0.018319753 | BN51: -0.070163457 | BO51: 0.1845829345 | BP51: 0.169832045 | BQ51: 1.014525953 | BR51: 2.705696982 | BS51: 0.018319753 | BT51: -0.070163457 | BU51: 0.179867258 | BV51: 0.169832045 | BW51: 1.014525953 | BX51: 2.705696982 | BY51: 0.018319753 | BZ51: -0.070163457 | CA51: 0.1815709467 | CB51: 0.169832045 | CC51: 1.014525953 | CD51: 2.705696982 | CE51: 0.018319753 | CF51: -0.070163457 | CG51: 0.053073434 | CH51: 0.169832045 | CI51: 1.014525953 | CJ51: 2.705696982 | CK51: 0.018319753 | CL51: -0.070163457 | CM51: 0.067630329 | CN51: 0.169832045 | CO51: 1.014525953 | CP51: 2.705696982 | CQ51: 0.018319753 | CR51: -0.070163457 | CS51: 0.0603518815 | CT51: 0.169832045 | CU51: 1.014525953 | CV51: 2.705696982 | CW51: 0.018319753 | CX51: -0.070163457 | CY51: 0.0492424125 | CZ51: 0.169832045 | DA51: 1.014525953 | DB51: 2.705696982 | DC51: 0.018319753 | DD51: -0.070163457 | DE51: 0.0133055685 | DF51: 0.169832045 | DG51: 1.014525953 | DH51: 2.705696982 | DI51: 0.018319753 | DJ51: -0.070163457 | DK51: 0.023803259 | DL51: 0.169832045 | DM51: 1.014525953
B52: Hay | C52: Hay-mow/swath, $/acre | D52: 1.551490871 | E52: 0.007909342 | F52: 0.037882428 | H52: 0.021381347 | I52: 1.000228607 | J52: 1.42515445 | K52: 0.009638427 | L52: 0.03044061 | M52: 0.082855601 | N52: 0.095750087 | O52: 1.004594562 | P52: 1.42515445 | Q52: 0.009638427 | R52: 0.03044061 | S52: 0.080960913 | T52: 0.095750087 | U52: 1.004594562 | V52: 1.42515445 | W52: 0.009638427 | X52: 0.03044061 | Y52: 0.046087066 | Z52: 0.095750087 | AA52: 1.004594562 | AB52: 1.42515445 | AC52: 0.009638427 | AD52: 0.03044061 | AE52: -0.026659563 | AF52: 0.095750087 | AG52: 1.004594562 | AH52: 1.42515445 | AI52: 0.009638427 | AJ52: 0.03044061 | AL52: 0.095750087 | AM52: 1.004594562 | AN52: 1.42515445 | AO52: 0.009638427 | AP52: 0.03044061 | AQ52: 0.024162876 | AR52: 0.095750087 | AS52: 1.004594562 | AT52: 1.42515445 | AU52: 0.009638427 | AV52: 0.03044061 | AW52: 0.02850119 | AX52: 0.095750087 | AY52: 1.004594562 | AZ52: 1.42515445 | BA52: 0.009638427 | BB52: 0.03044061 | BC52: -0.054979718 | BD52: 0.095750087 | BE52: 1.004594562 | BF52: 1.42515445 | BG52: 0.009638427 | BH52: 0.03044061 | BI52: -0.030798349 | BJ52: 0.095750087 | BK52: 1.004594562 | BL52: 1.42515445 | BM52: 0.009638427 | BN52: 0.03044061 | BO52: 0.081908257 | BP52: 0.095750087 | BQ52: 1.004594562 | BR52: 1.42515445 | BS52: 0.009638427 | BT52: 0.03044061 | BU52: 0.0635239895 | BV52: 0.095750087 | BW52: 1.004594562 | BX52: 1.42515445 | BY52: 0.009638427 | BZ52: 0.03044061 | CA52: 0.06996786 | CB52: 0.095750087 | CC52: 1.004594562 | CD52: 1.42515445 | CE52: 0.009638427 | CF52: 0.03044061 | CG52: -0.026659563 | CH52: 0.095750087 | CI52: 1.004594562 | CJ52: 1.42515445 | CK52: 0.009638427 | CL52: 0.03044061 | CM52: 0.024162876 | CN52: 0.095750087 | CO52: 1.004594562 | CP52: 1.42515445 | CQ52: 0.009638427 | CR52: 0.03044061 | CS52: -0.0012483435 | CT52: 0.095750087 | CU52: 1.004594562 | CV52: 1.42515445 | CW52: 0.009638427 | CX52: 0.03044061 | CY52: -0.013239264 | CZ52: 0.095750087 | DA52: 1.004594562 | DB52: 1.42515445 | DC52: 0.009638427 | DD52: 0.03044061 | DE52: -0.0428890335 | DF52: 0.095750087 | DG52: 1.004594562 | DH52: 1.42515445 | DI52: 0.009638427 | DJ52: 0.03044061 | DK52: -0.01909229233 | DL52: 0.095750087 | DM52: 1.004594562
B53: Hay | C53: Forage-mow/swath, $/acre | D53: 1.467339834 | E53: 0.011147861 | F53: 0.026881309 | H53: 0.037107766 | I53: 1.00068873 | J53: 1.914839549 | K53: 0.004163257 | L53: 0.064279761 | M53: 0.088203439 | N53: 0.061601553 | O53: 1.001899177 | P53: 1.914839549 | Q53: 0.004163257 | R53: 0.064279761 | S53: 0.042904106 | T53: 0.061601553 | U53: 1.001899177 | V53: 1.914839549 | W53: 0.004163257 | X53: 0.064279761 | Y53: 0.049513962 | Z53: 0.061601553 | AA53: 1.001899177 | AB53: 1.914839549 | AC53: 0.004163257 | AD53: 0.064279761 | AE53: 0.011534511 | AF53: 0.061601553 | AG53: 1.001899177 | AH53: 1.914839549 | AI53: 0.004163257 | AJ53: 0.064279761 | AL53: 0.061601553 | AM53: 1.001899177 | AN53: 1.914839549 | AO53: 0.004163257 | AP53: 0.064279761 | AQ53: 0.006282879 | AR53: 0.061601553 | AS53: 1.001899177 | AT53: 1.914839549 | AU53: 0.004163257 | AV53: 0.064279761 | AW53: -0.098201169 | AX53: 0.061601553 | AY53: 1.001899177 | AZ53: 1.914839549 | BA53: 0.004163257 | BB53: 0.064279761 | BC53: -0.112303376 | BD53: 0.061601553 | BE53: 1.001899177 | BF53: 1.914839549 | BG53: 0.004163257 | BH53: 0.064279761 | BI53: -0.117082851 | BJ53: 0.061601553 | BK53: 1.001899177 | BL53: 1.914839549 | BM53: 0.004163257 | BN53: 0.064279761 | BO53: 0.0655537725 | BP53: 0.061601553 | BQ53: 1.001899177 | BR53: 1.914839549 | BS53: 0.004163257 | BT53: 0.064279761 | BU53: 0.046209034 | BV53: 0.061601553 | BW53: 1.001899177 | BX53: 1.914839549 | BY53: 0.004163257 | BZ53: 0.064279761 | CA53: 0.060207169 | CB53: 0.061601553 | CC53: 1.001899177 | CD53: 1.914839549 | CE53: 0.004163257 | CF53: 0.064279761 | CG53: 0.011534511 | CH53: 0.061601553 | CI53: 1.001899177 | CJ53: 1.914839549 | CK53: 0.004163257 | CL53: 0.064279761 | CM53: 0.006282879 | CN53: 0.061601553 | CO53: 1.001899177 | CP53: 1.914839549 | CQ53: 0.004163257 | CR53: 0.064279761 | CS53: 0.008908695 | CT53: 0.061601553 | CU53: 1.001899177 | CV53: 1.914839549 | CW53: 0.004163257 | CX53: 0.064279761 | CY53: -0.1052522725 | CZ53: 0.061601553 | DA53: 1.001899177 | DB53: 1.914839549 | DC53: 0.004163257 | DD53: 0.064279761 | DE53: -0.1146931135 | DF53: 0.061601553 | DG53: 1.001899177 | DH53: 1.914839549 | DI53: 0.004163257 | DJ53: 0.064279761 | DK53: -0.1091957987 | DL53: 0.061601553 | DM53: 1.001899177
B54: Hay | C54: Swathing and condition, $/acre | D54: 1.33734253 | E54: 0.011677456 | F54: 0.014713478 | H54: 0.034263253 | I54: 1.000587158 | J54: 1.423223486 | K54: 0.010200347 | L54: 0.017693155 | M54: 0.092648848 | N54: 0.12136573 | O54: 1.007392007 | P54: 1.423223486 | Q54: 0.010200347 | R54: 0.017693155 | S54: 0.091293076 | T54: 0.12136573 | U54: 1.007392007 | V54: 1.423223486 | W54: 0.010200347 | X54: 0.017693155 | Y54: 0.04997008 | Z54: 0.12136573 | AA54: 1.007392007 | AB54: 1.423223486 | AC54: 0.010200347 | AD54: 0.017693155 | AE54: -0.023048304 | AF54: 0.12136573 | AG54: 1.007392007 | AH54: 1.423223486 | AI54: 0.010200347 | AJ54: 0.017693155 | AL54: 0.12136573 | AM54: 1.007392007 | AN54: 1.423223486 | AO54: 0.010200347 | AP54: 0.017693155 | AQ54: 0.027740726 | AR54: 0.12136573 | AS54: 1.007392007 | AT54: 1.423223486 | AU54: 0.010200347 | AV54: 0.017693155 | AW54: 0.045302793 | AX54: 0.12136573 | AY54: 1.007392007 | AZ54: 1.423223486 | BA54: 0.010200347 | BB54: 0.017693155 | BC54: -0.025479015 | BD54: 0.12136573 | BE54: 1.007392007 | BF54: 1.423223486 | BG54: 0.010200347 | BH54: 0.017693155 | BI54: 0.036853937 | BJ54: 0.12136573 | BK54: 1.007392007 | BL54: 1.423223486 | BM54: 0.010200347 | BN54: 0.017693155 | BO54: 0.091970962 | BP54: 0.12136573 | BQ54: 1.007392007 | BR54: 1.423223486 | BS54: 0.010200347 | BT54: 0.017693155 | BU54: 0.070631578 | BV54: 0.12136573 | BW54: 1.007392007 | BX54: 1.423223486 | BY54: 0.010200347 | BZ54: 0.017693155 | CA54: 0.077970668 | CB54: 0.12136573 | CC54: 1.007392007 | CD54: 1.423223486 | CE54: 0.010200347 | CF54: 0.017693155 | CG54: -0.023048304 | CH54: 0.12136573 | CI54: 1.007392007 | CJ54: 1.423223486 | CK54: 0.010200347 | CL54: 0.017693155 | CM54: 0.027740726 | CN54: 0.12136573 | CO54: 1.007392007 | CP54: 1.423223486 | CQ54: 0.010200347 | CR54: 0.017693155 | CS54: 0.002346211 | CT54: 0.12136573 | CU54: 1.007392007 | CV54: 1.423223486 | CW54: 0.010200347 | CX54: 0.017693155 | CY54: 0.009911889 | CZ54: 0.12136573 | DA54: 1.007392007 | DB54: 1.423223486 | DC54: 0.010200347 | DD54: 0.017693155 | DE54: 0.005687461 | DF54: 0.12136573 | DG54: 1.007392007 | DH54: 1.423223486 | DI54: 0.010200347 | DJ54: 0.017693155 | DK54: 0.01889257167 | DL54: 0.12136573 | DM54: 1.007392007
B55: Hay | C55: Sideraking hay, $/acre | D55: 0.645648337 | E55: 0.004822016 | F55: 0.076865789 | H55: 0.041371211 | I55: 1.000856155 | J55: 0.562805934 | K55: 0.005779157 | L55: 0.060672759 | M55: 0.210155108 | N55: 0.140433458 | O55: 1.009909556 | P55: 0.562805934 | Q55: 0.005779157 | R55: 0.060672759 | S55: 0.077088487 | T55: 0.140433458 | U55: 1.009909556 | V55: 0.562805934 | W55: 0.005779157 | X55: 0.060672759 | Y55: 0.090057587 | Z55: 0.140433458 | AA55: 1.009909556 | AB55: 0.562805934 | AC55: 0.005779157 | AD55: 0.060672759 | AE55: -0.040197283 | AF55: 0.140433458 | AG55: 1.009909556 | AH55: 0.562805934 | AI55: 0.005779157 | AJ55: 0.060672759 | AL55: 0.140433458 | AM55: 1.009909556 | AN55: 0.562805934 | AO55: 0.005779157 | AP55: 0.060672759 | AQ55: -0.002394356 | AR55: 0.140433458 | AS55: 1.009909556 | AT55: 0.562805934 | AU55: 0.005779157 | AV55: 0.060672759 | AW55: 0.058696905 | AX55: 0.140433458 | AY55: 1.009909556 | AZ55: 0.562805934 | BA55: 0.005779157 | BB55: 0.060672759 | BC55: 0.043730733 | BD55: 0.140433458 | BE55: 1.009909556 | BF55: 0.562805934 | BG55: 0.005779157 | BH55: 0.060672759 | BI55: 0.082838989 | BJ55: 0.140433458 | BK55: 1.009909556 | BL55: 0.562805934 | BM55: 0.005779157 | BN55: 0.060672759 | BO55: 0.1436217975 | BP55: 0.140433458 | BQ55: 1.009909556 | BR55: 0.562805934 | BS55: 0.005779157 | BT55: 0.060672759 | BU55: 0.083573037 | BV55: 0.140433458 | BW55: 1.009909556 | BX55: 0.562805934 | BY55: 0.005779157 | BZ55: 0.060672759 | CA55: 0.1257670607 | CB55: 0.140433458 | CC55: 1.009909556 | CD55: 0.562805934 | CE55: 0.005779157 | CF55: 0.060672759 | CG55: -0.040197283 | CH55: 0.140433458 | CI55: 1.009909556 | CJ55: 0.562805934 | CK55: 0.005779157 | CL55: 0.060672759 | CM55: -0.002394356 | CN55: 0.140433458 | CO55: 1.009909556 | CP55: 0.562805934 | CQ55: 0.005779157 | CR55: 0.060672759 | CS55: -0.0212958195 | CT55: 0.140433458 | CU55: 1.009909556 | CV55: 0.562805934 | CW55: 0.005779157 | CX55: 0.060672759 | CY55: 0.051213819 | CZ55: 0.140433458 | DA55: 1.009909556 | DB55: 0.562805934 | DC55: 0.005779157 | DD55: 0.060672759 | DE55: 0.063284861 | DF55: 0.140433458 | DG55: 1.009909556 | DH55: 0.562805934 | DI55: 0.005779157 | DJ55: 0.060672759 | DK55: 0.06175554233 | DL55: 0.140433458 | DM55: 1.009909556
B56: Hay | C56: Small square with twine, $/bale | D56: -1.665072318 | E56: 0.017067702 | F56: -0.02476673 | H56: 0.048217286 | I56: 1.001163129 | J56: -1.485452242 | K56: 0.014286934 | L56: 0.010616398 | M56: -0.07237148 | N56: 0.120505436 | O56: 1.007287203 | P56: -1.485452242 | Q56: 0.014286934 | R56: 0.010616398 | S56: -0.024928801 | T56: 0.120505436 | U56: 1.007287203 | V56: -1.485452242 | W56: 0.014286934 | X56: 0.010616398 | Y56: 0.017879351 | Z56: 0.120505436 | AA56: 1.007287203 | AB56: -1.485452242 | AC56: 0.014286934 | AD56: 0.010616398 | AE56: -0.168402893 | AF56: 0.120505436 | AG56: 1.007287203 | AH56: -1.485452242 | AI56: 0.014286934 | AJ56: 0.010616398 | AL56: 0.120505436 | AM56: 1.007287203 | AN56: -1.485452242 | AO56: 0.014286934 | AP56: 0.010616398 | AQ56: -0.173825724 | AR56: 0.120505436 | AS56: 1.007287203 | AT56: -1.485452242 | AU56: 0.014286934 | AV56: 0.010616398 | AW56: -0.140909688 | AX56: 0.120505436 | AY56: 1.007287203 | AZ56: -1.485452242 | BA56: 0.014286934 | BB56: 0.010616398 | BC56: -0.029657856 | BD56: 0.120505436 | BE56: 1.007287203 | BF56: -1.485452242 | BG56: 0.014286934 | BH56: 0.010616398 | BI56: -0.055619237 | BJ56: 0.120505436 | BK56: 1.007287203 | BL56: -1.485452242 | BM56: 0.014286934 | BN56: 0.010616398 | BO56: -0.0486501405 | BP56: 0.120505436 | BQ56: 1.007287203 | BR56: -1.485452242 | BS56: 0.014286934 | BT56: 0.010616398 | BU56: -0.003524725 | BV56: 0.120505436 | BW56: 1.007287203 | BX56: -1.485452242 | BY56: 0.014286934 | BZ56: 0.010616398 | CA56: -0.02647364333 | CB56: 0.120505436 | CC56: 1.007287203 | CD56: -1.485452242 | CE56: 0.014286934 | CF56: 0.010616398 | CG56: -0.168402893 | CH56: 0.120505436 | CI56: 1.007287203 | CJ56: -1.485452242 | CK56: 0.014286934 | CL56: 0.010616398 | CM56: -0.173825724 | CN56: 0.120505436 | CO56: 1.007287203 | CP56: -1.485452242 | CQ56: 0.014286934 | CR56: 0.010616398 | CS56: -0.1711143085 | CT56: 0.120505436 | CU56: 1.007287203 | CV56: -1.485452242 | CW56: 0.014286934 | CX56: 0.010616398 | CY56: -0.085283772 | CZ56: 0.120505436 | DA56: 1.007287203 | DB56: -1.485452242 | DC56: 0.014286934 | DD56: 0.010616398 | DE56: -0.0426385465 | DF56: 0.120505436 | DG56: 1.007287203 | DH56: -1.485452242 | DI56: 0.014286934 | DJ56: 0.010616398 | DK56: -0.07539559367 | DL56: 0.120505436 | DM56: 1.007287203
B57: Hay | C57: Small square with wire, $/bale | D57: -1.480428869 | E57: 0.013224405 | F57: 0.046672459 | H57: 0.040226028 | I57: 1.000809394 | J57: -1.406795835 | K57: 0.012962182 | L57: 0.00700526 | M57: 0.010296711 | N57: 0.135148814 | O57: 1.00917443 | P57: -1.406795835 | Q57: 0.012962182 | R57: 0.00700526 | S57: 0.080606015 | T57: 0.135148814 | U57: 1.00917443 | V57: -1.406795835 | W57: 0.012962182 | X57: 0.00700526 | Y57: 0.070908657 | Z57: 0.135148814 | AA57: 1.00917443 | AB57: -1.406795835 | AC57: 0.012962182 | AD57: 0.00700526 | AE57: 0.152377494 | AF57: 0.135148814 | AG57: 1.00917443 | AH57: -1.406795835 | AI57: 0.012962182 | AJ57: 0.00700526 | AL57: 0.135148814 | AM57: 1.00917443 | AN57: -1.406795835 | AO57: 0.012962182 | AP57: 0.00700526 | AQ57: -0.055462268 | AR57: 0.135148814 | AS57: 1.00917443 | AT57: -1.406795835 | AU57: 0.012962182 | AV57: 0.00700526 | AW57: -0.041768637 | AX57: 0.135148814 | AY57: 1.00917443 | AZ57: -1.406795835 | BA57: 0.012962182 | BB57: 0.00700526 | BC57: -0.016454405 | BD57: 0.135148814 | BE57: 1.00917443 | BF57: -1.406795835 | BG57: 0.012962182 | BH57: 0.00700526 | BI57: -0.031995642 | BJ57: 0.135148814 | BK57: 1.00917443 | BL57: -1.406795835 | BM57: 0.012962182 | BN57: 0.00700526 | BO57: 0.045451363 | BP57: 0.135148814 | BQ57: 1.00917443 | BR57: -1.406795835 | BS57: 0.012962182 | BT57: 0.00700526 | BU57: 0.075757336 | BV57: 0.135148814 | BW57: 1.00917443 | BX57: -1.406795835 | BY57: 0.012962182 | BZ57: 0.00700526 | CA57: 0.05393712767 | CB57: 0.135148814 | CC57: 1.00917443 | CD57: -1.406795835 | CE57: 0.012962182 | CF57: 0.00700526 | CG57: 0.152377494 | CH57: 0.135148814 | CI57: 1.00917443 | CJ57: -1.406795835 | CK57: 0.012962182 | CL57: 0.00700526 | CM57: -0.055462268 | CN57: 0.135148814 | CO57: 1.00917443 | CP57: -1.406795835 | CQ57: 0.012962182 | CR57: 0.00700526 | CS57: 0.048457613 | CT57: 0.135148814 | CU57: 1.00917443 | CV57: -1.406795835 | CW57: 0.012962182 | CX57: 0.00700526 | CY57: -0.029111521 | CZ57: 0.135148814 | DA57: 1.00917443 | DB57: -1.406795835 | DC57: 0.012962182 | DD57: 0.00700526 | DE57: -0.0242250235 | DF57: 0.135148814 | DG57: 1.00917443 | DH57: -1.406795835 | DI57: 0.012962182 | DJ57: 0.00700526 | DK57: -0.03007289467 | DL57: 0.135148814 | DM57: 1.00917443
B58: Hay | C58: Round (< 1500 lbs) w/o net, $/bale | D58: 1.400556243 | E58: 0.00911605 | F58: 0.013935444 | H58: 0.02362166 | I58: 1.00027903 | J58: 1.386941674 | K58: 0.008860092 | L58: 0.019915173 | M58: -0.065436853 | N58: 0.04248915 | O58: 1.000903071 | P58: 1.386941674 | Q58: 0.008860092 | R58: 0.019915173 | S58: -0.032441085 | T58: 0.04248915 | U58: 1.000903071 | V58: 1.386941674 | W58: 0.008860092 | X58: 0.019915173 | Y58: 0.192462226 | Z58: 0.04248915 | AA58: 1.000903071 | AB58: 1.386941674 | AC58: 0.008860092 | AD58: 0.019915173 | AE58: -0.0556922 | AF58: 0.04248915 | AG58: 1.000903071 | AH58: 1.386941674 | AI58: 0.008860092 | AJ58: 0.019915173 | AL58: 0.04248915 | AM58: 1.000903071 | AN58: 1.386941674 | AO58: 0.008860092 | AP58: 0.019915173 | AQ58: 0.026637385 | AR58: 0.04248915 | AS58: 1.000903071 | AT58: 1.386941674 | AU58: 0.008860092 | AV58: 0.019915173 | AW58: -0.008773165 | AX58: 0.04248915 | AY58: 1.000903071 | AZ58: 1.386941674 | BA58: 0.008860092 | BB58: 0.019915173 | BC58: 0.027552818 | BD58: 0.04248915 | BE58: 1.000903071 | BF58: 1.386941674 | BG58: 0.008860092 | BH58: 0.019915173 | BI58: 0.077523047 | BJ58: 0.04248915 | BK58: 1.000903071 | BL58: 1.386941674 | BM58: 0.008860092 | BN58: 0.019915173 | BO58: -0.048938969 | BP58: 0.04248915 | BQ58: 1.000903071 | BR58: 1.386941674 | BS58: 0.008860092 | BT58: 0.019915173 | BU58: 0.0800105705 | BV58: 0.04248915 | BW58: 1.000903071 | BX58: 1.386941674 | BY58: 0.008860092 | BZ58: 0.019915173 | CA58: 0.031528096 | CB58: 0.04248915 | CC58: 1.000903071 | CD58: 1.386941674 | CE58: 0.008860092 | CF58: 0.019915173 | CG58: -0.0556922 | CH58: 0.04248915 | CI58: 1.000903071 | CJ58: 1.386941674 | CK58: 0.008860092 | CL58: 0.019915173 | CM58: 0.026637385 | CN58: 0.04248915 | CO58: 1.000903071 | CP58: 1.386941674 | CQ58: 0.008860092 | CR58: 0.019915173 | CS58: -0.0145274075 | CT58: 0.04248915 | CU58: 1.000903071 | CV58: 1.386941674 | CW58: 0.008860092 | CX58: 0.019915173 | CY58: 0.0093898265 | CZ58: 0.04248915 | DA58: 1.000903071 | DB58: 1.386941674 | DC58: 0.008860092 | DD58: 0.019915173 | DE58: 0.0525379325 | DF58: 0.04248915 | DG58: 1.000903071 | DH58: 1.386941674 | DI58: 0.008860092 | DJ58: 0.019915173 | DK58: 0.0321009 | DL58: 0.04248915 | DM58: 1.000903071
B59: Hay | C59: Round (< 1500 lbs) w/ net, $/bale | D59: 1.561042839 | E59: 0.007361412 | F59: 0.032564118 | H59: 0.01693766 | I59: 1.000143452 | J59: 1.655598938 | K59: 0.004926482 | L59: 0.060507654 | M59: -0.058202295 | N59: 0.064471965 | O59: 1.002080478 | P59: 1.655598938 | Q59: 0.004926482 | R59: 0.060507654 | S59: -0.017988289 | T59: 0.064471965 | U59: 1.002080478 | V59: 1.655598938 | W59: 0.004926482 | X59: 0.060507654 | Y59: 0.035877897 | Z59: 0.064471965 | AA59: 1.002080478 | AB59: 1.655598938 | AC59: 0.004926482 | AD59: 0.060507654 | AE59: -0.015559028 | AF59: 0.064471965 | AG59: 1.002080478 | AH59: 1.655598938 | AI59: 0.004926482 | AJ59: 0.060507654 | AL59: 0.064471965 | AM59: 1.002080478 | AN59: 1.655598938 | AO59: 0.004926482 | AP59: 0.060507654 | AQ59: 0.022364582 | AR59: 0.064471965 | AS59: 1.002080478 | AT59: 1.655598938 | AU59: 0.004926482 | AV59: 0.060507654 | AW59: 0.021744686 | AX59: 0.064471965 | AY59: 1.002080478 | AZ59: 1.655598938 | BA59: 0.004926482 | BB59: 0.060507654 | BC59: 0.096082828 | BD59: 0.064471965 | BE59: 1.002080478 | BF59: 1.655598938 | BG59: 0.004926482 | BH59: 0.060507654 | BI59: 0.090711781 | BJ59: 0.064471965 | BK59: 1.002080478 | BL59: 1.655598938 | BM59: 0.004926482 | BN59: 0.060507654 | BO59: -0.038095292 | BP59: 0.064471965 | BQ59: 1.002080478 | BR59: 1.655598938 | BS59: 0.004926482 | BT59: 0.060507654 | BU59: 0.008944804 | BV59: 0.064471965 | BW59: 1.002080478 | BX59: 1.655598938 | BY59: 0.004926482 | BZ59: 0.060507654 | CA59: -0.01343756233 | CB59: 0.064471965 | CC59: 1.002080478 | CD59: 1.655598938 | CE59: 0.004926482 | CF59: 0.060507654 | CG59: -0.015559028 | CH59: 0.064471965 | CI59: 1.002080478 | CJ59: 1.655598938 | CK59: 0.004926482 | CL59: 0.060507654 | CM59: 0.022364582 | CN59: 0.064471965 | CO59: 1.002080478 | CP59: 1.655598938 | CQ59: 0.004926482 | CR59: 0.060507654 | CS59: 0.003402777 | CT59: 0.064471965 | CU59: 1.002080478 | CV59: 1.655598938 | CW59: 0.004926482 | CX59: 0.060507654 | CY59: 0.058913757 | CZ59: 0.064471965 | DA59: 1.002080478 | DB59: 1.655598938 | DC59: 0.004926482 | DD59: 0.060507654 | DE59: 0.0933973045 | DF59: 0.064471965 | DG59: 1.002080478 | DH59: 1.655598938 | DI59: 0.004926482 | DJ59: 0.060507654 | DK59: 0.06951309833 | DL59: 0.064471965 | DM59: 1.002080478
B60: Hay | C60: Round (> 1500 lbs) w/o net, $/bale | D60: 1.599487243 | E60: 0.005601387 | F60: 0.063429028 | H60: 0.036831841 | I60: 1.000678522 | J60: 1.515760867 | K60: 0.006007779 | L60: 0.064479097 | M60: -0.028101438 | N60: 0.075310977 | O60: 1.002839897 | P60: 1.515760867 | Q60: 0.006007779 | R60: 0.064479097 | S60: -0.015630155 | T60: 0.075310977 | U60: 1.002839897 | V60: 1.515760867 | W60: 0.006007779 | X60: 0.064479097 | Y60: 0.217535524 | Z60: 0.075310977 | AA60: 1.002839897 | AB60: 1.515760867 | AC60: 0.006007779 | AD60: 0.064479097 | AE60: 0.0144859 | AF60: 0.075310977 | AG60: 1.002839897 | AH60: 1.515760867 | AI60: 0.006007779 | AJ60: 0.064479097 | AL60: 0.075310977 | AM60: 1.002839897 | AN60: 1.515760867 | AO60: 0.006007779 | AP60: 0.064479097 | AQ60: 0.058257825 | AR60: 0.075310977 | AS60: 1.002839897 | AT60: 1.515760867 | AU60: 0.006007779 | AV60: 0.064479097 | AW60: 0.037004084 | AX60: 0.075310977 | AY60: 1.002839897 | AZ60: 1.515760867 | BA60: 0.006007779 | BB60: 0.064479097 | BC60: 0.118285245 | BD60: 0.075310977 | BE60: 1.002839897 | BF60: 1.515760867 | BG60: 0.006007779 | BH60: 0.064479097 | BI60: 0.161148885 | BJ60: 0.075310977 | BK60: 1.002839897 | BL60: 1.515760867 | BM60: 0.006007779 | BN60: 0.064479097 | BO60: -0.0218657965 | BP60: 0.075310977 | BQ60: 1.002839897 | BR60: 1.515760867 | BS60: 0.006007779 | BT60: 0.064479097 | BU60: 0.1009526845 | BV60: 0.075310977 | BW60: 1.002839897 | BX60: 1.515760867 | BY60: 0.006007779 | BZ60: 0.064479097 | CA60: 0.05793464367 | CB60: 0.075310977 | CC60: 1.002839897 | CD60: 1.515760867 | CE60: 0.006007779 | CF60: 0.064479097 | CG60: 0.0144859 | CH60: 0.075310977 | CI60: 1.002839897 | CJ60: 1.515760867 | CK60: 0.006007779 | CL60: 0.064479097 | CM60: 0.058257825 | CN60: 0.075310977 | CO60: 1.002839897 | CP60: 1.515760867 | CQ60: 0.006007779 | CR60: 0.064479097 | CS60: 0.0363718625 | CT60: 0.075310977 | CU60: 1.002839897 | CV60: 1.515760867 | CW60: 0.006007779 | CX60: 0.064479097 | CY60: 0.0776446645 | CZ60: 0.075310977 | DA60: 1.002839897 | DB60: 1.515760867 | DC60: 0.006007779 | DD60: 0.064479097 | DE60: 0.139717065 | DF60: 0.075310977 | DG60: 1.002839897 | DH60: 1.515760867 | DI60: 0.006007779 | DJ60: 0.064479097 | DK60: 0.1054794047 | DL60: 0.075310977 | DM60: 1.002839897
B61: Hay | C61: Round (> 1500 lbs) w/ net, $/bale | D61: 1.703490527 | E61: 0.006285578 | F61: 0.026636839 | H61: 0.020626165 | I61: 1.000212742 | J61: 1.843617528 | K61: 0.002697307 | L61: 0.062026825 | M61: 0.004358076 | N61: 0.070154253 | O61: 1.00246384 | P61: 1.843617528 | Q61: 0.002697307 | R61: 0.062026825 | S61: 0.055897137 | T61: 0.070154253 | U61: 1.00246384 | V61: 1.843617528 | W61: 0.002697307 | X61: 0.062026825 | Y61: 0.090888516 | Z61: 0.070154253 | AA61: 1.00246384 | AB61: 1.843617528 | AC61: 0.002697307 | AD61: 0.062026825 | AE61: -0.012818102 | AF61: 0.070154253 | AG61: 1.00246384 | AH61: 1.843617528 | AI61: 0.002697307 | AJ61: 0.062026825 | AL61: 0.070154253 | AM61: 1.00246384 | AN61: 1.843617528 | AO61: 0.002697307 | AP61: 0.062026825 | AQ61: 0.019004059 | AR61: 0.070154253 | AS61: 1.00246384 | AT61: 1.843617528 | AU61: 0.002697307 | AV61: 0.062026825 | AW61: 0.116907911 | AX61: 0.070154253 | AY61: 1.00246384 | AZ61: 1.843617528 | BA61: 0.002697307 | BB61: 0.062026825 | BC61: 0.197554852 | BD61: 0.070154253 | BE61: 1.00246384 | BF61: 1.843617528 | BG61: 0.002697307 | BH61: 0.062026825 | BI61: 0.226733927 | BJ61: 0.070154253 | BK61: 1.00246384 | BL61: 1.843617528 | BM61: 0.002697307 | BN61: 0.062026825 | BO61: 0.0301276065 | BP61: 0.070154253 | BQ61: 1.00246384 | BR61: 1.843617528 | BS61: 0.002697307 | BT61: 0.062026825 | BU61: 0.0733928265 | BV61: 0.070154253 | BW61: 1.00246384 | BX61: 1.843617528 | BY61: 0.002697307 | BZ61: 0.062026825 | CA61: 0.050381243 | CB61: 0.070154253 | CC61: 1.00246384 | CD61: 1.843617528 | CE61: 0.002697307 | CF61: 0.062026825 | CG61: -0.012818102 | CH61: 0.070154253 | CI61: 1.00246384 | CJ61: 1.843617528 | CK61: 0.002697307 | CL61: 0.062026825 | CM61: 0.019004059 | CN61: 0.070154253 | CO61: 1.00246384 | CP61: 1.843617528 | CQ61: 0.002697307 | CR61: 0.062026825 | CS61: 0.0030929785 | CT61: 0.070154253 | CU61: 1.00246384 | CV61: 1.843617528 | CW61: 0.002697307 | CX61: 0.062026825 | CY61: 0.1572313815 | CZ61: 0.070154253 | DA61: 1.00246384 | DB61: 1.843617528 | DC61: 0.002697307 | DD61: 0.062026825 | DE61: 0.2121443895 | DF61: 0.070154253 | DG61: 1.00246384 | DH61: 1.843617528 | DI61: 0.002697307 | DJ61: 0.062026825 | DK61: 0.1803988967 | DL61: 0.070154253 | DM61: 1.00246384
B62: Hay | C62: Square (approx 1 ton), $/bale | D62: 2.430571986 | E62: -0.00083475 | F62: 0.07598365 | H62: 0.041808866 | I62: 1.000874373 | J62: 2.486756728 | K62: -0.00131246 | L62: 0.072560188 | M62: 0.029944303 | N62: 0.112886634 | O62: 1.006392039 | P62: 2.486756728 | Q62: -0.00131246 | R62: 0.072560188 | S62: 0.034086473 | T62: 0.112886634 | U62: 1.006392039 | V62: 2.486756728 | W62: -0.00131246 | X62: 0.072560188 | Y62: 0.062516176 | Z62: 0.112886634 | AA62: 1.006392039 | AB62: 2.486756728 | AC62: -0.00131246 | AD62: 0.072560188 | AE62: -0.097068341 | AF62: 0.112886634 | AG62: 1.006392039 | AH62: 2.486756728 | AI62: -0.00131246 | AJ62: 0.072560188 | AL62: 0.112886634 | AM62: 1.006392039 | AN62: 2.486756728 | AO62: -0.00131246 | AP62: 0.072560188 | AQ62: -0.020195097 | AR62: 0.112886634 | AS62: 1.006392039 | AT62: 2.486756728 | AU62: -0.00131246 | AV62: 0.072560188 | AW62: -0.147386969 | AX62: 0.112886634 | AY62: 1.006392039 | AZ62: 2.486756728 | BA62: -0.00131246 | BB62: 0.072560188 | BC62: -0.117942458 | BD62: 0.112886634 | BE62: 1.006392039 | BF62: 2.486756728 | BG62: -0.00131246 | BH62: 0.072560188 | BI62: -0.094037714 | BJ62: 0.112886634 | BK62: 1.006392039 | BL62: 2.486756728 | BM62: -0.00131246 | BN62: 0.072560188 | BO62: 0.032015388 | BP62: 0.112886634 | BQ62: 1.006392039 | BR62: 2.486756728 | BS62: -0.00131246 | BT62: 0.072560188 | BU62: 0.0483013245 | BV62: 0.112886634 | BW62: 1.006392039 | BX62: 2.486756728 | BY62: -0.00131246 | BZ62: 0.072560188 | CA62: 0.04218231733 | CB62: 0.112886634 | CC62: 1.006392039 | CD62: 2.486756728 | CE62: -0.00131246 | CF62: 0.072560188 | CG62: -0.097068341 | CH62: 0.112886634 | CI62: 1.006392039 | CJ62: 2.486756728 | CK62: -0.00131246 | CL62: 0.072560188 | CM62: -0.020195097 | CN62: 0.112886634 | CO62: 1.006392039 | CP62: 2.486756728 | CQ62: -0.00131246 | CR62: 0.072560188 | CS62: -0.058631719 | CT62: 0.112886634 | CU62: 1.006392039 | CV62: 2.486756728 | CW62: -0.00131246 | CX62: 0.072560188 | CY62: -0.1326647135 | CZ62: 0.112886634 | DA62: 1.006392039 | DB62: 2.486756728 | DC62: -0.00131246 | DD62: 0.072560188 | DE62: -0.105990086 | DF62: 0.112886634 | DG62: 1.006392039 | DH62: 2.486756728 | DI62: -0.00131246 | DJ62: 0.072560188 | DK62: -0.119789047 | DL62: 0.112886634 | DM62: 1.006392039
B63: Hay | C63: Stacking hay (4-6 tons), $ | D63: 3.600607182 | E63: 0.004779924 | F63: 0.012071866 | H63: 0.058767585 | I63: 1.001728306 | J63: 3.600607182 | K63: 0.004779924 | L63: 0.012071866 | M63: 5.63701e-14 | N63: 0.05591653 | O63: 1.001564552 | P63: 3.600607182 | Q63: 0.004779924 | R63: 0.012071866 | S63: 5.63701e-14 | T63: 0.05591653 | U63: 1.001564552 | V63: 3.600607182 | W63: 0.004779924 | X63: 0.012071866 | Y63: 5.63701e-14 | Z63: 0.05591653 | AA63: 1.001564552 | AB63: 3.600607182 | AC63: 0.004779924 | AD63: 0.012071866 | AE63: 5.63701e-14 | AF63: 0.05591653 | AG63: 1.001564552 | AH63: 3.600607182 | AI63: 0.004779924 | AJ63: 0.012071866 | AL63: 0.05591653 | AM63: 1.001564552 | AN63: 3.600607182 | AO63: 0.004779924 | AP63: 0.012071866 | AQ63: 5.63701e-14 | AR63: 0.05591653 | AS63: 1.001564552 | AT63: 3.600607182 | AU63: 0.004779924 | AV63: 0.012071866 | AW63: 5.63701e-14 | AX63: 0.05591653 | AY63: 1.001564552 | AZ63: 3.600607182 | BA63: 0.004779924 | BB63: 0.012071866 | BC63: 5.63701e-14 | BD63: 0.05591653 | BE63: 1.001564552 | BF63: 3.600607182 | BG63: 0.004779924 | BH63: 0.012071866 | BI63: 5.63701e-14 | BJ63: 0.05591653 | BK63: 1.001564552 | BL63: 3.600607182 | BM63: 0.004779924 | BN63: 0.012071866 | BO63: 5.63701e-14 | BP63: 0.05591653 | BQ63: 1.001564552 | BR63: 3.600607182 | BS63: 0.004779924 | BT63: 0.012071866 | BU63: 5.63701e-14 | BV63: 0.05591653 | BW63: 1.001564552 | BX63: 3.600607182 | BY63: 0.004779924 | BZ63: 0.012071866 | CA63: 5.63701e-14 | CB63: 0.05591653 | CC63: 1.001564552 | CD63: 3.600607182 | CE63: 0.004779924 | CF63: 0.012071866 | CG63: 5.63701e-14 | CH63: 0.05591653 | CI63: 1.001564552 | CJ63: 3.600607182 | CK63: 0.004779924 | CL63: 0.012071866 | CM63: 5.63701e-14 | CN63: 0.05591653 | CO63: 1.001564552 | CP63: 3.600607182 | CQ63: 0.004779924 | CR63: 0.012071866 | CS63: 5.63701e-14 | CT63: 0.05591653 | CU63: 1.001564552 | CV63: 3.600607182 | CW63: 0.004779924 | CX63: 0.012071866 | CY63: 5.63701e-14 | CZ63: 0.05591653 | DA63: 1.001564552 | DB63: 3.600607182 | DC63: 0.004779924 | DD63: 0.012071866 | DE63: 5.63701e-14 | DF63: 0.05591653 | DG63: 1.001564552 | DH63: 3.600607182 | DI63: 0.004779924 | DJ63: 0.012071866 | DK63: 5.63701e-14 | DL63: 0.05591653 | DM63: 1.001564552
B64: Hay | C64: Hauling small squares, $/bale | D64: -1.949959347 | E64: 0.016222433 | F64: 0.059328314 | H64: 0.068033342 | I64: 1.002316948 | J64: -2.164233497 | K64: 0.021144384 | L64: -0.024565956 | M64: -0.027377595 | N64: 0.13624054 | O64: 1.009323942 | P64: -2.164233497 | Q64: 0.021144384 | R64: -0.024565956 | S64: 0.004984651 | T64: 0.13624054 | U64: 1.009323942 | V64: -2.164233497 | W64: 0.021144384 | X64: -0.024565956 | Y64: -0.054905278 | Z64: 0.13624054 | AA64: 1.009323942 | AB64: -2.164233497 | AC64: 0.021144384 | AD64: -0.024565956 | AE64: 0.041398562 | AF64: 0.13624054 | AG64: 1.009323942 | AH64: -2.164233497 | AI64: 0.021144384 | AJ64: -0.024565956 | AL64: 0.13624054 | AM64: 1.009323942 | AN64: -2.164233497 | AO64: 0.021144384 | AP64: -0.024565956 | AQ64: 0.127389931 | AR64: 0.13624054 | AS64: 1.009323942 | AT64: -2.164233497 | AU64: 0.021144384 | AV64: -0.024565956 | AW64: 0.042108858 | AX64: 0.13624054 | AY64: 1.009323942 | AZ64: -2.164233497 | BA64: 0.021144384 | BB64: -0.024565956 | BC64: 0.058461999 | BD64: 0.13624054 | BE64: 1.009323942 | BF64: -2.164233497 | BG64: 0.021144384 | BH64: -0.024565956 | BI64: 0.093484346 | BJ64: 0.13624054 | BK64: 1.009323942 | BL64: -2.164233497 | BM64: 0.021144384 | BN64: -0.024565956 | BO64: -0.011196472 | BP64: 0.13624054 | BQ64: 1.009323942 | BR64: -2.164233497 | BS64: 0.021144384 | BT64: -0.024565956 | BU64: -0.0249603135 | BV64: 0.13624054 | BW64: 1.009323942 | BX64: -2.164233497 | BY64: 0.021144384 | BZ64: -0.024565956 | CA64: -0.025766074 | CB64: 0.13624054 | CC64: 1.009323942 | CD64: -2.164233497 | CE64: 0.021144384 | CF64: -0.024565956 | CG64: 0.041398562 | CH64: 0.13624054 | CI64: 1.009323942 | CJ64: -2.164233497 | CK64: 0.021144384 | CL64: -0.024565956 | CM64: 0.127389931 | CN64: 0.13624054 | CO64: 1.009323942 | CP64: -2.164233497 | CQ64: 0.021144384 | CR64: -0.024565956 | CS64: 0.0843942465 | CT64: 0.13624054 | CU64: 1.009323942 | CV64: -2.164233497 | CW64: 0.021144384 | CX64: -0.024565956 | CY64: 0.0502854285 | CZ64: 0.13624054 | DA64: 1.009323942 | DB64: -2.164233497 | DC64: 0.021144384 | DD64: -0.024565956 | DE64: 0.0759731725 | DF64: 0.13624054 | DG64: 1.009323942 | DH64: -2.164233497 | DI64: 0.021144384 | DJ64: -0.024565956 | DK64: 0.06468506767 | DL64: 0.13624054 | DM64: 1.009323942
B65: Hay | C65: Hauling large round, $/bale | D65: 0.527633213 | E65: 0.008277803 | F65: 0.039464464 | H65: 0.069719476 | I65: 1.002433358 | J65: 0.467948391 | K65: 0.008314151 | L65: 0.057433663 | M65: 0.015058648 | N65: 0.204734733 | O65: 1.02117932 | P65: 0.467948391 | Q65: 0.008314151 | R65: 0.057433663 | S65: 0.072746412 | T65: 0.204734733 | U65: 1.02117932 | V65: 0.467948391 | W65: 0.008314151 | X65: 0.057433663 | Y65: -0.030863061 | Z65: 0.204734733 | AA65: 1.02117932 | AB65: 0.467948391 | AC65: 0.008314151 | AD65: 0.057433663 | AE65: -0.17019822 | AF65: 0.204734733 | AG65: 1.02117932 | AH65: 0.467948391 | AI65: 0.008314151 | AJ65: 0.057433663 | AL65: 0.204734733 | AM65: 1.02117932 | AN65: 0.467948391 | AO65: 0.008314151 | AP65: 0.057433663 | AQ65: -0.040716501 | AR65: 0.204734733 | AS65: 1.02117932 | AT65: 0.467948391 | AU65: 0.008314151 | AV65: 0.057433663 | AW65: 0.060092365 | AX65: 0.204734733 | AY65: 1.02117932 | AZ65: 0.467948391 | BA65: 0.008314151 | BB65: 0.057433663 | BC65: -0.012281176 | BD65: 0.204734733 | BE65: 1.02117932 | BF65: 0.467948391 | BG65: 0.008314151 | BH65: 0.057433663 | BI65: 0.119350384 | BJ65: 0.204734733 | BK65: 1.02117932 | BL65: 0.467948391 | BM65: 0.008314151 | BN65: 0.057433663 | BO65: 0.04390253 | BP65: 0.204734733 | BQ65: 1.02117932 | BR65: 0.467948391 | BS65: 0.008314151 | BT65: 0.057433663 | BU65: 0.0209416755 | BV65: 0.204734733 | BW65: 1.02117932 | BX65: 0.467948391 | BY65: 0.008314151 | BZ65: 0.057433663 | CA65: 0.01898066633 | CB65: 0.204734733 | CC65: 1.02117932 | CD65: 0.467948391 | CE65: 0.008314151 | CF65: 0.057433663 | CG65: -0.17019822 | CH65: 0.204734733 | CI65: 1.02117932 | CJ65: 0.467948391 | CK65: 0.008314151 | CL65: 0.057433663 | CM65: -0.040716501 | CN65: 0.204734733 | CO65: 1.02117932 | CP65: 0.467948391 | CQ65: 0.008314151 | CR65: 0.057433663 | CS65: -0.1054573605 | CT65: 0.204734733 | CU65: 1.02117932 | CV65: 0.467948391 | CW65: 0.008314151 | CX65: 0.057433663 | CY65: 0.0239055945 | CZ65: 0.204734733 | DA65: 1.02117932 | DB65: 0.467948391 | DC65: 0.008314151 | DD65: 0.057433663 | DE65: 0.053534604 | DF65: 0.204734733 | DG65: 1.02117932 | DH65: 0.467948391 | DI65: 0.008314151 | DJ65: 0.057433663 | DK65: 0.05572052433 | DL65: 0.204734733 | DM65: 1.02117932
B66: Hay | C66: Hauling large round, $/ton | D66: 1.362467951 | E66: 0.002984865 | F66: 0.128760949 | H66: 0.167718 | I66: 1.014164036 | J66: 2.002987318 | K66: -0.00609909 | L66: 0.059463915 | M66: -0.279325675 | N66: 0.170927591 | O66: 1.014715341 | P66: 2.002987318 | Q66: -0.00609909 | R66: 0.059463915 | S66: -0.289840949 | T66: 0.170927591 | U66: 1.014715341 | V66: 2.002987318 | W66: -0.00609909 | X66: 0.059463915 | Y66: -0.295268424 | Z66: 0.170927591 | AA66: 1.014715341 | AB66: 2.002987318 | AC66: -0.00609909 | AD66: 0.059463915 | AE66: -0.054809566 | AF66: 0.170927591 | AG66: 1.014715341 | AH66: 2.002987318 | AI66: -0.00609909 | AJ66: 0.059463915 | AL66: 0.170927591 | AM66: 1.014715341 | AN66: 2.002987318 | AO66: -0.00609909 | AP66: 0.059463915 | AQ66: -0.094325804 | AR66: 0.170927591 | AS66: 1.014715341 | AT66: 2.002987318 | AU66: -0.00609909 | AV66: 0.059463915 | AW66: 0.39359111 | AX66: 0.170927591 | AY66: 1.014715341 | AZ66: 2.002987318 | BA66: -0.00609909 | BB66: 0.059463915 | BC66: 0.389725661 | BD66: 0.170927591 | BE66: 1.014715341 | BF66: 2.002987318 | BG66: -0.00609909 | BH66: 0.059463915 | BI66: 0.377254022 | BJ66: 0.170927591 | BK66: 1.014715341 | BL66: 2.002987318 | BM66: -0.00609909 | BN66: 0.059463915 | BO66: -0.284583312 | BP66: 0.170927591 | BQ66: 1.014715341 | BR66: 2.002987318 | BS66: -0.00609909 | BT66: 0.059463915 | BU66: -0.2925546865 | BV66: 0.170927591 | BW66: 1.014715341 | BX66: 2.002987318 | BY66: -0.00609909 | BZ66: 0.059463915 | CA66: -0.288145016 | CB66: 0.170927591 | CC66: 1.014715341 | CD66: 2.002987318 | CE66: -0.00609909 | CF66: 0.059463915 | CG66: -0.054809566 | CH66: 0.170927591 | CI66: 1.014715341 | CJ66: 2.002987318 | CK66: -0.00609909 | CL66: 0.059463915 | CM66: -0.094325804 | CN66: 0.170927591 | CO66: 1.014715341 | CP66: 2.002987318 | CQ66: -0.00609909 | CR66: 0.059463915 | CS66: -0.074567685 | CT66: 0.170927591 | CU66: 1.014715341 | CV66: 2.002987318 | CW66: -0.00609909 | CX66: 0.059463915 | CY66: 0.3916583855 | CZ66: 0.170927591 | DA66: 1.014715341 | DB66: 2.002987318 | DC66: -0.00609909 | DD66: 0.059463915 | DE66: 0.3834898415 | DF66: 0.170927591 | DG66: 1.014715341 | DH66: 2.002987318 | DI66: -0.00609909 | DJ66: 0.059463915 | DK66: 0.386856931 | DL66: 0.170927591 | DM66: 1.014715341
B67: Hay | C67: Entire operation (small square), $/bale | D67: -0.689793852 | E67: 0.014278454 | F67: -0.043997907 | H67: 0.042873716 | I67: 1.0009195 | J67: -0.597702674 | K67: 0.008083027 | L67: -0.01658269 | M67: 0.089117677 | N67: 0.104213058 | O67: 1.005444951 | P67: -0.597702674 | Q67: 0.008083027 | R67: -0.01658269 | S67: 0.089117677 | T67: 0.104213058 | U67: 1.005444951 | V67: -0.597702674 | W67: 0.008083027 | X67: -0.01658269 | Y67: 0.083305239 | Z67: 0.104213058 | AA67: 1.005444951 | AB67: -0.597702674 | AC67: 0.008083027 | AD67: -0.01658269 | AE67: -0.000592703 | AF67: 0.104213058 | AG67: 1.005444951 | AH67: -0.597702674 | AI67: 0.008083027 | AJ67: -0.01658269 | AL67: 0.104213058 | AM67: 1.005444951 | AN67: -0.597702674 | AO67: 0.008083027 | AP67: -0.01658269 | AQ67: -0.00198925 | AR67: 0.104213058 | AS67: 1.005444951 | AT67: -0.597702674 | AU67: 0.008083027 | AV67: -0.01658269 | AW67: 0.237694722 | AX67: 0.104213058 | AY67: 1.005444951 | AZ67: -0.597702674 | BA67: 0.008083027 | BB67: -0.01658269 | BC67: 0.263572144 | BD67: 0.104213058 | BE67: 1.005444951 | BF67: -0.597702674 | BG67: 0.008083027 | BH67: -0.01658269 | BI67: 0.252839497 | BJ67: 0.104213058 | BK67: 1.005444951 | BL67: -0.597702674 | BM67: 0.008083027 | BN67: -0.01658269 | BO67: 0.089117677 | BP67: 0.104213058 | BQ67: 1.005444951 | BR67: -0.597702674 | BS67: 0.008083027 | BT67: -0.01658269 | BU67: 0.086211458 | BV67: 0.104213058 | BW67: 1.005444951 | BX67: -0.597702674 | BY67: 0.008083027 | BZ67: -0.01658269 | CA67: 0.08718019767 | CB67: 0.104213058 | CC67: 1.005444951 | CD67: -0.597702674 | CE67: 0.008083027 | CF67: -0.01658269 | CG67: -0.000592703 | CH67: 0.104213058 | CI67: 1.005444951 | CJ67: -0.597702674 | CK67: 0.008083027 | CL67: -0.01658269 | CM67: -0.00198925 | CN67: 0.104213058 | CO67: 1.005444951 | CP67: -0.597702674 | CQ67: 0.008083027 | CR67: -0.01658269 | CS67: -0.0012909765 | CT67: 0.104213058 | CU67: 1.005444951 | CV67: -0.597702674 | CW67: 0.008083027 | CX67: -0.01658269 | CY67: 0.250633433 | CZ67: 0.104213058 | DA67: 1.005444951 | DB67: -0.597702674 | DC67: 0.008083027 | DD67: -0.01658269 | DE67: 0.2582058205 | DF67: 0.104213058 | DG67: 1.005444951 | DH67: -0.597702674 | DI67: 0.008083027 | DJ67: -0.01658269 | DK67: 0.2513687877 | DL67: 0.104213058 | DM67: 1.005444951
B68: Hay | C68: Entire operation (large round), $/bale | D68: 2.270047922 | E68: 0.004678756 | F68: 0.069023461 | H68: 0.048533381 | I68: 1.001178438 | J68: 2.393232079 | K68: 0.005935542 | L68: 0.018168455 | M68: 0.071192734 | N68: 0.104894389 | O68: 1.005516577 | P68: 2.393232079 | Q68: 0.005935542 | R68: 0.018168455 | S68: 0.075560262 | T68: 0.104894389 | U68: 1.005516577 | V68: 2.393232079 | W68: 0.005935542 | X68: 0.018168455 | Y68: 0.061917776 | Z68: 0.104894389 | AA68: 1.005516577 | AB68: 2.393232079 | AC68: 0.005935542 | AD68: 0.018168455 | AE68: -0.001879954 | AF68: 0.104894389 | AG68: 1.005516577 | AH68: 2.393232079 | AI68: 0.005935542 | AJ68: 0.018168455 | AL68: 0.104894389 | AM68: 1.005516577 | AN68: 2.393232079 | AO68: 0.005935542 | AP68: 0.018168455 | AQ68: -0.010716754 | AR68: 0.104894389 | AS68: 1.005516577 | AT68: 2.393232079 | AU68: 0.005935542 | AV68: 0.018168455 | AW68: -0.163353692 | AX68: 0.104894389 | AY68: 1.005516577 | AZ68: 2.393232079 | BA68: 0.005935542 | BB68: 0.018168455 | BC68: -0.207073534 | BD68: 0.104894389 | BE68: 1.005516577 | BF68: 2.393232079 | BG68: 0.005935542 | BH68: 0.018168455 | BI68: -0.139717922 | BJ68: 0.104894389 | BK68: 1.005516577 | BL68: 2.393232079 | BM68: 0.005935542 | BN68: 0.018168455 | BO68: 0.073376498 | BP68: 0.104894389 | BQ68: 1.005516577 | BR68: 2.393232079 | BS68: 0.005935542 | BT68: 0.018168455 | BU68: 0.068739019 | BV68: 0.104894389 | BW68: 1.005516577 | BX68: 2.393232079 | BY68: 0.005935542 | BZ68: 0.018168455 | CA68: 0.069556924 | CB68: 0.104894389 | CC68: 1.005516577 | CD68: 2.393232079 | CE68: 0.005935542 | CF68: 0.018168455 | CG68: -0.001879954 | CH68: 0.104894389 | CI68: 1.005516577 | CJ68: 2.393232079 | CK68: 0.005935542 | CL68: 0.018168455 | CM68: -0.010716754 | CN68: 0.104894389 | CO68: 1.005516577 | CP68: 2.393232079 | CQ68: 0.005935542 | CR68: 0.018168455 | CS68: -0.006298354 | CT68: 0.104894389 | CU68: 1.005516577 | CV68: 2.393232079 | CW68: 0.005935542 | CX68: 0.018168455 | CY68: -0.185213613 | CZ68: 0.104894389 | DA68: 1.005516577 | DB68: 2.393232079 | DC68: 0.005935542 | DD68: 0.018168455 | DE68: -0.173395728 | DF68: 0.104894389 | DG68: 1.005516577 | DH68: 2.393232079 | DI68: 0.005935542 | DJ68: 0.018168455 | DK68: -0.1700483827 | DL68: 0.104894389 | DM68: 1.005516577
B69: Hay | C69: Entire operation, $/ton | D69: 2.726279299 | E69: 0.006896328 | F69: 0.026049384 | H69: 0.065251685 | I69: 1.002131159 | J69: 2.726279299 | K69: 0.006896328 | L69: 0.026049384 | M69: 4.91882e-14 | N69: 0.062086059 | O69: 1.001929198 | P69: 2.726279299 | Q69: 0.006896328 | R69: 0.026049384 | S69: 4.91882e-14 | T69: 0.062086059 | U69: 1.001929198 | V69: 2.726279299 | W69: 0.006896328 | X69: 0.026049384 | Y69: 4.91882e-14 | Z69: 0.062086059 | AA69: 1.001929198 | AB69: 2.726279299 | AC69: 0.006896328 | AD69: 0.026049384 | AE69: 4.91882e-14 | AF69: 0.062086059 | AG69: 1.001929198 | AH69: 2.726279299 | AI69: 0.006896328 | AJ69: 0.026049384 | AL69: 0.062086059 | AM69: 1.001929198 | AN69: 2.726279299 | AO69: 0.006896328 | AP69: 0.026049384 | AQ69: 4.91882e-14 | AR69: 0.062086059 | AS69: 1.001929198 | AT69: 2.726279299 | AU69: 0.006896328 | AV69: 0.026049384 | AW69: 4.91882e-14 | AX69: 0.062086059 | AY69: 1.001929198 | AZ69: 2.726279299 | BA69: 0.006896328 | BB69: 0.026049384 | BC69: 4.91882e-14 | BD69: 0.062086059 | BE69: 1.001929198 | BF69: 2.726279299 | BG69: 0.006896328 | BH69: 0.026049384 | BI69: 4.91882e-14 | BJ69: 0.062086059 | BK69: 1.001929198 | BL69: 2.726279299 | BM69: 0.006896328 | BN69: 0.026049384 | BO69: 4.91882e-14 | BP69: 0.062086059 | BQ69: 1.001929198 | BR69: 2.726279299 | BS69: 0.006896328 | BT69: 0.026049384 | BU69: 4.91882e-14 | BV69: 0.062086059 | BW69: 1.001929198 | BX69: 2.726279299 | BY69: 0.006896328 | BZ69: 0.026049384 | CA69: 4.91882e-14 | CB69: 0.062086059 | CC69: 1.001929198 | CD69: 2.726279299 | CE69: 0.006896328 | CF69: 0.026049384 | CG69: 4.91882e-14 | CH69: 0.062086059 | CI69: 1.001929198 | CJ69: 2.726279299 | CK69: 0.006896328 | CL69: 0.026049384 | CM69: 4.91882e-14 | CN69: 0.062086059 | CO69: 1.001929198 | CP69: 2.726279299 | CQ69: 0.006896328 | CR69: 0.026049384 | CS69: 4.91882e-14 | CT69: 0.062086059 | CU69: 1.001929198 | CV69: 2.726279299 | CW69: 0.006896328 | CX69: 0.026049384 | CY69: 4.91882e-14 | CZ69: 0.062086059 | DA69: 1.001929198 | DB69: 2.726279299 | DC69: 0.006896328 | DD69: 0.026049384 | DE69: 4.91882e-14 | DF69: 0.062086059 | DG69: 1.001929198 | DH69: 2.726279299 | DI69: 0.006896328 | DJ69: 0.026049384 | DK69: 4.91882e-14 | DL69: 0.062086059 | DM69: 1.001929198
DP71: CRD - Northeast | DQ71: Intercept
DP72: CRD - Northeast | DQ72: PPI
DP73: CRD - Northeast | DQ73: fuel
DP74: CRD - Northeast | DQ74: Adjustment factor
DP75: CRD - Northeast | DQ75: RMSE
C76: OPERATION | D76: State | E76: CRD - Northwest | F76: CRD - West central | G76: CRD - Southwest | H76: CRD - North central | I76: CRD - Central | J76: CRD - South central | K76: CRD - Northeast | L76: CRD - East central | M76: CRD - Southeast | N76: Northwest | O76: Southwest | P76: West | Q76: North central | R76: South central | S76: Central | T76: Northeast | U76: Southeast | V76: East | AI76: CRD - Central | AJ76: CRD - Central | AK76: CRD - Central | AL76: CRD - Central | BB76: CRD - East central | BC76: CRD - East central | BD76: CRD - East central | BE76: CRD - East central | BG76: CRD - Southeast | BH76: CRD - Southeast | BI76: CRD - Southeast | BJ76: CRD - Southeast | BK76: CRD - Southeast | CO76: South central | CT76: Central | CU76: Central | CY76: Northeast | CZ76: Northeast | DA76: Northeast | DD76: Southeast | DE76: Southeast | DF76: Southeast | DG76: Southeast | DI76: East | DJ76: East | DK76: East | DL76: East | DM76: East
B77: Tillage | C77: Disk | D77: =EXP(D8 + E8*Prices!$D$2 + F8*Prices!$D$4 + G8) * I8 -> 11.73962629 | E77: =EXP(J8 + K8*Prices!$D$2 + L8*Prices!$D$4 + M8) * O8 -> 10.28852567 | F77: =EXP(P8 + Q8*Prices!$D$2 + R8*Prices!$D$4 + S8) * U8 -> 10.13234704 | G77: =EXP(V8 + W8*Prices!$D$2 + X8*Prices!$D$4 + Y8) * AA8 -> 11.44839207 | H77: =EXP(AB8 + AC8*Prices!$D$2 + AD8*Prices!$D$4 + AE8) * AG8 -> 12.27451124 | I77: =EXP(AH8 + AI8*Prices!$D$2 + AJ8*Prices!$D$4 + AK8) * AM8 -> 11.47816936 | J77: =EXP(AN8 + AO8*Prices!$D$2 + AP8*Prices!$D$4 + AQ8) * AS8 -> 12.23725782 | K77: =EXP(AT8 + AU8*Prices!$D$2 + AV8*Prices!$D$4 + AW8) * AY8 -> 14.20697665 | L77: =EXP(AZ8 + BA8*Prices!$D$2 + BB8*Prices!$D$4 + BC8) * BE8 -> 12.92128001 | M77: =EXP(BF8 + BG8*Prices!$D$2 + BH8*Prices!$D$4 + BI8) * BK8 -> 12.72857442 | N77: =EXP(BL8 + BM8*Prices!$D$2 + BN8*Prices!$D$4 + BO8) * BQ8 -> 10.21013774 | O77: =EXP(BR8 + BS8*Prices!$D$2 + BT8*Prices!$D$4 + BU8) * BW8 -> 10.77028697 | P77: =EXP(BX8 + BY8*Prices!$D$2 + BZ8*Prices!$D$4 + CA8) * CC8 -> 10.60724415 | Q77: =EXP(CD8 + CE8*Prices!$D$2 + CF8*Prices!$D$4 + CG8) * CI8 -> 12.27451124 | R77: =EXP(CJ8 + CK8*Prices!$D$2 + CL8*Prices!$D$4 + CM8) * CO8 -> 12.23725782 | S77: =EXP(CP8 + CQ8*Prices!$D$2 + CR8*Prices!$D$4 + CS8) * CU8 -> 12.25587037 | T77: =EXP(CV8 + CW8*Prices!$D$2 + CX8*Prices!$D$4 + CY8) * DA8 -> 13.54888643 | U77: =EXP(DB8 + DC8*Prices!$D$2 + DD8*Prices!$D$4 + DE8) * DG8 -> 12.82456527 | V77: =EXP(DH8 + DI8*Prices!$D$2 + DJ8*Prices!$D$4 + DK8) * DM8 -> 13.26973725 | DP77: CRD - East central | DQ77: Intercept
C78: Offset disk | D78: =EXP(D9 + E9*Prices!$D$2 + F9*Prices!$D$4 + G9) * I9 -> 11.36079921 | E78: =EXP(J9 + K9*Prices!$D$2 + L9*Prices!$D$4 + M9) * O9 -> 10.40992015 | F78: =EXP(P9 + Q9*Prices!$D$2 + R9*Prices!$D$4 + S9) * U9 -> 10.25690971 | G78: =EXP(V9 + W9*Prices!$D$2 + X9*Prices!$D$4 + Y9) * AA9 -> 10.97275062 | H78: =EXP(AB9 + AC9*Prices!$D$2 + AD9*Prices!$D$4 + AE9) * AG9 -> 12.15639815 | I78: =EXP(AH9 + AI9*Prices!$D$2 + AJ9*Prices!$D$4 + AK9) * AM9 -> 11.02732176 | J78: =EXP(AN9 + AO9*Prices!$D$2 + AP9*Prices!$D$4 + AQ9) * AS9 -> 11.82469683 | K78: =EXP(AT9 + AU9*Prices!$D$2 + AV9*Prices!$D$4 + AW9) * AY9 -> 14.18061521 | L78: =EXP(AZ9 + BA9*Prices!$D$2 + BB9*Prices!$D$4 + BC9) * BE9 -> 13.36645618 | M78: =EXP(BF9 + BG9*Prices!$D$2 + BH9*Prices!$D$4 + BI9) * BK9 -> 14.06619456 | N78: =EXP(BL9 + BM9*Prices!$D$2 + BN9*Prices!$D$4 + BO9) * BQ9 -> 10.33313172 | O78: =EXP(BR9 + BS9*Prices!$D$2 + BT9*Prices!$D$4 + BU9) * BW9 -> 10.60879411 | P78: =EXP(BX9 + BY9*Prices!$D$2 + BZ9*Prices!$D$4 + CA9) * CC9 -> 10.54208418 | Q78: =EXP(CD9 + CE9*Prices!$D$2 + CF9*Prices!$D$4 + CG9) * CI9 -> 12.15639815 | R78: =EXP(CJ9 + CK9*Prices!$D$2 + CL9*Prices!$D$4 + CM9) * CO9 -> 11.82469683 | S78: =EXP(CP9 + CQ9*Prices!$D$2 + CR9*Prices!$D$4 + CS9) * CU9 -> 11.98940043 | T78: =EXP(CV9 + CW9*Prices!$D$2 + CX9*Prices!$D$4 + CY9) * DA9 -> 13.76751872 | U78: =EXP(DB9 + DC9*Prices!$D$2 + DD9*Prices!$D$4 + DE9) * DG9 -> 13.7118625 | V78: =EXP(DH9 + DI9*Prices!$D$2 + DJ9*Prices!$D$4 + DK9) * DM9 -> 13.86636594 | DP78: CRD - East central | DQ78: PPI
C79: Chisel 4-12 in | D79: =EXP(D10 + E10*Prices!$D$2 + F10*Prices!$D$4 + G10) * I10 -> 12.34445653 | E79: =EXP(J10 + K10*Prices!$D$2 + L10*Prices!$D$4 + M10) * O10 -> 10.78613231 | F79: =EXP(P10 + Q10*Prices!$D$2 + R10*Prices!$D$4 + S10) * U10 -> 10.09929851 | G79: =EXP(V10 + W10*Prices!$D$2 + X10*Prices!$D$4 + Y10) * AA10 -> 10.76211901 | H79: =EXP(AB10 + AC10*Prices!$D$2 + AD10*Prices!$D$4 + AE10) * AG10 -> 12.59546973 | I79: =EXP(AH10 + AI10*Prices!$D$2 + AJ10*Prices!$D$4 + AK10) * AM10 -> 12.3717667 | J79: =EXP(AN10 + AO10*Prices!$D$2 + AP10*Prices!$D$4 + AQ10) * AS10 -> 12.58779733 | K79: =EXP(AT10 + AU10*Prices!$D$2 + AV10*Prices!$D$4 + AW10) * AY10 -> 15.48083562 | L79: =EXP(AZ10 + BA10*Prices!$D$2 + BB10*Prices!$D$4 + BC10) * BE10 -> 14.79693958 | M79: =EXP(BF10 + BG10*Prices!$D$2 + BH10*Prices!$D$4 + BI10) * BK10 -> 14.21988822 | N79: =EXP(BL10 + BM10*Prices!$D$2 + BN10*Prices!$D$4 + BO10) * BQ10 -> 10.43706711 | O79: =EXP(BR10 + BS10*Prices!$D$2 + BT10*Prices!$D$4 + BU10) * BW10 -> 10.42544255 | P79: =EXP(BX10 + BY10*Prices!$D$2 + BZ10*Prices!$D$4 + CA10) * CC10 -> 10.54431199 | Q79: =EXP(CD10 + CE10*Prices!$D$2 + CF10*Prices!$D$4 + CG10) * CI10 -> 12.59546973 | R79: =EXP(CJ10 + CK10*Prices!$D$2 + CL10*Prices!$D$4 + CM10) * CO10 -> 12.58779733 | S79: =EXP(CP10 + CQ10*Prices!$D$2 + CR10*Prices!$D$4 + CS10) * CU10 -> 12.59163295 | T79: =EXP(CV10 + CW10*Prices!$D$2 + CX10*Prices!$D$4 + CY10) * DA10 -> 15.13502525 | U79: =EXP(DB10 + DC10*Prices!$D$2 + DD10*Prices!$D$4 + DE10) * DG10 -> 14.50554469 | V79: =EXP(DH10 + DI10*Prices!$D$2 + DJ10*Prices!$D$4 + DK10) * DM10 -> 14.82361615 | DP79: CRD - East central | DQ79: fuel
C80: Springtooth harrow | D80: =EXP(D11 + E11*Prices!$D$2 + F11*Prices!$D$4 + G11) * I11 -> 9.512391396 | E80: =EXP(J11 + K11*Prices!$D$2 + L11*Prices!$D$4 + M11) * O11 -> 8.631493699 | F80: =EXP(P11 + Q11*Prices!$D$2 + R11*Prices!$D$4 + S11) * U11 -> 8.456245538 | G80: =EXP(V11 + W11*Prices!$D$2 + X11*Prices!$D$4 + Y11) * AA11 -> 8.310520235 | H80: =EXP(AB11 + AC11*Prices!$D$2 + AD11*Prices!$D$4 + AE11) * AG11 -> 8.912785034 | I80: =EXP(AH11 + AI11*Prices!$D$2 + AJ11*Prices!$D$4 + AK11) * AM11 -> 8.657418198 | J80: =EXP(AN11 + AO11*Prices!$D$2 + AP11*Prices!$D$4 + AQ11) * AS11 -> 8.860827194 | K80: =EXP(AT11 + AU11*Prices!$D$2 + AV11*Prices!$D$4 + AW11) * AY11 -> 10.20317973 | L80: =EXP(AZ11 + BA11*Prices!$D$2 + BB11*Prices!$D$4 + BC11) * BE11 -> 10.29376171 | M80: =EXP(BF11 + BG11*Prices!$D$2 + BH11*Prices!$D$4 + BI11) * BK11 -> 10.2910403 | N80: =EXP(BL11 + BM11*Prices!$D$2 + BN11*Prices!$D$4 + BO11) * BQ11 -> 8.54342028 | O80: =EXP(BR11 + BS11*Prices!$D$2 + BT11*Prices!$D$4 + BU11) * BW11 -> 8.383066244 | P80: =EXP(BX11 + BY11*Prices!$D$2 + BZ11*Prices!$D$4 + CA11) * CC11 -> 8.465070602 | Q80: =EXP(CD11 + CE11*Prices!$D$2 + CF11*Prices!$D$4 + CG11) * CI11 -> 8.912785034 | R80: =EXP(CJ11 + CK11*Prices!$D$2 + CL11*Prices!$D$4 + CM11) * CO11 -> 8.860827194 | S80: =EXP(CP11 + CQ11*Prices!$D$2 + CR11*Prices!$D$4 + CS11) * CU11 -> 8.886768141 | T80: =EXP(CV11 + CW11*Prices!$D$2 + CX11*Prices!$D$4 + CY11) * DA11 -> 10.24837064 | U80: =EXP(DB11 + DC11*Prices!$D$2 + DD11*Prices!$D$4 + DE11) * DG11 -> 10.29240092 | V80: =EXP(DH11 + DI11*Prices!$D$2 + DJ11*Prices!$D$4 + DK11) * DM11 -> 10.26257417 | DP80: CRD - East central | DQ80: Adjustment factor
C81: Field cultivate | D81: =EXP(D12 + E12*Prices!$D$2 + F12*Prices!$D$4 + G12) * I12 -> 10.8898536 | E81: =EXP(J12 + K12*Prices!$D$2 + L12*Prices!$D$4 + M12) * O12 -> 10.5257365 | F81: =EXP(P12 + Q12*Prices!$D$2 + R12*Prices!$D$4 + S12) * U12 -> 10.24505666 | G81: =EXP(V12 + W12*Prices!$D$2 + X12*Prices!$D$4 + Y12) * AA12 -> 11.11233673 | H81: =EXP(AB12 + AC12*Prices!$D$2 + AD12*Prices!$D$4 + AE12) * AG12 -> 11.59248427 | I81: =EXP(AH12 + AI12*Prices!$D$2 + AJ12*Prices!$D$4 + AK12) * AM12 -> 10.302687 | J81: =EXP(AN12 + AO12*Prices!$D$2 + AP12*Prices!$D$4 + AQ12) * AS12 -> 11.01324448 | K81: =EXP(AT12 + AU12*Prices!$D$2 + AV12*Prices!$D$4 + AW12) * AY12 -> 13.40442138 | L81: =EXP(AZ12 + BA12*Prices!$D$2 + BB12*Prices!$D$4 + BC12) * BE12 -> 12.42750422 | M81: =EXP(BF12 + BG12*Prices!$D$2 + BH12*Prices!$D$4 + BI12) * BK12 -> 11.69323631 | N81: =EXP(BL12 + BM12*Prices!$D$2 + BN12*Prices!$D$4 + BO12) * BQ12 -> 10.38444832 | O81: =EXP(BR12 + BS12*Prices!$D$2 + BT12*Prices!$D$4 + BU12) * BW12 -> 10.66988845 | P81: =EXP(BX12 + BY12*Prices!$D$2 + BZ12*Prices!$D$4 + CA12) * CC12 -> 10.62161977 | Q81: =EXP(CD12 + CE12*Prices!$D$2 + CF12*Prices!$D$4 + CG12) * CI12 -> 11.59248427 | R81: =EXP(CJ12 + CK12*Prices!$D$2 + CL12*Prices!$D$4 + CM12) * CO12 -> 11.01324448 | S81: =EXP(CP12 + CQ12*Prices!$D$2 + CR12*Prices!$D$4 + CS12) * CU12 -> 11.29915321 | T81: =EXP(CV12 + CW12*Prices!$D$2 + CX12*Prices!$D$4 + CY12) * DA12 -> 12.90672318 | U81: =EXP(DB12 + DC12*Prices!$D$2 + DD12*Prices!$D$4 + DE12) * DG12 -> 12.05478094 | V81: =EXP(DH12 + DI12*Prices!$D$2 + DJ12*Prices!$D$4 + DK12) * DM12 -> 12.48884395 | DP81: CRD - East central | DQ81: RMSE
C82: V-blade | D82: =EXP(D13 + E13*Prices!$D$2 + F13*Prices!$D$4 + G13) * I13 -> 8.752269256 | E82: =EXP(J13 + K13*Prices!$D$2 + L13*Prices!$D$4 + M13) * O13 -> 8.520568579 | F82: =EXP(P13 + Q13*Prices!$D$2 + R13*Prices!$D$4 + S13) * U13 -> 7.928349163 | G82: =EXP(V13 + W13*Prices!$D$2 + X13*Prices!$D$4 + Y13) * AA13 -> 8.852146131 | H82: =EXP(AB13 + AC13*Prices!$D$2 + AD13*Prices!$D$4 + AE13) * AG13 -> 10.12695416 | I82: =EXP(AH13 + AI13*Prices!$D$2 + AJ13*Prices!$D$4 + AK13) * AM13 -> 9.413678913 | J82: =EXP(AN13 + AO13*Prices!$D$2 + AP13*Prices!$D$4 + AQ13) * AS13 -> 9.891662932 | K82: =EXP(AT13 + AU13*Prices!$D$2 + AV13*Prices!$D$4 + AW13) * AY13 -> 8.591372481 | L82: =EXP(AZ13 + BA13*Prices!$D$2 + BB13*Prices!$D$4 + BC13) * BE13 -> 8.591372481 | M82: =EXP(BF13 + BG13*Prices!$D$2 + BH13*Prices!$D$4 + BI13) * BK13 -> 8.595854942 | N82: =EXP(BL13 + BM13*Prices!$D$2 + BN13*Prices!$D$4 + BO13) * BQ13 -> 8.219126642 | O82: =EXP(BR13 + BS13*Prices!$D$2 + BT13*Prices!$D$4 + BU13) * BW13 -> 8.377523821 | P82: =EXP(BX13 + BY13*Prices!$D$2 + BZ13*Prices!$D$4 + CA13) * CC13 -> 8.424936567 | Q82: =EXP(CD13 + CE13*Prices!$D$2 + CF13*Prices!$D$4 + CG13) * CI13 -> 10.12695416 | R82: =EXP(CJ13 + CK13*Prices!$D$2 + CL13*Prices!$D$4 + CM13) * CO13 -> 9.891662932 | S82: =EXP(CP13 + CQ13*Prices!$D$2 + CR13*Prices!$D$4 + CS13) * CU13 -> 10.00861714 | T82: =EXP(CV13 + CW13*Prices!$D$2 + CX13*Prices!$D$4 + CY13) * DA13 -> 8.591372481 | U82: =EXP(DB13 + DC13*Prices!$D$2 + DD13*Prices!$D$4 + DE13) * DG13 -> 8.593613419 | V82: =EXP(DH13 + DI13*Prices!$D$2 + DJ13*Prices!$D$4 + DK13) * DM13 -> 8.592866375 | DP82: CRD - East central | DQ82: LN adjustment
B83: Fertillizer application | C83: Row crop cultivation with fertilizer | D83: =EXP(D14 + E14*Prices!$D$2 + F14*Prices!$D$4 + G14) * I14 -> 10.64614767 | E83: =EXP(J14 + K14*Prices!$D$2 + L14*Prices!$D$4 + M14) * O14 -> 12.21992336 | F83: =EXP(P14 + Q14*Prices!$D$2 + R14*Prices!$D$4 + S14) * U14 -> 12.21992336 | G83: =EXP(V14 + W14*Prices!$D$2 + X14*Prices!$D$4 + Y14) * AA14 -> 12.21992336 | H83: =EXP(AB14 + AC14*Prices!$D$2 + AD14*Prices!$D$4 + AE14) * AG14 -> 10.92805381 | I83: =EXP(AH14 + AI14*Prices!$D$2 + AJ14*Prices!$D$4 + AK14) * AM14 -> 10.92805381 | J83: =EXP(AN14 + AO14*Prices!$D$2 + AP14*Prices!$D$4 + AQ14) * AS14 -> 10.92805381 | K83: =EXP(AT14 + AU14*Prices!$D$2 + AV14*Prices!$D$4 + AW14) * AY14 -> 11.3524272 | L83: =EXP(AZ14 + BA14*Prices!$D$2 + BB14*Prices!$D$4 + BC14) * BE14 -> 11.3524272 | M83: =EXP(BF14 + BG14*Prices!$D$2 + BH14*Prices!$D$4 + BI14) * BK14 -> 11.3524272 | N83: =EXP(BL14 + BM14*Prices!$D$2 + BN14*Prices!$D$4 + BO14) * BQ14 -> 12.21992336 | O83: =EXP(BR14 + BS14*Prices!$D$2 + BT14*Prices!$D$4 + BU14) * BW14 -> 12.21992336 | P83: =EXP(BX14 + BY14*Prices!$D$2 + BZ14*Prices!$D$4 + CA14) * CC14 -> 12.21992336 | Q83: =EXP(CD14 + CE14*Prices!$D$2 + CF14*Prices!$D$4 + CG14) * CI14 -> 10.92805381 | R83: =EXP(CJ14 + CK14*Prices!$D$2 + CL14*Prices!$D$4 + CM14) * CO14 -> 10.92805381 | S83: =EXP(CP14 + CQ14*Prices!$D$2 + CR14*Prices!$D$4 + CS14) * CU14 -> 10.92805381 | T83: =EXP(CV14 + CW14*Prices!$D$2 + CX14*Prices!$D$4 + CY14) * DA14 -> 11.3524272 | U83: =EXP(DB14 + DC14*Prices!$D$2 + DD14*Prices!$D$4 + DE14) * DG14 -> 11.3524272 | V83: =EXP(DH14 + DI14*Prices!$D$2 + DJ14*Prices!$D$4 + DK14) * DM14 -> 11.3524272 | DP83: CRD - Southeast | DQ83: Intercept
C84: Dry fertilizer | D84: =EXP(D15 + E15*Prices!$D$2 + F15*Prices!$D$4 + G15) * I15 -> 6.0732955 | E84: =EXP(J15 + K15*Prices!$D$2 + L15*Prices!$D$4 + M15) * O15 -> 6.013933478 | F84: =EXP(P15 + Q15*Prices!$D$2 + R15*Prices!$D$4 + S15) * U15 -> 6.265941615 | G84: =EXP(V15 + W15*Prices!$D$2 + X15*Prices!$D$4 + Y15) * AA15 -> 6.097376621 | H84: =EXP(AB15 + AC15*Prices!$D$2 + AD15*Prices!$D$4 + AE15) * AG15 -> 6.102643829 | I84: =EXP(AH15 + AI15*Prices!$D$2 + AJ15*Prices!$D$4 + AK15) * AM15 -> 5.625112612 | J84: =EXP(AN15 + AO15*Prices!$D$2 + AP15*Prices!$D$4 + AQ15) * AS15 -> 5.497386226 | K84: =EXP(AT15 + AU15*Prices!$D$2 + AV15*Prices!$D$4 + AW15) * AY15 -> 6.542783495 | L84: =EXP(AZ15 + BA15*Prices!$D$2 + BB15*Prices!$D$4 + BC15) * BE15 -> 6.188527518 | M84: =EXP(BF15 + BG15*Prices!$D$2 + BH15*Prices!$D$4 + BI15) * BK15 -> 5.510705751 | N84: =EXP(BL15 + BM15*Prices!$D$2 + BN15*Prices!$D$4 + BO15) * BQ15 -> 6.13864448 | O84: =EXP(BR15 + BS15*Prices!$D$2 + BT15*Prices!$D$4 + BU15) * BW15 -> 6.181084525 | P84: =EXP(BX15 + BY15*Prices!$D$2 + BZ15*Prices!$D$4 + CA15) * CC15 -> 6.124857586 | Q84: =EXP(CD15 + CE15*Prices!$D$2 + CF15*Prices!$D$4 + CG15) * CI15 -> 6.102643829 | R84: =EXP(CJ15 + CK15*Prices!$D$2 + CL15*Prices!$D$4 + CM15) * CO15 -> 5.497386226 | S84: =EXP(CP15 + CQ15*Prices!$D$2 + CR15*Prices!$D$4 + CS15) * CU15 -> 5.792114478 | T84: =EXP(CV15 + CW15*Prices!$D$2 + CX15*Prices!$D$4 + CY15) * DA15 -> 6.363190686 | U84: =EXP(DB15 + DC15*Prices!$D$2 + DD15*Prices!$D$4 + DE15) * DG15 -> 5.839790594 | V84: =EXP(DH15 + DI15*Prices!$D$2 + DJ15*Prices!$D$4 + DK15) * DM15 -> 6.065301108 | DP84: CRD - Southeast | DQ84: PPI
C85: Liquid fertilizer | D85: =EXP(D16 + E16*Prices!$D$2 + F16*Prices!$D$4 + G16) * I16 -> 6.20964823 | E85: =EXP(J16 + K16*Prices!$D$2 + L16*Prices!$D$4 + M16) * O16 -> 6.533641839 | F85: =EXP(P16 + Q16*Prices!$D$2 + R16*Prices!$D$4 + S16) * U16 -> 6.251554184 | G85: =EXP(V16 + W16*Prices!$D$2 + X16*Prices!$D$4 + Y16) * AA16 -> 6.691070288 | H85: =EXP(AB16 + AC16*Prices!$D$2 + AD16*Prices!$D$4 + AE16) * AG16 -> 6.170300653 | I85: =EXP(AH16 + AI16*Prices!$D$2 + AJ16*Prices!$D$4 + AK16) * AM16 -> 5.692696301 | J85: =EXP(AN16 + AO16*Prices!$D$2 + AP16*Prices!$D$4 + AQ16) * AS16 -> 5.662006065 | K85: =EXP(AT16 + AU16*Prices!$D$2 + AV16*Prices!$D$4 + AW16) * AY16 -> 6.844676636 | L85: =EXP(AZ16 + BA16*Prices!$D$2 + BB16*Prices!$D$4 + BC16) * BE16 -> 6.71040209 | M85: =EXP(BF16 + BG16*Prices!$D$2 + BH16*Prices!$D$4 + BI16) * BK16 -> 5.983413519 | N85: =EXP(BL16 + BM16*Prices!$D$2 + BN16*Prices!$D$4 + BO16) * BQ16 -> 6.391041854 | O85: =EXP(BR16 + BS16*Prices!$D$2 + BT16*Prices!$D$4 + BU16) * BW16 -> 6.467579799 | P85: =EXP(BX16 + BY16*Prices!$D$2 + BZ16*Prices!$D$4 + CA16) * CC16 -> 6.489525926 | Q85: =EXP(CD16 + CE16*Prices!$D$2 + CF16*Prices!$D$4 + CG16) * CI16 -> 6.170300653 | R85: =EXP(CJ16 + CK16*Prices!$D$2 + CL16*Prices!$D$4 + CM16) * CO16 -> 5.662006065 | S85: =EXP(CP16 + CQ16*Prices!$D$2 + CR16*Prices!$D$4 + CS16) * CU16 -> 5.910691983 | T85: =EXP(CV16 + CW16*Prices!$D$2 + CX16*Prices!$D$4 + CY16) * DA16 -> 6.777206829 | U85: =EXP(DB16 + DC16*Prices!$D$2 + DD16*Prices!$D$4 + DE16) * DG16 -> 6.3364904 | V85: =EXP(DH16 + DI16*Prices!$D$2 + DJ16*Prices!$D$4 + DK16) * DM16 -> 6.50154889 | DP85: CRD - Southeast | DQ85: fuel
C86: NH3 application | D86: =EXP(D17 + E17*Prices!$D$2 + F17*Prices!$D$4 + G17) * I17 -> 14.23234335 | E86: =EXP(J17 + K17*Prices!$D$2 + L17*Prices!$D$4 + M17) * O17 -> 12.79085153 | F86: =EXP(P17 + Q17*Prices!$D$2 + R17*Prices!$D$4 + S17) * U17 -> 11.4783905 | G86: =EXP(V17 + W17*Prices!$D$2 + X17*Prices!$D$4 + Y17) * AA17 -> 13.25878049 | H86: =EXP(AB17 + AC17*Prices!$D$2 + AD17*Prices!$D$4 + AE17) * AG17 -> 12.72202533 | I86: =EXP(AH17 + AI17*Prices!$D$2 + AJ17*Prices!$D$4 + AK17) * AM17 -> 11.82918193 | J86: =EXP(AN17 + AO17*Prices!$D$2 + AP17*Prices!$D$4 + AQ17) * AS17 -> 10.30476686 | K86: =EXP(AT17 + AU17*Prices!$D$2 + AV17*Prices!$D$4 + AW17) * AY17 -> 15.98219862 | L86: =EXP(AZ17 + BA17*Prices!$D$2 + BB17*Prices!$D$4 + BC17) * BE17 -> 13.89417513 | M86: =EXP(BF17 + BG17*Prices!$D$2 + BH17*Prices!$D$4 + BI17) * BK17 -> 12.12909674 | N86: =EXP(BL17 + BM17*Prices!$D$2 + BN17*Prices!$D$4 + BO17) * BQ17 -> 12.11686381 | O86: =EXP(BR17 + BS17*Prices!$D$2 + BT17*Prices!$D$4 + BU17) * BW17 -> 12.33650923 | P86: =EXP(BX17 + BY17*Prices!$D$2 + BZ17*Prices!$D$4 + CA17) * CC17 -> 12.48613457 | Q86: =EXP(CD17 + CE17*Prices!$D$2 + CF17*Prices!$D$4 + CG17) * CI17 -> 12.72202533 | R86: =EXP(CJ17 + CK17*Prices!$D$2 + CL17*Prices!$D$4 + CM17) * CO17 -> 10.30476686 | S86: =EXP(CP17 + CQ17*Prices!$D$2 + CR17*Prices!$D$4 + CS17) * CU17 -> 11.44978188 | T86: =EXP(CV17 + CW17*Prices!$D$2 + CX17*Prices!$D$4 + CY17) * DA17 -> 14.90165986 | U86: =EXP(DB17 + DC17*Prices!$D$2 + DD17*Prices!$D$4 + DE17) * DG17 -> 12.98167147 | V86: =EXP(DH17 + DI17*Prices!$D$2 + DJ17*Prices!$D$4 + DK17) * DM17 -> 13.91337799 | DP86: CRD - Southeast | DQ86: Adjustment factor
C87: Ground herbicide | D87: =EXP(D18 + E18*Prices!$D$2 + F18*Prices!$D$4 + G18) * I18 -> 6.13333469 | E87: =EXP(J18 + K18*Prices!$D$2 + L18*Prices!$D$4 + M18) * O18 -> 5.988264962 | F87: =EXP(P18 + Q18*Prices!$D$2 + R18*Prices!$D$4 + S18) * U18 -> 5.830001982 | G87: =EXP(V18 + W18*Prices!$D$2 + X18*Prices!$D$4 + Y18) * AA18 -> 6.14517937 | H87: =EXP(AB18 + AC18*Prices!$D$2 + AD18*Prices!$D$4 + AE18) * AG18 -> 5.961492406 | I87: =EXP(AH18 + AI18*Prices!$D$2 + AJ18*Prices!$D$4 + AK18) * AM18 -> 5.609601055 | J87: =EXP(AN18 + AO18*Prices!$D$2 + AP18*Prices!$D$4 + AQ18) * AS18 -> 5.666474506 | K87: =EXP(AT18 + AU18*Prices!$D$2 + AV18*Prices!$D$4 + AW18) * AY18 -> 6.786081524 | L87: =EXP(AZ18 + BA18*Prices!$D$2 + BB18*Prices!$D$4 + BC18) * BE18 -> 6.688396587 | M87: =EXP(BF18 + BG18*Prices!$D$2 + BH18*Prices!$D$4 + BI18) * BK18 -> 6.034332788 | N87: =EXP(BL18 + BM18*Prices!$D$2 + BN18*Prices!$D$4 + BO18) * BQ18 -> 5.908603608 | O87: =EXP(BR18 + BS18*Prices!$D$2 + BT18*Prices!$D$4 + BU18) * BW18 -> 5.985516511 | P87: =EXP(BX18 + BY18*Prices!$D$2 + BZ18*Prices!$D$4 + CA18) * CC18 -> 5.986432521 | Q87: =EXP(CD18 + CE18*Prices!$D$2 + CF18*Prices!$D$4 + CG18) * CI18 -> 5.961492406 | R87: =EXP(CJ18 + CK18*Prices!$D$2 + CL18*Prices!$D$4 + CM18) * CO18 -> 5.666474506 | S87: =EXP(CP18 + CQ18*Prices!$D$2 + CR18*Prices!$D$4 + CS18) * CU18 -> 5.8121119 | T87: =EXP(CV18 + CW18*Prices!$D$2 + CX18*Prices!$D$4 + CY18) * DA18 -> 6.737062008 | U87: =EXP(DB18 + DC18*Prices!$D$2 + DD18*Prices!$D$4 + DE18) * DG18 -> 6.352952922 | V87: =EXP(DH18 + DI18*Prices!$D$2 + DJ18*Prices!$D$4 + DK18) * DM18 -> 6.494166947 | DP87: CRD - Southeast | DQ87: RMSE
C88: Aerial herbicide | D88: =EXP(D19 + E19*Prices!$D$2 + F19*Prices!$D$4 + G19) * I19 -> 7.444227783 | E88: =EXP(J19 + K19*Prices!$D$2 + L19*Prices!$D$4 + M19) * O19 -> 6.611338146 | F88: =EXP(P19 + Q19*Prices!$D$2 + R19*Prices!$D$4 + S19) * U19 -> 6.255698704 | G88: =EXP(V19 + W19*Prices!$D$2 + X19*Prices!$D$4 + Y19) * AA19 -> 6.291690185 | H88: =EXP(AB19 + AC19*Prices!$D$2 + AD19*Prices!$D$4 + AE19) * AG19 -> 6.543749449 | I88: =EXP(AH19 + AI19*Prices!$D$2 + AJ19*Prices!$D$4 + AK19) * AM19 -> 6.213525235 | J88: =EXP(AN19 + AO19*Prices!$D$2 + AP19*Prices!$D$4 + AQ19) * AS19 -> 6.740684313 | K88: =EXP(AT19 + AU19*Prices!$D$2 + AV19*Prices!$D$4 + AW19) * AY19 -> 7.653158791 | L88: =EXP(AZ19 + BA19*Prices!$D$2 + BB19*Prices!$D$4 + BC19) * BE19 -> 7.84502747 | M88: =EXP(BF19 + BG19*Prices!$D$2 + BH19*Prices!$D$4 + BI19) * BK19 -> 8.032104713 | N88: =EXP(BL19 + BM19*Prices!$D$2 + BN19*Prices!$D$4 + BO19) * BQ19 -> 6.431060525 | O88: =EXP(BR19 + BS19*Prices!$D$2 + BT19*Prices!$D$4 + BU19) * BW19 -> 6.273668635 | P88: =EXP(BX19 + BY19*Prices!$D$2 + BZ19*Prices!$D$4 + CA19) * CC19 -> 6.38426405 | Q88: =EXP(CD19 + CE19*Prices!$D$2 + CF19*Prices!$D$4 + CG19) * CI19 -> 6.543749449 | R88: =EXP(CJ19 + CK19*Prices!$D$2 + CL19*Prices!$D$4 + CM19) * CO19 -> 6.740684313 | S88: =EXP(CP19 + CQ19*Prices!$D$2 + CR19*Prices!$D$4 + CS19) * CU19 -> 6.641486977 | T88: =EXP(CV19 + CW19*Prices!$D$2 + CX19*Prices!$D$4 + CY19) * DA19 -> 7.748499271 | U88: =EXP(DB19 + DC19*Prices!$D$2 + DD19*Prices!$D$4 + DE19) * DG19 -> 7.938014999 | V88: =EXP(DH19 + DI19*Prices!$D$2 + DJ19*Prices!$D$4 + DK19) * DM19 -> 7.841903943 | DP88: CRD - Southeast | DQ88: LN adjustment
C89: Ground insecticide | D89: =EXP(D20 + E20*Prices!$D$2 + F20*Prices!$D$4 + G20) * I20 -> 6.169748654 | E89: =EXP(J20 + K20*Prices!$D$2 + L20*Prices!$D$4 + M20) * O20 -> 6.135667849 | F89: =EXP(P20 + Q20*Prices!$D$2 + R20*Prices!$D$4 + S20) * U20 -> 5.880772168 | G89: =EXP(V20 + W20*Prices!$D$2 + X20*Prices!$D$4 + Y20) * AA20 -> 6.146865527 | H89: =EXP(AB20 + AC20*Prices!$D$2 + AD20*Prices!$D$4 + AE20) * AG20 -> 6.049399791 | I89: =EXP(AH20 + AI20*Prices!$D$2 + AJ20*Prices!$D$4 + AK20) * AM20 -> 5.690719499 | J89: =EXP(AN20 + AO20*Prices!$D$2 + AP20*Prices!$D$4 + AQ20) * AS20 -> 5.720066368 | K89: =EXP(AT20 + AU20*Prices!$D$2 + AV20*Prices!$D$4 + AW20) * AY20 -> 6.824491562 | L89: =EXP(AZ20 + BA20*Prices!$D$2 + BB20*Prices!$D$4 + BC20) * BE20 -> 6.967184412 | M89: =EXP(BF20 + BG20*Prices!$D$2 + BH20*Prices!$D$4 + BI20) * BK20 -> 6.049109627 | N89: =EXP(BL20 + BM20*Prices!$D$2 + BN20*Prices!$D$4 + BO20) * BQ20 -> 6.006868129 | O89: =EXP(BR20 + BS20*Prices!$D$2 + BT20*Prices!$D$4 + BU20) * BW20 -> 6.012346939 | P89: =EXP(BX20 + BY20*Prices!$D$2 + BZ20*Prices!$D$4 + CA20) * CC20 -> 6.053176016 | Q89: =EXP(CD20 + CE20*Prices!$D$2 + CF20*Prices!$D$4 + CG20) * CI20 -> 6.049399791 | R89: =EXP(CJ20 + CK20*Prices!$D$2 + CL20*Prices!$D$4 + CM20) * CO20 -> 5.720066368 | S89: =EXP(CP20 + CQ20*Prices!$D$2 + CR20*Prices!$D$4 + CS20) * CU20 -> 5.882428775 | T89: =EXP(CV20 + CW20*Prices!$D$2 + CX20*Prices!$D$4 + CY20) * DA20 -> 6.895468892 | U89: =EXP(DB20 + DC20*Prices!$D$2 + DD20*Prices!$D$4 + DE20) * DG20 -> 6.491938255 | V89: =EXP(DH20 + DI20*Prices!$D$2 + DJ20*Prices!$D$4 + DK20) * DM20 -> 6.600948647 | DP89: Northwest | DQ89: Intercept
C90: Aerial insecticide | D90: =EXP(D21 + E21*Prices!$D$2 + F21*Prices!$D$4 + G21) * I21 -> 7.663589284 | E90: =EXP(J21 + K21*Prices!$D$2 + L21*Prices!$D$4 + M21) * O21 -> 7.472180646 | F90: =EXP(P21 + Q21*Prices!$D$2 + R21*Prices!$D$4 + S21) * U21 -> 6.863729122 | G90: =EXP(V21 + W21*Prices!$D$2 + X21*Prices!$D$4 + Y21) * AA21 -> 6.877027665 | H90: =EXP(AB21 + AC21*Prices!$D$2 + AD21*Prices!$D$4 + AE21) * AG21 -> 7.260869223 | I90: =EXP(AH21 + AI21*Prices!$D$2 + AJ21*Prices!$D$4 + AK21) * AM21 -> 7.071553001 | J90: =EXP(AN21 + AO21*Prices!$D$2 + AP21*Prices!$D$4 + AQ21) * AS21 -> 7.450387701 | K90: =EXP(AT21 + AU21*Prices!$D$2 + AV21*Prices!$D$4 + AW21) * AY21 -> 8.512837854 | L90: =EXP(AZ21 + BA21*Prices!$D$2 + BB21*Prices!$D$4 + BC21) * BE21 -> 8.702859614 | M90: =EXP(BF21 + BG21*Prices!$D$2 + BH21*Prices!$D$4 + BI21) * BK21 -> 8.965399512 | N90: =EXP(BL21 + BM21*Prices!$D$2 + BN21*Prices!$D$4 + BO21) * BQ21 -> 7.161495927 | O90: =EXP(BR21 + BS21*Prices!$D$2 + BT21*Prices!$D$4 + BU21) * BW21 -> 6.870375176 | P90: =EXP(BX21 + BY21*Prices!$D$2 + BZ21*Prices!$D$4 + CA21) * CC21 -> 7.065389197 | Q90: =EXP(CD21 + CE21*Prices!$D$2 + CF21*Prices!$D$4 + CG21) * CI21 -> 7.260869223 | R90: =EXP(CJ21 + CK21*Prices!$D$2 + CL21*Prices!$D$4 + CM21) * CO21 -> 7.450387701 | S90: =EXP(CP21 + CQ21*Prices!$D$2 + CR21*Prices!$D$4 + CS21) * CU21 -> 7.355018067 | T90: =EXP(CV21 + CW21*Prices!$D$2 + CX21*Prices!$D$4 + CY21) * DA21 -> 8.607324367 | U90: =EXP(DB21 + DC21*Prices!$D$2 + DD21*Prices!$D$4 + DE21) * DG21 -> 8.833154212 | V90: =EXP(DH21 + DI21*Prices!$D$2 + DJ21*Prices!$D$4 + DK21) * DM21 -> 8.725064822 | DP90: Northwest | DQ90: PPI
B91: Planting | C91: Wheat, reg-till planting | D91: =EXP(D22 + E22*Prices!$D$2 + F22*Prices!$D$4 + G22) * I22 -> 15.55256755 | E91: =EXP(J22 + K22*Prices!$D$2 + L22*Prices!$D$4 + M22) * O22 -> 14.69937619 | F91: =EXP(P22 + Q22*Prices!$D$2 + R22*Prices!$D$4 + S22) * U22 -> 13.78535901 | G91: =EXP(V22 + W22*Prices!$D$2 + X22*Prices!$D$4 + Y22) * AA22 -> 14.97250323 | H91: =EXP(AB22 + AC22*Prices!$D$2 + AD22*Prices!$D$4 + AE22) * AG22 -> 17.34005741 | I91: =EXP(AH22 + AI22*Prices!$D$2 + AJ22*Prices!$D$4 + AK22) * AM22 -> 15.68529787 | J91: =EXP(AN22 + AO22*Prices!$D$2 + AP22*Prices!$D$4 + AQ22) * AS22 -> 15.94560641 | K91: =EXP(AT22 + AU22*Prices!$D$2 + AV22*Prices!$D$4 + AW22) * AY22 -> 18.43320969 | L91: =EXP(AZ22 + BA22*Prices!$D$2 + BB22*Prices!$D$4 + BC22) * BE22 -> 17.74735173 | M91: =EXP(BF22 + BG22*Prices!$D$2 + BH22*Prices!$D$4 + BI22) * BK22 -> 15.7686267 | N91: =EXP(BL22 + BM22*Prices!$D$2 + BN22*Prices!$D$4 + BO22) * BQ22 -> 14.23503347 | O91: =EXP(BR22 + BS22*Prices!$D$2 + BT22*Prices!$D$4 + BU22) * BW22 -> 14.36667436 | P91: =EXP(BX22 + BY22*Prices!$D$2 + BZ22*Prices!$D$4 + CA22) * CC22 -> 14.47672974 | Q91: =EXP(CD22 + CE22*Prices!$D$2 + CF22*Prices!$D$4 + CG22) * CI22 -> 17.34005741 | R91: =EXP(CJ22 + CK22*Prices!$D$2 + CL22*Prices!$D$4 + CM22) * CO22 -> 15.94560641 | S91: =EXP(CP22 + CQ22*Prices!$D$2 + CR22*Prices!$D$4 + CS22) * CU22 -> 16.62822091 | T91: =EXP(CV22 + CW22*Prices!$D$2 + CX22*Prices!$D$4 + CY22) * DA22 -> 18.08703004 | U91: =EXP(DB22 + DC22*Prices!$D$2 + DD22*Prices!$D$4 + DE22) * DG22 -> 16.7287586 | V91: =EXP(DH22 + DI22*Prices!$D$2 + DJ22*Prices!$D$4 + DK22) * DM22 -> 17.27863633 | DP91: Northwest | DQ91: fuel
C92: Milo, reg-till planting | D92: =EXP(D23 + E23*Prices!$D$2 + F23*Prices!$D$4 + G23) * I23 -> 17.88769865 | E92: =EXP(J23 + K23*Prices!$D$2 + L23*Prices!$D$4 + M23) * O23 -> 17.98845026 | F92: =EXP(P23 + Q23*Prices!$D$2 + R23*Prices!$D$4 + S23) * U23 -> 17.26466386 | G92: =EXP(V23 + W23*Prices!$D$2 + X23*Prices!$D$4 + Y23) * AA23 -> 17.3067396 | H92: =EXP(AB23 + AC23*Prices!$D$2 + AD23*Prices!$D$4 + AE23) * AG23 -> 18.38604954 | I92: =EXP(AH23 + AI23*Prices!$D$2 + AJ23*Prices!$D$4 + AK23) * AM23 -> 18.55415206 | J92: =EXP(AN23 + AO23*Prices!$D$2 + AP23*Prices!$D$4 + AQ23) * AS23 -> 19.2712406 | K92: =EXP(AT23 + AU23*Prices!$D$2 + AV23*Prices!$D$4 + AW23) * AY23 -> 19.38281608 | L92: =EXP(AZ23 + BA23*Prices!$D$2 + BB23*Prices!$D$4 + BC23) * BE23 -> 18.21183595 | M92: =EXP(BF23 + BG23*Prices!$D$2 + BH23*Prices!$D$4 + BI23) * BK23 -> 16.50910268 | N92: =EXP(BL23 + BM23*Prices!$D$2 + BN23*Prices!$D$4 + BO23) * BQ23 -> 17.62284163 | O92: =EXP(BR23 + BS23*Prices!$D$2 + BT23*Prices!$D$4 + BU23) * BW23 -> 17.28568893 | P92: =EXP(BX23 + BY23*Prices!$D$2 + BZ23*Prices!$D$4 + CA23) * CC23 -> 17.51683794 | Q92: =EXP(CD23 + CE23*Prices!$D$2 + CF23*Prices!$D$4 + CG23) * CI23 -> 18.38604954 | R92: =EXP(CJ23 + CK23*Prices!$D$2 + CL23*Prices!$D$4 + CM23) * CO23 -> 19.2712406 | S92: =EXP(CP23 + CQ23*Prices!$D$2 + CR23*Prices!$D$4 + CS23) * CU23 -> 18.82344242 | T92: =EXP(CV23 + CW23*Prices!$D$2 + CX23*Prices!$D$4 + CY23) * DA23 -> 18.78820552 | U92: =EXP(DB23 + DC23*Prices!$D$2 + DD23*Prices!$D$4 + DE23) * DG23 -> 17.33958102 | V92: =EXP(DH23 + DI23*Prices!$D$2 + DJ23*Prices!$D$4 + DK23) * DM23 -> 17.99553204 | DP92: Northwest | DQ92: Adjustment factor
C93: Corn, reg-till planting | D93: =EXP(D24 + E24*Prices!$D$2 + F24*Prices!$D$4 + G24) * I24 -> 17.96344656 | E93: =EXP(J24 + K24*Prices!$D$2 + L24*Prices!$D$4 + M24) * O24 -> 17.47518 | F93: =EXP(P24 + Q24*Prices!$D$2 + R24*Prices!$D$4 + S24) * U24 -> 17.30168938 | G93: =EXP(V24 + W24*Prices!$D$2 + X24*Prices!$D$4 + Y24) * AA24 -> 17.88277603 | H93: =EXP(AB24 + AC24*Prices!$D$2 + AD24*Prices!$D$4 + AE24) * AG24 -> 18.22473957 | I93: =EXP(AH24 + AI24*Prices!$D$2 + AJ24*Prices!$D$4 + AK24) * AM24 -> 19.21474367 | J93: =EXP(AN24 + AO24*Prices!$D$2 + AP24*Prices!$D$4 + AQ24) * AS24 -> 19.17778213 | K93: =EXP(AT24 + AU24*Prices!$D$2 + AV24*Prices!$D$4 + AW24) * AY24 -> 19.13528684 | L93: =EXP(AZ24 + BA24*Prices!$D$2 + BB24*Prices!$D$4 + BC24) * BE24 -> 17.22158488 | M93: =EXP(BF24 + BG24*Prices!$D$2 + BH24*Prices!$D$4 + BI24) * BK24 -> 16.4273665 | N93: =EXP(BL24 + BM24*Prices!$D$2 + BN24*Prices!$D$4 + BO24) * BQ24 -> 17.38821832 | O93: =EXP(BR24 + BS24*Prices!$D$2 + BT24*Prices!$D$4 + BU24) * BW24 -> 17.58983332 | P93: =EXP(BX24 + BY24*Prices!$D$2 + BZ24*Prices!$D$4 + CA24) * CC24 -> 17.55153221 | Q93: =EXP(CD24 + CE24*Prices!$D$2 + CF24*Prices!$D$4 + CG24) * CI24 -> 18.22473957 | R93: =EXP(CJ24 + CK24*Prices!$D$2 + CL24*Prices!$D$4 + CM24) * CO24 -> 19.17778213 | S93: =EXP(CP24 + CQ24*Prices!$D$2 + CR24*Prices!$D$4 + CS24) * CU24 -> 18.69518881 | T93: =EXP(CV24 + CW24*Prices!$D$2 + CX24*Prices!$D$4 + CY24) * DA24 -> 18.1532357 | U93: =EXP(DB24 + DC24*Prices!$D$2 + DD24*Prices!$D$4 + DE24) * DG24 -> 16.81978854 | V93: =EXP(DH24 + DI24*Prices!$D$2 + DJ24*Prices!$D$4 + DK24) * DM24 -> 17.55868603 | DP93: Northwest | DQ93: RMSE
C94: Soybeans, reg-till planting | D94: =EXP(D25 + E25*Prices!$D$2 + F25*Prices!$D$4 + G25) * I25 -> 18.02272277 | E94: =EXP(J25 + K25*Prices!$D$2 + L25*Prices!$D$4 + M25) * O25 -> 17.72000982 | F94: =EXP(P25 + Q25*Prices!$D$2 + R25*Prices!$D$4 + S25) * U25 -> 17.21277082 | G94: =EXP(V25 + W25*Prices!$D$2 + X25*Prices!$D$4 + Y25) * AA25 -> 17.40993678 | H94: =EXP(AB25 + AC25*Prices!$D$2 + AD25*Prices!$D$4 + AE25) * AG25 -> 18.04726914 | I94: =EXP(AH25 + AI25*Prices!$D$2 + AJ25*Prices!$D$4 + AK25) * AM25 -> 18.18394959 | J94: =EXP(AN25 + AO25*Prices!$D$2 + AP25*Prices!$D$4 + AQ25) * AS25 -> 18.50971113 | K94: =EXP(AT25 + AU25*Prices!$D$2 + AV25*Prices!$D$4 + AW25) * AY25 -> 18.93890871 | L94: =EXP(AZ25 + BA25*Prices!$D$2 + BB25*Prices!$D$4 + BC25) * BE25 -> 17.31456551 | M94: =EXP(BF25 + BG25*Prices!$D$2 + BH25*Prices!$D$4 + BI25) * BK25 -> 16.00505472 | N94: =EXP(BL25 + BM25*Prices!$D$2 + BN25*Prices!$D$4 + BO25) * BQ25 -> 17.46454889 | O94: =EXP(BR25 + BS25*Prices!$D$2 + BT25*Prices!$D$4 + BU25) * BW25 -> 17.3110731 | P94: =EXP(BX25 + BY25*Prices!$D$2 + BZ25*Prices!$D$4 + CA25) * CC25 -> 17.44632585 | Q94: =EXP(CD25 + CE25*Prices!$D$2 + CF25*Prices!$D$4 + CG25) * CI25 -> 18.04726914 | R94: =EXP(CJ25 + CK25*Prices!$D$2 + CL25*Prices!$D$4 + CM25) * CO25 -> 18.50971113 | S94: =EXP(CP25 + CQ25*Prices!$D$2 + CR25*Prices!$D$4 + CS25) * CU25 -> 18.27702762 | T94: =EXP(CV25 + CW25*Prices!$D$2 + CX25*Prices!$D$4 + CY25) * DA25 -> 18.10853323 | U94: =EXP(DB25 + DC25*Prices!$D$2 + DD25*Prices!$D$4 + DE25) * DG25 -> 16.64693871 | V94: =EXP(DH25 + DI25*Prices!$D$2 + DJ25*Prices!$D$4 + DK25) * DM25 -> 17.37832456 | DP94: Northwest | DQ94: LN adjustment
C95: Grass seeding, reg-till | D95: =EXP(D26 + E26*Prices!$D$2 + F26*Prices!$D$4 + G26) * I26 -> 18.19297755 | E95: =EXP(J26 + K26*Prices!$D$2 + L26*Prices!$D$4 + M26) * O26 -> 17.85393008 | F95: =EXP(P26 + Q26*Prices!$D$2 + R26*Prices!$D$4 + S26) * U26 -> 17.01251906 | G95: =EXP(V26 + W26*Prices!$D$2 + X26*Prices!$D$4 + Y26) * AA26 -> 17.99511921 | H95: =EXP(AB26 + AC26*Prices!$D$2 + AD26*Prices!$D$4 + AE26) * AG26 -> 18.48272499 | I95: =EXP(AH26 + AI26*Prices!$D$2 + AJ26*Prices!$D$4 + AK26) * AM26 -> 18.92883337 | J95: =EXP(AN26 + AO26*Prices!$D$2 + AP26*Prices!$D$4 + AQ26) * AS26 -> 17.41044122 | K95: =EXP(AT26 + AU26*Prices!$D$2 + AV26*Prices!$D$4 + AW26) * AY26 -> 20.50050327 | L95: =EXP(AZ26 + BA26*Prices!$D$2 + BB26*Prices!$D$4 + BC26) * BE26 -> 21.6333818 | M95: =EXP(BF26 + BG26*Prices!$D$2 + BH26*Prices!$D$4 + BI26) * BK26 -> 19.43292386 | N95: =EXP(BL26 + BM26*Prices!$D$2 + BN26*Prices!$D$4 + BO26) * BQ26 -> 17.42814751 | O95: =EXP(BR26 + BS26*Prices!$D$2 + BT26*Prices!$D$4 + BU26) * BW26 -> 17.49692283 | P95: =EXP(BX26 + BY26*Prices!$D$2 + BZ26*Prices!$D$4 + CA26) * CC26 -> 17.61512492 | Q95: =EXP(CD26 + CE26*Prices!$D$2 + CF26*Prices!$D$4 + CG26) * CI26 -> 18.48272499 | R95: =EXP(CJ26 + CK26*Prices!$D$2 + CL26*Prices!$D$4 + CM26) * CO26 -> 17.41044122 | S95: =EXP(CP26 + CQ26*Prices!$D$2 + CR26*Prices!$D$4 + CS26) * CU26 -> 17.93857288 | T95: =EXP(CV26 + CW26*Prices!$D$2 + CX26*Prices!$D$4 + CY26) * DA26 -> 21.05932607 | U95: =EXP(DB26 + DC26*Prices!$D$2 + DD26*Prices!$D$4 + DE26) * DG26 -> 20.50365483 | V95: =EXP(DH26 + DI26*Prices!$D$2 + DJ26*Prices!$D$4 + DK26) * DM26 -> 20.50260425 | DP95: Southwest | DQ95: Intercept
C96: Alfalfa seeding, reg-till | D96: =EXP(D27 + E27*Prices!$D$2 + F27*Prices!$D$4 + G27) * I27 -> 18.35638166 | E96: =EXP(J27 + K27*Prices!$D$2 + L27*Prices!$D$4 + M27) * O27 -> 19.46209426 | F96: =EXP(P27 + Q27*Prices!$D$2 + R27*Prices!$D$4 + S27) * U27 -> 18.70192598 | G96: =EXP(V27 + W27*Prices!$D$2 + X27*Prices!$D$4 + Y27) * AA27 -> 18.32494961 | H96: =EXP(AB27 + AC27*Prices!$D$2 + AD27*Prices!$D$4 + AE27) * AG27 -> 19.45977335 | I96: =EXP(AH27 + AI27*Prices!$D$2 + AJ27*Prices!$D$4 + AK27) * AM27 -> 18.43158622 | J96: =EXP(AN27 + AO27*Prices!$D$2 + AP27*Prices!$D$4 + AQ27) * AS27 -> 17.5259072 | K96: =EXP(AT27 + AU27*Prices!$D$2 + AV27*Prices!$D$4 + AW27) * AY27 -> 20.34740282 | L96: =EXP(AZ27 + BA27*Prices!$D$2 + BB27*Prices!$D$4 + BC27) * BE27 -> 21.98760421 | M96: =EXP(BF27 + BG27*Prices!$D$2 + BH27*Prices!$D$4 + BI27) * BK27 -> 18.69465205 | N96: =EXP(BL27 + BM27*Prices!$D$2 + BN27*Prices!$D$4 + BO27) * BQ27 -> 19.0782244 | O96: =EXP(BR27 + BS27*Prices!$D$2 + BT27*Prices!$D$4 + BU27) * BW27 -> 18.51247826 | P96: =EXP(BX27 + BY27*Prices!$D$2 + BZ27*Prices!$D$4 + CA27) * CC27 -> 18.82375369 | Q96: =EXP(CD27 + CE27*Prices!$D$2 + CF27*Prices!$D$4 + CG27) * CI27 -> 19.45977335 | R96: =EXP(CJ27 + CK27*Prices!$D$2 + CL27*Prices!$D$4 + CM27) * CO27 -> 17.5259072 | S96: =EXP(CP27 + CQ27*Prices!$D$2 + CR27*Prices!$D$4 + CS27) * CU27 -> 18.46754401 | T96: =EXP(CV27 + CW27*Prices!$D$2 + CX27*Prices!$D$4 + CY27) * DA27 -> 21.15161081 | U96: =EXP(DB27 + DC27*Prices!$D$2 + DD27*Prices!$D$4 + DE27) * DG27 -> 20.2743831 | V96: =EXP(DH27 + DI27*Prices!$D$2 + DJ27*Prices!$D$4 + DK27) * DM27 -> 20.29869384 | DP96: Southwest | DQ96: PPI
C97: Sunflowers, reg-till planting | D97: =EXP(D28 + E28*Prices!$D$2 + F28*Prices!$D$4 + G28) * I28 -> 17.95787138 | E97: =EXP(J28 + K28*Prices!$D$2 + L28*Prices!$D$4 + M28) * O28 -> 17.72664158 | F97: =EXP(P28 + Q28*Prices!$D$2 + R28*Prices!$D$4 + S28) * U28 -> 17.25966982 | G97: =EXP(V28 + W28*Prices!$D$2 + X28*Prices!$D$4 + Y28) * AA28 -> 17.53136798 | H97: =EXP(AB28 + AC28*Prices!$D$2 + AD28*Prices!$D$4 + AE28) * AG28 -> 18.21882759 | I97: =EXP(AH28 + AI28*Prices!$D$2 + AJ28*Prices!$D$4 + AK28) * AM28 -> 18.64609891 | J97: =EXP(AN28 + AO28*Prices!$D$2 + AP28*Prices!$D$4 + AQ28) * AS28 -> 18.983192 | K97: =EXP(AT28 + AU28*Prices!$D$2 + AV28*Prices!$D$4 + AW28) * AY28 -> 19.15147712 | L97: =EXP(AZ28 + BA28*Prices!$D$2 + BB28*Prices!$D$4 + BC28) * BE28 -> 17.57705682 | M97: =EXP(BF28 + BG28*Prices!$D$2 + BH28*Prices!$D$4 + BI28) * BK28 -> 16.31233761 | N97: =EXP(BL28 + BM28*Prices!$D$2 + BN28*Prices!$D$4 + BO28) * BQ28 -> 17.49159743 | O97: =EXP(BR28 + BS28*Prices!$D$2 + BT28*Prices!$D$4 + BU28) * BW28 -> 17.39498844 | P97: =EXP(BX28 + BY28*Prices!$D$2 + BZ28*Prices!$D$4 + CA28) * CC28 -> 17.50484425 | Q97: =EXP(CD28 + CE28*Prices!$D$2 + CF28*Prices!$D$4 + CG28) * CI28 -> 18.43122517 | R97: =EXP(CJ28 + CK28*Prices!$D$2 + CL28*Prices!$D$4 + CM28) * CO28 -> 18.8138905 | S97: =EXP(CP28 + CQ28*Prices!$D$2 + CR28*Prices!$D$4 + CS28) * CU28 -> 18.61340741 | T97: =EXP(CV28 + CW28*Prices!$D$2 + CX28*Prices!$D$4 + CY28) * DA28 -> 18.34738677 | U97: =EXP(DB28 + DC28*Prices!$D$2 + DD28*Prices!$D$4 + DE28) * DG28 -> 16.93289358 | V97: =EXP(DH28 + DI28*Prices!$D$2 + DJ28*Prices!$D$4 + DK28) * DM28 -> 17.6422868 | DP97: Southwest | DQ97: fuel
C98: Wheat, min-till planting | D98: =EXP(D29 + E29*Prices!$D$2 + F29*Prices!$D$4 + G29) * I29 -> 19.37856212 | E98: =EXP(J29 + K29*Prices!$D$2 + L29*Prices!$D$4 + M29) * O29 -> 19.58408642 | F98: =EXP(P29 + Q29*Prices!$D$2 + R29*Prices!$D$4 + S29) * U29 -> 18.80285502 | G98: =EXP(V29 + W29*Prices!$D$2 + X29*Prices!$D$4 + Y29) * AA29 -> 19.20816901 | H98: =EXP(AB29 + AC29*Prices!$D$2 + AD29*Prices!$D$4 + AE29) * AG29 -> 21.890919 | I98: =EXP(AH29 + AI29*Prices!$D$2 + AJ29*Prices!$D$4 + AK29) * AM29 -> 22.21885969 | J98: =EXP(AN29 + AO29*Prices!$D$2 + AP29*Prices!$D$4 + AQ29) * AS29 -> 20.32568391 | K98: =EXP(AT29 + AU29*Prices!$D$2 + AV29*Prices!$D$4 + AW29) * AY29 -> 24.41098818 | L98: =EXP(AZ29 + BA29*Prices!$D$2 + BB29*Prices!$D$4 + BC29) * BE29 -> 23.41230467 | M98: =EXP(BF29 + BG29*Prices!$D$2 + BH29*Prices!$D$4 + BI29) * BK29 -> 22.31507461 | N98: =EXP(BL29 + BM29*Prices!$D$2 + BN29*Prices!$D$4 + BO29) * BQ29 -> 19.1894955 | O98: =EXP(BR29 + BS29*Prices!$D$2 + BT29*Prices!$D$4 + BU29) * BW29 -> 19.00443151 | P98: =EXP(BX29 + BY29*Prices!$D$2 + BZ29*Prices!$D$4 + CA29) * CC29 -> 19.19571798 | Q98: =EXP(CD29 + CE29*Prices!$D$2 + CF29*Prices!$D$4 + CG29) * CI29 -> 21.890919 | R98: =EXP(CJ29 + CK29*Prices!$D$2 + CL29*Prices!$D$4 + CM29) * CO29 -> 20.32568391 | S98: =EXP(CP29 + CQ29*Prices!$D$2 + CR29*Prices!$D$4 + CS29) * CU29 -> 21.09378819 | T98: =EXP(CV29 + CW29*Prices!$D$2 + CX29*Prices!$D$4 + CY29) * DA29 -> 23.90643203 | U98: =EXP(DB29 + DC29*Prices!$D$2 + DD29*Prices!$D$4 + DE29) * DG29 -> 22.85710667 | V98: =EXP(DH29 + DI29*Prices!$D$2 + DJ29*Prices!$D$4 + DK29) * DM29 -> 23.36375393 | DP98: Southwest | DQ98: Adjustment factor
C99: Milo, minimum till | D99: =EXP(D30 + E30*Prices!$D$2 + F30*Prices!$D$4 + G30) * I30 -> 20.26526798 | E99: =EXP(J30 + K30*Prices!$D$2 + L30*Prices!$D$4 + M30) * O30 -> 19.23953637 | F99: =EXP(P30 + Q30*Prices!$D$2 + R30*Prices!$D$4 + S30) * U30 -> 18.47016191 | G99: =EXP(V30 + W30*Prices!$D$2 + X30*Prices!$D$4 + Y30) * AA30 -> 18.58107849 | H99: =EXP(AB30 + AC30*Prices!$D$2 + AD30*Prices!$D$4 + AE30) * AG30 -> 20.34146919 | I99: =EXP(AH30 + AI30*Prices!$D$2 + AJ30*Prices!$D$4 + AK30) * AM30 -> 21.2209854 | J99: =EXP(AN30 + AO30*Prices!$D$2 + AP30*Prices!$D$4 + AQ30) * AS30 -> 21.21755514 | K99: =EXP(AT30 + AU30*Prices!$D$2 + AV30*Prices!$D$4 + AW30) * AY30 -> 23.4283812 | L99: =EXP(AZ30 + BA30*Prices!$D$2 + BB30*Prices!$D$4 + BC30) * BE30 -> 22.12583884 | M99: =EXP(BF30 + BG30*Prices!$D$2 + BH30*Prices!$D$4 + BI30) * BK30 -> 21.40914291 | N99: =EXP(BL30 + BM30*Prices!$D$2 + BN30*Prices!$D$4 + BO30) * BQ30 -> 18.85092443 | O99: =EXP(BR30 + BS30*Prices!$D$2 + BT30*Prices!$D$4 + BU30) * BW30 -> 18.52553719 | P99: =EXP(BX30 + BY30*Prices!$D$2 + BZ30*Prices!$D$4 + CA30) * CC30 -> 18.76054314 | Q99: =EXP(CD30 + CE30*Prices!$D$2 + CF30*Prices!$D$4 + CG30) * CI30 -> 20.34146919 | R99: =EXP(CJ30 + CK30*Prices!$D$2 + CL30*Prices!$D$4 + CM30) * CO30 -> 21.21755514 | S99: =EXP(CP30 + CQ30*Prices!$D$2 + CR30*Prices!$D$4 + CS30) * CU30 -> 20.77489456 | T99: =EXP(CV30 + CW30*Prices!$D$2 + CX30*Prices!$D$4 + CY30) * DA30 -> 22.76779714 | U99: =EXP(DB30 + DC30*Prices!$D$2 + DD30*Prices!$D$4 + DE30) * DG30 -> 21.76454102 | V99: =EXP(DH30 + DI30*Prices!$D$2 + DJ30*Prices!$D$4 + DK30) * DM30 -> 22.30559278 | DP99: Southwest | DQ99: RMSE
C100: Corn, minimum till | D100: =EXP(D31 + E31*Prices!$D$2 + F31*Prices!$D$4 + G31) * I31 -> 20.17846303 | E100: =EXP(J31 + K31*Prices!$D$2 + L31*Prices!$D$4 + M31) * O31 -> 19.68247164 | F100: =EXP(P31 + Q31*Prices!$D$2 + R31*Prices!$D$4 + S31) * U31 -> 18.9937086 | G100: =EXP(V31 + W31*Prices!$D$2 + X31*Prices!$D$4 + Y31) * AA31 -> 20.1198326 | H100: =EXP(AB31 + AC31*Prices!$D$2 + AD31*Prices!$D$4 + AE31) * AG31 -> 20.58947852 | I100: =EXP(AH31 + AI31*Prices!$D$2 + AJ31*Prices!$D$4 + AK31) * AM31 -> 21.72914489 | J100: =EXP(AN31 + AO31*Prices!$D$2 + AP31*Prices!$D$4 + AQ31) * AS31 -> 21.50239328 | K100: =EXP(AT31 + AU31*Prices!$D$2 + AV31*Prices!$D$4 + AW31) * AY31 -> 22.87568479 | L100: =EXP(AZ31 + BA31*Prices!$D$2 + BB31*Prices!$D$4 + BC31) * BE31 -> 21.74548496 | M100: =EXP(BF31 + BG31*Prices!$D$2 + BH31*Prices!$D$4 + BI31) * BK31 -> 20.62260805 | N100: =EXP(BL31 + BM31*Prices!$D$2 + BN31*Prices!$D$4 + BO31) * BQ31 -> 19.33502343 | O100: =EXP(BR31 + BS31*Prices!$D$2 + BT31*Prices!$D$4 + BU31) * BW31 -> 19.54866332 | P100: =EXP(BX31 + BY31*Prices!$D$2 + BZ31*Prices!$D$4 + CA31) * CC31 -> 19.59316471 | Q100: =EXP(CD31 + CE31*Prices!$D$2 + CF31*Prices!$D$4 + CG31) * CI31 -> 20.58947852 | R100: =EXP(CJ31 + CK31*Prices!$D$2 + CL31*Prices!$D$4 + CM31) * CO31 -> 21.50239328 | S100: =EXP(CP31 + CQ31*Prices!$D$2 + CR31*Prices!$D$4 + CS31) * CU31 -> 21.04098535 | T100: =EXP(CV31 + CW31*Prices!$D$2 + CX31*Prices!$D$4 + CY31) * DA31 -> 22.30342708 | U100: =EXP(DB31 + DC31*Prices!$D$2 + DD31*Prices!$D$4 + DE31) * DG31 -> 21.17660533 | V100: =EXP(DH31 + DI31*Prices!$D$2 + DJ31*Prices!$D$4 + DK31) * DM31 -> 21.72845914 | DP100: Southwest | DQ100: LN adjustment
C101: Soybeans, minimum till | D101: =EXP(D32 + E32*Prices!$D$2 + F32*Prices!$D$4 + G32) * I32 -> 20.46858305 | E101: =EXP(J32 + K32*Prices!$D$2 + L32*Prices!$D$4 + M32) * O32 -> 20.55709546 | F101: =EXP(P32 + Q32*Prices!$D$2 + R32*Prices!$D$4 + S32) * U32 -> 19.86261136 | G101: =EXP(V32 + W32*Prices!$D$2 + X32*Prices!$D$4 + Y32) * AA32 -> 21.04911242 | H101: =EXP(AB32 + AC32*Prices!$D$2 + AD32*Prices!$D$4 + AE32) * AG32 -> 21.07853064 | I101: =EXP(AH32 + AI32*Prices!$D$2 + AJ32*Prices!$D$4 + AK32) * AM32 -> 22.45930421 | J101: =EXP(AN32 + AO32*Prices!$D$2 + AP32*Prices!$D$4 + AQ32) * AS32 -> 21.80367482 | K101: =EXP(AT32 + AU32*Prices!$D$2 + AV32*Prices!$D$4 + AW32) * AY32 -> 24.04324511 | L101: =EXP(AZ32 + BA32*Prices!$D$2 + BB32*Prices!$D$4 + BC32) * BE32 -> 21.99392718 | M101: =EXP(BF32 + BG32*Prices!$D$2 + BH32*Prices!$D$4 + BI32) * BK32 -> 21.90888542 | N101: =EXP(BL32 + BM32*Prices!$D$2 + BN32*Prices!$D$4 + BO32) * BQ32 -> 20.20687007 | O101: =EXP(BR32 + BS32*Prices!$D$2 + BT32*Prices!$D$4 + BU32) * BW32 -> 20.44725751 | P101: =EXP(BX32 + BY32*Prices!$D$2 + BZ32*Prices!$D$4 + CA32) * CC32 -> 20.48380479 | Q101: =EXP(CD32 + CE32*Prices!$D$2 + CF32*Prices!$D$4 + CG32) * CI32 -> 21.07853064 | R101: =EXP(CJ32 + CK32*Prices!$D$2 + CL32*Prices!$D$4 + CM32) * CO32 -> 21.80367482 | S101: =EXP(CP32 + CQ32*Prices!$D$2 + CR32*Prices!$D$4 + CS32) * CU32 -> 21.43803694 | T101: =EXP(CV32 + CW32*Prices!$D$2 + CX32*Prices!$D$4 + CY32) * DA32 -> 22.99576879 | U101: =EXP(DB32 + DC32*Prices!$D$2 + DD32*Prices!$D$4 + DE32) * DG32 -> 21.95136512 | V101: =EXP(DH32 + DI32*Prices!$D$2 + DJ32*Prices!$D$4 + DK32) * DM32 -> 22.62761167 | DP101: West | DQ101: Intercept
C102: Sunflowers, minimum till | D102: =EXP(D33 + E33*Prices!$D$2 + F33*Prices!$D$4 + G33) * I33 -> 20.30374228 | E102: =EXP(J33 + K33*Prices!$D$2 + L33*Prices!$D$4 + M33) * O33 -> 19.81886511 | F102: =EXP(P33 + Q33*Prices!$D$2 + R33*Prices!$D$4 + S33) * U33 -> 19.10025029 | G102: =EXP(V33 + W33*Prices!$D$2 + X33*Prices!$D$4 + Y33) * AA33 -> 19.89038281 | H102: =EXP(AB33 + AC33*Prices!$D$2 + AD33*Prices!$D$4 + AE33) * AG33 -> 20.66757162 | I102: =EXP(AH33 + AI33*Prices!$D$2 + AJ33*Prices!$D$4 + AK33) * AM33 -> 21.79724532 | J102: =EXP(AN33 + AO33*Prices!$D$2 + AP33*Prices!$D$4 + AQ33) * AS33 -> 21.50654915 | K102: =EXP(AT33 + AU33*Prices!$D$2 + AV33*Prices!$D$4 + AW33) * AY33 -> 23.44426429 | L102: =EXP(AZ33 + BA33*Prices!$D$2 + BB33*Prices!$D$4 + BC33) * BE33 -> 21.9545224 | M102: =EXP(BF33 + BG33*Prices!$D$2 + BH33*Prices!$D$4 + BI33) * BK33 -> 21.30694426 | N102: =EXP(BL33 + BM33*Prices!$D$2 + BN33*Prices!$D$4 + BO33) * BQ33 -> 19.45624024 | O102: =EXP(BR33 + BS33*Prices!$D$2 + BT33*Prices!$D$4 + BU33) * BW33 -> 19.49131319 | P102: =EXP(BX33 + BY33*Prices!$D$2 + BZ33*Prices!$D$4 + CA33) * CC33 -> 19.5998912 | Q102: =EXP(CD33 + CE33*Prices!$D$2 + CF33*Prices!$D$4 + CG33) * CI33 -> 21.22489408 | R102: =EXP(CJ33 + CK33*Prices!$D$2 + CL33*Prices!$D$4 + CM33) * CO33 -> 21.65140937 | S102: =EXP(CP33 + CQ33*Prices!$D$2 + CR33*Prices!$D$4 + CS33) * CU33 -> 21.31836686 | T102: =EXP(CV33 + CW33*Prices!$D$2 + CX33*Prices!$D$4 + CY33) * DA33 -> 22.68716874 | U102: =EXP(DB33 + DC33*Prices!$D$2 + DD33*Prices!$D$4 + DE33) * DG33 -> 21.6283098 | V102: =EXP(DH33 + DI33*Prices!$D$2 + DJ33*Prices!$D$4 + DK33) * DM33 -> 22.2174353 | DP102: West | DQ102: PPI
B103: Harvesting | C103: Wheat (base) | D103: =EXP(D34 + E34*Prices!$D$2 + F34*Prices!$D$4 + G34) * I34 -> 21.84399985 | E103: =EXP(J34 + K34*Prices!$D$2 + L34*Prices!$D$4 + M34) * O34 -> 20.95941148 | F103: =EXP(P34 + Q34*Prices!$D$2 + R34*Prices!$D$4 + S34) * U34 -> 20.74547438 | G103: =EXP(V34 + W34*Prices!$D$2 + X34*Prices!$D$4 + Y34) * AA34 -> 20.50881332 | H103: =EXP(AB34 + AC34*Prices!$D$2 + AD34*Prices!$D$4 + AE34) * AG34 -> 21.06743344 | I103: =EXP(AH34 + AI34*Prices!$D$2 + AJ34*Prices!$D$4 + AK34) * AM34 -> 21.01293741 | J103: =EXP(AN34 + AO34*Prices!$D$2 + AP34*Prices!$D$4 + AQ34) * AS34 -> 21.04657633 | K103: =EXP(AT34 + AU34*Prices!$D$2 + AV34*Prices!$D$4 + AW34) * AY34 -> 25.56391887 | L103: =EXP(AZ34 + BA34*Prices!$D$2 + BB34*Prices!$D$4 + BC34) * BE34 -> 26.54813978 | M103: =EXP(BF34 + BG34*Prices!$D$2 + BH34*Prices!$D$4 + BI34) * BK34 -> 24.01075503 | N103: =EXP(BL34 + BM34*Prices!$D$2 + BN34*Prices!$D$4 + BO34) * BQ34 -> 20.85216856 | O103: =EXP(BR34 + BS34*Prices!$D$2 + BT34*Prices!$D$4 + BU34) * BW34 -> 20.62680444 | P103: =EXP(BX34 + BY34*Prices!$D$2 + BZ34*Prices!$D$4 + CA34) * CC34 -> 20.73708281 | Q103: =EXP(CD34 + CE34*Prices!$D$2 + CF34*Prices!$D$4 + CG34) * CI34 -> 21.06743344 | R103: =EXP(CJ34 + CK34*Prices!$D$2 + CL34*Prices!$D$4 + CM34) * CO34 -> 21.04657633 | S103: =EXP(CP34 + CQ34*Prices!$D$2 + CR34*Prices!$D$4 + CS34) * CU34 -> 21.0570023 | T103: =EXP(CV34 + CW34*Prices!$D$2 + CX34*Prices!$D$4 + CY34) * DA34 -> 26.05138176 | U103: =EXP(DB34 + DC34*Prices!$D$2 + DD34*Prices!$D$4 + DE34) * DG34 -> 25.24759158 | V103: =EXP(DH34 + DI34*Prices!$D$2 + DJ34*Prices!$D$4 + DK34) * DM34 -> 25.35259669 | DP103: West | DQ103: fuel
C104: Wheat (extra charge for high yield) - $/bu | D104: =EXP(D35 + E35*Prices!$D$2 + F35*Prices!$D$4 + G35) * I35 -> 21.19690472 | E104: =EXP(J35 + K35*Prices!$D$2 + L35*Prices!$D$4 + M35) * O35 -> 21.46004552 | F104: =EXP(P35 + Q35*Prices!$D$2 + R35*Prices!$D$4 + S35) * U35 -> 20.63690016 | G104: =EXP(V35 + W35*Prices!$D$2 + X35*Prices!$D$4 + Y35) * AA35 -> 20.50245933 | H104: =EXP(AB35 + AC35*Prices!$D$2 + AD35*Prices!$D$4 + AE35) * AG35 -> 20.73912499 | I104: =EXP(AH35 + AI35*Prices!$D$2 + AJ35*Prices!$D$4 + AK35) * AM35 -> 20.690664 | J104: =EXP(AN35 + AO35*Prices!$D$2 + AP35*Prices!$D$4 + AQ35) * AS35 -> 20.86931375 | K104: =EXP(AT35 + AU35*Prices!$D$2 + AV35*Prices!$D$4 + AW35) * AY35 -> 21.10177166 | L104: =EXP(AZ35 + BA35*Prices!$D$2 + BB35*Prices!$D$4 + BC35) * BE35 -> 20.40921656 | M104: =EXP(BF35 + BG35*Prices!$D$2 + BH35*Prices!$D$4 + BI35) * BK35 -> 20.32169246 | N104: =EXP(BL35 + BM35*Prices!$D$2 + BN35*Prices!$D$4 + BO35) * BQ35 -> 21.0444486 | O104: =EXP(BR35 + BS35*Prices!$D$2 + BT35*Prices!$D$4 + BU35) * BW35 -> 20.5695699 | P104: =EXP(BX35 + BY35*Prices!$D$2 + BZ35*Prices!$D$4 + CA35) * CC35 -> 20.86221196 | Q104: =EXP(CD35 + CE35*Prices!$D$2 + CF35*Prices!$D$4 + CG35) * CI35 -> 20.73912499 | R104: =EXP(CJ35 + CK35*Prices!$D$2 + CL35*Prices!$D$4 + CM35) * CO35 -> 20.86931375 | S104: =EXP(CP35 + CQ35*Prices!$D$2 + CR35*Prices!$D$4 + CS35) * CU35 -> 20.80411753 | T104: =EXP(CV35 + CW35*Prices!$D$2 + CX35*Prices!$D$4 + CY35) * DA35 -> 20.75260532 | U104: =EXP(DB35 + DC35*Prices!$D$2 + DD35*Prices!$D$4 + DE35) * DG35 -> 20.36540749 | V104: =EXP(DH35 + DI35*Prices!$D$2 + DJ35*Prices!$D$4 + DK35) * DM35 -> 20.60796189 | DP104: West | DQ104: Adjustment factor
C105: Milo (base) | D105: =EXP(D36 + E36*Prices!$D$2 + F36*Prices!$D$4 + G36) * I36 -> 22.23881423 | E105: =EXP(J36 + K36*Prices!$D$2 + L36*Prices!$D$4 + M36) * O36 -> 22.06459573 | F105: =EXP(P36 + Q36*Prices!$D$2 + R36*Prices!$D$4 + S36) * U36 -> 21.66494452 | G105: =EXP(V36 + W36*Prices!$D$2 + X36*Prices!$D$4 + Y36) * AA36 -> 21.5479298 | H105: =EXP(AB36 + AC36*Prices!$D$2 + AD36*Prices!$D$4 + AE36) * AG36 -> 22.31107786 | I105: =EXP(AH36 + AI36*Prices!$D$2 + AJ36*Prices!$D$4 + AK36) * AM36 -> 21.79726202 | J105: =EXP(AN36 + AO36*Prices!$D$2 + AP36*Prices!$D$4 + AQ36) * AS36 -> 22.36862059 | K105: =EXP(AT36 + AU36*Prices!$D$2 + AV36*Prices!$D$4 + AW36) * AY36 -> 27.85530874 | L105: =EXP(AZ36 + BA36*Prices!$D$2 + BB36*Prices!$D$4 + BC36) * BE36 -> 28.16485513 | M105: =EXP(BF36 + BG36*Prices!$D$2 + BH36*Prices!$D$4 + BI36) * BK36 -> 25.26431064 | N105: =EXP(BL36 + BM36*Prices!$D$2 + BN36*Prices!$D$4 + BO36) * BQ36 -> 21.86385699 | O105: =EXP(BR36 + BS36*Prices!$D$2 + BT36*Prices!$D$4 + BU36) * BW36 -> 21.60635794 | P105: =EXP(BX36 + BY36*Prices!$D$2 + BZ36*Prices!$D$4 + CA36) * CC36 -> 21.75803658 | Q105: =EXP(CD36 + CE36*Prices!$D$2 + CF36*Prices!$D$4 + CG36) * CI36 -> 22.31107786 | R105: =EXP(CJ36 + CK36*Prices!$D$2 + CL36*Prices!$D$4 + CM36) * CO36 -> 22.36862059 | S105: =EXP(CP36 + CQ36*Prices!$D$2 + CR36*Prices!$D$4 + CS36) * CU36 -> 22.3398307 | T105: =EXP(CV36 + CW36*Prices!$D$2 + CX36*Prices!$D$4 + CY36) * DA36 -> 28.00965432 | U105: =EXP(DB36 + DC36*Prices!$D$2 + DD36*Prices!$D$4 + DE36) * DG36 -> 26.67518789 | V105: =EXP(DH36 + DI36*Prices!$D$2 + DJ36*Prices!$D$4 + DK36) * DM36 -> 27.06289901 | DP105: West | DQ105: RMSE
C106: Milo (extra charge for high yield) - $/bu | D106: =EXP(D37 + E37*Prices!$D$2 + F37*Prices!$D$4 + G37) * I37 -> 21.61811902 | E106: =EXP(J37 + K37*Prices!$D$2 + L37*Prices!$D$4 + M37) * O37 -> 22.20930206 | F106: =EXP(P37 + Q37*Prices!$D$2 + R37*Prices!$D$4 + S37) * U37 -> 21.94639087 | G106: =EXP(V37 + W37*Prices!$D$2 + X37*Prices!$D$4 + Y37) * AA37 -> 21.99587579 | H106: =EXP(AB37 + AC37*Prices!$D$2 + AD37*Prices!$D$4 + AE37) * AG37 -> 22.01332029 | I106: =EXP(AH37 + AI37*Prices!$D$2 + AJ37*Prices!$D$4 + AK37) * AM37 -> 21.85149374 | J106: =EXP(AN37 + AO37*Prices!$D$2 + AP37*Prices!$D$4 + AQ37) * AS37 -> 21.83054672 | K106: =EXP(AT37 + AU37*Prices!$D$2 + AV37*Prices!$D$4 + AW37) * AY37 -> 21.11502845 | L106: =EXP(AZ37 + BA37*Prices!$D$2 + BB37*Prices!$D$4 + BC37) * BE37 -> 21.05715388 | M106: =EXP(BF37 + BG37*Prices!$D$2 + BH37*Prices!$D$4 + BI37) * BK37 -> 21.03926684 | N106: =EXP(BL37 + BM37*Prices!$D$2 + BN37*Prices!$D$4 + BO37) * BQ37 -> 22.0774551 | O106: =EXP(BR37 + BS37*Prices!$D$2 + BT37*Prices!$D$4 + BU37) * BW37 -> 21.9711194 | P106: =EXP(BX37 + BY37*Prices!$D$2 + BZ37*Prices!$D$4 + CA37) * CC37 -> 22.05022844 | Q106: =EXP(CD37 + CE37*Prices!$D$2 + CF37*Prices!$D$4 + CG37) * CI37 -> 22.01332029 | R106: =EXP(CJ37 + CK37*Prices!$D$2 + CL37*Prices!$D$4 + CM37) * CO37 -> 21.83054672 | S106: =EXP(CP37 + CQ37*Prices!$D$2 + CR37*Prices!$D$4 + CS37) * CU37 -> 21.92174302 | T106: =EXP(CV37 + CW37*Prices!$D$2 + CX37*Prices!$D$4 + CY37) * DA37 -> 21.08607131 | U106: =EXP(DB37 + DC37*Prices!$D$2 + DD37*Prices!$D$4 + DE37) * DG37 -> 21.04820846 | V106: =EXP(DH37 + DI37*Prices!$D$2 + DJ37*Prices!$D$4 + DK37) * DM37 -> 21.07045826 | DP106: West | DQ106: LN adjustment
C107: Corn (base) | D107: =EXP(D38 + E38*Prices!$D$2 + F38*Prices!$D$4 + G38) * I38 -> 28.35627807 | E107: =EXP(J38 + K38*Prices!$D$2 + L38*Prices!$D$4 + M38) * O38 -> 27.12692083 | F107: =EXP(P38 + Q38*Prices!$D$2 + R38*Prices!$D$4 + S38) * U38 -> 27.05433259 | G107: =EXP(V38 + W38*Prices!$D$2 + X38*Prices!$D$4 + Y38) * AA38 -> 27.05050589 | H107: =EXP(AB38 + AC38*Prices!$D$2 + AD38*Prices!$D$4 + AE38) * AG38 -> 28.56858709 | I107: =EXP(AH38 + AI38*Prices!$D$2 + AJ38*Prices!$D$4 + AK38) * AM38 -> 27.43899495 | J107: =EXP(AN38 + AO38*Prices!$D$2 + AP38*Prices!$D$4 + AQ38) * AS38 -> 29.19304722 | K107: =EXP(AT38 + AU38*Prices!$D$2 + AV38*Prices!$D$4 + AW38) * AY38 -> 30.29648453 | L107: =EXP(AZ38 + BA38*Prices!$D$2 + BB38*Prices!$D$4 + BC38) * BE38 -> 29.03483017 | M107: =EXP(BF38 + BG38*Prices!$D$2 + BH38*Prices!$D$4 + BI38) * BK38 -> 27.81039688 | N107: =EXP(BL38 + BM38*Prices!$D$2 + BN38*Prices!$D$4 + BO38) * BQ38 -> 27.0906024 | O107: =EXP(BR38 + BS38*Prices!$D$2 + BT38*Prices!$D$4 + BU38) * BW38 -> 27.05241917 | P107: =EXP(BX38 + BY38*Prices!$D$2 + BZ38*Prices!$D$4 + CA38) * CC38 -> 27.07723029 | Q107: =EXP(CD38 + CE38*Prices!$D$2 + CF38*Prices!$D$4 + CG38) * CI38 -> 28.56858709 | R107: =EXP(CJ38 + CK38*Prices!$D$2 + CL38*Prices!$D$4 + CM38) * CO38 -> 29.19304722 | S107: =EXP(CP38 + CQ38*Prices!$D$2 + CR38*Prices!$D$4 + CS38) * CU38 -> 28.87912935 | T107: =EXP(CV38 + CW38*Prices!$D$2 + CX38*Prices!$D$4 + CY38) * DA38 -> 29.65894946 | U107: =EXP(DB38 + DC38*Prices!$D$2 + DD38*Prices!$D$4 + DE38) * DG38 -> 28.41601926 | V107: =EXP(DH38 + DI38*Prices!$D$2 + DJ38*Prices!$D$4 + DK38) * DM38 -> 29.02950106 | DP107: North central | DQ107: Intercept
C108: Corn (extra charge for high yield) - $/bu | D108: =EXP(D39 + E39*Prices!$D$2 + F39*Prices!$D$4 + G39) * I39 -> 24.37676575 | E108: =EXP(J39 + K39*Prices!$D$2 + L39*Prices!$D$4 + M39) * O39 -> 23.7026362 | F108: =EXP(P39 + Q39*Prices!$D$2 + R39*Prices!$D$4 + S39) * U39 -> 23.72947285 | G108: =EXP(V39 + W39*Prices!$D$2 + X39*Prices!$D$4 + Y39) * AA39 -> 23.41071997 | H108: =EXP(AB39 + AC39*Prices!$D$2 + AD39*Prices!$D$4 + AE39) * AG39 -> 23.24167356 | I108: =EXP(AH39 + AI39*Prices!$D$2 + AJ39*Prices!$D$4 + AK39) * AM39 -> 22.27166339 | J108: =EXP(AN39 + AO39*Prices!$D$2 + AP39*Prices!$D$4 + AQ39) * AS39 -> 23.56582895 | K108: =EXP(AT39 + AU39*Prices!$D$2 + AV39*Prices!$D$4 + AW39) * AY39 -> 19.41231356 | L108: =EXP(AZ39 + BA39*Prices!$D$2 + BB39*Prices!$D$4 + BC39) * BE39 -> 16.67304983 | M108: =EXP(BF39 + BG39*Prices!$D$2 + BH39*Prices!$D$4 + BI39) * BK39 -> 19.30591641 | N108: =EXP(BL39 + BM39*Prices!$D$2 + BN39*Prices!$D$4 + BO39) * BQ39 -> 23.71605073 | O108: =EXP(BR39 + BS39*Prices!$D$2 + BT39*Prices!$D$4 + BU39) * BW39 -> 23.56955757 | P108: =EXP(BX39 + BY39*Prices!$D$2 + BZ39*Prices!$D$4 + CA39) * CC39 -> 23.61383388 | Q108: =EXP(CD39 + CE39*Prices!$D$2 + CF39*Prices!$D$4 + CG39) * CI39 -> 23.24167356 | R108: =EXP(CJ39 + CK39*Prices!$D$2 + CL39*Prices!$D$4 + CM39) * CO39 -> 23.56582895 | S108: =EXP(CP39 + CQ39*Prices!$D$2 + CR39*Prices!$D$4 + CS39) * CU39 -> 23.40319003 | T108: =EXP(CV39 + CW39*Prices!$D$2 + CX39*Prices!$D$4 + CY39) * DA39 -> 17.99062176 | U108: =EXP(DB39 + DC39*Prices!$D$2 + DD39*Prices!$D$4 + DE39) * DG39 -> 17.94125153 | V108: =EXP(DH39 + DI39*Prices!$D$2 + DJ39*Prices!$D$4 + DK39) * DM39 -> 18.41878263 | DP108: North central | DQ108: PPI
C109: Soybeans (base) | D109: =EXP(D40 + E40*Prices!$D$2 + F40*Prices!$D$4 + G40) * I40 -> 27.1298239 | E109: =EXP(J40 + K40*Prices!$D$2 + L40*Prices!$D$4 + M40) * O40 -> 27.26229745 | F109: =EXP(P40 + Q40*Prices!$D$2 + R40*Prices!$D$4 + S40) * U40 -> 27.42994408 | G109: =EXP(V40 + W40*Prices!$D$2 + X40*Prices!$D$4 + Y40) * AA40 -> 29.00110081 | H109: =EXP(AB40 + AC40*Prices!$D$2 + AD40*Prices!$D$4 + AE40) * AG40 -> 27.69694209 | I109: =EXP(AH40 + AI40*Prices!$D$2 + AJ40*Prices!$D$4 + AK40) * AM40 -> 26.02044188 | J109: =EXP(AN40 + AO40*Prices!$D$2 + AP40*Prices!$D$4 + AQ40) * AS40 -> 27.54928659 | K109: =EXP(AT40 + AU40*Prices!$D$2 + AV40*Prices!$D$4 + AW40) * AY40 -> 28.1715072 | L109: =EXP(AZ40 + BA40*Prices!$D$2 + BB40*Prices!$D$4 + BC40) * BE40 -> 26.28499245 | M109: =EXP(BF40 + BG40*Prices!$D$2 + BH40*Prices!$D$4 + BI40) * BK40 -> 24.11668726 | N109: =EXP(BL40 + BM40*Prices!$D$2 + BN40*Prices!$D$4 + BO40) * BQ40 -> 27.3459923 | O109: =EXP(BR40 + BS40*Prices!$D$2 + BT40*Prices!$D$4 + BU40) * BW40 -> 28.20458427 | P109: =EXP(BX40 + BY40*Prices!$D$2 + BZ40*Prices!$D$4 + CA40) * CC40 -> 27.88692438 | Q109: =EXP(CD40 + CE40*Prices!$D$2 + CF40*Prices!$D$4 + CG40) * CI40 -> 27.69694209 | R109: =EXP(CJ40 + CK40*Prices!$D$2 + CL40*Prices!$D$4 + CM40) * CO40 -> 27.54928659 | S109: =EXP(CP40 + CQ40*Prices!$D$2 + CR40*Prices!$D$4 + CS40) * CU40 -> 27.62301568 | T109: =EXP(CV40 + CW40*Prices!$D$2 + CX40*Prices!$D$4 + CY40) * DA40 -> 27.21190648 | U109: =EXP(DB40 + DC40*Prices!$D$2 + DD40*Prices!$D$4 + DE40) * DG40 -> 25.17750866 | V109: =EXP(DH40 + DI40*Prices!$D$2 + DJ40*Prices!$D$4 + DK40) * DM40 -> 26.13837175 | DP109: North central | DQ109: fuel
C110: Soybeans (extra charge for high yield) - $/bu | D110: =EXP(D41 + E41*Prices!$D$2 + F41*Prices!$D$4 + G41) * I41 -> 20.06367631 | E110: =EXP(J41 + K41*Prices!$D$2 + L41*Prices!$D$4 + M41) * O41 -> 20.39795732 | F110: =EXP(P41 + Q41*Prices!$D$2 + R41*Prices!$D$4 + S41) * U41 -> 20.51807104 | G110: =EXP(V41 + W41*Prices!$D$2 + X41*Prices!$D$4 + Y41) * AA41 -> 20.62368485 | H110: =EXP(AB41 + AC41*Prices!$D$2 + AD41*Prices!$D$4 + AE41) * AG41 -> 21.29953304 | I110: =EXP(AH41 + AI41*Prices!$D$2 + AJ41*Prices!$D$4 + AK41) * AM41 -> 20.23303483 | J110: =EXP(AN41 + AO41*Prices!$D$2 + AP41*Prices!$D$4 + AQ41) * AS41 -> 20.76280536 | K110: =EXP(AT41 + AU41*Prices!$D$2 + AV41*Prices!$D$4 + AW41) * AY41 -> 21.19478518 | L110: =EXP(AZ41 + BA41*Prices!$D$2 + BB41*Prices!$D$4 + BC41) * BE41 -> 20.29574699 | M110: =EXP(BF41 + BG41*Prices!$D$2 + BH41*Prices!$D$4 + BI41) * BK41 -> 21.48224304 | N110: =EXP(BL41 + BM41*Prices!$D$2 + BN41*Prices!$D$4 + BO41) * BQ41 -> 20.45792602 | O110: =EXP(BR41 + BS41*Prices!$D$2 + BT41*Prices!$D$4 + BU41) * BW41 -> 20.57081017 | P110: =EXP(BX41 + BY41*Prices!$D$2 + BZ41*Prices!$D$4 + CA41) * CC41 -> 20.51303041 | Q110: =EXP(CD41 + CE41*Prices!$D$2 + CF41*Prices!$D$4 + CG41) * CI41 -> 21.29953304 | R110: =EXP(CJ41 + CK41*Prices!$D$2 + CL41*Prices!$D$4 + CM41) * CO41 -> 20.76280536 | S110: =EXP(CP41 + CQ41*Prices!$D$2 + CR41*Prices!$D$4 + CS41) * CU41 -> 21.02945693 | T110: =EXP(CV41 + CW41*Prices!$D$2 + CX41*Prices!$D$4 + CY41) * DA41 -> 20.74039531 | U110: =EXP(DB41 + DC41*Prices!$D$2 + DD41*Prices!$D$4 + DE41) * DG41 -> 20.88056919 | V110: =EXP(DH41 + DI41*Prices!$D$2 + DJ41*Prices!$D$4 + DK41) * DM41 -> 20.98478682 | DP110: North central | DQ110: Adjustment factor
C111: Sunflower (base) | D111: =EXP(D42 + E42*Prices!$D$2 + F42*Prices!$D$4 + G42) * I42 -> 31.2421486 | E111: =EXP(J42 + K42*Prices!$D$2 + L42*Prices!$D$4 + M42) * O42 -> 30.76599811 | F111: =EXP(P42 + Q42*Prices!$D$2 + R42*Prices!$D$4 + S42) * U42 -> 30.61659811 | G111: =EXP(V42 + W42*Prices!$D$2 + X42*Prices!$D$4 + Y42) * AA42 -> 30.54643822 | H111: =EXP(AB42 + AC42*Prices!$D$2 + AD42*Prices!$D$4 + AE42) * AG42 -> 31.39260136 | I111: =EXP(AH42 + AI42*Prices!$D$2 + AJ42*Prices!$D$4 + AK42) * AM42 -> 31.23283193 | J111: =EXP(AN42 + AO42*Prices!$D$2 + AP42*Prices!$D$4 + AQ42) * AS42 -> 31.91950114 | K111: =EXP(AT42 + AU42*Prices!$D$2 + AV42*Prices!$D$4 + AW42) * AY42 -> 31.66619107 | L111: =EXP(AZ42 + BA42*Prices!$D$2 + BB42*Prices!$D$4 + BC42) * BE42 -> 31.78462049 | M111: =EXP(BF42 + BG42*Prices!$D$2 + BH42*Prices!$D$4 + BI42) * BK42 -> 31.18109682 | N111: =EXP(BL42 + BM42*Prices!$D$2 + BN42*Prices!$D$4 + BO42) * BQ42 -> 30.6912072 | O111: =EXP(BR42 + BS42*Prices!$D$2 + BT42*Prices!$D$4 + BU42) * BW42 -> 30.58149804 | P111: =EXP(BX42 + BY42*Prices!$D$2 + BZ42*Prices!$D$4 + CA42) * CC42 -> 30.6428748 | Q111: =EXP(CD42 + CE42*Prices!$D$2 + CF42*Prices!$D$4 + CG42) * CI42 -> 31.39260136 | R111: =EXP(CJ42 + CK42*Prices!$D$2 + CL42*Prices!$D$4 + CM42) * CO42 -> 31.91950114 | S111: =EXP(CP42 + CQ42*Prices!$D$2 + CR42*Prices!$D$4 + CS42) * CU42 -> 31.65495499 | T111: =EXP(CV42 + CW42*Prices!$D$2 + CX42*Prices!$D$4 + CY42) * DA42 -> 31.72535052 | U111: =EXP(DB42 + DC42*Prices!$D$2 + DD42*Prices!$D$4 + DE42) * DG42 -> 31.48141244 | V111: =EXP(DH42 + DI42*Prices!$D$2 + DJ42*Prices!$D$4 + DK42) * DM42 -> 31.5428852 | DP111: North central | DQ111: RMSE
C112: Sunflower (extra charge for high yield) - $/bu | D112: =EXP(D43 + E43*Prices!$D$2 + F43*Prices!$D$4 + G43) * I43 -> 27.71242449 | E112: =EXP(J43 + K43*Prices!$D$2 + L43*Prices!$D$4 + M43) * O43 -> 28.24149532 | F112: =EXP(P43 + Q43*Prices!$D$2 + R43*Prices!$D$4 + S43) * U43 -> 28.29996913 | G112: =EXP(V43 + W43*Prices!$D$2 + X43*Prices!$D$4 + Y43) * AA43 -> 28.29996913 | H112: =EXP(AB43 + AC43*Prices!$D$2 + AD43*Prices!$D$4 + AE43) * AG43 -> 28.33736792 | I112: =EXP(AH43 + AI43*Prices!$D$2 + AJ43*Prices!$D$4 + AK43) * AM43 -> 28.33736792 | J112: =EXP(AN43 + AO43*Prices!$D$2 + AP43*Prices!$D$4 + AQ43) * AS43 -> 28.33736792 | K112: =EXP(AT43 + AU43*Prices!$D$2 + AV43*Prices!$D$4 + AW43) * AY43 -> 28.33736792 | L112: =EXP(AZ43 + BA43*Prices!$D$2 + BB43*Prices!$D$4 + BC43) * BE43 -> 28.33736792 | M112: =EXP(BF43 + BG43*Prices!$D$2 + BH43*Prices!$D$4 + BI43) * BK43 -> 28.33736792 | N112: =EXP(BL43 + BM43*Prices!$D$2 + BN43*Prices!$D$4 + BO43) * BQ43 -> 28.27071711 | O112: =EXP(BR43 + BS43*Prices!$D$2 + BT43*Prices!$D$4 + BU43) * BW43 -> 28.29996913 | P112: =EXP(BX43 + BY43*Prices!$D$2 + BZ43*Prices!$D$4 + CA43) * CC43 -> 28.28046442 | Q112: =EXP(CD43 + CE43*Prices!$D$2 + CF43*Prices!$D$4 + CG43) * CI43 -> 28.33736792 | R112: =EXP(CJ43 + CK43*Prices!$D$2 + CL43*Prices!$D$4 + CM43) * CO43 -> 28.33736792 | S112: =EXP(CP43 + CQ43*Prices!$D$2 + CR43*Prices!$D$4 + CS43) * CU43 -> 28.33736792 | T112: =EXP(CV43 + CW43*Prices!$D$2 + CX43*Prices!$D$4 + CY43) * DA43 -> 28.33736792 | U112: =EXP(DB43 + DC43*Prices!$D$2 + DD43*Prices!$D$4 + DE43) * DG43 -> 28.33736792 | V112: =EXP(DH43 + DI43*Prices!$D$2 + DJ43*Prices!$D$4 + DK43) * DM43 -> 28.33736792 | DP112: North central | DQ112: LN adjustment
C113: Silage (base) | D113: =EXP(D44 + E44*Prices!$D$2 + F44*Prices!$D$4 + G44) * I44 -> 7.651724068 | E113: =EXP(J44 + K44*Prices!$D$2 + L44*Prices!$D$4 + M44) * O44 -> 7.769564774 | F113: =EXP(P44 + Q44*Prices!$D$2 + R44*Prices!$D$4 + S44) * U44 -> 7.920767369 | G113: =EXP(V44 + W44*Prices!$D$2 + X44*Prices!$D$4 + Y44) * AA44 -> 7.928268902 | H113: =EXP(AB44 + AC44*Prices!$D$2 + AD44*Prices!$D$4 + AE44) * AG44 -> 7.684904247 | I113: =EXP(AH44 + AI44*Prices!$D$2 + AJ44*Prices!$D$4 + AK44) * AM44 -> 7.936737327 | J113: =EXP(AN44 + AO44*Prices!$D$2 + AP44*Prices!$D$4 + AQ44) * AS44 -> 8.335515936 | K113: =EXP(AT44 + AU44*Prices!$D$2 + AV44*Prices!$D$4 + AW44) * AY44 -> 8.132677026 | L113: =EXP(AZ44 + BA44*Prices!$D$2 + BB44*Prices!$D$4 + BC44) * BE44 -> 7.731310916 | M113: =EXP(BF44 + BG44*Prices!$D$2 + BH44*Prices!$D$4 + BI44) * BK44 -> 8.056586974 | N113: =EXP(BL44 + BM44*Prices!$D$2 + BN44*Prices!$D$4 + BO44) * BQ44 -> 7.844801791 | O113: =EXP(BR44 + BS44*Prices!$D$2 + BT44*Prices!$D$4 + BU44) * BW44 -> 7.924517248 | P113: =EXP(BX44 + BY44*Prices!$D$2 + BZ44*Prices!$D$4 + CA44) * CC44 -> 7.872526065 | Q113: =EXP(CD44 + CE44*Prices!$D$2 + CF44*Prices!$D$4 + CG44) * CI44 -> 7.684904247 | R113: =EXP(CJ44 + CK44*Prices!$D$2 + CL44*Prices!$D$4 + CM44) * CO44 -> 8.335515936 | S113: =EXP(CP44 + CQ44*Prices!$D$2 + CR44*Prices!$D$4 + CS44) * CU44 -> 8.003601803 | T113: =EXP(CV44 + CW44*Prices!$D$2 + CX44*Prices!$D$4 + CY44) * DA44 -> 7.929454878 | U113: =EXP(DB44 + DC44*Prices!$D$2 + DD44*Prices!$D$4 + DE44) * DG44 -> 7.892273362 | V113: =EXP(DH44 + DI44*Prices!$D$2 + DJ44*Prices!$D$4 + DK44) * DM44 -> 7.971607762 | DP113: South central | DQ113: Intercept
B114: Hauling | C114: Wheat - hauling - $/bu | D114: =EXP(D45 + E45*Prices!$D$2 + F45*Prices!$D$4 + G45) * I45 -> 20.10831687 | E114: =EXP(J45 + K45*Prices!$D$2 + L45*Prices!$D$4 + M45) * O45 -> 20.48246535 | F114: =EXP(P45 + Q45*Prices!$D$2 + R45*Prices!$D$4 + S45) * U45 -> 20.54719721 | G114: =EXP(V45 + W45*Prices!$D$2 + X45*Prices!$D$4 + Y45) * AA45 -> 20.25864496 | H114: =EXP(AB45 + AC45*Prices!$D$2 + AD45*Prices!$D$4 + AE45) * AG45 -> 20.29372535 | I114: =EXP(AH45 + AI45*Prices!$D$2 + AJ45*Prices!$D$4 + AK45) * AM45 -> 20.19693221 | J114: =EXP(AN45 + AO45*Prices!$D$2 + AP45*Prices!$D$4 + AQ45) * AS45 -> 20.27823307 | K114: =EXP(AT45 + AU45*Prices!$D$2 + AV45*Prices!$D$4 + AW45) * AY45 -> 20.48546262 | L114: =EXP(AZ45 + BA45*Prices!$D$2 + BB45*Prices!$D$4 + BC45) * BE45 -> 18.20645958 | M114: =EXP(BF45 + BG45*Prices!$D$2 + BH45*Prices!$D$4 + BI45) * BK45 -> 19.76296046 | N114: =EXP(BL45 + BM45*Prices!$D$2 + BN45*Prices!$D$4 + BO45) * BQ45 -> 20.51480575 | O114: =EXP(BR45 + BS45*Prices!$D$2 + BT45*Prices!$D$4 + BU45) * BW45 -> 20.40241097 | P114: =EXP(BX45 + BY45*Prices!$D$2 + BZ45*Prices!$D$4 + CA45) * CC45 -> 20.42906093 | Q114: =EXP(CD45 + CE45*Prices!$D$2 + CF45*Prices!$D$4 + CG45) * CI45 -> 20.29372535 | R114: =EXP(CJ45 + CK45*Prices!$D$2 + CL45*Prices!$D$4 + CM45) * CO45 -> 20.27823307 | S114: =EXP(CP45 + CQ45*Prices!$D$2 + CR45*Prices!$D$4 + CS45) * CU45 -> 20.28597773 | T114: =EXP(CV45 + CW45*Prices!$D$2 + CX45*Prices!$D$4 + CY45) * DA45 -> 19.3123729 | U114: =EXP(DB45 + DC45*Prices!$D$2 + DD45*Prices!$D$4 + DE45) * DG45 -> 18.96875169 | V114: =EXP(DH45 + DI45*Prices!$D$2 + DJ45*Prices!$D$4 + DK45) * DM45 -> 19.46141556 | DP114: South central | DQ114: PPI
C115: Milo - hauling - $/bu | D115: =EXP(D46 + E46*Prices!$D$2 + F46*Prices!$D$4 + G46) * I46 -> 19.90947507 | E115: =EXP(J46 + K46*Prices!$D$2 + L46*Prices!$D$4 + M46) * O46 -> 20.36927012 | F115: =EXP(P46 + Q46*Prices!$D$2 + R46*Prices!$D$4 + S46) * U46 -> 20.6108159 | G115: =EXP(V46 + W46*Prices!$D$2 + X46*Prices!$D$4 + Y46) * AA46 -> 19.79004311 | H115: =EXP(AB46 + AC46*Prices!$D$2 + AD46*Prices!$D$4 + AE46) * AG46 -> 20.09309242 | I115: =EXP(AH46 + AI46*Prices!$D$2 + AJ46*Prices!$D$4 + AK46) * AM46 -> 20.02315304 | J115: =EXP(AN46 + AO46*Prices!$D$2 + AP46*Prices!$D$4 + AQ46) * AS46 -> 20.41452794 | K115: =EXP(AT46 + AU46*Prices!$D$2 + AV46*Prices!$D$4 + AW46) * AY46 -> 19.91713425 | L115: =EXP(AZ46 + BA46*Prices!$D$2 + BB46*Prices!$D$4 + BC46) * BE46 -> 18.20069247 | M115: =EXP(BF46 + BG46*Prices!$D$2 + BH46*Prices!$D$4 + BI46) * BK46 -> 19.3356837 | N115: =EXP(BL46 + BM46*Prices!$D$2 + BN46*Prices!$D$4 + BO46) * BQ46 -> 20.48968708 | O115: =EXP(BR46 + BS46*Prices!$D$2 + BT46*Prices!$D$4 + BU46) * BW46 -> 20.19626042 | P115: =EXP(BX46 + BY46*Prices!$D$2 + BZ46*Prices!$D$4 + CA46) * CC46 -> 20.25376643 | Q115: =EXP(CD46 + CE46*Prices!$D$2 + CF46*Prices!$D$4 + CG46) * CI46 -> 20.09309242 | R115: =EXP(CJ46 + CK46*Prices!$D$2 + CL46*Prices!$D$4 + CM46) * CO46 -> 20.41452794 | S115: =EXP(CP46 + CQ46*Prices!$D$2 + CR46*Prices!$D$4 + CS46) * CU46 -> 20.25317251 | T115: =EXP(CV46 + CW46*Prices!$D$2 + CX46*Prices!$D$4 + CY46) * DA46 -> 19.03958076 | U115: =EXP(DB46 + DC46*Prices!$D$2 + DD46*Prices!$D$4 + DE46) * DG46 -> 18.75960641 | V115: =EXP(DH46 + DI46*Prices!$D$2 + DJ46*Prices!$D$4 + DK46) * DM46 -> 19.13777445 | DP115: South central | DQ115: fuel
C116: Corn - hauling - $/bu | D116: =EXP(D47 + E47*Prices!$D$2 + F47*Prices!$D$4 + G47) * I47 -> 17.0020972 | E116: =EXP(J47 + K47*Prices!$D$2 + L47*Prices!$D$4 + M47) * O47 -> 16.51419628 | F116: =EXP(P47 + Q47*Prices!$D$2 + R47*Prices!$D$4 + S47) * U47 -> 17.52681125 | G116: =EXP(V47 + W47*Prices!$D$2 + X47*Prices!$D$4 + Y47) * AA47 -> 15.97521068 | H116: =EXP(AB47 + AC47*Prices!$D$2 + AD47*Prices!$D$4 + AE47) * AG47 -> 17.13476038 | I116: =EXP(AH47 + AI47*Prices!$D$2 + AJ47*Prices!$D$4 + AK47) * AM47 -> 16.87112373 | J116: =EXP(AN47 + AO47*Prices!$D$2 + AP47*Prices!$D$4 + AQ47) * AS47 -> 15.4903311 | K116: =EXP(AT47 + AU47*Prices!$D$2 + AV47*Prices!$D$4 + AW47) * AY47 -> 17.42612297 | L116: =EXP(AZ47 + BA47*Prices!$D$2 + BB47*Prices!$D$4 + BC47) * BE47 -> 16.15776229 | M116: =EXP(BF47 + BG47*Prices!$D$2 + BH47*Prices!$D$4 + BI47) * BK47 -> 16.34788707 | N116: =EXP(BL47 + BM47*Prices!$D$2 + BN47*Prices!$D$4 + BO47) * BQ47 -> 17.01297156 | O116: =EXP(BR47 + BS47*Prices!$D$2 + BT47*Prices!$D$4 + BU47) * BW47 -> 16.73303626 | P116: =EXP(BX47 + BY47*Prices!$D$2 + BZ47*Prices!$D$4 + CA47) * CC47 -> 16.65976926 | Q116: =EXP(CD47 + CE47*Prices!$D$2 + CF47*Prices!$D$4 + CG47) * CI47 -> 17.13476038 | R116: =EXP(CJ47 + CK47*Prices!$D$2 + CL47*Prices!$D$4 + CM47) * CO47 -> 15.4903311 | S116: =EXP(CP47 + CQ47*Prices!$D$2 + CR47*Prices!$D$4 + CS47) * CU47 -> 16.29181118 | T116: =EXP(CV47 + CW47*Prices!$D$2 + CX47*Prices!$D$4 + CY47) * DA47 -> 16.77996283 | U116: =EXP(DB47 + DC47*Prices!$D$2 + DD47*Prices!$D$4 + DE47) * DG47 -> 16.25254667 | V116: =EXP(DH47 + DI47*Prices!$D$2 + DJ47*Prices!$D$4 + DK47) * DM47 -> 16.63468339 | DP116: South central | DQ116: Adjustment factor
C117: Soybeans - hauling - $/bu | D117: =EXP(D48 + E48*Prices!$D$2 + F48*Prices!$D$4 + G48) * I48 -> 18.08070812 | E117: =EXP(J48 + K48*Prices!$D$2 + L48*Prices!$D$4 + M48) * O48 -> 18.28505132 | F117: =EXP(P48 + Q48*Prices!$D$2 + R48*Prices!$D$4 + S48) * U48 -> 18.50583025 | G117: =EXP(V48 + W48*Prices!$D$2 + X48*Prices!$D$4 + Y48) * AA48 -> 18.07122597 | H117: =EXP(AB48 + AC48*Prices!$D$2 + AD48*Prices!$D$4 + AE48) * AG48 -> 18.57427035 | I117: =EXP(AH48 + AI48*Prices!$D$2 + AJ48*Prices!$D$4 + AK48) * AM48 -> 18.57843177 | J117: =EXP(AN48 + AO48*Prices!$D$2 + AP48*Prices!$D$4 + AQ48) * AS48 -> 18.82213913 | K117: =EXP(AT48 + AU48*Prices!$D$2 + AV48*Prices!$D$4 + AW48) * AY48 -> 18.57585363 | L117: =EXP(AZ48 + BA48*Prices!$D$2 + BB48*Prices!$D$4 + BC48) * BE48 -> 17.31692505 | M117: =EXP(BF48 + BG48*Prices!$D$2 + BH48*Prices!$D$4 + BI48) * BK48 -> 18.56097642 | N117: =EXP(BL48 + BM48*Prices!$D$2 + BN48*Prices!$D$4 + BO48) * BQ48 -> 18.39510956 | O117: =EXP(BR48 + BS48*Prices!$D$2 + BT48*Prices!$D$4 + BU48) * BW48 -> 18.28723709 | P117: =EXP(BX48 + BY48*Prices!$D$2 + BZ48*Prices!$D$4 + CA48) * CC48 -> 18.28650847 | Q117: =EXP(CD48 + CE48*Prices!$D$2 + CF48*Prices!$D$4 + CG48) * CI48 -> 18.57427035 | R117: =EXP(CJ48 + CK48*Prices!$D$2 + CL48*Prices!$D$4 + CM48) * CO48 -> 18.82213913 | S117: =EXP(CP48 + CQ48*Prices!$D$2 + CR48*Prices!$D$4 + CS48) * CU48 -> 18.69779401 | T117: =EXP(CV48 + CW48*Prices!$D$2 + CX48*Prices!$D$4 + CY48) * DA48 -> 17.93534681 | U117: =EXP(DB48 + DC48*Prices!$D$2 + DD48*Prices!$D$4 + DE48) * DG48 -> 17.92816325 | V117: =EXP(DH48 + DI48*Prices!$D$2 + DJ48*Prices!$D$4 + DK48) * DM48 -> 18.1415111 | DP117: South central | DQ117: RMSE
C118: Sunflower - hauling - $/bu | D118: =EXP(D49 + E49*Prices!$D$2 + F49*Prices!$D$4 + G49) * I49 -> 29.28120309 | E118: =EXP(J49 + K49*Prices!$D$2 + L49*Prices!$D$4 + M49) * O49 -> 44.32967727 | F118: =EXP(P49 + Q49*Prices!$D$2 + R49*Prices!$D$4 + S49) * U49 -> 44.32967727 | G118: =EXP(V49 + W49*Prices!$D$2 + X49*Prices!$D$4 + Y49) * AA49 -> 44.67604779 | H118: =EXP(AB49 + AC49*Prices!$D$2 + AD49*Prices!$D$4 + AE49) * AG49 -> 40.93160344 | I118: =EXP(AH49 + AI49*Prices!$D$2 + AJ49*Prices!$D$4 + AK49) * AM49 -> 40.93160344 | J118: =EXP(AN49 + AO49*Prices!$D$2 + AP49*Prices!$D$4 + AQ49) * AS49 -> 40.93160344 | K118: =EXP(AT49 + AU49*Prices!$D$2 + AV49*Prices!$D$4 + AW49) * AY49 -> 30.87988482 | L118: =EXP(AZ49 + BA49*Prices!$D$2 + BB49*Prices!$D$4 + BC49) * BE49 -> 30.87988482 | M118: =EXP(BF49 + BG49*Prices!$D$2 + BH49*Prices!$D$4 + BI49) * BK49 -> 30.87988482 | N118: =EXP(BL49 + BM49*Prices!$D$2 + BN49*Prices!$D$4 + BO49) * BQ49 -> 44.32967727 | O118: =EXP(BR49 + BS49*Prices!$D$2 + BT49*Prices!$D$4 + BU49) * BW49 -> 44.50252555 | P118: =EXP(BX49 + BY49*Prices!$D$2 + BZ49*Prices!$D$4 + CA49) * CC49 -> 44.4448347 | Q118: =EXP(CD49 + CE49*Prices!$D$2 + CF49*Prices!$D$4 + CG49) * CI49 -> 40.93160344 | R118: =EXP(CJ49 + CK49*Prices!$D$2 + CL49*Prices!$D$4 + CM49) * CO49 -> 40.93160344 | S118: =EXP(CP49 + CQ49*Prices!$D$2 + CR49*Prices!$D$4 + CS49) * CU49 -> 40.93160344 | T118: =EXP(CV49 + CW49*Prices!$D$2 + CX49*Prices!$D$4 + CY49) * DA49 -> 30.87988482 | U118: =EXP(DB49 + DC49*Prices!$D$2 + DD49*Prices!$D$4 + DE49) * DG49 -> 30.87988482 | V118: =EXP(DH49 + DI49*Prices!$D$2 + DJ49*Prices!$D$4 + DK49) * DM49 -> 30.87988482 | DP118: South central | DQ118: LN adjustment
B119: Hay | C119: Rotary mow, $/acre | D119: =EXP(D50 + E50*Prices!$D$2 + F50*Prices!$D$4 + G50) * I50 -> 14.38633746 | E119: =EXP(J50 + K50*Prices!$D$2 + L50*Prices!$D$4 + M50) * O50 -> 13.88362959 | F119: =EXP(P50 + Q50*Prices!$D$2 + R50*Prices!$D$4 + S50) * U50 -> 13.71765432 | G119: =EXP(V50 + W50*Prices!$D$2 + X50*Prices!$D$4 + Y50) * AA50 -> 14.3604641 | H119: =EXP(AB50 + AC50*Prices!$D$2 + AD50*Prices!$D$4 + AE50) * AG50 -> 13.52441913 | I119: =EXP(AH50 + AI50*Prices!$D$2 + AJ50*Prices!$D$4 + AK50) * AM50 -> 13.36185 | J119: =EXP(AN50 + AO50*Prices!$D$2 + AP50*Prices!$D$4 + AQ50) * AS50 -> 13.39753465 | K119: =EXP(AT50 + AU50*Prices!$D$2 + AV50*Prices!$D$4 + AW50) * AY50 -> 14.01089899 | L119: =EXP(AZ50 + BA50*Prices!$D$2 + BB50*Prices!$D$4 + BC50) * BE50 -> 15.57682008 | M119: =EXP(BF50 + BG50*Prices!$D$2 + BH50*Prices!$D$4 + BI50) * BK50 -> 13.70149911 | N119: =EXP(BL50 + BM50*Prices!$D$2 + BN50*Prices!$D$4 + BO50) * BQ50 -> 13.80039244 | O119: =EXP(BR50 + BS50*Prices!$D$2 + BT50*Prices!$D$4 + BU50) * BW50 -> 14.03537966 | P119: =EXP(BX50 + BY50*Prices!$D$2 + BZ50*Prices!$D$4 + CA50) * CC50 -> 13.9846129 | Q119: =EXP(CD50 + CE50*Prices!$D$2 + CF50*Prices!$D$4 + CG50) * CI50 -> 13.52441913 | R119: =EXP(CJ50 + CK50*Prices!$D$2 + CL50*Prices!$D$4 + CM50) * CO50 -> 13.39753465 | S119: =EXP(CP50 + CQ50*Prices!$D$2 + CR50*Prices!$D$4 + CS50) * CU50 -> 13.46082739 | T119: =EXP(CV50 + CW50*Prices!$D$2 + CX50*Prices!$D$4 + CY50) * DA50 -> 14.77312603 | U119: =EXP(DB50 + DC50*Prices!$D$2 + DD50*Prices!$D$4 + DE50) * DG50 -> 14.60909944 | V119: =EXP(DH50 + DI50*Prices!$D$2 + DJ50*Prices!$D$4 + DK50) * DM50 -> 14.40691401 | DP119: Central | DQ119: Intercept
C120: Rotary mow, $/hour | D120: =EXP(D51 + E51*Prices!$D$2 + F51*Prices!$D$4 + G51) * I51 -> 142.4963336 | E120: =EXP(J51 + K51*Prices!$D$2 + L51*Prices!$D$4 + M51) * O51 -> 158.5456217 | F120: =EXP(P51 + Q51*Prices!$D$2 + R51*Prices!$D$4 + S51) * U51 -> 158.4202967 | G120: =EXP(V51 + W51*Prices!$D$2 + X51*Prices!$D$4 + Y51) * AA51 -> 157.0573512 | H120: =EXP(AB51 + AC51*Prices!$D$2 + AD51*Prices!$D$4 + AE51) * AG51 -> 138.9532431 | I120: =EXP(AH51 + AI51*Prices!$D$2 + AJ51*Prices!$D$4 + AK51) * AM51 -> 131.7708016 | J120: =EXP(AN51 + AO51*Prices!$D$2 + AP51*Prices!$D$4 + AQ51) * AS51 -> 140.9907649 | K120: =EXP(AT51 + AU51*Prices!$D$2 + AV51*Prices!$D$4 + AW51) * AY51 -> 137.8081778 | L120: =EXP(AZ51 + BA51*Prices!$D$2 + BB51*Prices!$D$4 + BC51) * BE51 -> 139.0384129 | M120: =EXP(BF51 + BG51*Prices!$D$2 + BH51*Prices!$D$4 + BI51) * BK51 -> 128.2509657 | N120: =EXP(BL51 + BM51*Prices!$D$2 + BN51*Prices!$D$4 + BO51) * BQ51 -> 158.4829468 | O120: =EXP(BR51 + BS51*Prices!$D$2 + BT51*Prices!$D$4 + BU51) * BW51 -> 157.7373519 | P120: =EXP(BX51 + BY51*Prices!$D$2 + BZ51*Prices!$D$4 + CA51) * CC51 -> 158.0063163 | Q120: =EXP(CD51 + CE51*Prices!$D$2 + CF51*Prices!$D$4 + CG51) * CI51 -> 138.9532431 | R120: =EXP(CJ51 + CK51*Prices!$D$2 + CL51*Prices!$D$4 + CM51) * CO51 -> 140.9907649 | S120: =EXP(CP51 + CQ51*Prices!$D$2 + CR51*Prices!$D$4 + CS51) * CU51 -> 139.9682965 | T120: =EXP(CV51 + CW51*Prices!$D$2 + CX51*Prices!$D$4 + CY51) * DA51 -> 138.4219286 | U120: =EXP(DB51 + DC51*Prices!$D$2 + DD51*Prices!$D$4 + DE51) * DG51 -> 133.5358032 | V120: =EXP(DH51 + DI51*Prices!$D$2 + DJ51*Prices!$D$4 + DK51) * DM51 -> 134.9450045 | DP120: Central | DQ120: PPI
C121: Hay-mow/swath, $/acre | D121: =EXP(D52 + E52*Prices!$D$2 + F52*Prices!$D$4 + G52) * I52 -> 13.84396839 | E121: =EXP(J52 + K52*Prices!$D$2 + L52*Prices!$D$4 + M52) * O52 -> 16.29667621 | F121: =EXP(P52 + Q52*Prices!$D$2 + R52*Prices!$D$4 + S52) * U52 -> 16.26582833 | G121: =EXP(V52 + W52*Prices!$D$2 + X52*Prices!$D$4 + Y52) * AA52 -> 15.70835346 | H121: =EXP(AB52 + AC52*Prices!$D$2 + AD52*Prices!$D$4 + AE52) * AG52 -> 14.60619874 | I121: =EXP(AH52 + AI52*Prices!$D$2 + AJ52*Prices!$D$4 + AK52) * AM52 -> 15.0008306 | J121: =EXP(AN52 + AO52*Prices!$D$2 + AP52*Prices!$D$4 + AQ52) * AS52 -> 15.36770837 | K121: =EXP(AT52 + AU52*Prices!$D$2 + AV52*Prices!$D$4 + AW52) * AY52 -> 15.43452314 | L121: =EXP(AZ52 + BA52*Prices!$D$2 + BB52*Prices!$D$4 + BC52) * BE52 -> 14.19835133 | M121: =EXP(BF52 + BG52*Prices!$D$2 + BH52*Prices!$D$4 + BI52) * BK52 -> 14.54587173 | N121: =EXP(BL52 + BM52*Prices!$D$2 + BN52*Prices!$D$4 + BO52) * BQ52 -> 16.28124496 | O121: =EXP(BR52 + BS52*Prices!$D$2 + BT52*Prices!$D$4 + BU52) * BW52 -> 15.9846608 | P121: =EXP(BX52 + BY52*Prices!$D$2 + BZ52*Prices!$D$4 + CA52) * CC52 -> 16.08799646 | Q121: =EXP(CD52 + CE52*Prices!$D$2 + CF52*Prices!$D$4 + CG52) * CI52 -> 14.60619874 | R121: =EXP(CJ52 + CK52*Prices!$D$2 + CL52*Prices!$D$4 + CM52) * CO52 -> 15.36770837 | S121: =EXP(CP52 + CQ52*Prices!$D$2 + CR52*Prices!$D$4 + CS52) * CU52 -> 14.98211609 | T121: =EXP(CV52 + CW52*Prices!$D$2 + CX52*Prices!$D$4 + CY52) * DA52 -> 14.80353951 | U121: =EXP(DB52 + DC52*Prices!$D$2 + DD52*Prices!$D$4 + DE52) * DG52 -> 14.37106111 | V121: =EXP(DH52 + DI52*Prices!$D$2 + DJ52*Prices!$D$4 + DK52) * DM52 -> 14.71714705 | DP121: Central | DQ121: fuel
C122: Forage-mow/swath, $/acre | D122: =EXP(D53 + E53*Prices!$D$2 + F53*Prices!$D$4 + G53) * I53 -> 18.71096213 | E122: =EXP(J53 + K53*Prices!$D$2 + L53*Prices!$D$4 + M53) * O53 -> 14.36074215 | F122: =EXP(P53 + Q53*Prices!$D$2 + R53*Prices!$D$4 + S53) * U53 -> 13.72472445 | G122: =EXP(V53 + W53*Prices!$D$2 + X53*Prices!$D$4 + Y53) * AA53 -> 13.81574338 | H122: =EXP(AB53 + AC53*Prices!$D$2 + AD53*Prices!$D$4 + AE53) * AG53 -> 13.30086826 | I122: =EXP(AH53 + AI53*Prices!$D$2 + AJ53*Prices!$D$4 + AK53) * AM53 -> 13.14833066 | J122: =EXP(AN53 + AO53*Prices!$D$2 + AP53*Prices!$D$4 + AQ53) * AS53 -> 13.23120009 | K122: =EXP(AT53 + AU53*Prices!$D$2 + AV53*Prices!$D$4 + AW53) * AY53 -> 11.9185217 | L122: =EXP(AZ53 + BA53*Prices!$D$2 + BB53*Prices!$D$4 + BC53) * BE53 -> 11.75162382 | M122: =EXP(BF53 + BG53*Prices!$D$2 + BH53*Prices!$D$4 + BI53) * BK53 -> 11.69559124 | N122: =EXP(BL53 + BM53*Prices!$D$2 + BN53*Prices!$D$4 + BO53) * BQ53 -> 14.03913206 | O122: =EXP(BR53 + BS53*Prices!$D$2 + BT53*Prices!$D$4 + BU53) * BW53 -> 13.77015871 | P122: =EXP(BX53 + BY53*Prices!$D$2 + BZ53*Prices!$D$4 + CA53) * CC53 -> 13.96427069 | Q122: =EXP(CD53 + CE53*Prices!$D$2 + CF53*Prices!$D$4 + CG53) * CI53 -> 13.30086826 | R122: =EXP(CJ53 + CK53*Prices!$D$2 + CL53*Prices!$D$4 + CM53) * CO53 -> 13.23120009 | S122: =EXP(CP53 + CQ53*Prices!$D$2 + CR53*Prices!$D$4 + CS53) * CU53 -> 13.26598844 | T122: =EXP(CV53 + CW53*Prices!$D$2 + CX53*Prices!$D$4 + CY53) * DA53 -> 11.83477856 | U122: =EXP(DB53 + DC53*Prices!$D$2 + DD53*Prices!$D$4 + DE53) * DG53 -> 11.72357406 | V122: =EXP(DH53 + DI53*Prices!$D$2 + DJ53*Prices!$D$4 + DK53) * DM53 -> 11.7881997 | DP122: Central | DQ122: Adjustment factor
C123: Swathing and condition, $/acre | D123: =EXP(D54 + E54*Prices!$D$2 + F54*Prices!$D$4 + G54) * I54 -> 17.11897119 | E123: =EXP(J54 + K54*Prices!$D$2 + L54*Prices!$D$4 + M54) * O54 -> 17.21251098 | F123: =EXP(P54 + Q54*Prices!$D$2 + R54*Prices!$D$4 + S54) * U54 -> 17.18919055 | G123: =EXP(V54 + W54*Prices!$D$2 + X54*Prices!$D$4 + Y54) * AA54 -> 16.49335766 | H123: =EXP(AB54 + AC54*Prices!$D$2 + AD54*Prices!$D$4 + AE54) * AG54 -> 15.3319571 | I123: =EXP(AH54 + AI54*Prices!$D$2 + AJ54*Prices!$D$4 + AK54) * AM54 -> 15.68943653 | J123: =EXP(AN54 + AO54*Prices!$D$2 + AP54*Prices!$D$4 + AQ54) * AS54 -> 16.13076599 | K123: =EXP(AT54 + AU54*Prices!$D$2 + AV54*Prices!$D$4 + AW54) * AY54 -> 16.41655779 | L123: =EXP(AZ54 + BA54*Prices!$D$2 + BB54*Prices!$D$4 + BC54) * BE54 -> 15.2947348 | M123: =EXP(BF54 + BG54*Prices!$D$2 + BH54*Prices!$D$4 + BI54) * BK54 -> 16.27844094 | N123: =EXP(BL54 + BM54*Prices!$D$2 + BN54*Prices!$D$4 + BO54) * BQ54 -> 17.20084681 | O123: =EXP(BR54 + BS54*Prices!$D$2 + BT54*Prices!$D$4 + BU54) * BW54 -> 16.83767999 | P123: =EXP(BX54 + BY54*Prices!$D$2 + BZ54*Prices!$D$4 + CA54) * CC54 -> 16.96170781 | Q123: =EXP(CD54 + CE54*Prices!$D$2 + CF54*Prices!$D$4 + CG54) * CI54 -> 15.3319571 | R123: =EXP(CJ54 + CK54*Prices!$D$2 + CL54*Prices!$D$4 + CM54) * CO54 -> 16.13076599 | S123: =EXP(CP54 + CQ54*Prices!$D$2 + CR54*Prices!$D$4 + CS54) * CU54 -> 15.72629048 | T123: =EXP(CV54 + CW54*Prices!$D$2 + CX54*Prices!$D$4 + CY54) * DA54 -> 15.84572175 | U123: =EXP(DB54 + DC54*Prices!$D$2 + DD54*Prices!$D$4 + DE54) * DG54 -> 15.77892383 | V123: =EXP(DH54 + DI54*Prices!$D$2 + DJ54*Prices!$D$4 + DK54) * DM54 -> 15.98866806 | DP123: Central | DQ123: RMSE
C124: Sideraking hay, $/acre | D124: =EXP(D55 + E55*Prices!$D$2 + F55*Prices!$D$4 + G55) * I55 -> 4.118529979 | E124: =EXP(J55 + K55*Prices!$D$2 + L55*Prices!$D$4 + M55) * O55 -> 5.14697105 | F124: =EXP(P55 + Q55*Prices!$D$2 + R55*Prices!$D$4 + S55) * U55 -> 4.5056933 | G124: =EXP(V55 + W55*Prices!$D$2 + X55*Prices!$D$4 + Y55) * AA55 -> 4.564508654 | H124: =EXP(AB55 + AC55*Prices!$D$2 + AD55*Prices!$D$4 + AE55) * AG55 -> 4.007052786 | I124: =EXP(AH55 + AI55*Prices!$D$2 + AJ55*Prices!$D$4 + AK55) * AM55 -> 4.171406579 | J124: =EXP(AN55 + AO55*Prices!$D$2 + AP55*Prices!$D$4 + AQ55) * AS55 -> 4.161430694 | K124: =EXP(AT55 + AU55*Prices!$D$2 + AV55*Prices!$D$4 + AW55) * AY55 -> 4.423583848 | L124: =EXP(AZ55 + BA55*Prices!$D$2 + BB55*Prices!$D$4 + BC55) * BE55 -> 4.35787268 | M124: =EXP(BF55 + BG55*Prices!$D$2 + BH55*Prices!$D$4 + BI55) * BK55 -> 4.531677939 | N124: =EXP(BL55 + BM55*Prices!$D$2 + BN55*Prices!$D$4 + BO55) * BQ55 -> 4.815669525 | O124: =EXP(BR55 + BS55*Prices!$D$2 + BT55*Prices!$D$4 + BU55) * BW55 -> 4.53500563 | P124: =EXP(BX55 + BY55*Prices!$D$2 + BZ55*Prices!$D$4 + CA55) * CC55 -> 4.730450063 | Q124: =EXP(CD55 + CE55*Prices!$D$2 + CF55*Prices!$D$4 + CG55) * CI55 -> 4.007052786 | R124: =EXP(CJ55 + CK55*Prices!$D$2 + CL55*Prices!$D$4 + CM55) * CO55 -> 4.161430694 | S124: =EXP(CP55 + CQ55*Prices!$D$2 + CR55*Prices!$D$4 + CS55) * CU55 -> 4.083512269 | T124: =EXP(CV55 + CW55*Prices!$D$2 + CX55*Prices!$D$4 + CY55) * DA55 -> 4.390605334 | U124: =EXP(DB55 + DC55*Prices!$D$2 + DD55*Prices!$D$4 + DE55) * DG55 -> 4.443925684 | V124: =EXP(DH55 + DI55*Prices!$D$2 + DJ55*Prices!$D$4 + DK55) * DM55 -> 4.4371347 | DP124: Central | DQ124: LN adjustment
C125: Small square with twine, $/bale | D125: =EXP(D56 + E56*Prices!$D$2 + F56*Prices!$D$4 + G56) * I56 -> 1.544361342 | E125: =EXP(J56 + K56*Prices!$D$2 + L56*Prices!$D$4 + M56) * O56 -> 1.312436296 | F125: =EXP(P56 + Q56*Prices!$D$2 + R56*Prices!$D$4 + S56) * U56 -> 1.376202448 | G125: =EXP(V56 + W56*Prices!$D$2 + X56*Prices!$D$4 + Y56) * AA56 -> 1.436394291 | H125: =EXP(AB56 + AC56*Prices!$D$2 + AD56*Prices!$D$4 + AE56) * AG56 -> 1.192263695 | I125: =EXP(AH56 + AI56*Prices!$D$2 + AJ56*Prices!$D$4 + AK56) * AM56 -> 1.410940718 | J125: =EXP(AN56 + AO56*Prices!$D$2 + AP56*Prices!$D$4 + AQ56) * AS56 -> 1.185815749 | K125: =EXP(AT56 + AU56*Prices!$D$2 + AV56*Prices!$D$4 + AW56) * AY56 -> 1.225497605 | L125: =EXP(AZ56 + BA56*Prices!$D$2 + BB56*Prices!$D$4 + BC56) * BE56 -> 1.369709676 | M125: =EXP(BF56 + BG56*Prices!$D$2 + BH56*Prices!$D$4 + BI56) * BK56 -> 1.33460774 | N125: =EXP(BL56 + BM56*Prices!$D$2 + BN56*Prices!$D$4 + BO56) * BQ56 -> 1.343941235 | O125: =EXP(BR56 + BS56*Prices!$D$2 + BT56*Prices!$D$4 + BU56) * BW56 -> 1.405976294 | P125: =EXP(BX56 + BY56*Prices!$D$2 + BZ56*Prices!$D$4 + CA56) * CC56 -> 1.374078074 | Q125: =EXP(CD56 + CE56*Prices!$D$2 + CF56*Prices!$D$4 + CG56) * CI56 -> 1.192263695 | R125: =EXP(CJ56 + CK56*Prices!$D$2 + CL56*Prices!$D$4 + CM56) * CO56 -> 1.185815749 | S125: =EXP(CP56 + CQ56*Prices!$D$2 + CR56*Prices!$D$4 + CS56) * CU56 -> 1.189035351 | T125: =EXP(CV56 + CW56*Prices!$D$2 + CX56*Prices!$D$4 + CY56) * DA56 -> 1.295598675 | U125: =EXP(DB56 + DC56*Prices!$D$2 + DD56*Prices!$D$4 + DE56) * DG56 -> 1.352044798 | V125: =EXP(DH56 + DI56*Prices!$D$2 + DJ56*Prices!$D$4 + DK56) * DM56 -> 1.308473335 | DP125: Northeast | DQ125: Intercept
C126: Small square with wire, $/bale | D126: =EXP(D57 + E57*Prices!$D$2 + F57*Prices!$D$4 + G57) * I57 -> 1.329319812 | E126: =EXP(J57 + K57*Prices!$D$2 + L57*Prices!$D$4 + M57) * O57 -> 1.297681817 | F126: =EXP(P57 + Q57*Prices!$D$2 + R57*Prices!$D$4 + S57) * U57 -> 1.392204913 | G126: =EXP(V57 + W57*Prices!$D$2 + X57*Prices!$D$4 + Y57) * AA57 -> 1.378769453 | H126: =EXP(AB57 + AC57*Prices!$D$2 + AD57*Prices!$D$4 + AE57) * AG57 -> 1.49579859 | I126: =EXP(AH57 + AI57*Prices!$D$2 + AJ57*Prices!$D$4 + AK57) * AM57 -> 1.284388518 | J126: =EXP(AN57 + AO57*Prices!$D$2 + AP57*Prices!$D$4 + AQ57) * AS57 -> 1.215092829 | K126: =EXP(AT57 + AU57*Prices!$D$2 + AV57*Prices!$D$4 + AW57) * AY57 -> 1.231846308 | L126: =EXP(AZ57 + BA57*Prices!$D$2 + BB57*Prices!$D$4 + BC57) * BE57 -> 1.263427592 | M126: =EXP(BF57 + BG57*Prices!$D$2 + BH57*Prices!$D$4 + BI57) * BK57 -> 1.243944155 | N126: =EXP(BL57 + BM57*Prices!$D$2 + BN57*Prices!$D$4 + BO57) * BQ57 -> 1.344112719 | O126: =EXP(BR57 + BS57*Prices!$D$2 + BT57*Prices!$D$4 + BU57) * BW57 -> 1.385470897 | P126: =EXP(BX57 + BY57*Prices!$D$2 + BZ57*Prices!$D$4 + CA57) * CC57 -> 1.355567074 | Q126: =EXP(CD57 + CE57*Prices!$D$2 + CF57*Prices!$D$4 + CG57) * CI57 -> 1.49579859 | R126: =EXP(CJ57 + CK57*Prices!$D$2 + CL57*Prices!$D$4 + CM57) * CO57 -> 1.215092829 | S126: =EXP(CP57 + CQ57*Prices!$D$2 + CR57*Prices!$D$4 + CS57) * CU57 -> 1.348159538 | T126: =EXP(CV57 + CW57*Prices!$D$2 + CX57*Prices!$D$4 + CY57) * DA57 -> 1.247537019 | U126: =EXP(DB57 + DC57*Prices!$D$2 + DD57*Prices!$D$4 + DE57) * DG57 -> 1.253648024 | V126: =EXP(DH57 + DI57*Prices!$D$2 + DJ57*Prices!$D$4 + DK57) * DM57 -> 1.246338246 | DP126: Northeast | DQ126: PPI
C127: Round (< 1500 lbs) w/o net, $/bale | D127: =EXP(D58 + E58*Prices!$D$2 + F58*Prices!$D$4 + G58) * I58 -> 13.18028255 | E127: =EXP(J58 + K58*Prices!$D$2 + L58*Prices!$D$4 + M58) * O58 -> 11.94844256 | F127: =EXP(P58 + Q58*Prices!$D$2 + R58*Prices!$D$4 + S58) * U58 -> 12.34926699 | G127: =EXP(V58 + W58*Prices!$D$2 + X58*Prices!$D$4 + Y58) * AA58 -> 15.46377233 | H127: =EXP(AB58 + AC58*Prices!$D$2 + AD58*Prices!$D$4 + AE58) * AG58 -> 12.06544514 | I127: =EXP(AH58 + AI58*Prices!$D$2 + AJ58*Prices!$D$4 + AK58) * AM58 -> 12.75645979 | J127: =EXP(AN58 + AO58*Prices!$D$2 + AP58*Prices!$D$4 + AQ58) * AS58 -> 13.10082465 | K127: =EXP(AT58 + AU58*Prices!$D$2 + AV58*Prices!$D$4 + AW58) * AY58 -> 12.64503475 | L127: =EXP(AZ58 + BA58*Prices!$D$2 + BB58*Prices!$D$4 + BC58) * BE58 -> 13.11282306 | M127: =EXP(BF58 + BG58*Prices!$D$2 + BH58*Prices!$D$4 + BI58) * BK58 -> 13.78472149 | N127: =EXP(BL58 + BM58*Prices!$D$2 + BN58*Prices!$D$4 + BO58) * BQ58 -> 12.14720162 | O127: =EXP(BR58 + BS58*Prices!$D$2 + BT58*Prices!$D$4 + BU58) * BW58 -> 13.81905399 | P127: =EXP(BX58 + BY58*Prices!$D$2 + BZ58*Prices!$D$4 + CA58) * CC58 -> 13.16505393 | Q127: =EXP(CD58 + CE58*Prices!$D$2 + CF58*Prices!$D$4 + CG58) * CI58 -> 12.06544514 | R127: =EXP(CJ58 + CK58*Prices!$D$2 + CL58*Prices!$D$4 + CM58) * CO58 -> 13.10082465 | S127: =EXP(CP58 + CQ58*Prices!$D$2 + CR58*Prices!$D$4 + CS58) * CU58 -> 12.5724811 | T127: =EXP(CV58 + CW58*Prices!$D$2 + CX58*Prices!$D$4 + CY58) * DA58 -> 12.87680486 | U127: =EXP(DB58 + DC58*Prices!$D$2 + DD58*Prices!$D$4 + DE58) * DG58 -> 13.44457563 | V127: =EXP(DH58 + DI58*Prices!$D$2 + DJ58*Prices!$D$4 + DK58) * DM58 -> 13.17259708 | DP127: Northeast | DQ127: fuel
